Workbook

Sheet Portada
L4: Guatemala, | M4: =TODAY() -> 2025-04-15
K7: Este documento debe citarse así:
K8: IGSS (2025). IGSS en Cifras, avance mensual año 2025: Subgerencia de Planificación y Desarrollo. (E. García, S. Barrientos, & E. Cinto, Edits.) Guatemala: Departamento Actuarial y Estadístico. Obtenido de Informes y Estadísticas: https://www.igssgt.org
Q10: AVISOS
Q12: Para la descarga del archivo en Excel favor tomar en cuenta las siguientes recomendaciones:
K13: Elaboración y Revisión: Departamento Actuarial y Estadístico Área Estadística Subsistema Económico y Financiero
Q15: Este documento es compatible con el sistema operativo Windows 7 en adelante y con Office 2013 en adelante, asimismo, tener habilitadas las macros. Al descargar el archivo podrá visualizar la información por Departamento de la República. Una mejor visualización de los datos abiertos se obtendrá al utilizar los exploradores: Chrome y Mozzila Firefox.
K16: Editores: Edwin García, Sandra Barrientos, & Edy Cinto.
K18: Elaboración: Subsistema Económico y Financiero; E. Cinto. Documento elaborado con información proporcionada por los subsistemas estadísticos del Departamento Actuarial y Estadístico.
K22: Publicación: Subgerencia de Planificación y Desarrollo. IGSS, Guatemala. 2025
K24: Derechos Reservados Instituto Guatemalteco de Seguridad Social -IGSS- 7a. Avenida 22-72 zona 01. Ciudad de Guatemala, Guatemala Call Center. 1522 PBX: +(502) 2412 1224 y +(502) 2297 1224
K28: https://www.igssgt.org/
K29: Correo electrónico: consultas@igssgt.org
K32: El presente documento se ofrece como un recurso consultivo, permitiendo su reproducción total o parcial por cualquier medio, siempre y cuando su utilización se realice con fines educativos, estadísticos y sin ánimo de lucro. Los datos estan dirigidos a todas las instituciones del sector de la salud, económico, públicas o privadas.

Sheet Introducción
AA1: =+TODAY() -> 2025-04-15
B4: Introducción
B5: El Instituto Guatemalteco de Seguridad Social, por medio de la coordinación de la Subgerencia de Planificación y Desarrollo y el Departamento Actuarial y Estadístico presenta el IGSS en Cifras, avance mensual año 2025; dicho documento contiene las estadísticas principales que procesa el Departamento Actuarial y Estadístico relativas al seguro de Invalidez, Vejez y Sobrevivencia -IVS- y seguro de Muerte por Accidente; asimismo, se presentan las estadísticas del seguro de Enfermedad, Maternidad y Accidentes con las atenciones brindadas en los Servicios de Consulta Externa, Emergencias, Primeros Auxilios y Hospitalización. Es oportuno aclarar que el seguro de IVS es de largo plazo y el seguro de EMA es anual, por lo que la información de ambos seguros debe analizarse por separado. Se enriquece el documento con estadísticas imprescindibles para el análisis de la Afiliación al Régimen de Seguridad Social, así como de la Población Protegida; esta última se integra por Afiliados y otros derechohabientes a quienes el Instituto otorga indemnizaciones directas (en dinero) e indirectas a través de servicios de salud; así también, las estadísticas de Masa Salarial y Salario Medio de Cotización. Se complementa el documento con estadísticas de Costos, estos últimos permiten conocer y determinar el costo por cada servicio de salud que brinda el Instituto, incluyendo todos los componentes del costeo, es decir que no solo incluye el costo directo variable, sino también el costo directo fijo, el costo indirecto y los gastos administrativos. En relación al Recurso Humano que presta sus servicios en el Instituto, se presentan estadísticas por tipo de puesto y según la naturaleza de los servicios, en especial el Recurso Humano contratado para la atención de la enfermedad. En materia Macro-Institucional, se proporciona la información de tipo actuarial, relativa a las primas de financiamiento de cada seguro y por tipo de contribuyente, la cotización del régimen de seguridad social funciona con el método de prima escalonada con capitalización colectiva, lo que permite analizar el costo de los beneficios en función de este tipo de capitalización. Según este sistema las primas de cotización deben ser ajustadas cuando ya no alcancen a cubrir el costo de los beneficios, sin que esto signifique que hay error de diseño, que el seguro está en riesgo o que existe un manejo inadecuado de sus fondos. Finalmente, como aplicación del método de financiación tripartita establecido en el artículo 100 de la Constitución Política de la República, se presenta la información del cálculo de las contribuciones del Estado como patrono y como Estado; y las proyecciones de previsión de los casos de pensión al año 2118 según el crecimiento proyectado de los pensionados en función de la Afiliación al Régimen. Resulta importante mencionar que la mayoría de las variables se presentan en series históricas, el periodo abarca más de 20 años de información, con el objetivo de dar cumplimiento a lo establecido en el Decreto No. 57-2008 Ley de Acceso a la Información Pública y de esa manera contribuir a la producción de insumos estadísticos que son requeridos por Instituciones de Gobierno, medios de comunicación, académicos y sociedad civil en general. El Departamento Actuarial y Estadístico estará publicando el IGSS en Cifras avance mensual para acercar información estadística actualizada al quehacer científico y de gestión, siempre garantizando la confiabilidad de los datos.
B32: En esta ocasión, se presentan los datos estadísticos al 31 de enero de 2025.

Sheet Indice
D10: A | E10: Antecedentes
D11: A1 | E11: Base Legal
D12: A2 | E12: Trayectoria / Institucionalidad
D13: A3 | E13: Importancia de la Seguridad Social para el trabajador
D14: A4 | E14: Importancia de la Seguridad Social para el patrono
D15: A5 | E15: Diccionario de Variables
D16: B | E16: Indicadores y Resumen de Estadísticas
E17: =+Resumen!C7 -> Resumen de los principales indicadores según departamento
D18: B1 | E18: =+'B1'!B4 -> Resumen general de Indicadores, período, enero 2025
D19: B2 | E19: =+'B2'!B5 -> B2. IGSS - Servicios brindados por el Instituto Guatemalteco de Seguridad Social, por departamento de la República. Período, enero 2025
D20: B3 | E20: =+'B3'!B5 -> B3. IGSS - Porcentaje de participación de los servicios brindados por el IGSS, desagregado por departamento de la República. Período, enero 2025
D21: B4 | E21: =+'B4'!B5 -> B4. IGSS - Estadísticas de los servicios que otorga el Instituto Guatemalteco de Seguridad Social, según departamento de la República. Período, enero 2025
D22: C | E22: Afiliación
D23: C1 | E23: =+'C1'!B4 -> C1. IGSS - Historial de afiliados cotizantes. Período 1948 - 2025, (1948 a 2024, datos promedio al 31 de diciembre de cada año). Año 2025, datos promedio al mes de enero
D24: C2 | E24: =+'C2'!B4 -> C2. IGSS - Afiliados cotizantes por actividad económica. Período 1960 - 2025, (1960 a 2024 datos promedio al 31 de diciembre de cada año). Año 2025, datos promedio al mes de enero. Referencia CIIU versión 2 (1960 - 2019). Referencia CIIU versión 3 (a partir del año 2020)
D25: C3 | E25: =+'C3'!B4 -> C3. IGSS - Afiliados cotizantes por actividad económica. Período 1960 - 2025 (19060 - 2024, datos promedio al 31 de diciembre de cada año). Año 2025, datos promedio al mes de enero. (Referencia CIIU Versión 2)
D26: C4 | E26: =+'C4'!B4 -> C4. IGSS - Afiliados cotizantes por actividad económica. Período 2020 - 2025 (2020 - 2024 datos promedio al 31 de diciembre de cada año). Año 2025, datos promedio al mes de enero. (Referencia CIIU Versión 3)
D27: C5 | E27: =+'C5'!B4 -> C5. IGSS - Afiliados cotizantes según departamento de la República. Período 1997 - 2025 (1997 - 2024, datos promedio al 31 de diciembre de cada año). Año 2025, datos promedio al mes de enero
D28: C6 | E28: =+'C6'!B4 -> C6. IGSS - Masa salarial de los afiliados cotizantes. Período 1960 - 2025 (1960 - 2024, datos acumulados al 31 de diciembre de cada año). Año 2025, datos acumulados al mes de enero
D29: C7 | E29: =+'C7'!B4 -> C7. IGSS - Salario medio de cotización de los afiliados cotizantes. Período 1960 - 2025 (1960 - 2024, datos al 31 de diciembre de cada año). Año 2025, datos al mes de enero
D30: C8 | E30: =+'C8'!B4 -> C8. IGSS - Historial de inscripción de patronos, por estatus del patrono. Período 1946 - 2025 (1946 - 2024, datos acumulados al 31 de diciembre de cada año) Año 2025, datos acumulados al mes de enero
D31: C9 | E31: =+'C9'!B4 -> C9. IGSS - Afiliados cotizantes según clasificación de actividades económicas agrupadas, correspondiente únicamente al sector privado. Período 2012 - 2025 (2012 - 2024 datos promedio al 31 de diciembre de cada año). Año 2025, datos promedio a enero
D32: C10 | E32: =+'C10'!C5 -> C10. IGSS - Afiliados cotizantes y salarios, por clasificación de actividades económicas agrupadas, según departamento de la República, correspondiente únicamente al sector privado. Período, enero 2025
D33: C10 A | E33: =+'C10 A'!B3 -> C10.A IGSS - Afiliados cotizantes de la jornada laboral, Tiempo parcial, por actividad económica y sexo, según departamento de la República. Período, enero 2025
D34: C10 B | E34: =+'C10 B'!B4 -> C10.B IGSS - Afiliados migrantes inscritos al IGSS, según país de residencia. Período, acumulado a enero 2025
D35: C11 | E35: =+'C11'!C4 -> C11.1. IGSS - Principales indicadores de afiliación, desagregado por departamento de la República y actividad económica. Período, al 31 de diciembre 2023
E36: =+'C11'!C17 -> C11.2. IGSS - Indicadores de afiliados cotizantes y su cobertura en relación a la PEA formal, desagregado por sexo, comportamiento mensual. Período, al 31 de diciembre 2023
E37: =+'C11'!C25 -> C11.3. IGSS - Indicadores de afiliados cotizantes, desagregado por etnia, comportamiento mensual. Período al 31 de diciembre 2023
E38: =+'C11'!C34 -> C11.4. IGSS - Inscripción de nuevos afiliados, desagregados por sexo y nuevos patronos, comportamiento mensual. Período, al 31 de diciembre 2023
D39: C12 | E39: =+'C12'!B4 -> C12.1. IGSS - Indicadores de afiliados cotizantes por sexo y etnia. Período, enero 2025
E40: =+'C12'!B27 -> C12.3. IGSS - Indicadores de cobertura sobre la PEA total y formal. Período, al 31 de diciembre 2023
E41: =+'C12'!O4 -> C12.2. IGSS - Inscripción de nuevos afiliados, desagreagados por sexo. Período, al 31 de diciembre 2023
E42: =+'C12'!U27 -> C12.4. IGSS - Inscripción de nuevos patronos. Período, al 31 de diciembre 2023
D43: C13 | E43: =+'C13'!B4 -> C13.1. IGSS - Salario medio de cotización, por actividad económica, ambos sexos. Período, enero 2025
E44: =+'C13'!K4 -> C13.2. IGSS - Brecha de salario medio de cotización, mujeres vrs hombres. Sector público y privado. Período, enero 2025
D45: C14 | E45: =+'C14'!B4 -> C14.IGSS - Salario medio de cotización, por ocupación del trabajador dentro de la empresa para la que labora, desagregado por sexo. Período, enero 2025
D46: C15 | E46: =+'C15'!B4 -> C15. IGSS - Estructura demográfica de los afiliados cotizantes. Período, enero 2025
D47: C16 | E47: =+'C16'!D4 -> C16. IGSS - Comportamiento mensual de los afiliados cotizantes, por departamento de la República y actividad económica. Período 2021 - enero 2025
D48: C17 | E48: =+'C17'!F4 -> C17. IGSS - Comportamiento mensual de los afiliados cotizantes, por actividad económica, según departamento de la República. Período, enero 2025
D49: C18 | E49: =+'C18'!D4 -> C18. IGSS - Afiliados y patronos cotizantes, masa salarial y salario medio de cotización, por tipo de patrono, según departamento de la República. Período, al 31 de diciembre 2025
D50: C19 | E50: =+'C19'!B4 -> C19. IGSS - Afiliados cotizantes por tipo de patrono. Período, al 31 de diciembre 2025
D51: C20 | E51: =+'C20'!C5 -> C20. IGSS - Afiliados cotizantes, por departamento de la República, según programa, -EMA- e -IVS-. Período 2001 - 2025 (2001 - 2024, datos promedio al 31 de diciembre de cada año). Año 2025, datos promedio a enero
D52: C21 | E52: =+'C21'!B4 -> C21.1. IGSS - Afiliados cotizantes del programa -IVS-, según departamento de la República. Período 2001 - 2025 (2001 - 2024 datos promedio al 31 de diciembre de cada año). Año 2025, datos promedio a enero
E53: =+'C21'!B34 -> C21.2. IGSS - Afiliados cotizantes del programa -EMA-, según departamento de la República. Período 2001 - 2025 (2001 - 2024 datos promedio al 31 de diciembre de cada año). Año 2025, datos promedio a enero
D54: C22 | E54: =+'C22'!B4 -> C22. IGSS - Comportamiento mensual de los afiliados cotizantes por tipo de programa -EMA- e -IVS-. Período, a enero 2025
D55: C23 | E55: =+'C23'!B4 -> C23. IGSS - Comportamiento mensual de los afiliados cotizantes, por tipo de programa -EMA- e -IVS-, según departamento de la República. Período, a enero 2025
D56: C24 | E56: =+'C24'!B4 -> C24.1. IGSS - Patronos cotizantes según la actividad económica de la empresa, versión CIIU-3, período 2013 - 2025 (2013 - 2024 datos promedio al 31 de diciembre de cada año). Año 2025, datos promedio a enero
D57: C25 | E57: =+'C25'!B4 -> C25.1. IGSS - Patronos cotizantes según la actividad económica de la empresa, versión CIIU-3. Período 2021 - 2025 (2021 - 2024 datos promedio al 31 de diciembre de cada año). Año 2025, datos promedio a enero
D58: C26 | E58: =+'C26'!B4 -> C26.1. IGSS - Inscripción de nuevos afiliados al régimen de seguridad social. Período 2000 - 2025 (2000 - 2024, datos acumulados al 31 de diciembre de cada año). Año 2025, datos acumulados a enero
E59: =+'C26'!B17 -> C26.2. IGSS - Inscripción de nuevos patronos al régimen de seguridad social. Período 2000 - 2025 (2000 - 2024 datos acumulados al 31 de diciembre de cada año). Año 2025, datos acumulados a enero
D60: D | E60: Población Protegida
D61: D1 | E61: =+'D1'!B4 -> D1. IGSS - Población protegida. Período 1948 - 2025 (1948 - 2024 datos al 31 de diciembre de cada año). Año 2025, datos a enero. (Cantidad de personas)
D62: D2 | E62: =+'D2'!B4 -> D2. IGSS - Población protegida por calidad de derechohabiente. Período 1948 - 2024 (1948 - 2024 datos al 31 de diciembre de cada año). Año 2025, datos a enero. (Cantidad de personas)
D63: D3 | E63: =+'D3'!B4 -> D3. IGSS - Población protegida por calidad de derechohabiente. Período 1948 - 2024 (1948 - 2024 datos al 31 de diciembre de cada año). Año 2025, datos a enero. (Cantidad de personas)
D64: D4 | E64: =+'D4'!B6 -> D4. IGSS - Estructura demográfica de los beneficiarios, por calidad de derechohabiente. Período, enero 2025
D65: D5 | E65: =+'D5'!B4 -> D5. IGSS - Población protegida, por tipo de derechohabiente, según departamento de la República. Período, enero 2025
D66: D6 | E66: =+'D6'!A4 -> D6.1. IGSS - Estructura de la Población protegida por tipo de derechohabiente. Período, enero 2025
D67: D7 | E67: =+'D7'!B3 -> D7. IGSS - Indicadores de cobertura de la población protegida, por tipo de derechohabiente. Período, enero 2025
D68: E | E68: Cobertura
D69: E1 | E69: =+'E1'!B4 -> E1.1. IGSS - Prestaciones en salud, por tipo de servicio, según calidad de derechohabiente. Período, enero 2025
E70: =+'E1'!B20 -> E1.2. IGSS - Cantidad de pagos en concepto de prestaciones pecuniarias, por tipo de riesgo, según calidad de derechohabiente. Período, enero 2025
D71: E2 | E71: =+'E2'!B4 -> E2. IGSS - Cobertura institucional de las unidades médicas al servicio de la población derechohabiente,según su categoría, a nivel nacional
D72: E3 | E72: =+'E3'!B4 -> E3. IGSS - Listado de unidades médicas y pecuniarias del IGSS, a nivel nacional
D73: F | E73: Prestaciones en Salud
D74: F1 | E74: =+'F1'!B4 -> F1. IGSS - Principales indicadores de salud, desagregado por tipo de riesgo y servicio, según calidad de derechohabiente. Período, enero 2025
E75: =+'F1'!B21 -> F1.2. IGSS - Indicadores de salud, desagregado por derechohabiente. Período, enero 2025
E76: =+'F1'!H21 -> F1.3. IGSS - Indicadores de salud, desagregados por riesgo y servicio. Período, enero 2025
E77: =+'F1'!O21 -> F1.4. IGSS - Indicadores de egresos hospitalarios. Período, enero 2025
D78: F2 | E78: =+'F2'!B4 -> F2. IGSS - Atenciones en salud brindadas a los derechohabientes, por tipo de servicio. Período 2000 al 2025 (2000 - 2024 datos acumulados al 31 de diciembre de cada año). Año 2025, datos acumulados a enero
D79: F3 | E79: =+'F3'!D4 -> F3. IGSS - Comportamiento mensual de las atenciones en salud brindadas a los derechohabientes por tipo de servicio. Período 2021 - enero 2025. (Datos acumulados)
D80: F4 | E80: =+'F4'!B4 -> F4. IGSS - Atenciones en salud brindadas por tipo de riesgo. Período, enero 2025. (Datos acumulados)
D81: F5 | E81: =+'F5'!B4 -> F5. IGSS - Atenciones salud brindadas a los derechohabientes por tipo de servicio y riesgo. Período, enero 2025. (Datos acumulados)
D82: F6 | E82: =+'F6'!B4 -> F6. IGSS - Atenciones en salud brindadas a los derechohabientes por el riesgo de accidentes. Período, enero 2025. (Datos acumulados)
D83: F7 | E83: =+'F7'!B4 -> F7. IGSS - Indicadores de egresos hospitalarios. Período, enero 2025 (Datos acumulados)
D84: F8 | E84: =+'F8'!B4 -> F8. IGSS - Top 20 de atenciones en salud más frecuentes brindadas a los derechohabientes . Período, enero 2025. (Datos acumulados)
D85: F9 | E85: =+'F9'!B3 -> F9. IGSS - Atenciones brindadas a los derechohabientes por enfermedades catastróficas, por departamento de la República, edad, sexo y diagnóstico. Período 2021 - 2025 (2021 -2024 datos acumulados al 31 de diciembre). Año 2025, datos a enero
D86: G | E86: Prestaciones Pecuniarias
D87: G1 | E87: =+'G1'!B4 -> G1. IGSS - Indicadores demográficos de los pensionados del IGSS. Período, enero 2025
E88: =+'G1'!B32 -> G1.2. IGSS: Cantidad de resoluciones emitidas por el Departamento de -IVS-, según riesgo. Período, enero 2025
D89: G2 | E89: =+'G2'!B4 -> G2. IGSS - Historial del numero de pensionados de los programas -EMA- e -IVS-,según riesgo. Período 1964 - 2025 (1964 - 2024 datos al 31 de diciembre de cada año). Año 2025, datos a enero. (Expresado en cantidad de personas)
D90: G3 | E90: =+'G3'!D4 -> G3. IGSS - Comportamiento mensual del número de pensionados, cantidad de pensiones, y montos pagados, según riesgo. Período, 2021 - 2025 (2021 - 2024 datos al 31 de diciembre de cada año). Año 2025, datos a enero
D91: G4 | E91: =+'G4'!B4 -> G4. IGSS - Número de pensionados, cantidad de pensiones y montos pagados, distribuido por riesgo del programa -IVS-, según departamento de la República. Período, enero 2025. (Montos pagados, cifras en quetzales)
D92: G5 | E92: =+'G5'!B4 -> G5. IGSS - Número de pensionados, cantidad de pensiones y montos pagados, distribuidos por tipo de riesgo del programa -EMA-, según departamento de la República. Período, enero 2025. (Montos pagados, cifras en quetzales)
D93: G6 | E93: =+'G6'!B4 -> G6. IGSS - Número de pensionados, cantidad de pensiones y montos anuales pagados, por tipo de riesgo de los programas -EMA- e -IVS-. Período, 2000 - 2025 (2000 - 2024 datos al 31 de diciembre de cada año). Año 2025, datos a enero
D94: H | E94: Costos
D95: H1 | E95: =+'H1'!B5 -> H1. IGSS - Costo medio unitario desagregado por tipo de servicio. Período 2014 - 2025 (2014 - 2024 datos al 31 de diciembre de cada año). Año 2025, datos a enero
D96: H2 | E96: =+'H2'!B5 -> H2. IGSS - Costo total y costo medio unitario, por tipo de servicio, según departamento de la República. Período, enero 2025. (Datos acumulados)
D97: I | E97: Recursos Humanos
D98: I1 | E98: =+'I1'!B4 -> I1. IGSS - Comportamiento mensual del recurso humano al servicio del IGSS, desagregado por sexo, renglón presupuestario y área de servicio. Período, promedio a enero 2025
E99: =+'I1'!B23 -> I1.1. IGSS - Recurso humano según sexo. Período a enero 2025. (Datos promedio)
E100: =+'I1'!F23 -> I1.2. IGSS - Recurso humano por renglón presupuestario. Períodoa enero 2025. (Datos promedio)
E101: =+'I1'!L23 -> I1.3. IGSS - Recurso humano por área de trabajo. Período a enero 2025. (Datos promedio)
D102: I2 | E102: =+'I2'!B4 -> I2. IGSS - Recurso humano al servicio del Instituto, por departamento de la República. Período, 2010 - 2025 (2010 - 2024 datos al 31 de diciembre de cada año). Año 2025, datos promedio a enero
D103: I3 | E103: =+'I3'!B4 -> I3. IGSS - Recurso humano al servicio del IGSS, por departamento de la República. Período, 2010 - 2025 (2010 - 2024 datos al 31 de diciembre de cada año). Año 2025, datos promedio a enero
D104: I4 | E104: =+'I4'!D4 -> I4. IGSS - Comportamiento mensual del recurso humano al servicio del IGSS, por departamento de la República. Período 2021 - enero 2025
D105: I5 | E105: =+'I5'!B4 -> I5. IGSS - Recurso humano al servicio del IGSS, por área de servicio, según departamento de la República. Período, enero 2025
D106: I6 | E106: =+'I6'!B4 -> I6.1. IGSS - Recurso humano al servicio del IGSS, por área de servicio (según normativa interna). Período, enero 2025
D107: J | E107: Estadísticas unidades médicas
D108: J1 | E108: =+'J1'!B6 -> J1.1. IGSS - Comportamiento mensual de las prestaciones en salud y el recurso humano al servicio del IGSS, según unidad médica. Período, enero 2025. (Datos acumulados)
E109: =+'J1'!B26 -> J1.2. IGSS - Comportamiento mensual de los costos de los servicios finales y costo medio unitario, según servicio y unidad médica. Período, enero 2025. (Datos acumulados)
D110: J2 | E110: =+'J2'!B6 -> J2.1. IGSS - Comportamiento mensual de las prestaciones en salud, por tipo de servicio, según calidad de derechohabente y unidad médica. Período, enero 2025. (Datos acumulados)
E111: =+'J2'!B24 -> J2.1. IGSS - Comportamiento mensual de los indicadores de egresos hospitalarios, según unidad médica. Período, enero 2025
D112: J3 | E112: =+'J3'!C5 -> J3.1. IGSS - Cantidad de prestaciones en salud, costos totales y costo medio unitario, recurso humano al servicio del IGSS e indicadores de egresos hospitalarios, según unidad médica. Período, enero 2025
D113: K | E113: Macrosituación Institucional
D114: K1 | E114: =+'K1'!K4 -> K1. IGSS - Infografía: Sistema de financiación del IGSS
D115: K2 | E115: =+'K2'!B5 -> K2. IGSS - Infografía. Sistema de financiación de capitalización colectiva con prima media escalonada
D116: K3 | E116: =+'K3'!B5 -> K3. IGSS - Infografía. Financiación de capitalización colectiva con prima media escalonada
D117: K4 | E117: =+'K4'!E5 -> K4. IGSS - Previsión de las solicitudes de pensión, años 2000 - 2118
D118: K5 | E118: =+'K5'!B4 -> K5. IGSS - Informes y Estadísticas

Sheet A1
AA1: =+TODAY() -> 2025-04-15
D4: Base Legal

Sheet A2
AB1: =+TODAY() -> 2025-04-15

Sheet A3
A1: 3 | AA1: =+TODAY() -> 2025-04-15
B5: ¿Por qué es importante el Seguro Social para el trabajador?

Sheet A4
AA1: =+TODAY() -> 2025-04-15
B5: ¿Por qué es importante el Seguro Social para el patrono?

Sheet A5
S1: =+TODAY() -> 2025-04-15
C4: Diccionario de variables
C9: Sección de Afiliación
C10: Afiliado. Se considera afiliado, al trabajador, al servidor público o a la persona individual que, por mandato de ley, contribuye con el Régimen de Seguridad Social, inscrito en el Instituto Guatemalteco de Seguridad Social, a cambio de los servicios relativos al seguro social establecidos en la ley.
C11: Patrono: Entidad individual y jurídica que utiliza los servicios de uno o más trabajadores, en virtud de un contrato de trabajo.
C12: Patrono cotizante: Es el responsable del pago global de las cuotas propias y de la entrega de las descontadas a sus trabajadores, dentro del plazo reglamentario.
C13: Afiliados Programa EMA: Son aquellos trabajadores cotizantes que se encuentran bajo la protección de los Programas de Enfermedad, Maternidad y Accidentes; considerando, prestación en salud como subsidios por cada uno de los programas.
C14: Afiliados Programa IVS: Personas que tienen derecho a la protección relativa a Invalidez, Vejez y Sobrevivencia, de conformidad con las normas de cada uno de los riesgos.
C15: Afiliado Voluntario: Persona individual que, sin estar legalmente obligada, contribuye de manera voluntaria con el Régimen de Seguridad Social, que haya cumplido con los requisitos establecidos en los reglamentos respectivos, inscrita en el IGSS a cambio de los servicios relativos al seguro social establecidos en la ley.
C16: Programa PRECAPI: Programa de cobertura especial con carácter progresivo y obligatorio para trabajadoras domésticas; con protección relativa a los riesgos de: a) Maternidad; b) Control de niño sano; y, c) Accidentes.
C17: Afiliada PRECAPI: Trabajadora doméstica que se dedique en forma habitual y continua a labores de aseo, asistencia y demás propias de un hogar o de otro sitio de residencia o habitación particular, que no importe lucro o negocio para el empleador.
C18: Beneficiario PRECAPI: Hijos de las trabajadoras domésticas afiliadas hasta los 5 años de edad.
C19: Contribución: Pago al Instituto de acuerdo al estatus del contribuyente (patrono, trabajador o Estado) sujeto a una prima de seguro fijada de conformidad a cada uno de los reglamentos de los programas de Seguridad Social que administra el Instituto.
C20: Inscripciones: Se denomina inscripción a la acción que realiza todo patrono, persona individual o jurídica que ocupe tres o más trabajadores, está obligado a inscribirse en el Régimen de Seguridad Social.
C21: Cobertura: Protección relativa a servicios de salud y prestaciones pecuniarias, de acuerdo a los Programas que administra el Instituto; la obertura que se extiende a la población protegida, según los reglamentos vigentes.
C22: Beneficiario: Toda persona a quien se extiende el derecho en el goce de los beneficios del Régimen de Seguridad Social, por razones de parentesco o dependencia económica con el trabajador afiliado o pensionado.
C23: Población Protegida: Grupo de personas que gozan de cobertura en los Servicios de Salud y Prestaciones Pecuniarias de conformidad con los Reglamentos que rigen los Programas del Instituto; se constituye por Afiliados Cotizantes; Esposas y compañeras; hijos hasta 7 años; pensionados de los programas IVS y Muerte por Accidente; Jubilados del Estado y Población No Afiliada.
C24: Salario: Retribución o ganancia, sea cual fuere su denominación o método de cálculo, siempre que pueda evaluarse en moneda de curso legal, en virtud de un contrato o relación laboral vigente entre ambos.
C25: Masa Salarial: Sumatoria de todas las retribuciones por concepto de salarios y complementos salariales, en un tiempo determinado.
C26: Salario Medio: Es una medida de retribución media; es decir, la cantidad de dinero promedio, que resulta de la división de la masa salarial y cantidad de trabajadores, que recibe un trabajador de una actividad, tiempo o lugar específico.
C27: Actividad Económica: Es una actividad relacionada con la producción, intercambio y el consumo de bienes o servicios; constituida en una estructura de clasificación basada en un conjunto de normas que proporciona un marco general en que los datos económicos pueden reunirse y divulgarse; agrupado por sectores económicos.
C28: Patrono Cancelado: Es el acto administrativo por el que se extingue o concluye definitivamente ante el registro del Instituto la relación de un patrono con el Régimen de Seguridad Social. (ver hoja C8)
C29: Patrono Vigente: La inscripción patronal tiene validez ante el Régimen de Seguridad Social, en el momento que se trate. (ver hoja C8)
C30: APatrono Suspenso: Es el acto administrativo por el que se extingue temporalmente ante el Instituto la relación de un patrono con éste. Aplicable también a la relación de cualquier establecimiento registrado con un patrono formalmente inscrito en el Régimen de Seguridad Social. (ver hoja C8)
C31: Patrono Anulado: Registro patronal anulado, por duplicidad, por error o improcedencia, puede darse cuando no se ocupe el número mínimo de trabajadores que el Reglamento establece; cuando se otorgue la calidad de patrono a una persona individual o jurídica, que no corresponda. (ver hoja C8)
C42: Sección de Recursos Humanos
C43: Organigrama: Representación de la estructura orgánica de una organización o de una de sus áreas u órgano, que refleja en forma esquemática la posición de las dependencias que la integran, sus respectivas relaciones, niveles jerárquicas, canales formales de comunicación, líneas de autoridad y asesoría.
C44: Estructura Orgánica: Conjunto de dependencias que conforman la organización, establecidas legalmente mediante instrumentos técnicos emitidos por la máxima autoridad.
C45: Áreas de trabajo: clasificación de puestos de trabajo del Instituto según áreas de trabajo: ejecutiva y mandos medios, salud, enfermería, administrativa, técnica, servicios de apoyo.
C46: Área Ejecutiva y Mandos Medios: Se constituye por lo puestos de trabajo que tienen a su cargo labores que implican delegación de funciones del Instituto como patrono. Son responsables de dirigir las dependencias técnicas, médicas y administrativas. Incluyen también los puestos de Superintendente de Enfermería, Secretario (a) de Gerencia, Secretario (a) de Junta Directiva y Asistentes de Dirección.
C47: Área de Salud: Se integra por los puestos asignados a la prestación de servicios de salud, como médicos, químicos biólogos, odontólogos, químicos farmacéuticos, psicólogos, nutricionistas y otras especialidades en las ramas de atención de la salud.
C48: Área de Enfermería: Esta área agrupa los puestos de ayudantes y auxiliares de enfermería, enfermeros graduados, supervisores de enfermería, jefes de servicio de enfermería, y otros puestos vinculados con labores de enfermería; se excluye al puesto de Superintendente de Enfermería que como se señaló pertenece al área ejecutiva.
C49: Área Administrativa: Esta área incluye los puestos asignados a profesionales y técnicos como ámbito administrativo, así como todos aquellos puestos que tienen asignadas funciones de soporte administrativo en cualquiera de las diferentes dependencias del Instituto.
C50: Área Técnica: Esta área comprende los puestos creados para brindar apoyo diagnóstico, como técnicos de laboratorio clínico, técnicos de banco de sangre, técnicos de patología, técnicos de prótesis y órtesis, técnicos de radiología, técnicos de necropsias, y otros técnicos de la rama paramédica, asimismo incluye puestos de seguridad e higiene, tecnología e informática, mantenimiento, trabajo social, comunicación social, y otros relacionados a la atención de los derechohabientes pero de forma indirecta.
C51: Servicios de Apoyo: Esta área comprende los puestos que tienen asignados tareas de limpieza, mensajería, transporte, mantenimiento, seguridad de las instalaciones, impresión, cocina y otros servicios de apoyo al funcionamiento de las dependencias.
C52: Otras remuneraciones de personal temporal: En este renglón se incluyen honorarios por servicios técnicos y profesionales prestados por personal sin relación de dependencia, asignados al servicio de una unidad ejecutora del Estado, y que podrán ser dotados de los enseres y/o equipos para la realización de sus actividades, en periodos que no excedan un ejercicio fiscal.
C53: Subgrupo 18: Comprende gastos en concepto de honorarios por servicios técnicos, profesionales, consultoría y asesoría, relacionados con estudios, investigaciones, análisis, auditorías, servicios de traducción de documentos, servicios de intérpretes y traducción simultánea, actuaciones artísticas y deportivas, capacitación y sistemas computarizados, prestados al Estado con carácter estrictamente temporal y sin relación de dependencia.
C69: Sección de Prestaciones Pecuniarias
C70: Programa EMA: La Protección relativa en prestaciones en dinero del Programa EMA, consiste en el pago de Pensión Temporal por Incapacidad Temporal o Permanente para el desarrollo de sus actividades laborales y pago de Cuota Mortuoria por muerte del Afiliado Cotizante. A la vez se registran los pagos de Pensión Permanente del Programa Muerte por Accidente.
C71: Programa IVS: Programa de Invalidez, Vejez y Sobrevivencia cuyo fin principal del seguro social es compensar el daño económico que resulta de la suspensión temporal o definitiva de la actividad laboral por Vejez e Invalidez. Además, cuando ocurre el fallecimiento del Pensionado o Afiliado Cotizante, el Instituto otorga Pensión Permanente a las personas que comprueben dependencia económica del fallecido.
C72: Asegurado: La persona que tiene derecho a la protección relativa de Invalidez, Vejez o Sobrevivencia, de conformidad con los reglamentos establecidos.
C73: Pensión: La prestación en dinero que se paga en frecuencia mensual vencida, al pensionado o a su sobreviviente.
C74: Pensionado: Persona que recibe Pensión temporal o Permanente de acuerdo al cumplimiento de los requisitos establecidos en los reglamentos para cada caso de pensión.
C75: Invalidez: Discapacidad que le impide a una persona realizar sus labores y actividades cotidianas, derivado de alguna enfermedad (física o mental) o de un accidente (común o de trabajo) y que se constituye en un caso de pensión para procurar ingresos económicos al asegurado, como asalariado, en las condiciones normales antes de la ocurrencia del accidente
C76: Vejez: Es el estado etario que le permite al asegurado convertirse en pensionado por vejez, al cumplir la edad que determina la normativa vigente.
C77: Sobrevivencia: Es el estado en que quedan los familiares con dependencia económica de un asegurado o pensionado fallecido.
C78: Beneficiario: Persona a quien se extiende el derecho en el goce de los beneficios del Régimen de Seguridad Social, por razones de parentesco o de dependencia económica con el asegurado.
C79: Asignación familiar: Prestación que se otorga al pensionado para el consumo de él y sus familiares dependientes como grupo familiar.
C80: Remuneración base: Cantidad de dinero que sirve de base para determinar el monto de la pensión en los riesgos de Invalidez, Vejez y Sobrevivencia.
C81: Accidente de Trabajo: Suceso eventual por consecuencia de las labores que ejecute un trabajador para su patrono, que resulta en daño involuntario para el asegurado.
C82: Accidente común: Suceso eventual de cualquier tipo que ocurre fuera de la actividad laboral y sin relación alguna con la misma; y que resulta en daño involuntario para el asegurado.
C83: Área Médico Social: Realiza orientación y diversidad de actividades en los programas de accidentes en general, enfermedad y maternidad, atención pediátrica y atención médica integral a pensionados.
C84: Caso de Pensión: Es la pensión o grupo de pensiones originadas por un asegurado/a, quien habiendo cumplido con los requisitos establecidos para el riesgo al que aplica, se hace acreedor para sí y sus beneficiarios, del derecho a gozar de ese beneficio.
C85: Derechohabiente: Familiar directo del asegurado en calidad de cónyuge o conviviente, hijo/hija o padre/madre.
C86: Diagnóstico Médico: Es el resultado de una evaluación médica que indica el tipo y grado de padecimiento que sufre un paciente.
C87: Dictamen MedicoLegal: Informe médicolegal emitido por el departamento de Medicina Legal en el cual se expresa el resultado de las evaluaciones practicadas a un asegurado.
C88: Evaluación Médica: Examen físico que se realiza a un paciente para determinar el grado de daño sufrido como consecuencia de enfermedad o accidente.
C89: Gran Invalidez: Incapacidad dictaminada por el Departamento de Medicina Legal. Se aplica cuando el asegurado/a esté incapacitado para obtener una remuneración y necesite permanentemente la ayuda de otra persona para efectuar los actos de la vida ordinaria.
C90: Incapacidad permanente: Incapacidad por mutilación, daño físico irreparable o trastorno funcional definitivo debido a accidente.
C91: Incapacidad temporal: Es la condición del asegurado que requiere tratamiento médico o asistencia hospitalaria por accidente, enfermedad o maternidad y que lo imposibilita para desempeñar su trabajo en condiciones normales.
C92: Invalidez Total: Incapacidad dictaminada por el Departamento de Medicina Legal. Se aplica al asegurado que esté incapacitado para obtener una remuneración mayor del 33% de la que percibe habitualmente en la misma región un trabajador sano, con capacidad, categoría y formación profesional análogas.
C93: Investigación Socioeconómica: Es la investigación que se realiza con el objeto de calificar los derechos de afiliados y beneficiarios del programa de invalidez, Vejez y Sobrevivencia; los programas de accidentes en general, maternidad y enfermedad para el pago de prestaciones laborales del personal al servicio del Instituto.
C94: Pensiones: Es la prestación en dinero que se paga en mensualidades vencidas al pensionado o beneficiario con derecho al programa sobre protección relativa a Invalidez, Vejez y Sobrevivencia.
C95: Pensiones vigentes: Son todas las pensiones que se otorgan a los pensionados vigentes.
C96: Prestación ulterior: Prestación en dinero que el IGSS otorga a un afiliado/a que ha quedado con incapacidad permanente por mutilación, daño físico irreparable o trastorno funcional definitivo debido a accidente.
C97: Prestaciones en dinero: Son beneficios dinerarios otorgados por el IGSS a sus afiliados al régimen de seguridad social.
C98: Prestaciones en servicio: Son los beneficios otorgados por el IGSS en asistencia médica, con el fin de conservar, mejorar o restaurar la salud y restablecer la capacidad de trabajo.
C99: Primera evaluación: Primer contacto que tiene un afiliado con el departamento de medicina legal y evaluación de incapacidades para iniciar el trámite de una prestación en dinero.
C100: Resolución: Es un dictamen final emitido por el IGSS para el otorgamiento de una pensión.
C101: Reevaluación: Son los exámenes físicos que se realizan a un afiliado para establecer la persistencia de una condición de invalidez o para confirmar un diagnóstico inicial con la ayuda de instrumentos de diagnósticos.
C102: Sobreviviente: Es la persona dependiente económica de un asegurado o pensionado/a que ha quedado en condición de orfandad o viudedad.
C103: Pensión por Incapacidad Temporal: Es la suma de dinero que el Instituto otorga a los afiliados durante el período que abarca la incapacidad temporal para el trabajo, producida por Enfermedad, Maternidad o Accidente, y tiene por objeto sustituir en la proporción que los reglamentos establecen el salario habitual que deja de percibir el trabajador por los días de ausencia laboral.
C104: Subsidio por Incapacidad permanente: Pago único que se hace al afiliado por por mutilación, daño físico irreparable o trastorno funcional definitivo debido a Accidente, este pago está sujeto a las Unidades de Beneficios Pecuniarios.
C105: Tiempo promedio: Resulta de la sumatoria de los tiempos consumidos para la emisión de las resoluciones de un periodo respecto del número de resoluciones emitidas en ese mismo período.
C106: Pago de Cuota Mortuoria IVS: Pago único que se otorga para gastos de entierro por la muerte de Pensionados vigentes por Invalidez, Vejez y Sobrevivencia; afiliado con derecho, cuyo trámite de la pensión esté pendiente de resolución y no tenga derecho a este beneficio en otro programa del Instituto; y Cargas familiares.
C107: Unidad de Beneficios Pecuniarios: Medida que sirve para establecer el valor monetario que se debe pagar en caso de incapacidad permanente, parcial, total o de muerte del afiliado.
C108: Nómina General: Rubro en el que se reflejan los pagos que se realizan mensualmente a los pensionados según el monto establecido en la resolución emitida.
C109: Nómina Adicional: Rubro en el que se reflejan aquellos pagos pendientes que se le otorgan al afiliado, derivado a que no presentó su sobrevivencia a tiempo o cualquier otra razón, pero que el mismo se hace efectivo en el mes que se informa.
C110: Nómina Acumulada: Rubro en el que se incluyen solo los casos nuevos y los pagos que se le efectúan a estos mismos de manera retroactiva.
C111: Pago de Cuota Mortuoria EMA: Pago único que se otorga en caso de muerte de un afiliado cotizante o de un familiar que acredite derechos en servicios de salud del Programa de Enfermedad, Maternidad y Accidentes, para gastos de entierro.
C127: Sección de Prestaciones en Salud
C128: Camas Disponibles: Son las camas habilitadas en las salas del establecimiento, en condiciones de uso inmediato, para la atención de los pacientes hospitalizados, independiente de que estén ocupadas o no. Tampoco se considera cama disponible la cuna del recién nacido normal. Para calcular indicadores de la actividad hospitalaria de un período, el número de Camas disponibles o Camas en trabajo se multiplica por los días de ese período y así se obtiene el número de días cama en trabajo.
C129: Camas Censables: Cama disponible o cama ocupada que genera egresos hospitalarios, se utiliza en el servicio de hospitalización para el uso regular de los pacientes hospitalizados para observación, cuidado o tratamiento médico.
C130: Camas No Censables: Cama disponible o cama ocupada que no genera egresos hospitalarios, se utiliza para atención transitoria de hospitalización para observación del paciente o cuidados intensivos, se incluyen camas de emergencia, de cuidados intensivos, camillas, entre otras.
C131: Consulta externa: Es un servicio ambulatorio para paciente con una cita asignada previamente que acceden a atenciones médicas para diferentes tipos de diagnósticos. 2. Es la atención médica ambulatoria que recibe el paciente para tratar una patología que tendrá seguimiento. Es un servicio ambulatorio para pacientes con una cita asignada previamente que acceden a atenciones médicas para diferentes tipos de diagnósticos.
C132: Consulta Médica: es un proceso complejo y multidimensional, centrado en la relación médicopaciente, pero además es pieza clave para brindar el apoyo en cuanto a las necesidades de saludenfermedad, sufrimiento e incertidumbre que tiene un sujeto cuando se ve afectada su integridad física, humana y emocional.
C133: Consulta en Servicio de Primeros Auxilios: servicio en el que el médico o personal de enfermería brinda la atención médica de primeros auxilios al paciente y anota en el libro autorizado el número de afiliación, nombre del paciente, tipo de riesgo, diagnóstico, calidad de derechohabiente, edad, sexo, fecha de atención y cantidad de atenciones brindadas debidamente firmado.
C134: Día de Cama Ocupada: Es la permanencia de un paciente hospitalizado ocupando una cama de hospital, durante el período comprendido entre las 0 horas y las 24 horas de un mismo día. Para calcular indicadores de la actividad hospitalaria de un período se multiplica el número de Camas ocupadas de ese período y así se obtiene el número de días camas ocupadas.
C135: Diagnóstico: Juicio médico sobre la naturaleza de la enfermedad o lesión de un paciente basado en la valoración de sus síntomas y signos.
C136: Egreso: Es todo paciente que sale del hospital de un servicio de hospitalización o encamamiento (alta), en cualquier condición (curado, mejorado, mismo estado o fallecido).
C137: Egreso Hospitalario: Es el retiro de los servicios de hospitalización de un paciente que ha ocupado una cama del hospital. El egreso puede darse por alta médica, traslado a otro establecimiento, fallecimiento, retiro voluntario del paciente u otro.
C138: Emergencia: Situación de peligro o desastre que requiere una acción inmediata; 2. Atención médica que se recibe en la emergencia de un hospital. 3. Es la atención que se presta a pacientes que, por estar aquejados de un problema de salud crítico, ameritan una atención urgente.
C139: Enfermedad: Alteración patológica de uno o varios órganos, que da lugar a un conjunto de síntomas característicos.
C140: Enfermedades crónicas degenerativas: Son aquéllas que van degradando física y/o mentalmente a quienes las padecen, provocan un desequilibrio y afectan a los órganos y tejidos. Las enfermedades degenerativas pueden ser congénitas o hereditarias. Suelen manifestarse en edades avanzadas, aunque también pueden afectar a personas jóvenes de entre 20 y 40 años, dependiendo la enfermedad. Están relacionadas con los estilos de vida y con el envejecimiento de la población.
C141: Hospitalización: Acción y efecto de hospitalizar.
C142: Indicadores: es una característica específica, observable y medible que puede ser usada para mostrar los cambios y progresos que está haciendo un programa hacia el logro de un resultado específico.
C143: Índice de Rotación: Indicador relacionado con la producción de servicios, mide el número de pacientes que en promedio pasan por una cama en un período determinado de tiempo. Permite conocer la intensidad de la utilización de una cama disponible durante un período dado. Es una medida de afluencia de pacientes, ya que aumenta a medida que ingresan y egresan pacientes al establecimiento. Orienta sobre el rendimiento de la cama y permite, por lo tanto, una mejor distribución de las mismas.
C144: Índice Ocupacional: El Porcentaje de ocupación de camas o relaciona los datos de producción de servicios (días camas ocupado) con la capacidad potencial de producción (días camas disponibles). Puede calcularse para el total del establecimiento o por servicio clínico y para el período de tiempo que se requiera. Este indicador indica el aprovechamiento del recurso cama en un determinado período. Si el resultado del cálculo es muy alto, puede significar que en ciertos momentos se han rechazado pacientes. Es útil para determinar la cantidad de pacientes que en promedio han sido atendidos en un período, lo cual es muy importante para el cálculo de raciones diarias alimenticias y otros insumos.
C145: Ingreso Hospitalario: Es la aceptación formal de un paciente por el hospital para su atención médica, observación, tratamiento y recuperación. Todo ingreso al hospital involucra la ocupación de una cama hospitalaria y la mantención de una historia clínica para el registro de todas las atenciones otorgadas. Si un paciente ingresa desde otro servicio clínico del hospital constituye un Ingreso por Traslado en ese servicio clínico, pero no debe considerarse como un ingreso al establecimiento.
C146: Maternidad: Estado de la mujer que consigue tener hijos, aunque se refiere también al tiempo del embarazo y al de después del parto vínculo biológico, psicológico y espiritual de una madre con su hijo.
C147: Medicamento: Sustancia que, administrada interior o exterior mente a un organismo, sirve para prevenir, curar o aliviar la enfermedad y corregir o reparar las secuelas de esta.
C148: Paciente: Persona que padece física y corporalmente, y especialmente quién se halla bajo atención médica; 2. Persona que es o va a ser reconocida médicamente.
C149: Primeros auxilios: son aquellas medidas inmediatas que se toman en un apersona lesionada, inconsciente o súbitamente enferma, en el sitio donde ha ocurrido el incidente y hasta la llegada de la asistencia sanitaria.
C150: Producción: Es un determinado volumen o sea la cantidad total de atención de los derechohabientes. Este tiene que una variabilidad que se suma, que es la calidad de atención, aquí no se toma en cuenta las morbilidades, o sea solo persona.
C151: Promedio de días de estancia hospitalaria: Este indicador refleja el promedio del total de días que los pacientes permanecieron en el hospital. Es un indicador de eficiencia de la prestación de servicios, así como el uso del recurso de cama. Corresponde al número de días transcurridos entre la fecha de ingreso y la fecha de egreso. Puede indicar aplicación inadecuada de la capacidad resolutiva cuando los días de estancia son demasiado cortos o demasiado largos, lo que hace especialmente útil a este indicador cuando se analiza por afección principal. *El estándar de ocupación hospitalaria debe ser de 80 a 85% y si nuestro indicador se localiza fuera de este rango de ocupación, entonces traduce deficiente funcionalidad hospitalaria, ya sea por capacidad instalada de sobra (subutilización de recursos) cuando está por debajo de 80%, reflejando perdida de utilidades, o bien, se replantea la necesidad de crecimiento en instalaciones cuando se encuentra por arriba del estándar.
C152: Accidente: Suceso eventual que altera el orden regular de las cosas; 2. Suceso eventual o acción de que resulta daño involuntario para las personas o las cosas.
C169: Sección de Costos
C170: Centro de Costo: Es la descripción que se le da a un servicio final e intermedio donde se cuente con espacio físico, recurso humano, gastos por insumos consumidos y producción.
C171: Servicio Final: Son los servicios de Hospitalización, Consulta Externa, Emergencia y Primeros Auxilios por unidad médica.
C172: Costo Total: Es la sumatoria de todos los costos directos e indirectos y gastos administrativos por tipo de servicio (Egreso, Consulta Externa, Emergencias y Primeros Auxilios) y por departamento. Observaciones: Es importante mencionar que los costos, incluyen gastos administrativos tomando en consideración los montos de cada unidad ejecutora administrativa del IGSS. Boletines que no incluyen los montos de Asignaciones Globales y Reservas de Programas, los costos tambien incluyen los montos de las depreciaciones distribuidos por unidad médica, información que se obtiene de los estados financieros de los ejercicios de cada año, elaborados por el departamento de Contabilidad del Instituto, con la producción del Subsistema de Salud del año 2021,se incluyen los costos institucionales y contratados.
C173: Costo Unitario: Relaciona el Costo Total por tipo de servicio entre la producción final. Observaciones: El Costo Medio Unitario por servicios finales incluyen salarios, gastos de funcionamiento, insumos consumidos, aunado a las depreciaciones y gastos administrativos reflejados en los Estados Financieros.
C206: Sección Macrosituación Institucional
C207: Cuota Laboral: Contribución que realiza el afiliado cotizante sujeto a una prima de seguro fijada de conformidad a cada uno de los reglamentos de los programas de Seguridad Social que administra el Instituto. Actualmente la Cuota Laboral es el 4.83% sobre el salario del trabajador.
C208: Cuota patronal: Contribución que realiza el Patrono cotizante sujeto a una prima de seguro fijada de conformidad a cada uno de los reglamentos de los programas de Seguridad Social que administra el Instituto. Actualmente la Cuota Patronal es el 10.67% sobre el salario del trabajador.
C209: Ingresos por contribución: Son los ingresos monetarios provenientes por contribuciones de tipo laboral y patronal, incluyendo las aportaciones del Estado.
C210: Gastos: Son las erogaciones realizadas por concepto de pagos de sueldos y salarios, bienes y servicios de los Programas de Instituto, reservas técnicas, entre otros.
C211: Primas de Contribución: Son las tasas de pago en fijadas sobre el salario del trabajador, establecidas de acuerdo a valuaciones de tipo actuarial que evalúan la sostenibilidad financiera de los Programas de Seguridad Social que administra el Instituto.
C212: Reserva Técnica: Constituida por los fondos que representan el valor actual compensatorio y comprende la cobertura actuarial de las obligaciones futuras contraídas con los asegurados y financian parcialmente el programa IVS con los rendimientos de la inversión de los fondos que la respaldan.
C213: Reserva Financiera: Son los fondos que respaldan los fastos por previsión y atención por enfermedad, maternidad y accidentes y para construcción de hospitales o realización de proyectos análogos y a otras reservas financieras contemporáneas.
C214: Portafolio de Inversiones: Es el conjunto de instrumentos financieros adquiridos por el instituto con los fondos pertenecientes a los programas EMA, IVS y PRECAPI.
C215: Inversión: Es la colocación de recursos en instrumentos financieros a un plazo determinado y a una tasa de interés o de rendimiento establecida conforme a las condiciones de mercado con el animo de obtener ingresos o rentas.
C216: Transferencias Corrientes: Son las erogaciones que no representan el compromiso de otorgar bienes y servicios o cuyos montos no son reintegrados por los beneficiarios, incluye aportes de carácter institucional y otros para financiar gastos corrientes de instituciones públicas y del sector externo.

Sheet Resumen
K1: =IF(K5="Anual","año"&" "&L5,LOWER("mes de"&" "&K5&" del año"&" " &L5)) -> mes de enero del año 2025
C4: Instituto Guatemalteco de Seguridad Social | I4: Departamento | K4: Mes
C5: Subgerencia de Planificación y Desarrollo | I5: Guatemala | K5: Enero | L5: 2025
C6: Departamento Actuarial y Estadístico
C7: Resumen de los principales indicadores según departamento
C9: =+"IGSS. Principales estadísticas del departamento de"&" "&I5&","&" "&"correspondiente al"&" "&K1&"" -> IGSS. Principales estadísticas del departamento de Guatemala, correspondiente al mes de enero del año 2025
C10: Afiliación | G10: Afiliación por sector patronal y programa
C11: Total Afiliados Cotizantes | D11: =IFERROR(GETPIVOTDATA("Afiliados ",'1.1. TD_Afil_1'!$A$4,"Mes1",$K$5,"Departamento ",I5,"Año",$L$5),0) -> 914342 | G11: Sector Privado | H11: =IFERROR(D11-H12,0) -> 751354
C12: Masa Salarial | D12: =IFERROR(GETPIVOTDATA("Salarios ",'1.1. TD_Afil_1'!$A$4,"Mes1",$K$5,"Departamento ",I5,"Año",$L$5),0) -> 5847748615 | G12: Sector Público | H12: =IFERROR(GETPIVOTDATA("Afil",'1.2. TD_Afil4_Tip. P.'!$A$257,"Departamento",$I$5,"Mes",$K$5,"año",$L$5),0) -> 162988
C13: Salario Medio | D13: =IFERROR(IF($K$5="anual",D12/D11/12,D12/D11),0) -> 6395.58132 | G13: Programa EMA | H13: =+D11 -> 914342
C14: Patronos Cotizantes | D14: =IFERROR(GETPIVOTDATA("Patronos",'1.1. TD_Afil_1'!$A$4,"Mes1",$K$5,"Departamento ",$I$5,"Año",$L$5),0) -> 25082 | G14: Programa IVS | H14: =+IFERROR(GETPIVOTDATA("IVS",'1.7. TD_Tipo Progr.'!$A$70,"Departamento",$I$5,"Mes1",$K$5,"Año",$L$5),0) -> 816541
C16: Antenciones en Salud | G16: Indicadores Hospitalarios
C17: Consulta Externa | D17: =IFERROR(IF($K$5="Anual",GETPIVOTDATA("Consulta",'2.2. TD_Salud_Produc2'!$A$7,"Mes2","Diciembre","Departamento",$I$5,"Año",L5),GETPIVOTDATA("Consulta",'2.2. TD_Salud_Produc2'!$A$7,"Mes2",$K$5,"Departamento",$I$5,"Año",$L$5)),0) -> 289165 | G17: Egresos | H17: =IFERROR(IF($K$5="Anual",GETPIVOTDATA("egresos",'2.4. TD_Salud_Morbis'!$A$239,"Indicador",G17,"Mes","Diciembre","Año",$L$5,"Departamento",$I$5),GETPIVOTDATA("egresos",'2.4. TD_Salud_Morbis'!$A$239,"Indicador",G17,"Mes",$K$5,"Año",$L$5,"Departamento",$I$5)),0) -> 6448
C18: Emergencia | D18: =IFERROR(IF($K$5="Anual",GETPIVOTDATA("Emergencia",'2.2. TD_Salud_Produc2'!$A$41,"Mes1","Diciembre","Departamento",$I$5,"Año",$L$5),GETPIVOTDATA("Emergencia",'2.2. TD_Salud_Produc2'!$A$41,"Mes1",$K$5,"Departamento",$I$5,"Año",$L$5)),0) -> 55001 | G18: Camas Censables | H18: =IFERROR(IF($K$5="anual",GETPIVOTDATA("egresos",'2.4. TD_Salud_Morbis'!$A$239,"Indicador","camas","Mes","Diciembre","Año",$L$5,"Departamento",$I$5),GETPIVOTDATA("egresos",'2.4. TD_Salud_Morbis'!$A$239,"Indicador","camas","Mes",$K$5,"Año",$L$5,"Departamento",$I$5)),0) -> 1797
C19: Hospitalización | D19: =IFERROR(IF($K$5="Anual",GETPIVOTDATA("Egresos",'2.2. TD_Salud_Produc2'!$A$75,"Mes1","Diciembre","Departamento",$I$5,"Año",$L$5),GETPIVOTDATA("Egresos",'2.2. TD_Salud_Produc2'!$A$75,"Mes1",$K$5,"Departamento",$I$5,"Año",$L$5)),0) -> 6448 | G19: Estancia Media | H19: =IFERROR(IF($K$5="anual",GETPIVOTDATA("egresos",'2.4. TD_Salud_Morbis'!$A$239,"Indicador",G19,"Mes","Diciembre","Año",$L$5,"Departamento",$I$5),GETPIVOTDATA("egresos",'2.4. TD_Salud_Morbis'!$A$239,"Indicador",G19,"Mes",$K$5,"Año",$L$5,"Departamento",$I$5)),0) -> 7.8242866
C20: Primeros Auxilios | D20: =IFERROR(IF($K$5="Anual",GETPIVOTDATA("Primeros Auxilios",'2.2. TD_Salud_Produc2'!$A$109,"Mes1","Diciembre","Departamento",$I$5,"Año",$L$5),GETPIVOTDATA("Primeros Auxilios",'2.2. TD_Salud_Produc2'!$A$109,"Mes1",$K$5,"Departamento",$I$5,"Año",$L$5)),0) -> 507 | G20: Porcentaje Ocupacional | H20: =IFERROR(IF($K$5="Anual",GETPIVOTDATA("egresos",'2.4. TD_Salud_Morbis'!$A$239,"Indicador",G20,"Mes","Diciembre","Año",$L$5,"Departamento",$I$5)/100,GETPIVOTDATA("egresos",'2.4. TD_Salud_Morbis'!$A$239,"Indicador",G20,"Mes",$K$5,"Año",$L$5,"Departamento",$I$5)/100),0) -> 0.009056492003
C21: Total por servicio | D21: =SUM(D17:D20) -> 351121
C22: Enfermedad Común | D22: =IFERROR(IF($K$5="anual",GETPIVOTDATA("dato",'2.2. TD_Salud_Produc2'!$A$226,"Programa",C22,"Mes","Diciembre","Departamento",$I$5,"Año ",$L$5),GETPIVOTDATA("dato",'2.2. TD_Salud_Produc2'!$A$226,"Programa",C22,"Mes",$K$5,"Departamento",$I$5,"Año ",$L$5)),0) -> 308005
C23: Maternidad | D23: =IFERROR(IF($K$5="anual",GETPIVOTDATA("dato",'2.2. TD_Salud_Produc2'!$A$226,"Programa",C23,"Mes","Diciembre","Departamento",$I$5,"Año ",$L$5),GETPIVOTDATA("dato",'2.2. TD_Salud_Produc2'!$A$226,"Programa",C23,"Mes",$K$5,"Departamento",$I$5,"Año ",$L$5)),0) -> 16054
C24: Accidentes | D24: =IFERROR(IF($K$5="anual",GETPIVOTDATA("dato",'2.2. TD_Salud_Produc2'!$A$226,"Programa",C24,"Mes","Diciembre","Departamento",$I$5,"Año ",$L$5),GETPIVOTDATA("dato",'2.2. TD_Salud_Produc2'!$A$226,"Programa",C24,"Mes",$K$5,"Departamento",$I$5,"Año ",$L$5)),0) -> 27062
C25: Total por riesgo | D25: =SUM(D22:D24) -> 351121
C27: Costos | D27: Totales | E27: Unitarios | G27: Recurso Humano
C28: Consulta Externa | D28: =IFERROR(IF($K$5="anual",GETPIVOTDATA("Consulta",'5.1 TD_Costos'!$A$40,"Departamento",$I$5,"Mes1","Diciembre","Año",$L$5),GETPIVOTDATA("Consulta",'5.1 TD_Costos'!$A$40,"Departamento",$I$5,"Mes1",$K$5,"Año",$L$5)),0) -> 352517609 | E28: =IFERROR(D28/D17,0) -> 1219.088095 | G28: Profesionales de la salud | H28: =IFERROR(GETPIVOTDATA("dato",'4.1. TD_RRHH'!$A$614,"Departamento",$I$5,"Mes1",$K$5,"Año ",$L$5,"area",$G$28),0) -> 2006
C29: Hospitalización | D29: =+IFERROR(IF($K$5="Anual",GETPIVOTDATA("Egresos",'5.1 TD_Costos'!$A$75,"Departamento",$I$5,"Mes1","Diciembre","Año",$L$5),GETPIVOTDATA("Egresos",'5.1 TD_Costos'!$A$75,"Departamento",$I$5,"Mes1",$K$5,"Año",$L$5)),0) -> 99924246 | E29: =IFERROR(D29/D19,0) -> 15496.93641 | G29: Enfermería | H29: =IFERROR(GETPIVOTDATA("dato",'4.1. TD_RRHH'!$A$614,"Departamento",$I$5,"Mes1",$K$5,"Año ",$L$5,"area",$G$29),0) -> 3888
C30: Emergencia | D30: =IFERROR(IF($K$5="Anual",GETPIVOTDATA("Emergencia",'5.1 TD_Costos'!$A$110,"Departamento",$I$5,"Mes1","Diciembre","Año",$L$5),GETPIVOTDATA("Emergencia",'5.1 TD_Costos'!$A$110,"Departamento",$I$5,"Mes1",$K$5,"Año",$L$5)),0) -> 28129644 | E30: =IFERROR(D30/D18,0) -> 511.4387738 | G30: Técnica | H30: =IFERROR(GETPIVOTDATA("dato",'4.1. TD_RRHH'!$A$614,"Departamento",$I$5,"Mes1",$K$5,"Año ",$L$5,"area",$G$30),0) -> 1646
C31: Primeros Auxilios | D31: =IFERROR(IF($K$5="Anual",GETPIVOTDATA("Auxilios",'5.1 TD_Costos'!$A$145,"Departamento",$I$5,"Mes1","Diciembre","Año",$L$5),GETPIVOTDATA("Auxilios",'5.1 TD_Costos'!$A$145,"Departamento",$I$5,"Mes1",$K$5,"Año",$L$5)),0) -> 122222 | E31: =IFERROR(D31/D20,0) -> 241.0690335 | G31: Resto de áreas | H31: =IFERROR(GETPIVOTDATA("trabajadores",'4.1. TD_RRHH'!$A$4,"Departamento",$I$5,"mes1",$K$5,"año",$L$5)-SUM($H$28:$H$30),0) -> 7062
C32: Total Costos | D32: =SUM(D28:D31) -> 480693721 | E32: =+D32/SUM(D17:D20) -> 1369.025837 | G32: Total | H32: =SUM(H28:H31) -> 14602
C34: Prestaciones Pecuniarias | G34: Población Protegida
C35: Pensionados Programa IVS | D35: =+IFERROR(GETPIVOTDATA("dato",'1.3. TD_pp'!$A$835,"derech",C35,"depto",$I$5,"mes",$K$5,"año",$L$5),0) -> 108872 | G35: Afiliados cotizantes | H35: =IFERROR(GETPIVOTDATA("Afiliados ",'1.1. TD_Afil_1'!$A$4,"Mes1",$K$5,"Departamento ",$I$5,"Año",$L$5),0) -> 914342
C36: Pensionados Programa Muerte por Accidente | D36: =+IFERROR(GETPIVOTDATA("dato",'1.3. TD_pp'!$A$835,"derech",C36,"depto",$I$5,"mes",$K$5,"año",$L$5),0) -> 878 | G36: Esposas y/o Compañeras | H36: =+IFERROR(GETPIVOTDATA("dato",'1.3. TD_pp'!$A$835,"derech",G36,"depto",$I$5,"mes",$K$5,"año",$L$5),0) -> 339473
C37: Total pensionados (personas) | D37: =SUM(D35:D36) -> 109750 | G37: Hijos de 0 a 7 años | H37: =+IFERROR(GETPIVOTDATA("dato",'1.3. TD_pp'!$A$835,"derech",G37,"depto",$I$5,"mes",$K$5,"año",$L$5),0) -> 495542
C38: Pagos Programa IVS | D38: =+IFERROR(IF($K$5="Anual",GETPIVOTDATA("pensiones",'3.1. TD_Pens'!$A$366,"Departamento",$I$5,"mes1","Diciembre","Año ",$L$5),GETPIVOTDATA("pensiones",'3.1. TD_Pens'!$A$366,"Departamento",$I$5,"mes1",$K$5,"año ",$L$5)),0) -> 100552 | G38: Pensionados Programa IVS | H38: =+IFERROR(GETPIVOTDATA("dato",'1.3. TD_pp'!$A$835,"derech",G38,"depto",$I$5,"mes",$K$5,"año",$L$5),0) -> 108872
C39: Pagos Programa de Accidentes | D39: =IFERROR(IF($K$5="Anual",GETPIVOTDATA("Pensiones",'3.1. TD_Pens'!$A$158,"Mes1","Diciembre","Departamento",$I$5,"Año ",$L$5),GETPIVOTDATA("Pensiones",'3.1. TD_Pens'!$A$158,"Mes1",$K$5,"Departamento",$I$5,"Año ",$L$5)),0) -> 770 | G39: Pensionados Programa Muerte por Accidente | H39: =+IFERROR(GETPIVOTDATA("dato",'1.3. TD_pp'!$A$835,"derech",G39,"depto",$I$5,"mes",$K$5,"año",$L$5),0) -> 878
C40: Total de pagos | D40: =SUM(D38:D39) -> 101322 | G40: Jubilados Estado | H40: =+IFERROR(GETPIVOTDATA("dato",'1.3. TD_pp'!$A$835,"derech",G40,"depto",$I$5,"mes",$K$5,"año",$L$5),0) -> 42048
C41: Montos de pensión pagados Programa IVS | D41: =+IFERROR(IF($K$5="Anual",GETPIVOTDATA("pago",'3.1. TD_Pens'!$A$366,"Departamento",$I$5,"mes1","Diciembre","Año ",$L$5),GETPIVOTDATA("pago",'3.1. TD_Pens'!$A$366,"Departamento",$I$5,"mes1",$K$5,"año ",$L$5)),0) -> 232776320 | G41: Población No Afiliada | H41: =+IFERROR(GETPIVOTDATA("dato",'1.3. TD_pp'!$A$835,"derech",G41,"depto",$I$5,"mes",$K$5,"año",$L$5),0) -> 777
C42: Montos de pensión pagados Programa de Accidentes | D42: =IFERROR(IF($K$5="Anual",GETPIVOTDATA("pago",'3.1. TD_Pens'!$A$158,"Mes1","Diciembre","Departamento",$I$5,"Año ",$L$5),GETPIVOTDATA("Pago",'3.1. TD_Pens'!$A$158,"Mes1",$K$5,"Departamento",$I$5,"Año ",$L$5)),0) -> 100806.34 | G42: Afiliada PRECAPI | H42: =IFERROR(IF(AND($I$5="Guatemala",$K$5="Anual"),GETPIVOTDATA("Suma de Total",'1.3. TD_pp'!$A$714,"derechohabiente",G42,"Mes 1","Diciembre","año",$L$5),IF(I5="Guatemala",GETPIVOTDATA("Suma de Total",'1.3. TD_pp'!$A$714,"derechohabiente",G42,"Mes 1",$K$5,"año",$L$5),0)),0) -> 604
C43: Total pagado en Q.*/ | D43: =SUM(D41:D42) -> 232877126.4 | G43: Beneficiaria PRECAPI | H43: =IFERROR(IF(AND($I$5="Guatemala",$K$5="Anual"),GETPIVOTDATA("Suma de Total",'1.3. TD_pp'!$A$714,"derechohabiente",G43,"Mes 1","Diciembre","año",$L$5),IF($I$5="Guatemala",GETPIVOTDATA("Suma de Total",'1.3. TD_pp'!$A$714,"derechohabiente",G43,"Mes 1",$K$5,"año",$L$5),0)),0) -> 41
C44: */ No incluye pagos por cuota mortuoria ni por incapacidad temporal. | G44: Total | H44: =SUM(H35:H43) -> 1902577
C46: Egresos (SICOIN) | D46: =+IFERROR(GETPIVOTDATA("Dato",'Ejec. y Gastos'!$L$32,"Departamento",Resumen!$I$5,"Tipo","Egresos","Mes",$K$5),0) -> 759805048.2
C47: Ingresos (solo cuota patronal y laboral) | D47: =+IFERROR(GETPIVOTDATA("Dato",'Ejec. y Gastos'!$L$32,"Departamento",Resumen!$I$5,"Tipo","Ingresos","Mes",$K$5),0) -> 1155605055
C49: NOTA: Ficha para imprimir

Sheet B1
Q1: =+IF(U7=13,U7-1,U7) -> 1 | R1: =IF(T7="Anual","ficiembre",LOWER($T$7)) -> enero | U1: =+TODAY() -> 2025-04-15
B4: =+"Resumen general de Indicadores, período,"&" "&LOWER(R1)&" "&E6 -> Resumen general de Indicadores, período, enero 2025
R5: =+T7 -> Enero
B6: PENSIONES PAGADAS POR EL IGSS (EMA - IVS) | D6: 2024 | E6: 2025 | F6: Variación | H6: MONTO PAGADO EN PRESTACIONES PECUNIARIAS | J6: 2024 | K6: 2025 | L6: Variación | N6: ATENCIONES MÉDICAS BRINDADAS A LAS PERSONAS PROTEGIDAS | P6: 2024 | Q6: 2025 | R6: Variación | T6: Seleccione Mes
D7: =SUM(D8:D15) -> 212416 | E7: =SUM(E8:E15) -> 227817 | J7: =SUM(J8:J15) -> 451004697.3 | K7: =SUM(K8:K15) -> 431414454.5 | P7: =SUM(P8:P10) -> 607867 | Q7: =SUM(Q8:Q10) -> 688086 | T7: Enero | U7: =+IF($T$7="Anual",13,MONTH(T7&1)) -> 1
B8: Invalidez | D8: =IF($T$7="Anual",GETPIVOTDATA("Pago",'3.2. TD_Pension.2'!$B$320,"Mes1",$R$1,"Año ",$D$6,"incapacidad",B8),GETPIVOTDATA("Pago",'3.2. TD_Pension.2'!$B$320,"Mes1",$T$7,"Año ",$D$6,"incapacidad",B8)) -> 9027 | E8: =IFERROR(IF($T$7="Anual",GETPIVOTDATA("Pago",'3.2. TD_Pension.2'!$B$320,"Mes1",$R$1,"Año ",$E$6,"incapacidad",B8),GETPIVOTDATA("Pago",'3.2. TD_Pension.2'!$B$320,"Mes1",$T$7,"Año ",$E$6,"incapacidad",B8)),0) -> 7788 | F8: =+E8/D8-1 -> -0.137254902 | H8: Invalidez | J8: =IF($T$7="Anual",GETPIVOTDATA("Pagado",'3.2. TD_Pension.2'!$B$320,"Mes1",$R$1,"Año ",$J$6,"incapacidad",H8),GETPIVOTDATA("Pagado",'3.2. TD_Pension.2'!$B$320,"Mes1",$T$7,"Año ",$J$6,"incapacidad",H8)) -> 15403952.13 | K8: =IFERROR(IF($T$7="Anual",GETPIVOTDATA("Pagado",'3.2. TD_Pension.2'!$B$320,"Mes1",$R$1,"Año ",$K$6,"incapacidad",H8),GETPIVOTDATA("Pagado",'3.2. TD_Pension.2'!$B$320,"Mes1",$T$7,"Año ",$K$6,"incapacidad",H8)),0) -> 13419030.56 | L8: =+K8/J8-1 -> -0.128857942 | N8: Enfermedad Común | P8: =IF($T$7="anual",GETPIVOTDATA("Consulta",'2.2. TD_Salud_Produc2'!$A$178,"servicio",N8,"mes1",$R$1,"año ",$P$6),GETPIVOTDATA("Consulta",'2.2. TD_Salud_Produc2'!$A$178,"servicio",N8,"mes1",$T$7,"año ",$P$6)) -> 527472 | Q8: =IFERROR(IF($T$7="anual",GETPIVOTDATA("Consulta",'2.2. TD_Salud_Produc2'!$A$178,"servicio",N8,"mes1",$R$1,"año ",$Q$6),GETPIVOTDATA("Consulta",'2.2. TD_Salud_Produc2'!$A$178,"servicio",N8,"mes1",$T$7,"año ",$Q$6)),0) -> 601799 | R8: =+Q8/P8-1 -> 0.1409117451
B9: Vejez | D9: =IF($T$7="Anual",GETPIVOTDATA("Pago",'3.2. TD_Pension.2'!$B$320,"Mes1",$R$1,"Año ",$D$6,"incapacidad",B9),GETPIVOTDATA("Pago",'3.2. TD_Pension.2'!$B$320,"Mes1",$T$7,"Año ",$D$6,"incapacidad",B9)) -> 104201 | E9: =IFERROR(IF($T$7="Anual",GETPIVOTDATA("Pago",'3.2. TD_Pension.2'!$B$320,"Mes1",$R$1,"Año ",$E$6,"incapacidad",B9),GETPIVOTDATA("Pago",'3.2. TD_Pension.2'!$B$320,"Mes1",$T$7,"Año ",$E$6,"incapacidad",B9)),0) -> 119533 | F9: =+E9/D9-1 -> 0.1471387031 | H9: Vejez | J9: =IF($T$7="Anual",GETPIVOTDATA("Pagado",'3.2. TD_Pension.2'!$B$320,"Mes1",$R$1,"Año ",$J$6,"incapacidad",H9),GETPIVOTDATA("Pagado",'3.2. TD_Pension.2'!$B$320,"Mes1",$T$7,"Año ",$J$6,"incapacidad",H9)) -> 328427434 | K9: =IFERROR(IF($T$7="Anual",GETPIVOTDATA("Pagado",'3.2. TD_Pension.2'!$B$320,"Mes1",$R$1,"Año ",$K$6,"incapacidad",H9),GETPIVOTDATA("Pagado",'3.2. TD_Pension.2'!$B$320,"Mes1",$T$7,"Año ",$K$6,"incapacidad",H9)),0) -> 308615770.8 | L9: =+K9/J9-1 -> -0.0603228023 | N9: Maternidad | P9: =IF($T$7="anual",GETPIVOTDATA("Consulta",'2.2. TD_Salud_Produc2'!$A$178,"servicio",N9,"mes1",$R$1,"año ",$P$6),GETPIVOTDATA("Consulta",'2.2. TD_Salud_Produc2'!$A$178,"servicio",N9,"mes1",$T$7,"año ",$P$6)) -> 29888 | Q9: =IFERROR(IF($T$7="anual",GETPIVOTDATA("Consulta",'2.2. TD_Salud_Produc2'!$A$178,"servicio",N9,"mes1",$R$1,"año ",$Q$6),GETPIVOTDATA("Consulta",'2.2. TD_Salud_Produc2'!$A$178,"servicio",N9,"mes1",$T$7,"año ",$Q$6)),0) -> 31487 | R9: =+Q9/P9-1 -> 0.05349973233
B10: Sobrevivencia | D10: =IF($T$7="Anual",GETPIVOTDATA("Pago",'3.2. TD_Pension.2'!$B$320,"Mes1",$R$1,"Año ",$D$6,"incapacidad",B10),GETPIVOTDATA("Pago",'3.2. TD_Pension.2'!$B$320,"Mes1",$T$7,"Año ",$D$6,"incapacidad",B10)) -> 68282 | E10: =IFERROR(IF($T$7="Anual",GETPIVOTDATA("Pago",'3.2. TD_Pension.2'!$B$320,"Mes1",$R$1,"Año ",$E$6,"incapacidad",B10),GETPIVOTDATA("Pago",'3.2. TD_Pension.2'!$B$320,"Mes1",$T$7,"Año ",$E$6,"incapacidad",B10)),0) -> 71339 | F10: 0.04477021763 | H10: Sobrevivencia | J10: =IF($T$7="Anual",GETPIVOTDATA("Pagado",'3.2. TD_Pension.2'!$B$320,"Mes1",$R$1,"Año ",$J$6,"incapacidad",H10),GETPIVOTDATA("Pagado",'3.2. TD_Pension.2'!$B$320,"Mes1",$T$7,"Año ",$J$6,"incapacidad",H10)) -> 60534353.23 | K10: =IFERROR(IF($T$7="Anual",GETPIVOTDATA("Pagado",'3.2. TD_Pension.2'!$B$320,"Mes1",$R$1,"Año ",$K$6,"incapacidad",H10),GETPIVOTDATA("Pagado",'3.2. TD_Pension.2'!$B$320,"Mes1",$T$7,"Año ",$K$6,"incapacidad",H10)),0) -> 60131140.24 | L10: -0.006660895318 | N10: Accidentes | P10: =IF($T$7="anual",GETPIVOTDATA("Consulta",'2.2. TD_Salud_Produc2'!$A$178,"servicio",N10,"mes1",$R$1,"año ",$P$6),GETPIVOTDATA("Consulta",'2.2. TD_Salud_Produc2'!$A$178,"servicio",N10,"mes1",$T$7,"año ",$P$6)) -> 50507 | Q10: =IFERROR(IF($T$7="anual",GETPIVOTDATA("Consulta",'2.2. TD_Salud_Produc2'!$A$178,"servicio",N10,"mes1",$R$1,"año ",$Q$6),GETPIVOTDATA("Consulta",'2.2. TD_Salud_Produc2'!$A$178,"servicio",N10,"mes1",$T$7,"año ",$Q$6)),0) -> 54800 | R10: 0.08499811907
B11: Muerte por Accidente | D11: =IF($T$7="Anual",GETPIVOTDATA("Pago",'3.2. TD_Pension.2'!$B$320,"Mes1",$R$1,"Año ",$D$6,"incapacidad",B11),GETPIVOTDATA("Pago",'3.2. TD_Pension.2'!$B$320,"Mes1",$T$7,"Año ",$D$6,"incapacidad",B11)) -> 2004 | E11: =IFERROR(IF($T$7="Anual",GETPIVOTDATA("Pago",'3.2. TD_Pension.2'!$B$320,"Mes1",$R$1,"Año ",$E$6,"incapacidad",B11),GETPIVOTDATA("Pago",'3.2. TD_Pension.2'!$B$320,"Mes1",$T$7,"Año ",$E$6,"incapacidad",B11)),0) -> 1922 | F11: -0.04091816367 | H11: Muerte por Accidente | J11: =IF($T$7="Anual",GETPIVOTDATA("Pagado",'3.2. TD_Pension.2'!$B$320,"Mes1",$R$1,"Año ",$J$6,"incapacidad",H11),GETPIVOTDATA("Pagado",'3.2. TD_Pension.2'!$B$320,"Mes1",$T$7,"Año ",$J$6,"incapacidad",H11)) -> 254155 | K11: =IFERROR(IF($T$7="Anual",GETPIVOTDATA("Pagado",'3.2. TD_Pension.2'!$B$320,"Mes1",$R$1,"Año ",$K$6,"incapacidad",H11),GETPIVOTDATA("Pagado",'3.2. TD_Pension.2'!$B$320,"Mes1",$T$7,"Año ",$K$6,"incapacidad",H11)),0) -> 241685 | L11: -0.04906454723 | N11: Nota, Este cuadro muestra cifras acumuladas al período seleccionado
B12: Incapacidad Temporal EMA | D12: =IF($T$7="Anual",GETPIVOTDATA("Pago",'3.2. TD_Pension.2'!$B$320,"Mes1",$R$1,"Año ",$D$6,"incapacidad",B12),GETPIVOTDATA("Pago",'3.2. TD_Pension.2'!$B$320,"Mes1",$T$7,"Año ",$D$6,"incapacidad",B12)) -> 28617 | E12: =IFERROR(IF($T$7="Anual",GETPIVOTDATA("Pago",'3.2. TD_Pension.2'!$B$320,"Mes1",$R$1,"Año ",$E$6,"incapacidad",B12),GETPIVOTDATA("Pago",'3.2. TD_Pension.2'!$B$320,"Mes1",$T$7,"Año ",$E$6,"incapacidad",B12)),0) -> 26955 | F12: -0.0580773666 | H12: Incapacidad Temporal EMA | J12: =IF($T$7="Anual",GETPIVOTDATA("Pagado",'3.2. TD_Pension.2'!$B$320,"Mes1",$R$1,"Año ",$J$6,"incapacidad",H12),GETPIVOTDATA("Pagado",'3.2. TD_Pension.2'!$B$320,"Mes1",$T$7,"Año ",$J$6,"incapacidad",H12)) -> 45999148.45 | K12: =IFERROR(IF($T$7="Anual",GETPIVOTDATA("Pagado",'3.2. TD_Pension.2'!$B$320,"Mes1",$R$1,"Año ",$K$6,"incapacidad",H12),GETPIVOTDATA("Pagado",'3.2. TD_Pension.2'!$B$320,"Mes1",$T$7,"Año ",$K$6,"incapacidad",H12)),0) -> 48604182.88 | L12: 0.05663223163
B13: Incapacidad Permanente EMA | D13: =IF($T$7="Anual",GETPIVOTDATA("Pago",'3.2. TD_Pension.2'!$B$320,"Mes1",$R$1,"Año ",$D$6,"incapacidad",B13),GETPIVOTDATA("Pago",'3.2. TD_Pension.2'!$B$320,"Mes1",$T$7,"Año ",$D$6,"incapacidad",B13)) -> 40 | E13: =IFERROR(IF($T$7="Anual",GETPIVOTDATA("Pago",'3.2. TD_Pension.2'!$B$320,"Mes1",$R$1,"Año ",$E$6,"incapacidad",B13),GETPIVOTDATA("Pago",'3.2. TD_Pension.2'!$B$320,"Mes1",$T$7,"Año ",$E$6,"incapacidad",B13)),0) -> 55 | F13: 0.375 | H13: Incapacidad Permanente EMA | J13: =IF($T$7="Anual",GETPIVOTDATA("Pagado",'3.2. TD_Pension.2'!$B$320,"Mes1",$R$1,"Año ",$J$6,"incapacidad",H13),GETPIVOTDATA("Pagado",'3.2. TD_Pension.2'!$B$320,"Mes1",$T$7,"Año ",$J$6,"incapacidad",H13)) -> 82467 | K13: =IFERROR(IF($T$7="Anual",GETPIVOTDATA("Pagado",'3.2. TD_Pension.2'!$B$320,"Mes1",$R$1,"Año ",$K$6,"incapacidad",H13),GETPIVOTDATA("Pagado",'3.2. TD_Pension.2'!$B$320,"Mes1",$T$7,"Año ",$K$6,"incapacidad",H13)),0) -> 124245 | L13: 0.5066026411
B14: Cuota Mortuoria EMA | D14: =IF($T$7="Anual",GETPIVOTDATA("Pago",'3.2. TD_Pension.2'!$B$320,"Mes1",$R$1,"Año ",$D$6,"incapacidad",B14),GETPIVOTDATA("Pago",'3.2. TD_Pension.2'!$B$320,"Mes1",$T$7,"Año ",$D$6,"incapacidad",B14)) -> 74 | E14: =IFERROR(IF($T$7="Anual",GETPIVOTDATA("Pago",'3.2. TD_Pension.2'!$B$320,"Mes1",$R$1,"Año ",$E$6,"incapacidad",B14),GETPIVOTDATA("Pago",'3.2. TD_Pension.2'!$B$320,"Mes1",$T$7,"Año ",$E$6,"incapacidad",B14)),0) -> 96 | F14: 0.2972972973 | H14: Cuota Mortuoria EMA | J14: =IF($T$7="Anual",GETPIVOTDATA("Pagado",'3.2. TD_Pension.2'!$B$320,"Mes1",$R$1,"Año ",$J$6,"incapacidad",H14),GETPIVOTDATA("Pagado",'3.2. TD_Pension.2'!$B$320,"Mes1",$T$7,"Año ",$J$6,"incapacidad",H14)) -> 91575 | K14: =IFERROR(IF($T$7="Anual",GETPIVOTDATA("Pagado",'3.2. TD_Pension.2'!$B$320,"Mes1",$R$1,"Año ",$K$6,"incapacidad",H14),GETPIVOTDATA("Pagado",'3.2. TD_Pension.2'!$B$320,"Mes1",$T$7,"Año ",$K$6,"incapacidad",H14)),0) -> 118800 | L14: 0.2972972973
B15: Cuota Mortuoria IVS | D15: =IF($T$7="Anual",GETPIVOTDATA("Pago",'3.2. TD_Pension.2'!$B$320,"Mes1",$R$1,"Año ",$D$6,"incapacidad",B15),GETPIVOTDATA("Pago",'3.2. TD_Pension.2'!$B$320,"Mes1",$T$7,"Año ",$D$6,"incapacidad",B15)) -> 171 | E15: =IFERROR(IF($T$7="Anual",GETPIVOTDATA("Pago",'3.2. TD_Pension.2'!$B$320,"Mes1",$R$1,"Año ",$E$6,"incapacidad",B15),GETPIVOTDATA("Pago",'3.2. TD_Pension.2'!$B$320,"Mes1",$T$7,"Año ",$E$6,"incapacidad",B15)),0) -> 129 | F15: -0.2456140351 | H15: Cuota Mortuoria IVS | J15: =IF($T$7="Anual",GETPIVOTDATA("Pagado",'3.2. TD_Pension.2'!$B$320,"Mes1",$R$1,"Año ",$J$6,"incapacidad",H15),GETPIVOTDATA("Pagado",'3.2. TD_Pension.2'!$B$320,"Mes1",$T$7,"Año ",$J$6,"incapacidad",H15)) -> 211612.5 | K15: =IFERROR(IF($T$7="Anual",GETPIVOTDATA("Pagado",'3.2. TD_Pension.2'!$B$320,"Mes1",$R$1,"Año ",$K$6,"incapacidad",H15),GETPIVOTDATA("Pagado",'3.2. TD_Pension.2'!$B$320,"Mes1",$T$7,"Año ",$K$6,"incapacidad",H15)),0) -> 159600 | L15: -0.2457912458
B16: Nota, Este cuadro muestra cifras acumuladas al período seleccionado | H16: Nota, Este cuadro muestra cifras acumuladas al período seleccionado
B18: AFILIADOS COTIZANTES | D18: 2024 | E18: 2025 | F18: Variación | H18: PERSONAS PROTEGIDAS | J18: 2024 | K18: 2025 | L18: Variación | N18: RECURSO HUMANO AL SERVICIO DEL INSTITUTO | P18: 2024 | Q18: 2025 | R18: Variación
D19: =+D20+D21 -> 1594262 | E19: =IFERROR(E20+E21,0) -> 1693556 | J19: =SUM(J20:J28) -> 3413557 | K19: =SUM(K20:K28) -> 3627033 | P19: =SUM(P20:P21) -> 22991 | Q19: =SUM(Q20:Q21) -> 23533
B20: Hombres | D20: =+IFERROR(GETPIVOTDATA("hombres",'1.3. TD_pp'!$A$783,"mes",$U$7,"año",$D$18),"") -> 1018098 | E20: =+IFERROR(GETPIVOTDATA("hombres",'1.3. TD_pp'!$A$783,"mes",$U$7,"año",$E$18),"") -> 1065059 | F20: =+E20/D20-1 -> 0.04612620789 | H20: Afiliados cotizantes | J20: =IFERROR(GETPIVOTDATA("Afiliados ",'1.1. TD_Afil_1'!$A$4,"Mes",$U$7,"Año",$J$18),0) -> 1594262 | K20: =IFERROR(GETPIVOTDATA("Afiliados ",'1.1. TD_Afil_1'!$A$4,"Mes",$U$7,"Año",$K$18),0) -> 1693556 | L20: =+K20/J20-1 -> 0.06228210921 | N20: Hombres | P20: =+HLOOKUP($T$7,'I1'!$C$804:$O$819,2,0) -> 8662 | Q20: =+HLOOKUP($T$7,'I1'!$C$822:$O$837,2,0) -> 8748 | R20: =+Q20/P20-1 -> 0.009928422997
B21: Mujeres | D21: =+IFERROR(GETPIVOTDATA("mujeres",'1.3. TD_pp'!$A$783,"mes",$U$7,"año",$D$18),"") -> 576164 | E21: =+IFERROR(GETPIVOTDATA("mujeres",'1.3. TD_pp'!$A$783,"mes",$U$7,"año",$E$18),"") -> 628497 | F21: =+E21/D21-1 -> 0.09083004145 | H21: Esposas y/o Compañeras | J21: =+IFERROR(GETPIVOTDATA("Total",'1.3. TD_pp'!$A$714,"Mes",$U$7,"Derechohabiente",H21,"año",$J$18),0) -> 614081 | K21: =+IFERROR(GETPIVOTDATA("Total",'1.3. TD_pp'!$A$714,"Mes",$U$7,"Derechohabiente",H21,"año",$K$18),0) -> 652727 | L21: =+K21/J21-1 -> 0.06293306583 | N21: Mujeres | P21: =+HLOOKUP($T$7,'I1'!$C$804:$O$819,3,0) -> 14329 | Q21: =+HLOOKUP($T$7,'I1'!$C$822:$O$837,3,0) -> 14785 | R21: =+Q21/P21-1 -> 0.03182357457
B22: Cobertura sobre PEA Total | D22: =+D19/'D7'!D29 -> 0.2104609354 | E22: =+E19/'D7'!E29 -> 0.2191419289 | F22: 0.04124752898 | H22: Hijos de 0 a 7 años | J22: =+IFERROR(GETPIVOTDATA("Total",'1.3. TD_pp'!$A$714,"Mes",$U$7,"Derechohabiente",H22,"año",$J$18),0) -> 886797 | K22: =+IFERROR(GETPIVOTDATA("Total",'1.3. TD_pp'!$A$714,"Mes",$U$7,"Derechohabiente",H22,"año",$K$18),0) -> 942868 | L22: 0.06322867578 | N22: Renglón 011 | P22: =+HLOOKUP($T$7,'I1'!$C$804:$O$819,4,0) -> 14909 | Q22: =+HLOOKUP($T$7,'I1'!$C$822:$O$837,4,0) -> 14887 | R22: -0.001475618754
B23: Cobertura sobre PEA formal | D23: =+D19/'D7'!D30 -> 0.723625485 | E23: =+E19/'D7'!E30 -> 0.7633324093 | F23: 0.05487220271 | H23: Pensionados Programa Muerte por Accidente | J23: =+IFERROR(GETPIVOTDATA("Total",'1.3. TD_pp'!$A$714,"Mes",$U$7,"Derechohabiente",H23,"año",$J$18),0) -> 2291 | K23: =+IFERROR(GETPIVOTDATA("Total",'1.3. TD_pp'!$A$714,"Mes",$U$7,"Derechohabiente",H23,"año",$K$18),0) -> 2151 | L23: -0.06110868616 | N23: Renglón 021 | P23: =+HLOOKUP($T$7,'I1'!$C$804:$O$819,5,0) -> 832 | Q23: =+HLOOKUP($T$7,'I1'!$C$822:$O$837,5,0) -> 570 | R23: -0.3149038462
B24: Masa Salarial | D24: =IFERROR(GETPIVOTDATA("Salarios ",'1.1. TD_Afil_1'!$A$4,"Mes",$U$7,"Año",$D$18),0) -> 8913567724 | E24: =IFERROR(GETPIVOTDATA("Salarios ",'1.1. TD_Afil_1'!$A$4,"Mes",$U$7,"Año",$E$18),0) -> 9915480445 | F24: 0.1124031086 | H24: Pensionados Programa IVS | J24: =+IFERROR(GETPIVOTDATA("Total",'1.3. TD_pp'!$A$714,"Mes",$U$7,"Derechohabiente",H24,"año",$J$18),0) -> 200798 | K24: =+IFERROR(GETPIVOTDATA("Total",'1.3. TD_pp'!$A$714,"Mes",$U$7,"Derechohabiente",H24,"año",$K$18),0) -> 217903 | L24: 0.08518511141 | N24: Renglón 022 | P24: =+HLOOKUP($T$7,'I1'!$C$804:$O$819,6,0) -> 5288 | Q24: =+HLOOKUP($T$7,'I1'!$C$822:$O$837,6,0) -> 5508 | R24: 0.04160363086
B25: Salario Medio | D25: =IFERROR(IF($T$7="Anual",D24/D19/12,D24/D19),0) -> 5591.030661 | E25: =IFERROR(IF($T$7="Anual",E24/E19/12,E24/E19),0) -> 5854.828801 | F25: 0.04718238118 | H25: Jubilados Estado | J25: =+IFERROR(GETPIVOTDATA("Total",'1.3. TD_pp'!$A$714,"Mes",$U$7,"Derechohabiente",H25,"año",$J$18),0) -> 111369 | K25: =+IFERROR(GETPIVOTDATA("Total",'1.3. TD_pp'!$A$714,"Mes",$U$7,"Derechohabiente",H25,"año",$K$18),0) -> 114334 | L25: 0.02662320754 | N25: Renglón 023 | P25: =+HLOOKUP($T$7,'I1'!$C$804:$O$819,7,0) -> 109 | Q25: =+HLOOKUP($T$7,'I1'!$C$822:$O$837,7,0) -> 61 | R25: -0.4403669725
B26: Patronos cotizantes | D26: =IFERROR(GETPIVOTDATA("Patronos",'1.1. TD_Afil_1'!$A$4,"Mes",$U$7,"Año",$D$18),0) -> 34237 | E26: =IFERROR(GETPIVOTDATA("Patronos",'1.1. TD_Afil_1'!$A$4,"Mes",$U$7,"Año",$E$18),0) -> 38774 | F26: 0.1325174519 | H26: Población No Afiliada | J26: =+IFERROR(GETPIVOTDATA("Total",'1.3. TD_pp'!$A$714,"Mes",$U$7,"Derechohabiente",H26,"año",$J$18),0) -> 3344 | K26: =+IFERROR(GETPIVOTDATA("Total",'1.3. TD_pp'!$A$714,"Mes",$U$7,"Derechohabiente",H26,"año",$K$18),0) -> 2849 | L26: -0.1480263158 | N26: Renglón 029 | P26: =+HLOOKUP($T$7,'I1'!$C$804:$O$819,8,0) -> 56 | Q26: =+HLOOKUP($T$7,'I1'!$C$822:$O$837,8,0) -> 61 | R26: 0.08928571429
B27: Nota, Este cuadro muestra las cifras del período seleccionado | H27: Afiliada PRECAPI | J27: =+IFERROR(GETPIVOTDATA("Total",'1.3. TD_pp'!$A$714,"Mes",$Q$1,"Derechohabiente",H27,"año",$J$18),0) -> 576 | K27: =+IFERROR(GETPIVOTDATA("Total",'1.3. TD_pp'!$A$714,"Mes",$Q$1,"Derechohabiente",H27,"año",$K$18),0) -> 604 | L27: 0.04861111111 | N27: Subgrupo 18 | P27: =+HLOOKUP($T$7,'I1'!$C$804:$O$819,9,0) -> 1797 | Q27: =+HLOOKUP($T$7,'I1'!$C$822:$O$837,9,0) -> 2446 | R27: 0.3611574847
H28: Beneficiaria PRECAPI | J28: =+IFERROR(GETPIVOTDATA("Total",'1.3. TD_pp'!$A$714,"Mes",$Q$1,"Derechohabiente",H28,"año",$J$18),0) -> 39 | K28: =+IFERROR(GETPIVOTDATA("Total",'1.3. TD_pp'!$A$714,"Mes",$Q$1,"Derechohabiente",H28,"año",$K$18),0) -> 41 | L28: 0.05128205128 | N28: Nota, Este cuadro muestra las cifras del período seleccionado
H29: Cobertura sobre Población Total | J29: =+J19/'D7'!D28 -> 0.1939253163 | K29: =+K19/'D7'!E28 -> 0.2032733379 | L29: 0.04820423514
H30: Nota, Este cuadro muestra las cifras del período seleccionado

Sheet B2
K1: =+IF($K$4="Anual",12,1) -> 1 | L1: =+IF(K4="Anual","12",L4) -> 1 | N1: =IF(K4="Anual","al 31 de diciemebre de"&" "&N4,LOWER($K$4&" "&N4)) -> enero 2025
D4: Indicador | E4: Afiliación | J4: Mes | K4: Enero | L4: =+IF($K$4="Anual",13,MONTH(K4&1)) -> 1 | M4: Año | N4: 2025
B5: =+"B2. IGSS - Servicios brindados por el Instituto Guatemalteco de Seguridad Social, por departamento de la República. Período,"&" "&N1 -> B2. IGSS - Servicios brindados por el Instituto Guatemalteco de Seguridad Social, por departamento de la República. Período, enero 2025 | J5: =+IF(E4="Afiliación","IGSS: Afiliados cotizantes, masa salarial y salario medio, por Departamento de la República",IF($E$4="Recursos Humanos","IGSS: Recurso Humano al servicio del Instituto y salarios devengados, por Departamento de la República",IF($E$4="Pensiones","IGSS: Número de pensionados y Montos pagados por tipo de riesgo, por Departamento de la República",IF($E$4="Costos","IGSS: Costos unitarios por tipo de servicio y Departamento de la República",IF($E$4="Atenciones médicas","IGSS: Cantidad de atenciones médicas brindadas, por tipo se servicio y Departamento de la República"))))) -> IGSS: Afiliados cotizantes, masa salarial y salario medio, por Departamento de la República
J6: Id. Depto. | K6: Departamento | L6: =+IF($E$4="Afiliación","Afiliados",IF($E$4="Recursos Humanos","Trabajadores",IF($E$4="Pensiones","Pensionados IVS",IF($E$4="Costos","Consulta Externa ",IF($E$4="Atenciones médicas","Consulta Externa"," "))))) -> Afiliados | M6: =+IF($E$4="Afiliación","Masa Salarial",IF($E$4="Recursos Humanos","Salarios",IF($E$4="Pensiones","Monto pagado por IVS",IF($E$4="Costos","Egresos",IF($E$4="Atenciones médicas","Egresos"," "))))) -> Masa Salarial | N6: =+IF($E$4="Afiliación","Salario Medio",IF($E$4="Pensiones","Pensionados Muerte por Accidente",IF($E$4="Costos","Emergencia",IF($E$4="Atenciones médicas","Emergencia"," ")))) -> Salario Medio | O6: =+IF($E$4="Afiliación","",IF($E$4="Recursos Humanos","",IF($E$4="Ejecución Presupuestaria"," ",IF($E$4="Costos","Primeros Auxilios",IF($E$4="Pensiones","Monto pagado Muerte por Accidente",IF($E$4="Atenciones médicas","Primeros Auxilios"," ")))))) -> 
J8: Total | L8: =SUM(L10:L31) -> 1693556 | M8: =SUM(M10:M31) -> 9915480445 | N8: =IF($E$4="Afiliación",M8/L8/$K$1,SUM(N10:N31)) -> 5854.828801 | O8: =SUM(O10:O31) -> 0
J10: 1 | K10: Guatemala | L10: =IFERROR(IF($E$4="Afiliación",GETPIVOTDATA("Afiliados ",'1.1. TD_Afil_1'!$A$4,"Mes",$L$4,"Año",$N$4,"Departamento ",K10),IF($E$4="Recursos Humanos",GETPIVOTDATA("Trabajadores",'4.1. TD_RRHH'!$A$4,"Mes",$L$4,"Año",$N$4,"Departamento",K10),IF($E$4="Costos",GETPIVOTDATA("Consulta",'5.1 TD_Costos'!$A$40,"Departamento",K10,"Mes",$L$1,"Año",$N$4),IF($E$4="Atenciones médicas",GETPIVOTDATA("Consulta",'2.2. TD_Salud_Produc2'!$A$7,"Departamento",K10,"Mes",$L$1,"Año",$N$4),IF($E$4="Pensiones",GETPIVOTDATA("Pensionados ",'3.1. TD_Pens'!$A$324,"Mes",$L$1,"Año",$N$4,"Departamento ",'B2'!K10)," ")))))," ") -> 914342 | M10: =IFERROR(IF($E$4="Afiliación",GETPIVOTDATA("Salarios ",'1.1. TD_Afil_1'!$A$4,"Mes",$L$4,"Año",$N$4,"Departamento ",K10),IF($E$4="Recursos Humanos",GETPIVOTDATA("Salarios",'4.1. TD_RRHH'!B4,"Departamento",K10,"Mes",$L$4,"Año",$N$4),IF($E$4="Costos",GETPIVOTDATA("Egresos",'5.1 TD_Costos'!$A$75,"Departamento",K10,"Mes",$L$1,"Año",$N$4),IF($E$4="Pensiones",GETPIVOTDATA("Pago",'3.2. TD_Pension.2'!$A$144,"Mes",$L$1,"Año",$N$4,"Departamento",'B2'!K10),IF($E$4="Atenciones médicas",GETPIVOTDATA("Emergencia",'2.2. TD_Salud_Produc2'!$A$41,"Departamento",K10,"Mes",$L$1,"Año",$N$4)," ")))))," ") -> 5847748615 | N10: =IFERROR(IF($E$4="Afiliación",M10/L10/$K$1,IF($E$4="Costos",GETPIVOTDATA("Emergencia",'5.1 TD_Costos'!$A$110,"Departamento",K10,"Mes",$L$1,"Año",$N$4),IF($E$4="Atenciones médicas",GETPIVOTDATA("Egresos",'2.2. TD_Salud_Produc2'!$A$75,"Departamento",K10,"Mes",$L$1,"Año",$N$4),IF($E$4="Pensiones",GETPIVOTDATA("muerte por accidente",'3.1. TD_Pens'!$A$158,"Mes",$L$1,"año ",$N$4,"Departamento",'B2'!K10)," "))))," ") -> 6395.58132 | O10: =IFERROR(IF($E$4="Pensiones",GETPIVOTDATA("Pago",'3.2. TD_Pension.2'!$A$176,"Mes",$L$1,"año",$N$4,"Departamento",'B2'!K10),IF($E$4="Costos",GETPIVOTDATA("Auxilios",'5.1 TD_Costos'!$A$145,"Departamento",K10,"Mes",$L$1,"Año",$N$4),IF($E$4="Atenciones médicas",GETPIVOTDATA("Primeros Auxilios",'2.2. TD_Salud_Produc2'!$A$109,"Departamento",K10,"Mes",$L$1,"Año",$N$4)," ")))," ") ->  | Q10: =+IF($E$4="Afiliación",L10,IF($E$4="Recursos Humanos",L10,IF($E$4="Pensiones",L10+N10,IF($E$4="Costos",L10+M10+N10+O10,IF($E$4="Atenciones médicas",L10+M10+N10+O10))))) -> 914342
J11: 2 | K11: El Progreso | L11: =IFERROR(IF($E$4="Afiliación",GETPIVOTDATA("Afiliados ",'1.1. TD_Afil_1'!$A$4,"Mes",$L$4,"Año",$N$4,"Departamento ",K11),IF($E$4="Recursos Humanos",GETPIVOTDATA("Trabajadores",'4.1. TD_RRHH'!$A$4,"Mes",$L$4,"Año",$N$4,"Departamento",K11),IF($E$4="Costos",GETPIVOTDATA("Consulta",'5.1 TD_Costos'!$A$40,"Departamento",K11,"Mes",$L$1,"Año",$N$4),IF($E$4="Atenciones médicas",GETPIVOTDATA("Consulta",'2.2. TD_Salud_Produc2'!$A$7,"Departamento",K11,"Mes",$L$1,"Año",$N$4),IF($E$4="Pensiones",GETPIVOTDATA("Pensionados ",'3.1. TD_Pens'!$A$324,"Mes",$L$1,"Año",$N$4,"Departamento ",'B2'!K11)," ")))))," ") -> 13720 | M11: =IFERROR(IF($E$4="Afiliación",GETPIVOTDATA("Salarios ",'1.1. TD_Afil_1'!$A$4,"Mes",$L$4,"Año",$N$4,"Departamento ",K11),IF($E$4="Recursos Humanos",GETPIVOTDATA("Salarios",'4.1. TD_RRHH'!B5,"Departamento",K11,"Mes",$L$4,"Año",$N$4),IF($E$4="Costos",GETPIVOTDATA("Egresos",'5.1 TD_Costos'!$A$75,"Departamento",K11,"Mes",$L$1,"Año",$N$4),IF($E$4="Pensiones",GETPIVOTDATA("Pago",'3.2. TD_Pension.2'!$A$144,"Mes",$L$1,"Año",$N$4,"Departamento",'B2'!K11),IF($E$4="Atenciones médicas",GETPIVOTDATA("Emergencia",'2.2. TD_Salud_Produc2'!$A$41,"Departamento",K11,"Mes",$L$1,"Año",$N$4)," ")))))," ") -> 71112057 | N11: =IFERROR(IF($E$4="Afiliación",M11/L11/$K$1,IF($E$4="Costos",GETPIVOTDATA("Emergencia",'5.1 TD_Costos'!$A$110,"Departamento",K11,"Mes",$L$1,"Año",$N$4),IF($E$4="Atenciones médicas",GETPIVOTDATA("Egresos",'2.2. TD_Salud_Produc2'!$A$75,"Departamento",K11,"Mes",$L$1,"Año",$N$4),IF($E$4="Pensiones",GETPIVOTDATA("muerte por accidente",'3.1. TD_Pens'!$A$158,"Mes",$L$1,"año ",$N$4,"Departamento",'B2'!K11)," "))))," ") -> 5183.094534 | O11: =IFERROR(IF($E$4="Pensiones",GETPIVOTDATA("Pago",'3.2. TD_Pension.2'!$A$176,"Mes",$L$1,"año",$N$4,"Departamento",'B2'!K11),IF($E$4="Costos",GETPIVOTDATA("Auxilios",'5.1 TD_Costos'!$A$145,"Departamento",K11,"Mes",$L$1,"Año",$N$4),IF($E$4="Atenciones médicas",GETPIVOTDATA("Primeros Auxilios",'2.2. TD_Salud_Produc2'!$A$109,"Departamento",K11,"Mes",$L$1,"Año",$N$4)," ")))," ") ->  | Q11: =+IF($E$4="Afiliación",L11,IF($E$4="Recursos Humanos",L11,IF($E$4="Pensiones",L11+N11,IF($E$4="Costos",L11+M11+N11+O11,IF($E$4="Atenciones médicas",L11+M11+N11+O11))))) -> 13720
J12: 3 | K12: Sacatepéquez | L12: =IFERROR(IF($E$4="Afiliación",GETPIVOTDATA("Afiliados ",'1.1. TD_Afil_1'!$A$4,"Mes",$L$4,"Año",$N$4,"Departamento ",K12),IF($E$4="Recursos Humanos",GETPIVOTDATA("Trabajadores",'4.1. TD_RRHH'!$A$4,"Mes",$L$4,"Año",$N$4,"Departamento",K12),IF($E$4="Costos",GETPIVOTDATA("Consulta",'5.1 TD_Costos'!$A$40,"Departamento",K12,"Mes",$L$1,"Año",$N$4),IF($E$4="Atenciones médicas",GETPIVOTDATA("Consulta",'2.2. TD_Salud_Produc2'!$A$7,"Departamento",K12,"Mes",$L$1,"Año",$N$4),IF($E$4="Pensiones",GETPIVOTDATA("Pensionados ",'3.1. TD_Pens'!$A$324,"Mes",$L$1,"Año",$N$4,"Departamento ",'B2'!K12)," ")))))," ") -> 46936 | M12: =IFERROR(IF($E$4="Afiliación",GETPIVOTDATA("Salarios ",'1.1. TD_Afil_1'!$A$4,"Mes",$L$4,"Año",$N$4,"Departamento ",K12),IF($E$4="Recursos Humanos",GETPIVOTDATA("Salarios",'4.1. TD_RRHH'!B6,"Departamento",K12,"Mes",$L$4,"Año",$N$4),IF($E$4="Costos",GETPIVOTDATA("Egresos",'5.1 TD_Costos'!$A$75,"Departamento",K12,"Mes",$L$1,"Año",$N$4),IF($E$4="Pensiones",GETPIVOTDATA("Pago",'3.2. TD_Pension.2'!$A$144,"Mes",$L$1,"Año",$N$4,"Departamento",'B2'!K12),IF($E$4="Atenciones médicas",GETPIVOTDATA("Emergencia",'2.2. TD_Salud_Produc2'!$A$41,"Departamento",K12,"Mes",$L$1,"Año",$N$4)," ")))))," ") -> 217997978 | N12: =IFERROR(IF($E$4="Afiliación",M12/L12/$K$1,IF($E$4="Costos",GETPIVOTDATA("Emergencia",'5.1 TD_Costos'!$A$110,"Departamento",K12,"Mes",$L$1,"Año",$N$4),IF($E$4="Atenciones médicas",GETPIVOTDATA("Egresos",'2.2. TD_Salud_Produc2'!$A$75,"Departamento",K12,"Mes",$L$1,"Año",$N$4),IF($E$4="Pensiones",GETPIVOTDATA("muerte por accidente",'3.1. TD_Pens'!$A$158,"Mes",$L$1,"año ",$N$4,"Departamento",'B2'!K12)," "))))," ") -> 4644.579385 | O12: =IFERROR(IF($E$4="Pensiones",GETPIVOTDATA("Pago",'3.2. TD_Pension.2'!$A$176,"Mes",$L$1,"año",$N$4,"Departamento",'B2'!K12),IF($E$4="Costos",GETPIVOTDATA("Auxilios",'5.1 TD_Costos'!$A$145,"Departamento",K12,"Mes",$L$1,"Año",$N$4),IF($E$4="Atenciones médicas",GETPIVOTDATA("Primeros Auxilios",'2.2. TD_Salud_Produc2'!$A$109,"Departamento",K12,"Mes",$L$1,"Año",$N$4)," ")))," ") ->  | Q12: 46936
J13: 4 | K13: Chimaltenango | L13: =IFERROR(IF($E$4="Afiliación",GETPIVOTDATA("Afiliados ",'1.1. TD_Afil_1'!$A$4,"Mes",$L$4,"Año",$N$4,"Departamento ",K13),IF($E$4="Recursos Humanos",GETPIVOTDATA("Trabajadores",'4.1. TD_RRHH'!$A$4,"Mes",$L$4,"Año",$N$4,"Departamento",K13),IF($E$4="Costos",GETPIVOTDATA("Consulta",'5.1 TD_Costos'!$A$40,"Departamento",K13,"Mes",$L$1,"Año",$N$4),IF($E$4="Atenciones médicas",GETPIVOTDATA("Consulta",'2.2. TD_Salud_Produc2'!$A$7,"Departamento",K13,"Mes",$L$1,"Año",$N$4),IF($E$4="Pensiones",GETPIVOTDATA("Pensionados ",'3.1. TD_Pens'!$A$324,"Mes",$L$1,"Año",$N$4,"Departamento ",'B2'!K13)," ")))))," ") -> 33128 | M13: =IFERROR(IF($E$4="Afiliación",GETPIVOTDATA("Salarios ",'1.1. TD_Afil_1'!$A$4,"Mes",$L$4,"Año",$N$4,"Departamento ",K13),IF($E$4="Recursos Humanos",GETPIVOTDATA("Salarios",'4.1. TD_RRHH'!B7,"Departamento",K13,"Mes",$L$4,"Año",$N$4),IF($E$4="Costos",GETPIVOTDATA("Egresos",'5.1 TD_Costos'!$A$75,"Departamento",K13,"Mes",$L$1,"Año",$N$4),IF($E$4="Pensiones",GETPIVOTDATA("Pago",'3.2. TD_Pension.2'!$A$144,"Mes",$L$1,"Año",$N$4,"Departamento",'B2'!K13),IF($E$4="Atenciones médicas",GETPIVOTDATA("Emergencia",'2.2. TD_Salud_Produc2'!$A$41,"Departamento",K13,"Mes",$L$1,"Año",$N$4)," ")))))," ") -> 172782554 | N13: =IFERROR(IF($E$4="Afiliación",M13/L13/$K$1,IF($E$4="Costos",GETPIVOTDATA("Emergencia",'5.1 TD_Costos'!$A$110,"Departamento",K13,"Mes",$L$1,"Año",$N$4),IF($E$4="Atenciones médicas",GETPIVOTDATA("Egresos",'2.2. TD_Salud_Produc2'!$A$75,"Departamento",K13,"Mes",$L$1,"Año",$N$4),IF($E$4="Pensiones",GETPIVOTDATA("muerte por accidente",'3.1. TD_Pens'!$A$158,"Mes",$L$1,"año ",$N$4,"Departamento",'B2'!K13)," "))))," ") -> 5215.604745 | O13: =IFERROR(IF($E$4="Pensiones",GETPIVOTDATA("Pago",'3.2. TD_Pension.2'!$A$176,"Mes",$L$1,"año",$N$4,"Departamento",'B2'!K13),IF($E$4="Costos",GETPIVOTDATA("Auxilios",'5.1 TD_Costos'!$A$145,"Departamento",K13,"Mes",$L$1,"Año",$N$4),IF($E$4="Atenciones médicas",GETPIVOTDATA("Primeros Auxilios",'2.2. TD_Salud_Produc2'!$A$109,"Departamento",K13,"Mes",$L$1,"Año",$N$4)," ")))," ") ->  | Q13: 33128
J14: 5 | K14: Escuintla | L14: =IFERROR(IF($E$4="Afiliación",GETPIVOTDATA("Afiliados ",'1.1. TD_Afil_1'!$A$4,"Mes",$L$4,"Año",$N$4,"Departamento ",K14),IF($E$4="Recursos Humanos",GETPIVOTDATA("Trabajadores",'4.1. TD_RRHH'!$A$4,"Mes",$L$4,"Año",$N$4,"Departamento",K14),IF($E$4="Costos",GETPIVOTDATA("Consulta",'5.1 TD_Costos'!$A$40,"Departamento",K14,"Mes",$L$1,"Año",$N$4),IF($E$4="Atenciones médicas",GETPIVOTDATA("Consulta",'2.2. TD_Salud_Produc2'!$A$7,"Departamento",K14,"Mes",$L$1,"Año",$N$4),IF($E$4="Pensiones",GETPIVOTDATA("Pensionados ",'3.1. TD_Pens'!$A$324,"Mes",$L$1,"Año",$N$4,"Departamento ",'B2'!K14)," ")))))," ") -> 161206 | M14: =IFERROR(IF($E$4="Afiliación",GETPIVOTDATA("Salarios ",'1.1. TD_Afil_1'!$A$4,"Mes",$L$4,"Año",$N$4,"Departamento ",K14),IF($E$4="Recursos Humanos",GETPIVOTDATA("Salarios",'4.1. TD_RRHH'!B8,"Departamento",K14,"Mes",$L$4,"Año",$N$4),IF($E$4="Costos",GETPIVOTDATA("Egresos",'5.1 TD_Costos'!$A$75,"Departamento",K14,"Mes",$L$1,"Año",$N$4),IF($E$4="Pensiones",GETPIVOTDATA("Pago",'3.2. TD_Pension.2'!$A$144,"Mes",$L$1,"Año",$N$4,"Departamento",'B2'!K14),IF($E$4="Atenciones médicas",GETPIVOTDATA("Emergencia",'2.2. TD_Salud_Produc2'!$A$41,"Departamento",K14,"Mes",$L$1,"Año",$N$4)," ")))))," ") -> 786235072 | N14: =IFERROR(IF($E$4="Afiliación",M14/L14/$K$1,IF($E$4="Costos",GETPIVOTDATA("Emergencia",'5.1 TD_Costos'!$A$110,"Departamento",K14,"Mes",$L$1,"Año",$N$4),IF($E$4="Atenciones médicas",GETPIVOTDATA("Egresos",'2.2. TD_Salud_Produc2'!$A$75,"Departamento",K14,"Mes",$L$1,"Año",$N$4),IF($E$4="Pensiones",GETPIVOTDATA("muerte por accidente",'3.1. TD_Pens'!$A$158,"Mes",$L$1,"año ",$N$4,"Departamento",'B2'!K14)," "))))," ") -> 4877.20725 | O14: =IFERROR(IF($E$4="Pensiones",GETPIVOTDATA("Pago",'3.2. TD_Pension.2'!$A$176,"Mes",$L$1,"año",$N$4,"Departamento",'B2'!K14),IF($E$4="Costos",GETPIVOTDATA("Auxilios",'5.1 TD_Costos'!$A$145,"Departamento",K14,"Mes",$L$1,"Año",$N$4),IF($E$4="Atenciones médicas",GETPIVOTDATA("Primeros Auxilios",'2.2. TD_Salud_Produc2'!$A$109,"Departamento",K14,"Mes",$L$1,"Año",$N$4)," ")))," ") ->  | Q14: 161206
J15: 6 | K15: Santa Rosa | L15: =IFERROR(IF($E$4="Afiliación",GETPIVOTDATA("Afiliados ",'1.1. TD_Afil_1'!$A$4,"Mes",$L$4,"Año",$N$4,"Departamento ",K15),IF($E$4="Recursos Humanos",GETPIVOTDATA("Trabajadores",'4.1. TD_RRHH'!$A$4,"Mes",$L$4,"Año",$N$4,"Departamento",K15),IF($E$4="Costos",GETPIVOTDATA("Consulta",'5.1 TD_Costos'!$A$40,"Departamento",K15,"Mes",$L$1,"Año",$N$4),IF($E$4="Atenciones médicas",GETPIVOTDATA("Consulta",'2.2. TD_Salud_Produc2'!$A$7,"Departamento",K15,"Mes",$L$1,"Año",$N$4),IF($E$4="Pensiones",GETPIVOTDATA("Pensionados ",'3.1. TD_Pens'!$A$324,"Mes",$L$1,"Año",$N$4,"Departamento ",'B2'!K15)," ")))))," ") -> 20392 | M15: =IFERROR(IF($E$4="Afiliación",GETPIVOTDATA("Salarios ",'1.1. TD_Afil_1'!$A$4,"Mes",$L$4,"Año",$N$4,"Departamento ",K15),IF($E$4="Recursos Humanos",GETPIVOTDATA("Salarios",'4.1. TD_RRHH'!B9,"Departamento",K15,"Mes",$L$4,"Año",$N$4),IF($E$4="Costos",GETPIVOTDATA("Egresos",'5.1 TD_Costos'!$A$75,"Departamento",K15,"Mes",$L$1,"Año",$N$4),IF($E$4="Pensiones",GETPIVOTDATA("Pago",'3.2. TD_Pension.2'!$A$144,"Mes",$L$1,"Año",$N$4,"Departamento",'B2'!K15),IF($E$4="Atenciones médicas",GETPIVOTDATA("Emergencia",'2.2. TD_Salud_Produc2'!$A$41,"Departamento",K15,"Mes",$L$1,"Año",$N$4)," ")))))," ") -> 111055926 | N15: =IFERROR(IF($E$4="Afiliación",M15/L15/$K$1,IF($E$4="Costos",GETPIVOTDATA("Emergencia",'5.1 TD_Costos'!$A$110,"Departamento",K15,"Mes",$L$1,"Año",$N$4),IF($E$4="Atenciones médicas",GETPIVOTDATA("Egresos",'2.2. TD_Salud_Produc2'!$A$75,"Departamento",K15,"Mes",$L$1,"Año",$N$4),IF($E$4="Pensiones",GETPIVOTDATA("muerte por accidente",'3.1. TD_Pens'!$A$158,"Mes",$L$1,"año ",$N$4,"Departamento",'B2'!K15)," "))))," ") -> 5446.053648 | O15: =IFERROR(IF($E$4="Pensiones",GETPIVOTDATA("Pago",'3.2. TD_Pension.2'!$A$176,"Mes",$L$1,"año",$N$4,"Departamento",'B2'!K15),IF($E$4="Costos",GETPIVOTDATA("Auxilios",'5.1 TD_Costos'!$A$145,"Departamento",K15,"Mes",$L$1,"Año",$N$4),IF($E$4="Atenciones médicas",GETPIVOTDATA("Primeros Auxilios",'2.2. TD_Salud_Produc2'!$A$109,"Departamento",K15,"Mes",$L$1,"Año",$N$4)," ")))," ") ->  | Q15: 20392
J16: 7 | K16: Sololá | L16: =IFERROR(IF($E$4="Afiliación",GETPIVOTDATA("Afiliados ",'1.1. TD_Afil_1'!$A$4,"Mes",$L$4,"Año",$N$4,"Departamento ",K16),IF($E$4="Recursos Humanos",GETPIVOTDATA("Trabajadores",'4.1. TD_RRHH'!$A$4,"Mes",$L$4,"Año",$N$4,"Departamento",K16),IF($E$4="Costos",GETPIVOTDATA("Consulta",'5.1 TD_Costos'!$A$40,"Departamento",K16,"Mes",$L$1,"Año",$N$4),IF($E$4="Atenciones médicas",GETPIVOTDATA("Consulta",'2.2. TD_Salud_Produc2'!$A$7,"Departamento",K16,"Mes",$L$1,"Año",$N$4),IF($E$4="Pensiones",GETPIVOTDATA("Pensionados ",'3.1. TD_Pens'!$A$324,"Mes",$L$1,"Año",$N$4,"Departamento ",'B2'!K16)," ")))))," ") -> 15593 | M16: =IFERROR(IF($E$4="Afiliación",GETPIVOTDATA("Salarios ",'1.1. TD_Afil_1'!$A$4,"Mes",$L$4,"Año",$N$4,"Departamento ",K16),IF($E$4="Recursos Humanos",GETPIVOTDATA("Salarios",'4.1. TD_RRHH'!B10,"Departamento",K16,"Mes",$L$4,"Año",$N$4),IF($E$4="Costos",GETPIVOTDATA("Egresos",'5.1 TD_Costos'!$A$75,"Departamento",K16,"Mes",$L$1,"Año",$N$4),IF($E$4="Pensiones",GETPIVOTDATA("Pago",'3.2. TD_Pension.2'!$A$144,"Mes",$L$1,"Año",$N$4,"Departamento",'B2'!K16),IF($E$4="Atenciones médicas",GETPIVOTDATA("Emergencia",'2.2. TD_Salud_Produc2'!$A$41,"Departamento",K16,"Mes",$L$1,"Año",$N$4)," ")))))," ") -> 93752488 | N16: =IFERROR(IF($E$4="Afiliación",M16/L16/$K$1,IF($E$4="Costos",GETPIVOTDATA("Emergencia",'5.1 TD_Costos'!$A$110,"Departamento",K16,"Mes",$L$1,"Año",$N$4),IF($E$4="Atenciones médicas",GETPIVOTDATA("Egresos",'2.2. TD_Salud_Produc2'!$A$75,"Departamento",K16,"Mes",$L$1,"Año",$N$4),IF($E$4="Pensiones",GETPIVOTDATA("muerte por accidente",'3.1. TD_Pens'!$A$158,"Mes",$L$1,"año ",$N$4,"Departamento",'B2'!K16)," "))))," ") -> 6012.472776 | O16: =IFERROR(IF($E$4="Pensiones",GETPIVOTDATA("Pago",'3.2. TD_Pension.2'!$A$176,"Mes",$L$1,"año",$N$4,"Departamento",'B2'!K16),IF($E$4="Costos",GETPIVOTDATA("Auxilios",'5.1 TD_Costos'!$A$145,"Departamento",K16,"Mes",$L$1,"Año",$N$4),IF($E$4="Atenciones médicas",GETPIVOTDATA("Primeros Auxilios",'2.2. TD_Salud_Produc2'!$A$109,"Departamento",K16,"Mes",$L$1,"Año",$N$4)," ")))," ") ->  | Q16: 15593
J17: 8 | K17: Totonicapán | L17: =IFERROR(IF($E$4="Afiliación",GETPIVOTDATA("Afiliados ",'1.1. TD_Afil_1'!$A$4,"Mes",$L$4,"Año",$N$4,"Departamento ",K17),IF($E$4="Recursos Humanos",GETPIVOTDATA("Trabajadores",'4.1. TD_RRHH'!$A$4,"Mes",$L$4,"Año",$N$4,"Departamento",K17),IF($E$4="Costos",GETPIVOTDATA("Consulta",'5.1 TD_Costos'!$A$40,"Departamento",K17,"Mes",$L$1,"Año",$N$4),IF($E$4="Atenciones médicas",GETPIVOTDATA("Consulta",'2.2. TD_Salud_Produc2'!$A$7,"Departamento",K17,"Mes",$L$1,"Año",$N$4),IF($E$4="Pensiones",GETPIVOTDATA("Pensionados ",'3.1. TD_Pens'!$A$324,"Mes",$L$1,"Año",$N$4,"Departamento ",'B2'!K17)," ")))))," ") -> 11378 | M17: =IFERROR(IF($E$4="Afiliación",GETPIVOTDATA("Salarios ",'1.1. TD_Afil_1'!$A$4,"Mes",$L$4,"Año",$N$4,"Departamento ",K17),IF($E$4="Recursos Humanos",GETPIVOTDATA("Salarios",'4.1. TD_RRHH'!B11,"Departamento",K17,"Mes",$L$4,"Año",$N$4),IF($E$4="Costos",GETPIVOTDATA("Egresos",'5.1 TD_Costos'!$A$75,"Departamento",K17,"Mes",$L$1,"Año",$N$4),IF($E$4="Pensiones",GETPIVOTDATA("Pago",'3.2. TD_Pension.2'!$A$144,"Mes",$L$1,"Año",$N$4,"Departamento",'B2'!K17),IF($E$4="Atenciones médicas",GETPIVOTDATA("Emergencia",'2.2. TD_Salud_Produc2'!$A$41,"Departamento",K17,"Mes",$L$1,"Año",$N$4)," ")))))," ") -> 71359106 | N17: =IFERROR(IF($E$4="Afiliación",M17/L17/$K$1,IF($E$4="Costos",GETPIVOTDATA("Emergencia",'5.1 TD_Costos'!$A$110,"Departamento",K17,"Mes",$L$1,"Año",$N$4),IF($E$4="Atenciones médicas",GETPIVOTDATA("Egresos",'2.2. TD_Salud_Produc2'!$A$75,"Departamento",K17,"Mes",$L$1,"Año",$N$4),IF($E$4="Pensiones",GETPIVOTDATA("muerte por accidente",'3.1. TD_Pens'!$A$158,"Mes",$L$1,"año ",$N$4,"Departamento",'B2'!K17)," "))))," ") -> 6271.673932 | O17: =IFERROR(IF($E$4="Pensiones",GETPIVOTDATA("Pago",'3.2. TD_Pension.2'!$A$176,"Mes",$L$1,"año",$N$4,"Departamento",'B2'!K17),IF($E$4="Costos",GETPIVOTDATA("Auxilios",'5.1 TD_Costos'!$A$145,"Departamento",K17,"Mes",$L$1,"Año",$N$4),IF($E$4="Atenciones médicas",GETPIVOTDATA("Primeros Auxilios",'2.2. TD_Salud_Produc2'!$A$109,"Departamento",K17,"Mes",$L$1,"Año",$N$4)," ")))," ") ->  | Q17: 11378
J18: 9 | K18: Quetzaltenango | L18: =IFERROR(IF($E$4="Afiliación",GETPIVOTDATA("Afiliados ",'1.1. TD_Afil_1'!$A$4,"Mes",$L$4,"Año",$N$4,"Departamento ",K18),IF($E$4="Recursos Humanos",GETPIVOTDATA("Trabajadores",'4.1. TD_RRHH'!$A$4,"Mes",$L$4,"Año",$N$4,"Departamento",K18),IF($E$4="Costos",GETPIVOTDATA("Consulta",'5.1 TD_Costos'!$A$40,"Departamento",K18,"Mes",$L$1,"Año",$N$4),IF($E$4="Atenciones médicas",GETPIVOTDATA("Consulta",'2.2. TD_Salud_Produc2'!$A$7,"Departamento",K18,"Mes",$L$1,"Año",$N$4),IF($E$4="Pensiones",GETPIVOTDATA("Pensionados ",'3.1. TD_Pens'!$A$324,"Mes",$L$1,"Año",$N$4,"Departamento ",'B2'!K18)," ")))))," ") -> 72688 | M18: =IFERROR(IF($E$4="Afiliación",GETPIVOTDATA("Salarios ",'1.1. TD_Afil_1'!$A$4,"Mes",$L$4,"Año",$N$4,"Departamento ",K18),IF($E$4="Recursos Humanos",GETPIVOTDATA("Salarios",'4.1. TD_RRHH'!B12,"Departamento",K18,"Mes",$L$4,"Año",$N$4),IF($E$4="Costos",GETPIVOTDATA("Egresos",'5.1 TD_Costos'!$A$75,"Departamento",K18,"Mes",$L$1,"Año",$N$4),IF($E$4="Pensiones",GETPIVOTDATA("Pago",'3.2. TD_Pension.2'!$A$144,"Mes",$L$1,"Año",$N$4,"Departamento",'B2'!K18),IF($E$4="Atenciones médicas",GETPIVOTDATA("Emergencia",'2.2. TD_Salud_Produc2'!$A$41,"Departamento",K18,"Mes",$L$1,"Año",$N$4)," ")))))," ") -> 383537851 | N18: =IFERROR(IF($E$4="Afiliación",M18/L18/$K$1,IF($E$4="Costos",GETPIVOTDATA("Emergencia",'5.1 TD_Costos'!$A$110,"Departamento",K18,"Mes",$L$1,"Año",$N$4),IF($E$4="Atenciones médicas",GETPIVOTDATA("Egresos",'2.2. TD_Salud_Produc2'!$A$75,"Departamento",K18,"Mes",$L$1,"Año",$N$4),IF($E$4="Pensiones",GETPIVOTDATA("muerte por accidente",'3.1. TD_Pens'!$A$158,"Mes",$L$1,"año ",$N$4,"Departamento",'B2'!K18)," "))))," ") -> 5276.494758 | O18: =IFERROR(IF($E$4="Pensiones",GETPIVOTDATA("Pago",'3.2. TD_Pension.2'!$A$176,"Mes",$L$1,"año",$N$4,"Departamento",'B2'!K18),IF($E$4="Costos",GETPIVOTDATA("Auxilios",'5.1 TD_Costos'!$A$145,"Departamento",K18,"Mes",$L$1,"Año",$N$4),IF($E$4="Atenciones médicas",GETPIVOTDATA("Primeros Auxilios",'2.2. TD_Salud_Produc2'!$A$109,"Departamento",K18,"Mes",$L$1,"Año",$N$4)," ")))," ") ->  | Q18: 72688
J19: 10 | K19: Suchitepéquez | L19: =IFERROR(IF($E$4="Afiliación",GETPIVOTDATA("Afiliados ",'1.1. TD_Afil_1'!$A$4,"Mes",$L$4,"Año",$N$4,"Departamento ",K19),IF($E$4="Recursos Humanos",GETPIVOTDATA("Trabajadores",'4.1. TD_RRHH'!$A$4,"Mes",$L$4,"Año",$N$4,"Departamento",K19),IF($E$4="Costos",GETPIVOTDATA("Consulta",'5.1 TD_Costos'!$A$40,"Departamento",K19,"Mes",$L$1,"Año",$N$4),IF($E$4="Atenciones médicas",GETPIVOTDATA("Consulta",'2.2. TD_Salud_Produc2'!$A$7,"Departamento",K19,"Mes",$L$1,"Año",$N$4),IF($E$4="Pensiones",GETPIVOTDATA("Pensionados ",'3.1. TD_Pens'!$A$324,"Mes",$L$1,"Año",$N$4,"Departamento ",'B2'!K19)," ")))))," ") -> 39672 | M19: =IFERROR(IF($E$4="Afiliación",GETPIVOTDATA("Salarios ",'1.1. TD_Afil_1'!$A$4,"Mes",$L$4,"Año",$N$4,"Departamento ",K19),IF($E$4="Recursos Humanos",GETPIVOTDATA("Salarios",'4.1. TD_RRHH'!B13,"Departamento",K19,"Mes",$L$4,"Año",$N$4),IF($E$4="Costos",GETPIVOTDATA("Egresos",'5.1 TD_Costos'!$A$75,"Departamento",K19,"Mes",$L$1,"Año",$N$4),IF($E$4="Pensiones",GETPIVOTDATA("Pago",'3.2. TD_Pension.2'!$A$144,"Mes",$L$1,"Año",$N$4,"Departamento",'B2'!K19),IF($E$4="Atenciones médicas",GETPIVOTDATA("Emergencia",'2.2. TD_Salud_Produc2'!$A$41,"Departamento",K19,"Mes",$L$1,"Año",$N$4)," ")))))," ") -> 192923139 | N19: =IFERROR(IF($E$4="Afiliación",M19/L19/$K$1,IF($E$4="Costos",GETPIVOTDATA("Emergencia",'5.1 TD_Costos'!$A$110,"Departamento",K19,"Mes",$L$1,"Año",$N$4),IF($E$4="Atenciones médicas",GETPIVOTDATA("Egresos",'2.2. TD_Salud_Produc2'!$A$75,"Departamento",K19,"Mes",$L$1,"Año",$N$4),IF($E$4="Pensiones",GETPIVOTDATA("muerte por accidente",'3.1. TD_Pens'!$A$158,"Mes",$L$1,"año ",$N$4,"Departamento",'B2'!K19)," "))))," ") -> 4862.954704 | O19: =IFERROR(IF($E$4="Pensiones",GETPIVOTDATA("Pago",'3.2. TD_Pension.2'!$A$176,"Mes",$L$1,"año",$N$4,"Departamento",'B2'!K19),IF($E$4="Costos",GETPIVOTDATA("Auxilios",'5.1 TD_Costos'!$A$145,"Departamento",K19,"Mes",$L$1,"Año",$N$4),IF($E$4="Atenciones médicas",GETPIVOTDATA("Primeros Auxilios",'2.2. TD_Salud_Produc2'!$A$109,"Departamento",K19,"Mes",$L$1,"Año",$N$4)," ")))," ") ->  | Q19: 39672
J20: 11 | K20: Retalhuleu | L20: =IFERROR(IF($E$4="Afiliación",GETPIVOTDATA("Afiliados ",'1.1. TD_Afil_1'!$A$4,"Mes",$L$4,"Año",$N$4,"Departamento ",K20),IF($E$4="Recursos Humanos",GETPIVOTDATA("Trabajadores",'4.1. TD_RRHH'!$A$4,"Mes",$L$4,"Año",$N$4,"Departamento",K20),IF($E$4="Costos",GETPIVOTDATA("Consulta",'5.1 TD_Costos'!$A$40,"Departamento",K20,"Mes",$L$1,"Año",$N$4),IF($E$4="Atenciones médicas",GETPIVOTDATA("Consulta",'2.2. TD_Salud_Produc2'!$A$7,"Departamento",K20,"Mes",$L$1,"Año",$N$4),IF($E$4="Pensiones",GETPIVOTDATA("Pensionados ",'3.1. TD_Pens'!$A$324,"Mes",$L$1,"Año",$N$4,"Departamento ",'B2'!K20)," ")))))," ") -> 33820 | M20: =IFERROR(IF($E$4="Afiliación",GETPIVOTDATA("Salarios ",'1.1. TD_Afil_1'!$A$4,"Mes",$L$4,"Año",$N$4,"Departamento ",K20),IF($E$4="Recursos Humanos",GETPIVOTDATA("Salarios",'4.1. TD_RRHH'!B14,"Departamento",K20,"Mes",$L$4,"Año",$N$4),IF($E$4="Costos",GETPIVOTDATA("Egresos",'5.1 TD_Costos'!$A$75,"Departamento",K20,"Mes",$L$1,"Año",$N$4),IF($E$4="Pensiones",GETPIVOTDATA("Pago",'3.2. TD_Pension.2'!$A$144,"Mes",$L$1,"Año",$N$4,"Departamento",'B2'!K20),IF($E$4="Atenciones médicas",GETPIVOTDATA("Emergencia",'2.2. TD_Salud_Produc2'!$A$41,"Departamento",K20,"Mes",$L$1,"Año",$N$4)," ")))))," ") -> 172466638 | N20: =IFERROR(IF($E$4="Afiliación",M20/L20/$K$1,IF($E$4="Costos",GETPIVOTDATA("Emergencia",'5.1 TD_Costos'!$A$110,"Departamento",K20,"Mes",$L$1,"Año",$N$4),IF($E$4="Atenciones médicas",GETPIVOTDATA("Egresos",'2.2. TD_Salud_Produc2'!$A$75,"Departamento",K20,"Mes",$L$1,"Año",$N$4),IF($E$4="Pensiones",GETPIVOTDATA("muerte por accidente",'3.1. TD_Pens'!$A$158,"Mes",$L$1,"año ",$N$4,"Departamento",'B2'!K20)," "))))," ") -> 5099.545772 | O20: =IFERROR(IF($E$4="Pensiones",GETPIVOTDATA("Pago",'3.2. TD_Pension.2'!$A$176,"Mes",$L$1,"año",$N$4,"Departamento",'B2'!K20),IF($E$4="Costos",GETPIVOTDATA("Auxilios",'5.1 TD_Costos'!$A$145,"Departamento",K20,"Mes",$L$1,"Año",$N$4),IF($E$4="Atenciones médicas",GETPIVOTDATA("Primeros Auxilios",'2.2. TD_Salud_Produc2'!$A$109,"Departamento",K20,"Mes",$L$1,"Año",$N$4)," ")))," ") ->  | Q20: 33820
J21: 12 | K21: San Marcos | L21: =IFERROR(IF($E$4="Afiliación",GETPIVOTDATA("Afiliados ",'1.1. TD_Afil_1'!$A$4,"Mes",$L$4,"Año",$N$4,"Departamento ",K21),IF($E$4="Recursos Humanos",GETPIVOTDATA("Trabajadores",'4.1. TD_RRHH'!$A$4,"Mes",$L$4,"Año",$N$4,"Departamento",K21),IF($E$4="Costos",GETPIVOTDATA("Consulta",'5.1 TD_Costos'!$A$40,"Departamento",K21,"Mes",$L$1,"Año",$N$4),IF($E$4="Atenciones médicas",GETPIVOTDATA("Consulta",'2.2. TD_Salud_Produc2'!$A$7,"Departamento",K21,"Mes",$L$1,"Año",$N$4),IF($E$4="Pensiones",GETPIVOTDATA("Pensionados ",'3.1. TD_Pens'!$A$324,"Mes",$L$1,"Año",$N$4,"Departamento ",'B2'!K21)," ")))))," ") -> 42082 | M21: =IFERROR(IF($E$4="Afiliación",GETPIVOTDATA("Salarios ",'1.1. TD_Afil_1'!$A$4,"Mes",$L$4,"Año",$N$4,"Departamento ",K21),IF($E$4="Recursos Humanos",GETPIVOTDATA("Salarios",'4.1. TD_RRHH'!B15,"Departamento",K21,"Mes",$L$4,"Año",$N$4),IF($E$4="Costos",GETPIVOTDATA("Egresos",'5.1 TD_Costos'!$A$75,"Departamento",K21,"Mes",$L$1,"Año",$N$4),IF($E$4="Pensiones",GETPIVOTDATA("Pago",'3.2. TD_Pension.2'!$A$144,"Mes",$L$1,"Año",$N$4,"Departamento",'B2'!K21),IF($E$4="Atenciones médicas",GETPIVOTDATA("Emergencia",'2.2. TD_Salud_Produc2'!$A$41,"Departamento",K21,"Mes",$L$1,"Año",$N$4)," ")))))," ") -> 225161409 | N21: =IFERROR(IF($E$4="Afiliación",M21/L21/$K$1,IF($E$4="Costos",GETPIVOTDATA("Emergencia",'5.1 TD_Costos'!$A$110,"Departamento",K21,"Mes",$L$1,"Año",$N$4),IF($E$4="Atenciones médicas",GETPIVOTDATA("Egresos",'2.2. TD_Salud_Produc2'!$A$75,"Departamento",K21,"Mes",$L$1,"Año",$N$4),IF($E$4="Pensiones",GETPIVOTDATA("muerte por accidente",'3.1. TD_Pens'!$A$158,"Mes",$L$1,"año ",$N$4,"Departamento",'B2'!K21)," "))))," ") -> 5350.539637 | O21: =IFERROR(IF($E$4="Pensiones",GETPIVOTDATA("Pago",'3.2. TD_Pension.2'!$A$176,"Mes",$L$1,"año",$N$4,"Departamento",'B2'!K21),IF($E$4="Costos",GETPIVOTDATA("Auxilios",'5.1 TD_Costos'!$A$145,"Departamento",K21,"Mes",$L$1,"Año",$N$4),IF($E$4="Atenciones médicas",GETPIVOTDATA("Primeros Auxilios",'2.2. TD_Salud_Produc2'!$A$109,"Departamento",K21,"Mes",$L$1,"Año",$N$4)," ")))," ") ->  | Q21: 42082
J22: 13 | K22: Huehuetenango | L22: =IFERROR(IF($E$4="Afiliación",GETPIVOTDATA("Afiliados ",'1.1. TD_Afil_1'!$A$4,"Mes",$L$4,"Año",$N$4,"Departamento ",K22),IF($E$4="Recursos Humanos",GETPIVOTDATA("Trabajadores",'4.1. TD_RRHH'!$A$4,"Mes",$L$4,"Año",$N$4,"Departamento",K22),IF($E$4="Costos",GETPIVOTDATA("Consulta",'5.1 TD_Costos'!$A$40,"Departamento",K22,"Mes",$L$1,"Año",$N$4),IF($E$4="Atenciones médicas",GETPIVOTDATA("Consulta",'2.2. TD_Salud_Produc2'!$A$7,"Departamento",K22,"Mes",$L$1,"Año",$N$4),IF($E$4="Pensiones",GETPIVOTDATA("Pensionados ",'3.1. TD_Pens'!$A$324,"Mes",$L$1,"Año",$N$4,"Departamento ",'B2'!K22)," ")))))," ") -> 34820 | M22: =IFERROR(IF($E$4="Afiliación",GETPIVOTDATA("Salarios ",'1.1. TD_Afil_1'!$A$4,"Mes",$L$4,"Año",$N$4,"Departamento ",K22),IF($E$4="Recursos Humanos",GETPIVOTDATA("Salarios",'4.1. TD_RRHH'!B16,"Departamento",K22,"Mes",$L$4,"Año",$N$4),IF($E$4="Costos",GETPIVOTDATA("Egresos",'5.1 TD_Costos'!$A$75,"Departamento",K22,"Mes",$L$1,"Año",$N$4),IF($E$4="Pensiones",GETPIVOTDATA("Pago",'3.2. TD_Pension.2'!$A$144,"Mes",$L$1,"Año",$N$4,"Departamento",'B2'!K22),IF($E$4="Atenciones médicas",GETPIVOTDATA("Emergencia",'2.2. TD_Salud_Produc2'!$A$41,"Departamento",K22,"Mes",$L$1,"Año",$N$4)," ")))))," ") -> 209017563 | N22: =IFERROR(IF($E$4="Afiliación",M22/L22/$K$1,IF($E$4="Costos",GETPIVOTDATA("Emergencia",'5.1 TD_Costos'!$A$110,"Departamento",K22,"Mes",$L$1,"Año",$N$4),IF($E$4="Atenciones médicas",GETPIVOTDATA("Egresos",'2.2. TD_Salud_Produc2'!$A$75,"Departamento",K22,"Mes",$L$1,"Año",$N$4),IF($E$4="Pensiones",GETPIVOTDATA("muerte por accidente",'3.1. TD_Pens'!$A$158,"Mes",$L$1,"año ",$N$4,"Departamento",'B2'!K22)," "))))," ") -> 6002.801924 | O22: =IFERROR(IF($E$4="Pensiones",GETPIVOTDATA("Pago",'3.2. TD_Pension.2'!$A$176,"Mes",$L$1,"año",$N$4,"Departamento",'B2'!K22),IF($E$4="Costos",GETPIVOTDATA("Auxilios",'5.1 TD_Costos'!$A$145,"Departamento",K22,"Mes",$L$1,"Año",$N$4),IF($E$4="Atenciones médicas",GETPIVOTDATA("Primeros Auxilios",'2.2. TD_Salud_Produc2'!$A$109,"Departamento",K22,"Mes",$L$1,"Año",$N$4)," ")))," ") ->  | Q22: 34820
J23: 14 | K23: Quiché | L23: =IFERROR(IF($E$4="Afiliación",GETPIVOTDATA("Afiliados ",'1.1. TD_Afil_1'!$A$4,"Mes",$L$4,"Año",$N$4,"Departamento ",K23),IF($E$4="Recursos Humanos",GETPIVOTDATA("Trabajadores",'4.1. TD_RRHH'!$A$4,"Mes",$L$4,"Año",$N$4,"Departamento",K23),IF($E$4="Costos",GETPIVOTDATA("Consulta",'5.1 TD_Costos'!$A$40,"Departamento",K23,"Mes",$L$1,"Año",$N$4),IF($E$4="Atenciones médicas",GETPIVOTDATA("Consulta",'2.2. TD_Salud_Produc2'!$A$7,"Departamento",K23,"Mes",$L$1,"Año",$N$4),IF($E$4="Pensiones",GETPIVOTDATA("Pensionados ",'3.1. TD_Pens'!$A$324,"Mes",$L$1,"Año",$N$4,"Departamento ",'B2'!K23)," ")))))," ") -> 26947 | M23: =IFERROR(IF($E$4="Afiliación",GETPIVOTDATA("Salarios ",'1.1. TD_Afil_1'!$A$4,"Mes",$L$4,"Año",$N$4,"Departamento ",K23),IF($E$4="Recursos Humanos",GETPIVOTDATA("Salarios",'4.1. TD_RRHH'!B17,"Departamento",K23,"Mes",$L$4,"Año",$N$4),IF($E$4="Costos",GETPIVOTDATA("Egresos",'5.1 TD_Costos'!$A$75,"Departamento",K23,"Mes",$L$1,"Año",$N$4),IF($E$4="Pensiones",GETPIVOTDATA("Pago",'3.2. TD_Pension.2'!$A$144,"Mes",$L$1,"Año",$N$4,"Departamento",'B2'!K23),IF($E$4="Atenciones médicas",GETPIVOTDATA("Emergencia",'2.2. TD_Salud_Produc2'!$A$41,"Departamento",K23,"Mes",$L$1,"Año",$N$4)," ")))))," ") -> 166607314 | N23: =IFERROR(IF($E$4="Afiliación",M23/L23/$K$1,IF($E$4="Costos",GETPIVOTDATA("Emergencia",'5.1 TD_Costos'!$A$110,"Departamento",K23,"Mes",$L$1,"Año",$N$4),IF($E$4="Atenciones médicas",GETPIVOTDATA("Egresos",'2.2. TD_Salud_Produc2'!$A$75,"Departamento",K23,"Mes",$L$1,"Año",$N$4),IF($E$4="Pensiones",GETPIVOTDATA("muerte por accidente",'3.1. TD_Pens'!$A$158,"Mes",$L$1,"año ",$N$4,"Departamento",'B2'!K23)," "))))," ") -> 6182.777823 | O23: =IFERROR(IF($E$4="Pensiones",GETPIVOTDATA("Pago",'3.2. TD_Pension.2'!$A$176,"Mes",$L$1,"año",$N$4,"Departamento",'B2'!K23),IF($E$4="Costos",GETPIVOTDATA("Auxilios",'5.1 TD_Costos'!$A$145,"Departamento",K23,"Mes",$L$1,"Año",$N$4),IF($E$4="Atenciones médicas",GETPIVOTDATA("Primeros Auxilios",'2.2. TD_Salud_Produc2'!$A$109,"Departamento",K23,"Mes",$L$1,"Año",$N$4)," ")))," ") ->  | Q23: 26947
J24: 15 | K24: Baja Verapaz | L24: =IFERROR(IF($E$4="Afiliación",GETPIVOTDATA("Afiliados ",'1.1. TD_Afil_1'!$A$4,"Mes",$L$4,"Año",$N$4,"Departamento ",K24),IF($E$4="Recursos Humanos",GETPIVOTDATA("Trabajadores",'4.1. TD_RRHH'!$A$4,"Mes",$L$4,"Año",$N$4,"Departamento",K24),IF($E$4="Costos",GETPIVOTDATA("Consulta",'5.1 TD_Costos'!$A$40,"Departamento",K24,"Mes",$L$1,"Año",$N$4),IF($E$4="Atenciones médicas",GETPIVOTDATA("Consulta",'2.2. TD_Salud_Produc2'!$A$7,"Departamento",K24,"Mes",$L$1,"Año",$N$4),IF($E$4="Pensiones",GETPIVOTDATA("Pensionados ",'3.1. TD_Pens'!$A$324,"Mes",$L$1,"Año",$N$4,"Departamento ",'B2'!K24)," ")))))," ") -> 11691 | M24: =IFERROR(IF($E$4="Afiliación",GETPIVOTDATA("Salarios ",'1.1. TD_Afil_1'!$A$4,"Mes",$L$4,"Año",$N$4,"Departamento ",K24),IF($E$4="Recursos Humanos",GETPIVOTDATA("Salarios",'4.1. TD_RRHH'!B18,"Departamento",K24,"Mes",$L$4,"Año",$N$4),IF($E$4="Costos",GETPIVOTDATA("Egresos",'5.1 TD_Costos'!$A$75,"Departamento",K24,"Mes",$L$1,"Año",$N$4),IF($E$4="Pensiones",GETPIVOTDATA("Pago",'3.2. TD_Pension.2'!$A$144,"Mes",$L$1,"Año",$N$4,"Departamento",'B2'!K24),IF($E$4="Atenciones médicas",GETPIVOTDATA("Emergencia",'2.2. TD_Salud_Produc2'!$A$41,"Departamento",K24,"Mes",$L$1,"Año",$N$4)," ")))))," ") -> 67629967 | N24: =IFERROR(IF($E$4="Afiliación",M24/L24/$K$1,IF($E$4="Costos",GETPIVOTDATA("Emergencia",'5.1 TD_Costos'!$A$110,"Departamento",K24,"Mes",$L$1,"Año",$N$4),IF($E$4="Atenciones médicas",GETPIVOTDATA("Egresos",'2.2. TD_Salud_Produc2'!$A$75,"Departamento",K24,"Mes",$L$1,"Año",$N$4),IF($E$4="Pensiones",GETPIVOTDATA("muerte por accidente",'3.1. TD_Pens'!$A$158,"Mes",$L$1,"año ",$N$4,"Departamento",'B2'!K24)," "))))," ") -> 5784.788897 | O24: =IFERROR(IF($E$4="Pensiones",GETPIVOTDATA("Pago",'3.2. TD_Pension.2'!$A$176,"Mes",$L$1,"año",$N$4,"Departamento",'B2'!K24),IF($E$4="Costos",GETPIVOTDATA("Auxilios",'5.1 TD_Costos'!$A$145,"Departamento",K24,"Mes",$L$1,"Año",$N$4),IF($E$4="Atenciones médicas",GETPIVOTDATA("Primeros Auxilios",'2.2. TD_Salud_Produc2'!$A$109,"Departamento",K24,"Mes",$L$1,"Año",$N$4)," ")))," ") ->  | Q24: 11691
J25: 16 | K25: Alta Verapaz | L25: =IFERROR(IF($E$4="Afiliación",GETPIVOTDATA("Afiliados ",'1.1. TD_Afil_1'!$A$4,"Mes",$L$4,"Año",$N$4,"Departamento ",K25),IF($E$4="Recursos Humanos",GETPIVOTDATA("Trabajadores",'4.1. TD_RRHH'!$A$4,"Mes",$L$4,"Año",$N$4,"Departamento",K25),IF($E$4="Costos",GETPIVOTDATA("Consulta",'5.1 TD_Costos'!$A$40,"Departamento",K25,"Mes",$L$1,"Año",$N$4),IF($E$4="Atenciones médicas",GETPIVOTDATA("Consulta",'2.2. TD_Salud_Produc2'!$A$7,"Departamento",K25,"Mes",$L$1,"Año",$N$4),IF($E$4="Pensiones",GETPIVOTDATA("Pensionados ",'3.1. TD_Pens'!$A$324,"Mes",$L$1,"Año",$N$4,"Departamento ",'B2'!K25)," ")))))," ") -> 42350 | M25: =IFERROR(IF($E$4="Afiliación",GETPIVOTDATA("Salarios ",'1.1. TD_Afil_1'!$A$4,"Mes",$L$4,"Año",$N$4,"Departamento ",K25),IF($E$4="Recursos Humanos",GETPIVOTDATA("Salarios",'4.1. TD_RRHH'!B19,"Departamento",K25,"Mes",$L$4,"Año",$N$4),IF($E$4="Costos",GETPIVOTDATA("Egresos",'5.1 TD_Costos'!$A$75,"Departamento",K25,"Mes",$L$1,"Año",$N$4),IF($E$4="Pensiones",GETPIVOTDATA("Pago",'3.2. TD_Pension.2'!$A$144,"Mes",$L$1,"Año",$N$4,"Departamento",'B2'!K25),IF($E$4="Atenciones médicas",GETPIVOTDATA("Emergencia",'2.2. TD_Salud_Produc2'!$A$41,"Departamento",K25,"Mes",$L$1,"Año",$N$4)," ")))))," ") -> 229530364 | N25: =IFERROR(IF($E$4="Afiliación",M25/L25/$K$1,IF($E$4="Costos",GETPIVOTDATA("Emergencia",'5.1 TD_Costos'!$A$110,"Departamento",K25,"Mes",$L$1,"Año",$N$4),IF($E$4="Atenciones médicas",GETPIVOTDATA("Egresos",'2.2. TD_Salud_Produc2'!$A$75,"Departamento",K25,"Mes",$L$1,"Año",$N$4),IF($E$4="Pensiones",GETPIVOTDATA("muerte por accidente",'3.1. TD_Pens'!$A$158,"Mes",$L$1,"año ",$N$4,"Departamento",'B2'!K25)," "))))," ") -> 5419.843306 | O25: =IFERROR(IF($E$4="Pensiones",GETPIVOTDATA("Pago",'3.2. TD_Pension.2'!$A$176,"Mes",$L$1,"año",$N$4,"Departamento",'B2'!K25),IF($E$4="Costos",GETPIVOTDATA("Auxilios",'5.1 TD_Costos'!$A$145,"Departamento",K25,"Mes",$L$1,"Año",$N$4),IF($E$4="Atenciones médicas",GETPIVOTDATA("Primeros Auxilios",'2.2. TD_Salud_Produc2'!$A$109,"Departamento",K25,"Mes",$L$1,"Año",$N$4)," ")))," ") ->  | Q25: 42350
J26: 17 | K26: Petén | L26: =IFERROR(IF($E$4="Afiliación",GETPIVOTDATA("Afiliados ",'1.1. TD_Afil_1'!$A$4,"Mes",$L$4,"Año",$N$4,"Departamento ",K26),IF($E$4="Recursos Humanos",GETPIVOTDATA("Trabajadores",'4.1. TD_RRHH'!$A$4,"Mes",$L$4,"Año",$N$4,"Departamento",K26),IF($E$4="Costos",GETPIVOTDATA("Consulta",'5.1 TD_Costos'!$A$40,"Departamento",K26,"Mes",$L$1,"Año",$N$4),IF($E$4="Atenciones médicas",GETPIVOTDATA("Consulta",'2.2. TD_Salud_Produc2'!$A$7,"Departamento",K26,"Mes",$L$1,"Año",$N$4),IF($E$4="Pensiones",GETPIVOTDATA("Pensionados ",'3.1. TD_Pens'!$A$324,"Mes",$L$1,"Año",$N$4,"Departamento ",'B2'!K26)," ")))))," ") -> 40826 | M26: =IFERROR(IF($E$4="Afiliación",GETPIVOTDATA("Salarios ",'1.1. TD_Afil_1'!$A$4,"Mes",$L$4,"Año",$N$4,"Departamento ",K26),IF($E$4="Recursos Humanos",GETPIVOTDATA("Salarios",'4.1. TD_RRHH'!B20,"Departamento",K26,"Mes",$L$4,"Año",$N$4),IF($E$4="Costos",GETPIVOTDATA("Egresos",'5.1 TD_Costos'!$A$75,"Departamento",K26,"Mes",$L$1,"Año",$N$4),IF($E$4="Pensiones",GETPIVOTDATA("Pago",'3.2. TD_Pension.2'!$A$144,"Mes",$L$1,"Año",$N$4,"Departamento",'B2'!K26),IF($E$4="Atenciones médicas",GETPIVOTDATA("Emergencia",'2.2. TD_Salud_Produc2'!$A$41,"Departamento",K26,"Mes",$L$1,"Año",$N$4)," ")))))," ") -> 200814130 | N26: =IFERROR(IF($E$4="Afiliación",M26/L26/$K$1,IF($E$4="Costos",GETPIVOTDATA("Emergencia",'5.1 TD_Costos'!$A$110,"Departamento",K26,"Mes",$L$1,"Año",$N$4),IF($E$4="Atenciones médicas",GETPIVOTDATA("Egresos",'2.2. TD_Salud_Produc2'!$A$75,"Departamento",K26,"Mes",$L$1,"Año",$N$4),IF($E$4="Pensiones",GETPIVOTDATA("muerte por accidente",'3.1. TD_Pens'!$A$158,"Mes",$L$1,"año ",$N$4,"Departamento",'B2'!K26)," "))))," ") -> 4918.780434 | O26: =IFERROR(IF($E$4="Pensiones",GETPIVOTDATA("Pago",'3.2. TD_Pension.2'!$A$176,"Mes",$L$1,"año",$N$4,"Departamento",'B2'!K26),IF($E$4="Costos",GETPIVOTDATA("Auxilios",'5.1 TD_Costos'!$A$145,"Departamento",K26,"Mes",$L$1,"Año",$N$4),IF($E$4="Atenciones médicas",GETPIVOTDATA("Primeros Auxilios",'2.2. TD_Salud_Produc2'!$A$109,"Departamento",K26,"Mes",$L$1,"Año",$N$4)," ")))," ") ->  | Q26: 40826
J27: 18 | K27: Izabal | L27: =IFERROR(IF($E$4="Afiliación",GETPIVOTDATA("Afiliados ",'1.1. TD_Afil_1'!$A$4,"Mes",$L$4,"Año",$N$4,"Departamento ",K27),IF($E$4="Recursos Humanos",GETPIVOTDATA("Trabajadores",'4.1. TD_RRHH'!$A$4,"Mes",$L$4,"Año",$N$4,"Departamento",K27),IF($E$4="Costos",GETPIVOTDATA("Consulta",'5.1 TD_Costos'!$A$40,"Departamento",K27,"Mes",$L$1,"Año",$N$4),IF($E$4="Atenciones médicas",GETPIVOTDATA("Consulta",'2.2. TD_Salud_Produc2'!$A$7,"Departamento",K27,"Mes",$L$1,"Año",$N$4),IF($E$4="Pensiones",GETPIVOTDATA("Pensionados ",'3.1. TD_Pens'!$A$324,"Mes",$L$1,"Año",$N$4,"Departamento ",'B2'!K27)," ")))))," ") -> 43902 | M27: =IFERROR(IF($E$4="Afiliación",GETPIVOTDATA("Salarios ",'1.1. TD_Afil_1'!$A$4,"Mes",$L$4,"Año",$N$4,"Departamento ",K27),IF($E$4="Recursos Humanos",GETPIVOTDATA("Salarios",'4.1. TD_RRHH'!B21,"Departamento",K27,"Mes",$L$4,"Año",$N$4),IF($E$4="Costos",GETPIVOTDATA("Egresos",'5.1 TD_Costos'!$A$75,"Departamento",K27,"Mes",$L$1,"Año",$N$4),IF($E$4="Pensiones",GETPIVOTDATA("Pago",'3.2. TD_Pension.2'!$A$144,"Mes",$L$1,"Año",$N$4,"Departamento",'B2'!K27),IF($E$4="Atenciones médicas",GETPIVOTDATA("Emergencia",'2.2. TD_Salud_Produc2'!$A$41,"Departamento",K27,"Mes",$L$1,"Año",$N$4)," ")))))," ") -> 219975967 | N27: =IFERROR(IF($E$4="Afiliación",M27/L27/$K$1,IF($E$4="Costos",GETPIVOTDATA("Emergencia",'5.1 TD_Costos'!$A$110,"Departamento",K27,"Mes",$L$1,"Año",$N$4),IF($E$4="Atenciones médicas",GETPIVOTDATA("Egresos",'2.2. TD_Salud_Produc2'!$A$75,"Departamento",K27,"Mes",$L$1,"Año",$N$4),IF($E$4="Pensiones",GETPIVOTDATA("muerte por accidente",'3.1. TD_Pens'!$A$158,"Mes",$L$1,"año ",$N$4,"Departamento",'B2'!K27)," "))))," ") -> 5010.613799 | O27: =IFERROR(IF($E$4="Pensiones",GETPIVOTDATA("Pago",'3.2. TD_Pension.2'!$A$176,"Mes",$L$1,"año",$N$4,"Departamento",'B2'!K27),IF($E$4="Costos",GETPIVOTDATA("Auxilios",'5.1 TD_Costos'!$A$145,"Departamento",K27,"Mes",$L$1,"Año",$N$4),IF($E$4="Atenciones médicas",GETPIVOTDATA("Primeros Auxilios",'2.2. TD_Salud_Produc2'!$A$109,"Departamento",K27,"Mes",$L$1,"Año",$N$4)," ")))," ") ->  | Q27: 43902
J28: 19 | K28: Zacapa | L28: =IFERROR(IF($E$4="Afiliación",GETPIVOTDATA("Afiliados ",'1.1. TD_Afil_1'!$A$4,"Mes",$L$4,"Año",$N$4,"Departamento ",K28),IF($E$4="Recursos Humanos",GETPIVOTDATA("Trabajadores",'4.1. TD_RRHH'!$A$4,"Mes",$L$4,"Año",$N$4,"Departamento",K28),IF($E$4="Costos",GETPIVOTDATA("Consulta",'5.1 TD_Costos'!$A$40,"Departamento",K28,"Mes",$L$1,"Año",$N$4),IF($E$4="Atenciones médicas",GETPIVOTDATA("Consulta",'2.2. TD_Salud_Produc2'!$A$7,"Departamento",K28,"Mes",$L$1,"Año",$N$4),IF($E$4="Pensiones",GETPIVOTDATA("Pensionados ",'3.1. TD_Pens'!$A$324,"Mes",$L$1,"Año",$N$4,"Departamento ",'B2'!K28)," ")))))," ") -> 30794 | M28: =IFERROR(IF($E$4="Afiliación",GETPIVOTDATA("Salarios ",'1.1. TD_Afil_1'!$A$4,"Mes",$L$4,"Año",$N$4,"Departamento ",K28),IF($E$4="Recursos Humanos",GETPIVOTDATA("Salarios",'4.1. TD_RRHH'!B22,"Departamento",K28,"Mes",$L$4,"Año",$N$4),IF($E$4="Costos",GETPIVOTDATA("Egresos",'5.1 TD_Costos'!$A$75,"Departamento",K28,"Mes",$L$1,"Año",$N$4),IF($E$4="Pensiones",GETPIVOTDATA("Pago",'3.2. TD_Pension.2'!$A$144,"Mes",$L$1,"Año",$N$4,"Departamento",'B2'!K28),IF($E$4="Atenciones médicas",GETPIVOTDATA("Emergencia",'2.2. TD_Salud_Produc2'!$A$41,"Departamento",K28,"Mes",$L$1,"Año",$N$4)," ")))))," ") -> 155457892 | N28: =IFERROR(IF($E$4="Afiliación",M28/L28/$K$1,IF($E$4="Costos",GETPIVOTDATA("Emergencia",'5.1 TD_Costos'!$A$110,"Departamento",K28,"Mes",$L$1,"Año",$N$4),IF($E$4="Atenciones médicas",GETPIVOTDATA("Egresos",'2.2. TD_Salud_Produc2'!$A$75,"Departamento",K28,"Mes",$L$1,"Año",$N$4),IF($E$4="Pensiones",GETPIVOTDATA("muerte por accidente",'3.1. TD_Pens'!$A$158,"Mes",$L$1,"año ",$N$4,"Departamento",'B2'!K28)," "))))," ") -> 5048.317594 | O28: =IFERROR(IF($E$4="Pensiones",GETPIVOTDATA("Pago",'3.2. TD_Pension.2'!$A$176,"Mes",$L$1,"año",$N$4,"Departamento",'B2'!K28),IF($E$4="Costos",GETPIVOTDATA("Auxilios",'5.1 TD_Costos'!$A$145,"Departamento",K28,"Mes",$L$1,"Año",$N$4),IF($E$4="Atenciones médicas",GETPIVOTDATA("Primeros Auxilios",'2.2. TD_Salud_Produc2'!$A$109,"Departamento",K28,"Mes",$L$1,"Año",$N$4)," ")))," ") ->  | Q28: 30794
J29: 20 | K29: Chiquimula | L29: =IFERROR(IF($E$4="Afiliación",GETPIVOTDATA("Afiliados ",'1.1. TD_Afil_1'!$A$4,"Mes",$L$4,"Año",$N$4,"Departamento ",K29),IF($E$4="Recursos Humanos",GETPIVOTDATA("Trabajadores",'4.1. TD_RRHH'!$A$4,"Mes",$L$4,"Año",$N$4,"Departamento",K29),IF($E$4="Costos",GETPIVOTDATA("Consulta",'5.1 TD_Costos'!$A$40,"Departamento",K29,"Mes",$L$1,"Año",$N$4),IF($E$4="Atenciones médicas",GETPIVOTDATA("Consulta",'2.2. TD_Salud_Produc2'!$A$7,"Departamento",K29,"Mes",$L$1,"Año",$N$4),IF($E$4="Pensiones",GETPIVOTDATA("Pensionados ",'3.1. TD_Pens'!$A$324,"Mes",$L$1,"Año",$N$4,"Departamento ",'B2'!K29)," ")))))," ") -> 21869 | M29: =IFERROR(IF($E$4="Afiliación",GETPIVOTDATA("Salarios ",'1.1. TD_Afil_1'!$A$4,"Mes",$L$4,"Año",$N$4,"Departamento ",K29),IF($E$4="Recursos Humanos",GETPIVOTDATA("Salarios",'4.1. TD_RRHH'!B23,"Departamento",K29,"Mes",$L$4,"Año",$N$4),IF($E$4="Costos",GETPIVOTDATA("Egresos",'5.1 TD_Costos'!$A$75,"Departamento",K29,"Mes",$L$1,"Año",$N$4),IF($E$4="Pensiones",GETPIVOTDATA("Pago",'3.2. TD_Pension.2'!$A$144,"Mes",$L$1,"Año",$N$4,"Departamento",'B2'!K29),IF($E$4="Atenciones médicas",GETPIVOTDATA("Emergencia",'2.2. TD_Salud_Produc2'!$A$41,"Departamento",K29,"Mes",$L$1,"Año",$N$4)," ")))))," ") -> 120914166 | N29: =IFERROR(IF($E$4="Afiliación",M29/L29/$K$1,IF($E$4="Costos",GETPIVOTDATA("Emergencia",'5.1 TD_Costos'!$A$110,"Departamento",K29,"Mes",$L$1,"Año",$N$4),IF($E$4="Atenciones médicas",GETPIVOTDATA("Egresos",'2.2. TD_Salud_Produc2'!$A$75,"Departamento",K29,"Mes",$L$1,"Año",$N$4),IF($E$4="Pensiones",GETPIVOTDATA("muerte por accidente",'3.1. TD_Pens'!$A$158,"Mes",$L$1,"año ",$N$4,"Departamento",'B2'!K29)," "))))," ") -> 5529.021263 | O29: =IFERROR(IF($E$4="Pensiones",GETPIVOTDATA("Pago",'3.2. TD_Pension.2'!$A$176,"Mes",$L$1,"año",$N$4,"Departamento",'B2'!K29),IF($E$4="Costos",GETPIVOTDATA("Auxilios",'5.1 TD_Costos'!$A$145,"Departamento",K29,"Mes",$L$1,"Año",$N$4),IF($E$4="Atenciones médicas",GETPIVOTDATA("Primeros Auxilios",'2.2. TD_Salud_Produc2'!$A$109,"Departamento",K29,"Mes",$L$1,"Año",$N$4)," ")))," ") ->  | Q29: 21869
J30: 21 | K30: Jalapa | L30: =IFERROR(IF($E$4="Afiliación",GETPIVOTDATA("Afiliados ",'1.1. TD_Afil_1'!$A$4,"Mes",$L$4,"Año",$N$4,"Departamento ",K30),IF($E$4="Recursos Humanos",GETPIVOTDATA("Trabajadores",'4.1. TD_RRHH'!$A$4,"Mes",$L$4,"Año",$N$4,"Departamento",K30),IF($E$4="Costos",GETPIVOTDATA("Consulta",'5.1 TD_Costos'!$A$40,"Departamento",K30,"Mes",$L$1,"Año",$N$4),IF($E$4="Atenciones médicas",GETPIVOTDATA("Consulta",'2.2. TD_Salud_Produc2'!$A$7,"Departamento",K30,"Mes",$L$1,"Año",$N$4),IF($E$4="Pensiones",GETPIVOTDATA("Pensionados ",'3.1. TD_Pens'!$A$324,"Mes",$L$1,"Año",$N$4,"Departamento ",'B2'!K30)," ")))))," ") -> 14039 | M30: =IFERROR(IF($E$4="Afiliación",GETPIVOTDATA("Salarios ",'1.1. TD_Afil_1'!$A$4,"Mes",$L$4,"Año",$N$4,"Departamento ",K30),IF($E$4="Recursos Humanos",GETPIVOTDATA("Salarios",'4.1. TD_RRHH'!B24,"Departamento",K30,"Mes",$L$4,"Año",$N$4),IF($E$4="Costos",GETPIVOTDATA("Egresos",'5.1 TD_Costos'!$A$75,"Departamento",K30,"Mes",$L$1,"Año",$N$4),IF($E$4="Pensiones",GETPIVOTDATA("Pago",'3.2. TD_Pension.2'!$A$144,"Mes",$L$1,"Año",$N$4,"Departamento",'B2'!K30),IF($E$4="Atenciones médicas",GETPIVOTDATA("Emergencia",'2.2. TD_Salud_Produc2'!$A$41,"Departamento",K30,"Mes",$L$1,"Año",$N$4)," ")))))," ") -> 77643852 | N30: =IFERROR(IF($E$4="Afiliación",M30/L30/$K$1,IF($E$4="Costos",GETPIVOTDATA("Emergencia",'5.1 TD_Costos'!$A$110,"Departamento",K30,"Mes",$L$1,"Año",$N$4),IF($E$4="Atenciones médicas",GETPIVOTDATA("Egresos",'2.2. TD_Salud_Produc2'!$A$75,"Departamento",K30,"Mes",$L$1,"Año",$N$4),IF($E$4="Pensiones",GETPIVOTDATA("muerte por accidente",'3.1. TD_Pens'!$A$158,"Mes",$L$1,"año ",$N$4,"Departamento",'B2'!K30)," "))))," ") -> 5530.582805 | O30: =IFERROR(IF($E$4="Pensiones",GETPIVOTDATA("Pago",'3.2. TD_Pension.2'!$A$176,"Mes",$L$1,"año",$N$4,"Departamento",'B2'!K30),IF($E$4="Costos",GETPIVOTDATA("Auxilios",'5.1 TD_Costos'!$A$145,"Departamento",K30,"Mes",$L$1,"Año",$N$4),IF($E$4="Atenciones médicas",GETPIVOTDATA("Primeros Auxilios",'2.2. TD_Salud_Produc2'!$A$109,"Departamento",K30,"Mes",$L$1,"Año",$N$4)," ")))," ") ->  | Q30: 14039
J31: 22 | K31: Jutiapa | L31: =IFERROR(IF($E$4="Afiliación",GETPIVOTDATA("Afiliados ",'1.1. TD_Afil_1'!$A$4,"Mes",$L$4,"Año",$N$4,"Departamento ",K31),IF($E$4="Recursos Humanos",GETPIVOTDATA("Trabajadores",'4.1. TD_RRHH'!$A$4,"Mes",$L$4,"Año",$N$4,"Departamento",K31),IF($E$4="Costos",GETPIVOTDATA("Consulta",'5.1 TD_Costos'!$A$40,"Departamento",K31,"Mes",$L$1,"Año",$N$4),IF($E$4="Atenciones médicas",GETPIVOTDATA("Consulta",'2.2. TD_Salud_Produc2'!$A$7,"Departamento",K31,"Mes",$L$1,"Año",$N$4),IF($E$4="Pensiones",GETPIVOTDATA("Pensionados ",'3.1. TD_Pens'!$A$324,"Mes",$L$1,"Año",$N$4,"Departamento ",'B2'!K31)," ")))))," ") -> 21361 | M31: =IFERROR(IF($E$4="Afiliación",GETPIVOTDATA("Salarios ",'1.1. TD_Afil_1'!$A$4,"Mes",$L$4,"Año",$N$4,"Departamento ",K31),IF($E$4="Recursos Humanos",GETPIVOTDATA("Salarios",'4.1. TD_RRHH'!B25,"Departamento",K31,"Mes",$L$4,"Año",$N$4),IF($E$4="Costos",GETPIVOTDATA("Egresos",'5.1 TD_Costos'!$A$75,"Departamento",K31,"Mes",$L$1,"Año",$N$4),IF($E$4="Pensiones",GETPIVOTDATA("Pago",'3.2. TD_Pension.2'!$A$144,"Mes",$L$1,"Año",$N$4,"Departamento",'B2'!K31),IF($E$4="Atenciones médicas",GETPIVOTDATA("Emergencia",'2.2. TD_Salud_Produc2'!$A$41,"Departamento",K31,"Mes",$L$1,"Año",$N$4)," ")))))," ") -> 121756397 | N31: =IFERROR(IF($E$4="Afiliación",M31/L31/$K$1,IF($E$4="Costos",GETPIVOTDATA("Emergencia",'5.1 TD_Costos'!$A$110,"Departamento",K31,"Mes",$L$1,"Año",$N$4),IF($E$4="Atenciones médicas",GETPIVOTDATA("Egresos",'2.2. TD_Salud_Produc2'!$A$75,"Departamento",K31,"Mes",$L$1,"Año",$N$4),IF($E$4="Pensiones",GETPIVOTDATA("muerte por accidente",'3.1. TD_Pens'!$A$158,"Mes",$L$1,"año ",$N$4,"Departamento",'B2'!K31)," "))))," ") -> 5699.939001 | O31: =IFERROR(IF($E$4="Pensiones",GETPIVOTDATA("Pago",'3.2. TD_Pension.2'!$A$176,"Mes",$L$1,"año",$N$4,"Departamento",'B2'!K31),IF($E$4="Costos",GETPIVOTDATA("Auxilios",'5.1 TD_Costos'!$A$145,"Departamento",K31,"Mes",$L$1,"Año",$N$4),IF($E$4="Atenciones médicas",GETPIVOTDATA("Primeros Auxilios",'2.2. TD_Salud_Produc2'!$A$109,"Departamento",K31,"Mes",$L$1,"Año",$N$4)," ")))," ") ->  | Q31: 21361
B35: Fuente: IGSS. (2025). Subgerencia de Planificación y Desarrollo. Departamento Actuarial y Estadístico, con base en datos proporcionados por los Subsistemas: Estadísticas Económicas y Financieras; Estadísticas de Salud; Estadísticas de Costos y Estadísticas de Prestaciones Pecuniarias.
B36: Nota: Este mapa solo se visualiza en la versión Office 2019 en adelante.

Sheet B3
L1: =IF(M5="Anual","al 31 de diciemebre de"&" "&M4,LOWER($M$5&" "&M4)) -> enero 2025 | M1: =+IF(M5="Anual",12,N5) -> 1
D4: Indicador | E4: Afiliación | L4: Año | M4: 2025
B5: ="B3. IGSS - Porcentaje de participación de los servicios brindados por el IGSS, desagregado por departamento de la República. Período,"&" "&L1 -> B3. IGSS - Porcentaje de participación de los servicios brindados por el IGSS, desagregado por departamento de la República. Período, enero 2025 | L5: Mes | M5: Enero | N5: =+IF($M$5="Anual",13,MONTH(M5&1)) -> 1
B6: Id. Depto. | C6: Departamento | D6: =+IF($E$4="Afiliación","Afiliados",IF($E$4="Recursos Humanos","Trabajadores",IF($E$4="Pensiones","Pensionados",IF($E$4="Costos","Costo Total ",IF($E$4="Atenciones médicas","Atenciones"," "))))) -> Afiliados | E6: Participación
B7: 1 | C7: Guatemala | D7: =IFERROR(IF($E$4="Afiliación",GETPIVOTDATA("Afiliados ",'1.1. TD_Afil_1'!$A$4,"Mes",$N$5,"año",$M$4,"Departamento ",C7),IF($E$4="Recursos Humanos",GETPIVOTDATA("Trabajadores",'4.1. TD_RRHH'!$A$4,"Mes",$N$5,"año",$M$4,"Departamento",C7),IF($E$4="Costos",GETPIVOTDATA("costo total",'5.1 TD_Costos'!$A$5,"Departamento",C7,"Mes",$M$1,"Año",$M$4),IF($E$4="Atenciones médicas",GETPIVOTDATA("Consultas",'2.1. TD_salud_Prod.1'!$A$4,"Departamento ",C7,"Mes",$M$1,"Año",$M$4),IF($E$4="Pensiones",GETPIVOTDATA("Pensionados ",'3.1. TD_Pens'!$A$4,"Mes",$M$1,"año",$M$4,"Departamento ",'B3'!C7)," ")))))," ") -> 914342 | E7: =+D7/$D$29 -> 0.539894754
B8: 2 | C8: El Progreso | D8: =IFERROR(IF($E$4="Afiliación",GETPIVOTDATA("Afiliados ",'1.1. TD_Afil_1'!$A$4,"Mes",$N$5,"año",$M$4,"Departamento ",C8),IF($E$4="Recursos Humanos",GETPIVOTDATA("Trabajadores",'4.1. TD_RRHH'!$A$4,"Mes",$N$5,"año",$M$4,"Departamento",C8),IF($E$4="Costos",GETPIVOTDATA("costo total",'5.1 TD_Costos'!$A$5,"Departamento",C8,"Mes",$M$1,"Año",$M$4),IF($E$4="Atenciones médicas",GETPIVOTDATA("Consultas",'2.1. TD_salud_Prod.1'!$A$4,"Departamento ",C8,"Mes",$M$1,"Año",$M$4),IF($E$4="Pensiones",GETPIVOTDATA("Pensionados ",'3.1. TD_Pens'!$A$4,"Mes",$M$1,"año",$M$4,"Departamento ",'B3'!C8)," ")))))," ") -> 13720 | E8: =+D8/$D$29 -> 0.008101296916
B9: 3 | C9: Sacatepéquez | D9: =IFERROR(IF($E$4="Afiliación",GETPIVOTDATA("Afiliados ",'1.1. TD_Afil_1'!$A$4,"Mes",$N$5,"año",$M$4,"Departamento ",C9),IF($E$4="Recursos Humanos",GETPIVOTDATA("Trabajadores",'4.1. TD_RRHH'!$A$4,"Mes",$N$5,"año",$M$4,"Departamento",C9),IF($E$4="Costos",GETPIVOTDATA("costo total",'5.1 TD_Costos'!$A$5,"Departamento",C9,"Mes",$M$1,"Año",$M$4),IF($E$4="Atenciones médicas",GETPIVOTDATA("Consultas",'2.1. TD_salud_Prod.1'!$A$4,"Departamento ",C9,"Mes",$M$1,"Año",$M$4),IF($E$4="Pensiones",GETPIVOTDATA("Pensionados ",'3.1. TD_Pens'!$A$4,"Mes",$M$1,"año",$M$4,"Departamento ",'B3'!C9)," ")))))," ") -> 46936 | E9: 0.02771446589
B10: 4 | C10: Chimaltenango | D10: =IFERROR(IF($E$4="Afiliación",GETPIVOTDATA("Afiliados ",'1.1. TD_Afil_1'!$A$4,"Mes",$N$5,"año",$M$4,"Departamento ",C10),IF($E$4="Recursos Humanos",GETPIVOTDATA("Trabajadores",'4.1. TD_RRHH'!$A$4,"Mes",$N$5,"año",$M$4,"Departamento",C10),IF($E$4="Costos",GETPIVOTDATA("costo total",'5.1 TD_Costos'!$A$5,"Departamento",C10,"Mes",$M$1,"Año",$M$4),IF($E$4="Atenciones médicas",GETPIVOTDATA("Consultas",'2.1. TD_salud_Prod.1'!$A$4,"Departamento ",C10,"Mes",$M$1,"Año",$M$4),IF($E$4="Pensiones",GETPIVOTDATA("Pensionados ",'3.1. TD_Pens'!$A$4,"Mes",$M$1,"año",$M$4,"Departamento ",'B3'!C10)," ")))))," ") -> 33128 | E10: 0.01956120731
B11: 5 | C11: Escuintla | D11: =IFERROR(IF($E$4="Afiliación",GETPIVOTDATA("Afiliados ",'1.1. TD_Afil_1'!$A$4,"Mes",$N$5,"año",$M$4,"Departamento ",C11),IF($E$4="Recursos Humanos",GETPIVOTDATA("Trabajadores",'4.1. TD_RRHH'!$A$4,"Mes",$N$5,"año",$M$4,"Departamento",C11),IF($E$4="Costos",GETPIVOTDATA("costo total",'5.1 TD_Costos'!$A$5,"Departamento",C11,"Mes",$M$1,"Año",$M$4),IF($E$4="Atenciones médicas",GETPIVOTDATA("Consultas",'2.1. TD_salud_Prod.1'!$A$4,"Departamento ",C11,"Mes",$M$1,"Año",$M$4),IF($E$4="Pensiones",GETPIVOTDATA("Pensionados ",'3.1. TD_Pens'!$A$4,"Mes",$M$1,"año",$M$4,"Departamento ",'B3'!C11)," ")))))," ") -> 161206 | E11: 0.09518787687
B12: 6 | C12: Santa Rosa | D12: =IFERROR(IF($E$4="Afiliación",GETPIVOTDATA("Afiliados ",'1.1. TD_Afil_1'!$A$4,"Mes",$N$5,"año",$M$4,"Departamento ",C12),IF($E$4="Recursos Humanos",GETPIVOTDATA("Trabajadores",'4.1. TD_RRHH'!$A$4,"Mes",$N$5,"año",$M$4,"Departamento",C12),IF($E$4="Costos",GETPIVOTDATA("costo total",'5.1 TD_Costos'!$A$5,"Departamento",C12,"Mes",$M$1,"Año",$M$4),IF($E$4="Atenciones médicas",GETPIVOTDATA("Consultas",'2.1. TD_salud_Prod.1'!$A$4,"Departamento ",C12,"Mes",$M$1,"Año",$M$4),IF($E$4="Pensiones",GETPIVOTDATA("Pensionados ",'3.1. TD_Pens'!$A$4,"Mes",$M$1,"año",$M$4,"Departamento ",'B3'!C12)," ")))))," ") -> 20392 | E12: 0.01204093635
B13: 7 | C13: Sololá | D13: =IFERROR(IF($E$4="Afiliación",GETPIVOTDATA("Afiliados ",'1.1. TD_Afil_1'!$A$4,"Mes",$N$5,"año",$M$4,"Departamento ",C13),IF($E$4="Recursos Humanos",GETPIVOTDATA("Trabajadores",'4.1. TD_RRHH'!$A$4,"Mes",$N$5,"año",$M$4,"Departamento",C13),IF($E$4="Costos",GETPIVOTDATA("costo total",'5.1 TD_Costos'!$A$5,"Departamento",C13,"Mes",$M$1,"Año",$M$4),IF($E$4="Atenciones médicas",GETPIVOTDATA("Consultas",'2.1. TD_salud_Prod.1'!$A$4,"Departamento ",C13,"Mes",$M$1,"Año",$M$4),IF($E$4="Pensiones",GETPIVOTDATA("Pensionados ",'3.1. TD_Pens'!$A$4,"Mes",$M$1,"año",$M$4,"Departamento ",'B3'!C13)," ")))))," ") -> 15593 | E13: 0.009207253849
B14: 8 | C14: Totonicapán | D14: =IFERROR(IF($E$4="Afiliación",GETPIVOTDATA("Afiliados ",'1.1. TD_Afil_1'!$A$4,"Mes",$N$5,"año",$M$4,"Departamento ",C14),IF($E$4="Recursos Humanos",GETPIVOTDATA("Trabajadores",'4.1. TD_RRHH'!$A$4,"Mes",$N$5,"año",$M$4,"Departamento",C14),IF($E$4="Costos",GETPIVOTDATA("costo total",'5.1 TD_Costos'!$A$5,"Departamento",C14,"Mes",$M$1,"Año",$M$4),IF($E$4="Atenciones médicas",GETPIVOTDATA("Consultas",'2.1. TD_salud_Prod.1'!$A$4,"Departamento ",C14,"Mes",$M$1,"Año",$M$4),IF($E$4="Pensiones",GETPIVOTDATA("Pensionados ",'3.1. TD_Pens'!$A$4,"Mes",$M$1,"año",$M$4,"Departamento ",'B3'!C14)," ")))))," ") -> 11378 | E14: 0.006718407894
B15: 9 | C15: Quetzaltenango | D15: =IFERROR(IF($E$4="Afiliación",GETPIVOTDATA("Afiliados ",'1.1. TD_Afil_1'!$A$4,"Mes",$N$5,"año",$M$4,"Departamento ",C15),IF($E$4="Recursos Humanos",GETPIVOTDATA("Trabajadores",'4.1. TD_RRHH'!$A$4,"Mes",$N$5,"año",$M$4,"Departamento",C15),IF($E$4="Costos",GETPIVOTDATA("costo total",'5.1 TD_Costos'!$A$5,"Departamento",C15,"Mes",$M$1,"Año",$M$4),IF($E$4="Atenciones médicas",GETPIVOTDATA("Consultas",'2.1. TD_salud_Prod.1'!$A$4,"Departamento ",C15,"Mes",$M$1,"Año",$M$4),IF($E$4="Pensiones",GETPIVOTDATA("Pensionados ",'3.1. TD_Pens'!$A$4,"Mes",$M$1,"año",$M$4,"Departamento ",'B3'!C15)," ")))))," ") -> 72688 | E15: 0.0429203404
B16: 10 | C16: Suchitepéquez | D16: =IFERROR(IF($E$4="Afiliación",GETPIVOTDATA("Afiliados ",'1.1. TD_Afil_1'!$A$4,"Mes",$N$5,"año",$M$4,"Departamento ",C16),IF($E$4="Recursos Humanos",GETPIVOTDATA("Trabajadores",'4.1. TD_RRHH'!$A$4,"Mes",$N$5,"año",$M$4,"Departamento",C16),IF($E$4="Costos",GETPIVOTDATA("costo total",'5.1 TD_Costos'!$A$5,"Departamento",C16,"Mes",$M$1,"Año",$M$4),IF($E$4="Atenciones médicas",GETPIVOTDATA("Consultas",'2.1. TD_salud_Prod.1'!$A$4,"Departamento ",C16,"Mes",$M$1,"Año",$M$4),IF($E$4="Pensiones",GETPIVOTDATA("Pensionados ",'3.1. TD_Pens'!$A$4,"Mes",$M$1,"año",$M$4,"Departamento ",'B3'!C16)," ")))))," ") -> 39672 | E16: 0.02342526613
B17: 11 | C17: Retalhuleu | D17: =IFERROR(IF($E$4="Afiliación",GETPIVOTDATA("Afiliados ",'1.1. TD_Afil_1'!$A$4,"Mes",$N$5,"año",$M$4,"Departamento ",C17),IF($E$4="Recursos Humanos",GETPIVOTDATA("Trabajadores",'4.1. TD_RRHH'!$A$4,"Mes",$N$5,"año",$M$4,"Departamento",C17),IF($E$4="Costos",GETPIVOTDATA("costo total",'5.1 TD_Costos'!$A$5,"Departamento",C17,"Mes",$M$1,"Año",$M$4),IF($E$4="Atenciones médicas",GETPIVOTDATA("Consultas",'2.1. TD_salud_Prod.1'!$A$4,"Departamento ",C17,"Mes",$M$1,"Año",$M$4),IF($E$4="Pensiones",GETPIVOTDATA("Pensionados ",'3.1. TD_Pens'!$A$4,"Mes",$M$1,"año",$M$4,"Departamento ",'B3'!C17)," ")))))," ") -> 33820 | E17: 0.01996981499
B18: 12 | C18: San Marcos | D18: =IFERROR(IF($E$4="Afiliación",GETPIVOTDATA("Afiliados ",'1.1. TD_Afil_1'!$A$4,"Mes",$N$5,"año",$M$4,"Departamento ",C18),IF($E$4="Recursos Humanos",GETPIVOTDATA("Trabajadores",'4.1. TD_RRHH'!$A$4,"Mes",$N$5,"año",$M$4,"Departamento",C18),IF($E$4="Costos",GETPIVOTDATA("costo total",'5.1 TD_Costos'!$A$5,"Departamento",C18,"Mes",$M$1,"Año",$M$4),IF($E$4="Atenciones médicas",GETPIVOTDATA("Consultas",'2.1. TD_salud_Prod.1'!$A$4,"Departamento ",C18,"Mes",$M$1,"Año",$M$4),IF($E$4="Pensiones",GETPIVOTDATA("Pensionados ",'3.1. TD_Pens'!$A$4,"Mes",$M$1,"año",$M$4,"Departamento ",'B3'!C18)," ")))))," ") -> 42082 | E18: 0.02484830735
B19: 13 | C19: Huehuetenango | D19: =IFERROR(IF($E$4="Afiliación",GETPIVOTDATA("Afiliados ",'1.1. TD_Afil_1'!$A$4,"Mes",$N$5,"año",$M$4,"Departamento ",C19),IF($E$4="Recursos Humanos",GETPIVOTDATA("Trabajadores",'4.1. TD_RRHH'!$A$4,"Mes",$N$5,"año",$M$4,"Departamento",C19),IF($E$4="Costos",GETPIVOTDATA("costo total",'5.1 TD_Costos'!$A$5,"Departamento",C19,"Mes",$M$1,"Año",$M$4),IF($E$4="Atenciones médicas",GETPIVOTDATA("Consultas",'2.1. TD_salud_Prod.1'!$A$4,"Departamento ",C19,"Mes",$M$1,"Año",$M$4),IF($E$4="Pensiones",GETPIVOTDATA("Pensionados ",'3.1. TD_Pens'!$A$4,"Mes",$M$1,"año",$M$4,"Departamento ",'B3'!C19)," ")))))," ") -> 34820 | E19: 0.02056028853
B20: 14 | C20: Quiché | D20: =IFERROR(IF($E$4="Afiliación",GETPIVOTDATA("Afiliados ",'1.1. TD_Afil_1'!$A$4,"Mes",$N$5,"año",$M$4,"Departamento ",C20),IF($E$4="Recursos Humanos",GETPIVOTDATA("Trabajadores",'4.1. TD_RRHH'!$A$4,"Mes",$N$5,"año",$M$4,"Departamento",C20),IF($E$4="Costos",GETPIVOTDATA("costo total",'5.1 TD_Costos'!$A$5,"Departamento",C20,"Mes",$M$1,"Año",$M$4),IF($E$4="Atenciones médicas",GETPIVOTDATA("Consultas",'2.1. TD_salud_Prod.1'!$A$4,"Departamento ",C20,"Mes",$M$1,"Año",$M$4),IF($E$4="Pensiones",GETPIVOTDATA("Pensionados ",'3.1. TD_Pens'!$A$4,"Mes",$M$1,"año",$M$4,"Departamento ",'B3'!C20)," ")))))," ") -> 26947 | E20: 0.01591149038
B21: 15 | C21: Baja Verapaz | D21: =IFERROR(IF($E$4="Afiliación",GETPIVOTDATA("Afiliados ",'1.1. TD_Afil_1'!$A$4,"Mes",$N$5,"año",$M$4,"Departamento ",C21),IF($E$4="Recursos Humanos",GETPIVOTDATA("Trabajadores",'4.1. TD_RRHH'!$A$4,"Mes",$N$5,"año",$M$4,"Departamento",C21),IF($E$4="Costos",GETPIVOTDATA("costo total",'5.1 TD_Costos'!$A$5,"Departamento",C21,"Mes",$M$1,"Año",$M$4),IF($E$4="Atenciones médicas",GETPIVOTDATA("Consultas",'2.1. TD_salud_Prod.1'!$A$4,"Departamento ",C21,"Mes",$M$1,"Año",$M$4),IF($E$4="Pensiones",GETPIVOTDATA("Pensionados ",'3.1. TD_Pens'!$A$4,"Mes",$M$1,"año",$M$4,"Departamento ",'B3'!C21)," ")))))," ") -> 11691 | E21: 0.006903226111
B22: 16 | C22: Alta Verapaz | D22: =IFERROR(IF($E$4="Afiliación",GETPIVOTDATA("Afiliados ",'1.1. TD_Afil_1'!$A$4,"Mes",$N$5,"año",$M$4,"Departamento ",C22),IF($E$4="Recursos Humanos",GETPIVOTDATA("Trabajadores",'4.1. TD_RRHH'!$A$4,"Mes",$N$5,"año",$M$4,"Departamento",C22),IF($E$4="Costos",GETPIVOTDATA("costo total",'5.1 TD_Costos'!$A$5,"Departamento",C22,"Mes",$M$1,"Año",$M$4),IF($E$4="Atenciones médicas",GETPIVOTDATA("Consultas",'2.1. TD_salud_Prod.1'!$A$4,"Departamento ",C22,"Mes",$M$1,"Año",$M$4),IF($E$4="Pensiones",GETPIVOTDATA("Pensionados ",'3.1. TD_Pens'!$A$4,"Mes",$M$1,"año",$M$4,"Departamento ",'B3'!C22)," ")))))," ") -> 42350 | E22: 0.02500655426
B23: 17 | C23: Petén | D23: =IFERROR(IF($E$4="Afiliación",GETPIVOTDATA("Afiliados ",'1.1. TD_Afil_1'!$A$4,"Mes",$N$5,"año",$M$4,"Departamento ",C23),IF($E$4="Recursos Humanos",GETPIVOTDATA("Trabajadores",'4.1. TD_RRHH'!$A$4,"Mes",$N$5,"año",$M$4,"Departamento",C23),IF($E$4="Costos",GETPIVOTDATA("costo total",'5.1 TD_Costos'!$A$5,"Departamento",C23,"Mes",$M$1,"Año",$M$4),IF($E$4="Atenciones médicas",GETPIVOTDATA("Consultas",'2.1. TD_salud_Prod.1'!$A$4,"Departamento ",C23,"Mes",$M$1,"Año",$M$4),IF($E$4="Pensiones",GETPIVOTDATA("Pensionados ",'3.1. TD_Pens'!$A$4,"Mes",$M$1,"año",$M$4,"Departamento ",'B3'!C23)," ")))))," ") -> 40826 | E23: 0.02410667259
B24: 18 | C24: Izabal | D24: =IFERROR(IF($E$4="Afiliación",GETPIVOTDATA("Afiliados ",'1.1. TD_Afil_1'!$A$4,"Mes",$N$5,"año",$M$4,"Departamento ",C24),IF($E$4="Recursos Humanos",GETPIVOTDATA("Trabajadores",'4.1. TD_RRHH'!$A$4,"Mes",$N$5,"año",$M$4,"Departamento",C24),IF($E$4="Costos",GETPIVOTDATA("costo total",'5.1 TD_Costos'!$A$5,"Departamento",C24,"Mes",$M$1,"Año",$M$4),IF($E$4="Atenciones médicas",GETPIVOTDATA("Consultas",'2.1. TD_salud_Prod.1'!$A$4,"Departamento ",C24,"Mes",$M$1,"Año",$M$4),IF($E$4="Pensiones",GETPIVOTDATA("Pensionados ",'3.1. TD_Pens'!$A$4,"Mes",$M$1,"año",$M$4,"Departamento ",'B3'!C24)," ")))))," ") -> 43902 | E24: 0.02592296918
B25: 19 | C25: Zacapa | D25: =IFERROR(IF($E$4="Afiliación",GETPIVOTDATA("Afiliados ",'1.1. TD_Afil_1'!$A$4,"Mes",$N$5,"año",$M$4,"Departamento ",C25),IF($E$4="Recursos Humanos",GETPIVOTDATA("Trabajadores",'4.1. TD_RRHH'!$A$4,"Mes",$N$5,"año",$M$4,"Departamento",C25),IF($E$4="Costos",GETPIVOTDATA("costo total",'5.1 TD_Costos'!$A$5,"Departamento",C25,"Mes",$M$1,"Año",$M$4),IF($E$4="Atenciones médicas",GETPIVOTDATA("Consultas",'2.1. TD_salud_Prod.1'!$A$4,"Departamento ",C25,"Mes",$M$1,"Año",$M$4),IF($E$4="Pensiones",GETPIVOTDATA("Pensionados ",'3.1. TD_Pens'!$A$4,"Mes",$M$1,"año",$M$4,"Departamento ",'B3'!C25)," ")))))," ") -> 30794 | E25: 0.01818304207
B26: 20 | C26: Chiquimula | D26: =IFERROR(IF($E$4="Afiliación",GETPIVOTDATA("Afiliados ",'1.1. TD_Afil_1'!$A$4,"Mes",$N$5,"año",$M$4,"Departamento ",C26),IF($E$4="Recursos Humanos",GETPIVOTDATA("Trabajadores",'4.1. TD_RRHH'!$A$4,"Mes",$N$5,"año",$M$4,"Departamento",C26),IF($E$4="Costos",GETPIVOTDATA("costo total",'5.1 TD_Costos'!$A$5,"Departamento",C26,"Mes",$M$1,"Año",$M$4),IF($E$4="Atenciones médicas",GETPIVOTDATA("Consultas",'2.1. TD_salud_Prod.1'!$A$4,"Departamento ",C26,"Mes",$M$1,"Año",$M$4),IF($E$4="Pensiones",GETPIVOTDATA("Pensionados ",'3.1. TD_Pens'!$A$4,"Mes",$M$1,"año",$M$4,"Departamento ",'B3'!C26)," ")))))," ") -> 21869 | E26: 0.01291306576
B27: 21 | C27: Jalapa | D27: =IFERROR(IF($E$4="Afiliación",GETPIVOTDATA("Afiliados ",'1.1. TD_Afil_1'!$A$4,"Mes",$N$5,"año",$M$4,"Departamento ",C27),IF($E$4="Recursos Humanos",GETPIVOTDATA("Trabajadores",'4.1. TD_RRHH'!$A$4,"Mes",$N$5,"año",$M$4,"Departamento",C27),IF($E$4="Costos",GETPIVOTDATA("costo total",'5.1 TD_Costos'!$A$5,"Departamento",C27,"Mes",$M$1,"Año",$M$4),IF($E$4="Atenciones médicas",GETPIVOTDATA("Consultas",'2.1. TD_salud_Prod.1'!$A$4,"Departamento ",C27,"Mes",$M$1,"Año",$M$4),IF($E$4="Pensiones",GETPIVOTDATA("Pensionados ",'3.1. TD_Pens'!$A$4,"Mes",$M$1,"año",$M$4,"Departamento ",'B3'!C27)," ")))))," ") -> 14039 | E27: 0.008289657974
B28: 22 | C28: Jutiapa | D28: =IFERROR(IF($E$4="Afiliación",GETPIVOTDATA("Afiliados ",'1.1. TD_Afil_1'!$A$4,"Mes",$N$5,"año",$M$4,"Departamento ",C28),IF($E$4="Recursos Humanos",GETPIVOTDATA("Trabajadores",'4.1. TD_RRHH'!$A$4,"Mes",$N$5,"año",$M$4,"Departamento",C28),IF($E$4="Costos",GETPIVOTDATA("costo total",'5.1 TD_Costos'!$A$5,"Departamento",C28,"Mes",$M$1,"Año",$M$4),IF($E$4="Atenciones médicas",GETPIVOTDATA("Consultas",'2.1. TD_salud_Prod.1'!$A$4,"Departamento ",C28,"Mes",$M$1,"Año",$M$4),IF($E$4="Pensiones",GETPIVOTDATA("Pensionados ",'3.1. TD_Pens'!$A$4,"Mes",$M$1,"año",$M$4,"Departamento ",'B3'!C28)," ")))))," ") -> 21361 | E28: 0.01261310521
C29: Total | D29: =SUM(D7:D28) -> 1693556 | E29: =SUM(E7:E28) -> 1
B30: Fuente: IGSS (2025). Subgerencia de Planificación y Desarrollo, Departamento Actuarial y Estadístico, Área Estadística.
B31: Nota: Este mapa solo se visualiza en la versión Office 2019 en adelante.

Sheet B4
V1: =+IF(X5="Anual",12,Y5) -> 1 | X1: =+IF(X5="Anual","al 31 de diciembre de"&" "&X4,LOWER($X$5&" "&$X$4)) -> enero 2025
W4: Año | X4: 2025
B5: =+"B4. IGSS - Estadísticas de los servicios que otorga el Instituto Guatemalteco de Seguridad Social, según departamento de la República. Período,"&" "&X1 -> B4. IGSS - Estadísticas de los servicios que otorga el Instituto Guatemalteco de Seguridad Social, según departamento de la República. Período, enero 2025 | W5: Mes | X5: Enero | Y5: =+IF($X$5="Anual",13,MONTH(X5&1)) -> 1
B7: Id. | C7: Departamento | D7: AFILIACIÓN | G7: ATENCIONES EN SALUD | K7: PENSIONES (Montos pagados, cifras en Quetzales)*/ | S7: COSTOS TOTALES (Cifras en Quetzales | W7: RECURSO HUMANO
D8: Afiliados | E8: Salarios Q. | F8: Salario Medio Q. | G8: Consulta Externa | H8: Emergencia | I8: Egresos | J8: Primeros Auxilios | K8: Pagos Invalidez | L8: Pagos Vejez | M8: Pagos Sobrevi vencia | N8: Pagos Muerte por Accidente | O8: Monto Pagado Invalidez | P8: Monto Pagado Vejez | Q8: Monto Pagado Sobrevivencia | R8: Monto Pagado M. por Acc. | S8: Consulta Externa | T8: Egresos | U8: Emergencia | V8: Primeros Auxilios | W8: Trabajadores | X8: Salarios Q.
G10: Total de atenciones | I10: =+G11+H11+I11+J11 -> 688086 | K10: Total de Pagos | M10: =+K11+L11+M11+N11 -> 200582 | O10: Total Pagado en Q. | Q10: =+O11+P11+Q11+R11 -> 382407626.6 | S10: Total Costos en Q. | U10: =+S11+T11+U11+V11 -> 678909732
B11: Totales | D11: =SUM(D13:D34) -> 1693556 | E11: =SUM(E13:E34) -> 9915480445 | F11: =IFERROR(IF($Y$5=13,E11/D11/12,E11/D11),0) -> 5854.828801 | G11: =SUM(G13:G34) -> 528128 | H11: 143548 | I11: 12636 | J11: 3774 | K11: 7788 | L11: =SUM(L13:L34) -> 119533 | M11: =SUM(M13:M34) -> 71339 | N11: =SUM(N13:N34) -> 1922 | O11: 13419030.56 | P11: 308615770.8 | Q11: 60131140.24 | R11: 241685 | S11: 470573892 | T11: 152290326 | U11: 55505984 | V11: 539530 | W11: 23533 | X11: 160526802.3
B13: 1 | C13: Guatemala | D13: =IFERROR(GETPIVOTDATA("Afiliados ",'1.1. TD_Afil_1'!$A$4,"Mes",$Y$5,"Departamento ",C13,"Año",$X$4),0) -> 914342 | E13: =IFERROR(GETPIVOTDATA("Salarios ",'1.1. TD_Afil_1'!$A$4,"Mes",$Y$5,"Departamento ",C13,"Año",$X$4),0) -> 5847748615 | F13: =IFERROR(IF($Y$5=13,E13/D13/12,E13/D13),0) -> 6395.58132 | G13: =IFERROR(GETPIVOTDATA("Consulta",'2.2. TD_Salud_Produc2'!$A$7,"Mes",$V$1,"Departamento",C13,"Año",$X$4),0) -> 289165 | H13: =IFERROR(GETPIVOTDATA("Emergencia",'2.2. TD_Salud_Produc2'!$A$41,"Mes",$V$1,"Departamento",C13,"Año",$X$4),0) -> 55001 | I13: =IFERROR(GETPIVOTDATA("Egresos",'2.2. TD_Salud_Produc2'!$A$75,"Mes",$V$1,"Departamento",C13,"Año",$X$4),0) -> 6448 | J13: =IFERROR(GETPIVOTDATA("Primeros Auxilios",'2.2. TD_Salud_Produc2'!$A$109,"Mes",$V$1,"Departamento",C13,"Año",$X$4),0) -> 507 | K13: =IFERROR(GETPIVOTDATA("Pensiones",'3.1. TD_Pens'!$A$48,"Mes",$V$1,"departamento",C13,"Año ",$X$4),0) -> 3704 | L13: =IFERROR(GETPIVOTDATA("Pensiones",'3.1. TD_Pens'!$A$86,"Mes",$V$1,"Departamento",C13,"Año ",$X$4),0) -> 67635 | M13: =IFERROR(GETPIVOTDATA("Pensiones",'3.1. TD_Pens'!$A$122,"Mes",$V$1,"Departamento",C13,"Año ",$X$4),0) -> 29213 | N13: =IFERROR(GETPIVOTDATA("Pensiones",'3.1. TD_Pens'!$A$158,"Mes",$V$1,"Departamento",C13,"Año ",$X$4),0) -> 770 | O13: =IFERROR(GETPIVOTDATA("Pago",'3.1. TD_Pens'!$A$48,"Mes",$V$1,"departamento",C13,"Año ",$X$4),0) -> 6737698.97 | P13: =IFERROR(GETPIVOTDATA("Pago",'3.1. TD_Pens'!$A$86,"Mes",$V$1,"Departamento",C13,"Año ",$X$4),0) -> 197813777.2 | Q13: =IFERROR(GETPIVOTDATA("Pago",'3.1. TD_Pens'!$A$122,"Mes",$V$1,"Departamento",C13,"Año ",$X$4),0) -> 28224843.9 | R13: =IFERROR(GETPIVOTDATA("Pago",'3.1. TD_Pens'!$A$158,"Mes",$V$1,"Departamento",C13,"Año ",$X$4),0) -> 100806.34 | S13: =+IFERROR(GETPIVOTDATA("Consulta",'5.1 TD_Costos'!$A$40,"Departamento",C13,"Mes",$V$1,"Año",$X$4),0) -> 352517609 | T13: =+IFERROR(GETPIVOTDATA("Egresos",'5.1 TD_Costos'!$A$75,"Departamento",C13,"Mes",$V$1,"Año",$X$4),0) -> 99924246 | U13: =+IFERROR(GETPIVOTDATA("Emergencia",'5.1 TD_Costos'!$A$110,"Departamento",C13,"Mes",$V$1,"Año",$X$4),0) -> 28129644 | V13: =+IFERROR(GETPIVOTDATA("Auxilios",'5.1 TD_Costos'!$A$145,"Departamento",C13,"Mes",$V$1,"Año",$X$4),0) -> 122222 | W13: =IFERROR(GETPIVOTDATA("Trabajadores",'4.1. TD_RRHH'!A4,"Mes",$Y$5,"Departamento",C13,"Año",$X$4),0) -> 14602 | X13: =IFERROR(IF($X$5="Anual",GETPIVOTDATA("Salarios",'4.1. TD_RRHH'!B4,"Departamento",C13,"Mes",$Y$5,"Año",$X$4),GETPIVOTDATA("Salarios",'4.1. TD_RRHH'!B4,"Mes",$Y$5,"Departamento",C13,"Año",$X$4)),0) -> 103950060.9
B14: 2 | C14: El Progreso | D14: =IFERROR(GETPIVOTDATA("Afiliados ",'1.1. TD_Afil_1'!$A$4,"Mes",$Y$5,"Departamento ",C14,"Año",$X$4),0) -> 13720 | E14: =IFERROR(GETPIVOTDATA("Salarios ",'1.1. TD_Afil_1'!$A$4,"Mes",$Y$5,"Departamento ",C14,"Año",$X$4),0) -> 71112057 | F14: 5183.094534 | G14: =IFERROR(GETPIVOTDATA("Consulta",'2.2. TD_Salud_Produc2'!$A$7,"Mes",$V$1,"Departamento",C14,"Año",$X$4),0) -> 4610 | H14: =IFERROR(GETPIVOTDATA("Emergencia",'2.2. TD_Salud_Produc2'!$A$41,"Mes",$V$1,"Departamento",C14,"Año",$X$4),0) -> 1535 | I14: =IFERROR(GETPIVOTDATA("Egresos",'2.2. TD_Salud_Produc2'!$A$75,"Mes",$V$1,"Departamento",C14,"Año",$X$4),0) -> 0 | J14: =IFERROR(GETPIVOTDATA("Primeros Auxilios",'2.2. TD_Salud_Produc2'!$A$109,"Mes",$V$1,"Departamento",C14,"Año",$X$4),0) -> 13 | K14: =IFERROR(GETPIVOTDATA("Pensiones",'3.1. TD_Pens'!$A$48,"Mes",$V$1,"departamento",C14,"Año ",$X$4),0) -> 91 | L14: =IFERROR(GETPIVOTDATA("Pensiones",'3.1. TD_Pens'!$A$86,"Mes",$V$1,"Departamento",C14,"Año ",$X$4),0) -> 1216 | M14: =IFERROR(GETPIVOTDATA("Pensiones",'3.1. TD_Pens'!$A$122,"Mes",$V$1,"Departamento",C14,"Año ",$X$4),0) -> 1122 | N14: =IFERROR(GETPIVOTDATA("Pensiones",'3.1. TD_Pens'!$A$158,"Mes",$V$1,"Departamento",C14,"Año ",$X$4),0) -> 64 | O14: =IFERROR(GETPIVOTDATA("Pago",'3.1. TD_Pens'!$A$48,"Mes",$V$1,"departamento",C14,"Año ",$X$4),0) -> 132481.07 | P14: =IFERROR(GETPIVOTDATA("Pago",'3.1. TD_Pens'!$A$86,"Mes",$V$1,"Departamento",C14,"Año ",$X$4),0) -> 3419351.55 | Q14: =IFERROR(GETPIVOTDATA("Pago",'3.1. TD_Pens'!$A$122,"Mes",$V$1,"Departamento",C14,"Año ",$X$4),0) -> 888387.11 | R14: =IFERROR(GETPIVOTDATA("Pago",'3.1. TD_Pens'!$A$158,"Mes",$V$1,"Departamento",C14,"Año ",$X$4),0) -> 7658.39 | S14: =+IFERROR(GETPIVOTDATA("Consulta",'5.1 TD_Costos'!$A$40,"Departamento",C14,"Mes",$V$1,"Año",$X$4),0) -> 1446369 | T14: =+IFERROR(GETPIVOTDATA("Egresos",'5.1 TD_Costos'!$A$75,"Departamento",C14,"Mes",$V$1,"Año",$X$4),0) -> 0 | U14: =+IFERROR(GETPIVOTDATA("Emergencia",'5.1 TD_Costos'!$A$110,"Departamento",C14,"Mes",$V$1,"Año",$X$4),0) -> 232068 | V14: =+IFERROR(GETPIVOTDATA("Auxilios",'5.1 TD_Costos'!$A$145,"Departamento",C14,"Mes",$V$1,"Año",$X$4),0) -> 17039 | W14: =IFERROR(GETPIVOTDATA("Trabajadores",'4.1. TD_RRHH'!A5,"Mes",$Y$5,"Departamento",C14,"Año",$X$4),0) -> 89 | X14: =IFERROR(IF($X$5="Anual",GETPIVOTDATA("Salarios",'4.1. TD_RRHH'!B5,"Departamento",C14,"Mes",$Y$5,"Año",$X$4),GETPIVOTDATA("Salarios",'4.1. TD_RRHH'!B5,"Mes",$Y$5,"Departamento",C14,"Año",$X$4)),0) -> 555152.59
B15: 3 | C15: Sacatepéquez | D15: =IFERROR(GETPIVOTDATA("Afiliados ",'1.1. TD_Afil_1'!$A$4,"Mes",$Y$5,"Departamento ",C15,"Año",$X$4),0) -> 46936 | E15: =IFERROR(GETPIVOTDATA("Salarios ",'1.1. TD_Afil_1'!$A$4,"Mes",$Y$5,"Departamento ",C15,"Año",$X$4),0) -> 217997978 | F15: 4644.579385 | G15: =IFERROR(GETPIVOTDATA("Consulta",'2.2. TD_Salud_Produc2'!$A$7,"Mes",$V$1,"Departamento",C15,"Año",$X$4),0) -> 11521 | H15: =IFERROR(GETPIVOTDATA("Emergencia",'2.2. TD_Salud_Produc2'!$A$41,"Mes",$V$1,"Departamento",C15,"Año",$X$4),0) -> 3923 | I15: =IFERROR(GETPIVOTDATA("Egresos",'2.2. TD_Salud_Produc2'!$A$75,"Mes",$V$1,"Departamento",C15,"Año",$X$4),0) -> 13 | J15: =IFERROR(GETPIVOTDATA("Primeros Auxilios",'2.2. TD_Salud_Produc2'!$A$109,"Mes",$V$1,"Departamento",C15,"Año",$X$4),0) -> 0 | K15: =IFERROR(GETPIVOTDATA("Pensiones",'3.1. TD_Pens'!$A$48,"Mes",$V$1,"departamento",C15,"Año ",$X$4),0) -> 345 | L15: =IFERROR(GETPIVOTDATA("Pensiones",'3.1. TD_Pens'!$A$86,"Mes",$V$1,"Departamento",C15,"Año ",$X$4),0) -> 3493 | M15: =IFERROR(GETPIVOTDATA("Pensiones",'3.1. TD_Pens'!$A$122,"Mes",$V$1,"Departamento",C15,"Año ",$X$4),0) -> 1989 | N15: =IFERROR(GETPIVOTDATA("Pensiones",'3.1. TD_Pens'!$A$158,"Mes",$V$1,"Departamento",C15,"Año ",$X$4),0) -> 30 | O15: =IFERROR(GETPIVOTDATA("Pago",'3.1. TD_Pens'!$A$48,"Mes",$V$1,"departamento",C15,"Año ",$X$4),0) -> 573037.23 | P15: =IFERROR(GETPIVOTDATA("Pago",'3.1. TD_Pens'!$A$86,"Mes",$V$1,"Departamento",C15,"Año ",$X$4),0) -> 8744460.98 | Q15: =IFERROR(GETPIVOTDATA("Pago",'3.1. TD_Pens'!$A$122,"Mes",$V$1,"Departamento",C15,"Año ",$X$4),0) -> 1740406.83 | R15: =IFERROR(GETPIVOTDATA("Pago",'3.1. TD_Pens'!$A$158,"Mes",$V$1,"Departamento",C15,"Año ",$X$4),0) -> 3918.25 | S15: =+IFERROR(GETPIVOTDATA("Consulta",'5.1 TD_Costos'!$A$40,"Departamento",C15,"Mes",$V$1,"Año",$X$4),0) -> 14669801 | T15: =+IFERROR(GETPIVOTDATA("Egresos",'5.1 TD_Costos'!$A$75,"Departamento",C15,"Mes",$V$1,"Año",$X$4),0) -> 0 | U15: =+IFERROR(GETPIVOTDATA("Emergencia",'5.1 TD_Costos'!$A$110,"Departamento",C15,"Mes",$V$1,"Año",$X$4),0) -> 1649537 | V15: =+IFERROR(GETPIVOTDATA("Auxilios",'5.1 TD_Costos'!$A$145,"Departamento",C15,"Mes",$V$1,"Año",$X$4),0) -> 0 | W15: =IFERROR(GETPIVOTDATA("Trabajadores",'4.1. TD_RRHH'!A6,"Mes",$Y$5,"Departamento",C15,"Año",$X$4),0) -> 284 | X15: =IFERROR(IF($X$5="Anual",GETPIVOTDATA("Salarios",'4.1. TD_RRHH'!B6,"Departamento",C15,"Mes",$Y$5,"Año",$X$4),GETPIVOTDATA("Salarios",'4.1. TD_RRHH'!B6,"Mes",$Y$5,"Departamento",C15,"Año",$X$4)),0) -> 1880247.29
B16: 4 | C16: Chimaltenango | D16: =IFERROR(GETPIVOTDATA("Afiliados ",'1.1. TD_Afil_1'!$A$4,"Mes",$Y$5,"Departamento ",C16,"Año",$X$4),0) -> 33128 | E16: =IFERROR(GETPIVOTDATA("Salarios ",'1.1. TD_Afil_1'!$A$4,"Mes",$Y$5,"Departamento ",C16,"Año",$X$4),0) -> 172782554 | F16: 5215.604745 | G16: =IFERROR(GETPIVOTDATA("Consulta",'2.2. TD_Salud_Produc2'!$A$7,"Mes",$V$1,"Departamento",C16,"Año",$X$4),0) -> 12331 | H16: =IFERROR(GETPIVOTDATA("Emergencia",'2.2. TD_Salud_Produc2'!$A$41,"Mes",$V$1,"Departamento",C16,"Año",$X$4),0) -> 3752 | I16: =IFERROR(GETPIVOTDATA("Egresos",'2.2. TD_Salud_Produc2'!$A$75,"Mes",$V$1,"Departamento",C16,"Año",$X$4),0) -> 158 | J16: =IFERROR(GETPIVOTDATA("Primeros Auxilios",'2.2. TD_Salud_Produc2'!$A$109,"Mes",$V$1,"Departamento",C16,"Año",$X$4),0) -> 119 | K16: =IFERROR(GETPIVOTDATA("Pensiones",'3.1. TD_Pens'!$A$48,"Mes",$V$1,"departamento",C16,"Año ",$X$4),0) -> 159 | L16: =IFERROR(GETPIVOTDATA("Pensiones",'3.1. TD_Pens'!$A$86,"Mes",$V$1,"Departamento",C16,"Año ",$X$4),0) -> 2031 | M16: =IFERROR(GETPIVOTDATA("Pensiones",'3.1. TD_Pens'!$A$122,"Mes",$V$1,"Departamento",C16,"Año ",$X$4),0) -> 1605 | N16: =IFERROR(GETPIVOTDATA("Pensiones",'3.1. TD_Pens'!$A$158,"Mes",$V$1,"Departamento",C16,"Año ",$X$4),0) -> 58 | O16: =IFERROR(GETPIVOTDATA("Pago",'3.1. TD_Pens'!$A$48,"Mes",$V$1,"departamento",C16,"Año ",$X$4),0) -> 240580.63 | P16: =IFERROR(GETPIVOTDATA("Pago",'3.1. TD_Pens'!$A$86,"Mes",$V$1,"Departamento",C16,"Año ",$X$4),0) -> 4361152.54 | Q16: =IFERROR(GETPIVOTDATA("Pago",'3.1. TD_Pens'!$A$122,"Mes",$V$1,"Departamento",C16,"Año ",$X$4),0) -> 1307686.87 | R16: =IFERROR(GETPIVOTDATA("Pago",'3.1. TD_Pens'!$A$158,"Mes",$V$1,"Departamento",C16,"Año ",$X$4),0) -> 7064.71 | S16: =+IFERROR(GETPIVOTDATA("Consulta",'5.1 TD_Costos'!$A$40,"Departamento",C16,"Mes",$V$1,"Año",$X$4),0) -> 1332941 | T16: =+IFERROR(GETPIVOTDATA("Egresos",'5.1 TD_Costos'!$A$75,"Departamento",C16,"Mes",$V$1,"Año",$X$4),0) -> 127911 | U16: =+IFERROR(GETPIVOTDATA("Emergencia",'5.1 TD_Costos'!$A$110,"Departamento",C16,"Mes",$V$1,"Año",$X$4),0) -> 16940 | V16: =+IFERROR(GETPIVOTDATA("Auxilios",'5.1 TD_Costos'!$A$145,"Departamento",C16,"Mes",$V$1,"Año",$X$4),0) -> 58278 | W16: =IFERROR(GETPIVOTDATA("Trabajadores",'4.1. TD_RRHH'!A7,"Mes",$Y$5,"Departamento",C16,"Año",$X$4),0) -> 299 | X16: =IFERROR(IF($X$5="Anual",GETPIVOTDATA("Salarios",'4.1. TD_RRHH'!B7,"Departamento",C16,"Mes",$Y$5,"Año",$X$4),GETPIVOTDATA("Salarios",'4.1. TD_RRHH'!B7,"Mes",$Y$5,"Departamento",C16,"Año",$X$4)),0) -> 1965147
B17: 5 | C17: Escuintla | D17: =IFERROR(GETPIVOTDATA("Afiliados ",'1.1. TD_Afil_1'!$A$4,"Mes",$Y$5,"Departamento ",C17,"Año",$X$4),0) -> 161206 | E17: =IFERROR(GETPIVOTDATA("Salarios ",'1.1. TD_Afil_1'!$A$4,"Mes",$Y$5,"Departamento ",C17,"Año",$X$4),0) -> 786235072 | F17: 4877.20725 | G17: =IFERROR(GETPIVOTDATA("Consulta",'2.2. TD_Salud_Produc2'!$A$7,"Mes",$V$1,"Departamento",C17,"Año",$X$4),0) -> 33186 | H17: =IFERROR(GETPIVOTDATA("Emergencia",'2.2. TD_Salud_Produc2'!$A$41,"Mes",$V$1,"Departamento",C17,"Año",$X$4),0) -> 20023 | I17: =IFERROR(GETPIVOTDATA("Egresos",'2.2. TD_Salud_Produc2'!$A$75,"Mes",$V$1,"Departamento",C17,"Año",$X$4),0) -> 1193 | J17: =IFERROR(GETPIVOTDATA("Primeros Auxilios",'2.2. TD_Salud_Produc2'!$A$109,"Mes",$V$1,"Departamento",C17,"Año",$X$4),0) -> 0 | K17: =IFERROR(GETPIVOTDATA("Pensiones",'3.1. TD_Pens'!$A$48,"Mes",$V$1,"departamento",C17,"Año ",$X$4),0) -> 876 | L17: =IFERROR(GETPIVOTDATA("Pensiones",'3.1. TD_Pens'!$A$86,"Mes",$V$1,"Departamento",C17,"Año ",$X$4),0) -> 9773 | M17: =IFERROR(GETPIVOTDATA("Pensiones",'3.1. TD_Pens'!$A$122,"Mes",$V$1,"Departamento",C17,"Año ",$X$4),0) -> 8800 | N17: =IFERROR(GETPIVOTDATA("Pensiones",'3.1. TD_Pens'!$A$158,"Mes",$V$1,"Departamento",C17,"Año ",$X$4),0) -> 82 | O17: =IFERROR(GETPIVOTDATA("Pago",'3.1. TD_Pens'!$A$48,"Mes",$V$1,"departamento",C17,"Año ",$X$4),0) -> 1506901.04 | P17: =IFERROR(GETPIVOTDATA("Pago",'3.1. TD_Pens'!$A$86,"Mes",$V$1,"Departamento",C17,"Año ",$X$4),0) -> 22624396.18 | Q17: =IFERROR(GETPIVOTDATA("Pago",'3.1. TD_Pens'!$A$122,"Mes",$V$1,"Departamento",C17,"Año ",$X$4),0) -> 7060376.41 | R17: =IFERROR(GETPIVOTDATA("Pago",'3.1. TD_Pens'!$A$158,"Mes",$V$1,"Departamento",C17,"Año ",$X$4),0) -> 10389.28 | S17: =+IFERROR(GETPIVOTDATA("Consulta",'5.1 TD_Costos'!$A$40,"Departamento",C17,"Mes",$V$1,"Año",$X$4),0) -> 14917942 | T17: =+IFERROR(GETPIVOTDATA("Egresos",'5.1 TD_Costos'!$A$75,"Departamento",C17,"Mes",$V$1,"Año",$X$4),0) -> 11946317 | U17: =+IFERROR(GETPIVOTDATA("Emergencia",'5.1 TD_Costos'!$A$110,"Departamento",C17,"Mes",$V$1,"Año",$X$4),0) -> 5646910 | V17: =+IFERROR(GETPIVOTDATA("Auxilios",'5.1 TD_Costos'!$A$145,"Departamento",C17,"Mes",$V$1,"Año",$X$4),0) -> 0 | W17: =IFERROR(GETPIVOTDATA("Trabajadores",'4.1. TD_RRHH'!A8,"Mes",$Y$5,"Departamento",C17,"Año",$X$4),0) -> 1614 | X17: =IFERROR(IF($X$5="Anual",GETPIVOTDATA("Salarios",'4.1. TD_RRHH'!B8,"Departamento",C17,"Mes",$Y$5,"Año",$X$4),GETPIVOTDATA("Salarios",'4.1. TD_RRHH'!B8,"Mes",$Y$5,"Departamento",C17,"Año",$X$4)),0) -> 10239493.23
B18: 6 | C18: Santa Rosa | D18: =IFERROR(GETPIVOTDATA("Afiliados ",'1.1. TD_Afil_1'!$A$4,"Mes",$Y$5,"Departamento ",C18,"Año",$X$4),0) -> 20392 | E18: =IFERROR(GETPIVOTDATA("Salarios ",'1.1. TD_Afil_1'!$A$4,"Mes",$Y$5,"Departamento ",C18,"Año",$X$4),0) -> 111055926 | F18: 5446.053648 | G18: =IFERROR(GETPIVOTDATA("Consulta",'2.2. TD_Salud_Produc2'!$A$7,"Mes",$V$1,"Departamento",C18,"Año",$X$4),0) -> 5902 | H18: =IFERROR(GETPIVOTDATA("Emergencia",'2.2. TD_Salud_Produc2'!$A$41,"Mes",$V$1,"Departamento",C18,"Año",$X$4),0) -> 2137 | I18: =IFERROR(GETPIVOTDATA("Egresos",'2.2. TD_Salud_Produc2'!$A$75,"Mes",$V$1,"Departamento",C18,"Año",$X$4),0) -> 197 | J18: =IFERROR(GETPIVOTDATA("Primeros Auxilios",'2.2. TD_Salud_Produc2'!$A$109,"Mes",$V$1,"Departamento",C18,"Año",$X$4),0) -> 595 | K18: =IFERROR(GETPIVOTDATA("Pensiones",'3.1. TD_Pens'!$A$48,"Mes",$V$1,"departamento",C18,"Año ",$X$4),0) -> 215 | L18: =IFERROR(GETPIVOTDATA("Pensiones",'3.1. TD_Pens'!$A$86,"Mes",$V$1,"Departamento",C18,"Año ",$X$4),0) -> 2220 | M18: =IFERROR(GETPIVOTDATA("Pensiones",'3.1. TD_Pens'!$A$122,"Mes",$V$1,"Departamento",C18,"Año ",$X$4),0) -> 2095 | N18: =IFERROR(GETPIVOTDATA("Pensiones",'3.1. TD_Pens'!$A$158,"Mes",$V$1,"Departamento",C18,"Año ",$X$4),0) -> 51 | O18: =IFERROR(GETPIVOTDATA("Pago",'3.1. TD_Pens'!$A$48,"Mes",$V$1,"departamento",C18,"Año ",$X$4),0) -> 311134.45 | P18: =IFERROR(GETPIVOTDATA("Pago",'3.1. TD_Pens'!$A$86,"Mes",$V$1,"Departamento",C18,"Año ",$X$4),0) -> 4214820.39 | Q18: =IFERROR(GETPIVOTDATA("Pago",'3.1. TD_Pens'!$A$122,"Mes",$V$1,"Departamento",C18,"Año ",$X$4),0) -> 1427804.74 | R18: =IFERROR(GETPIVOTDATA("Pago",'3.1. TD_Pens'!$A$158,"Mes",$V$1,"Departamento",C18,"Año ",$X$4),0) -> 6352.3 | S18: =+IFERROR(GETPIVOTDATA("Consulta",'5.1 TD_Costos'!$A$40,"Departamento",C18,"Mes",$V$1,"Año",$X$4),0) -> 2275594 | T18: =+IFERROR(GETPIVOTDATA("Egresos",'5.1 TD_Costos'!$A$75,"Departamento",C18,"Mes",$V$1,"Año",$X$4),0) -> 730896 | U18: =+IFERROR(GETPIVOTDATA("Emergencia",'5.1 TD_Costos'!$A$110,"Departamento",C18,"Mes",$V$1,"Año",$X$4),0) -> 465845 | V18: =+IFERROR(GETPIVOTDATA("Auxilios",'5.1 TD_Costos'!$A$145,"Departamento",C18,"Mes",$V$1,"Año",$X$4),0) -> 122465 | W18: =IFERROR(GETPIVOTDATA("Trabajadores",'4.1. TD_RRHH'!A9,"Mes",$Y$5,"Departamento",C18,"Año",$X$4),0) -> 154 | X18: =IFERROR(IF($X$5="Anual",GETPIVOTDATA("Salarios",'4.1. TD_RRHH'!B9,"Departamento",C18,"Mes",$Y$5,"Año",$X$4),GETPIVOTDATA("Salarios",'4.1. TD_RRHH'!B9,"Mes",$Y$5,"Departamento",C18,"Año",$X$4)),0) -> 966650.1
B19: 7 | C19: Sololá | D19: =IFERROR(GETPIVOTDATA("Afiliados ",'1.1. TD_Afil_1'!$A$4,"Mes",$Y$5,"Departamento ",C19,"Año",$X$4),0) -> 15593 | E19: =IFERROR(GETPIVOTDATA("Salarios ",'1.1. TD_Afil_1'!$A$4,"Mes",$Y$5,"Departamento ",C19,"Año",$X$4),0) -> 93752488 | F19: 6012.472776 | G19: =IFERROR(GETPIVOTDATA("Consulta",'2.2. TD_Salud_Produc2'!$A$7,"Mes",$V$1,"Departamento",C19,"Año",$X$4),0) -> 4302 | H19: =IFERROR(GETPIVOTDATA("Emergencia",'2.2. TD_Salud_Produc2'!$A$41,"Mes",$V$1,"Departamento",C19,"Año",$X$4),0) -> 720 | I19: =IFERROR(GETPIVOTDATA("Egresos",'2.2. TD_Salud_Produc2'!$A$75,"Mes",$V$1,"Departamento",C19,"Año",$X$4),0) -> 83 | J19: =IFERROR(GETPIVOTDATA("Primeros Auxilios",'2.2. TD_Salud_Produc2'!$A$109,"Mes",$V$1,"Departamento",C19,"Año",$X$4),0) -> 194 | K19: =IFERROR(GETPIVOTDATA("Pensiones",'3.1. TD_Pens'!$A$48,"Mes",$V$1,"departamento",C19,"Año ",$X$4),0) -> 16 | L19: =IFERROR(GETPIVOTDATA("Pensiones",'3.1. TD_Pens'!$A$86,"Mes",$V$1,"Departamento",C19,"Año ",$X$4),0) -> 568 | M19: =IFERROR(GETPIVOTDATA("Pensiones",'3.1. TD_Pens'!$A$122,"Mes",$V$1,"Departamento",C19,"Año ",$X$4),0) -> 376 | N19: =IFERROR(GETPIVOTDATA("Pensiones",'3.1. TD_Pens'!$A$158,"Mes",$V$1,"Departamento",C19,"Año ",$X$4),0) -> 16 | O19: =IFERROR(GETPIVOTDATA("Pago",'3.1. TD_Pens'!$A$48,"Mes",$V$1,"departamento",C19,"Año ",$X$4),0) -> 26292.32 | P19: =IFERROR(GETPIVOTDATA("Pago",'3.1. TD_Pens'!$A$86,"Mes",$V$1,"Departamento",C19,"Año ",$X$4),0) -> 1192822.61 | Q19: =IFERROR(GETPIVOTDATA("Pago",'3.1. TD_Pens'!$A$122,"Mes",$V$1,"Departamento",C19,"Año ",$X$4),0) -> 259716.85 | R19: =IFERROR(GETPIVOTDATA("Pago",'3.1. TD_Pens'!$A$158,"Mes",$V$1,"Departamento",C19,"Año ",$X$4),0) -> 2137.22 | S19: =+IFERROR(GETPIVOTDATA("Consulta",'5.1 TD_Costos'!$A$40,"Departamento",C19,"Mes",$V$1,"Año",$X$4),0) -> 2980539 | T19: =+IFERROR(GETPIVOTDATA("Egresos",'5.1 TD_Costos'!$A$75,"Departamento",C19,"Mes",$V$1,"Año",$X$4),0) -> 411339 | U19: =+IFERROR(GETPIVOTDATA("Emergencia",'5.1 TD_Costos'!$A$110,"Departamento",C19,"Mes",$V$1,"Año",$X$4),0) -> 472609 | V19: =+IFERROR(GETPIVOTDATA("Auxilios",'5.1 TD_Costos'!$A$145,"Departamento",C19,"Mes",$V$1,"Año",$X$4),0) -> 21569 | W19: =IFERROR(GETPIVOTDATA("Trabajadores",'4.1. TD_RRHH'!A10,"Mes",$Y$5,"Departamento",C19,"Año",$X$4),0) -> 132 | X19: =IFERROR(IF($X$5="Anual",GETPIVOTDATA("Salarios",'4.1. TD_RRHH'!B10,"Departamento",C19,"Mes",$Y$5,"Año",$X$4),GETPIVOTDATA("Salarios",'4.1. TD_RRHH'!B10,"Mes",$Y$5,"Departamento",C19,"Año",$X$4)),0) -> 825169.69
B20: 8 | C20: Totonicapán | D20: =IFERROR(GETPIVOTDATA("Afiliados ",'1.1. TD_Afil_1'!$A$4,"Mes",$Y$5,"Departamento ",C20,"Año",$X$4),0) -> 11378 | E20: =IFERROR(GETPIVOTDATA("Salarios ",'1.1. TD_Afil_1'!$A$4,"Mes",$Y$5,"Departamento ",C20,"Año",$X$4),0) -> 71359106 | F20: 6271.673932 | G20: =IFERROR(GETPIVOTDATA("Consulta",'2.2. TD_Salud_Produc2'!$A$7,"Mes",$V$1,"Departamento",C20,"Año",$X$4),0) -> 2281 | H20: =IFERROR(GETPIVOTDATA("Emergencia",'2.2. TD_Salud_Produc2'!$A$41,"Mes",$V$1,"Departamento",C20,"Año",$X$4),0) -> 882 | I20: =IFERROR(GETPIVOTDATA("Egresos",'2.2. TD_Salud_Produc2'!$A$75,"Mes",$V$1,"Departamento",C20,"Año",$X$4),0) -> 49 | J20: =IFERROR(GETPIVOTDATA("Primeros Auxilios",'2.2. TD_Salud_Produc2'!$A$109,"Mes",$V$1,"Departamento",C20,"Año",$X$4),0) -> 0 | K20: =IFERROR(GETPIVOTDATA("Pensiones",'3.1. TD_Pens'!$A$48,"Mes",$V$1,"departamento",C20,"Año ",$X$4),0) -> 17 | L20: =IFERROR(GETPIVOTDATA("Pensiones",'3.1. TD_Pens'!$A$86,"Mes",$V$1,"Departamento",C20,"Año ",$X$4),0) -> 261 | M20: =IFERROR(GETPIVOTDATA("Pensiones",'3.1. TD_Pens'!$A$122,"Mes",$V$1,"Departamento",C20,"Año ",$X$4),0) -> 232 | N20: =IFERROR(GETPIVOTDATA("Pensiones",'3.1. TD_Pens'!$A$158,"Mes",$V$1,"Departamento",C20,"Año ",$X$4),0) -> 14 | O20: =IFERROR(GETPIVOTDATA("Pago",'3.1. TD_Pens'!$A$48,"Mes",$V$1,"departamento",C20,"Año ",$X$4),0) -> 31963.75 | P20: =IFERROR(GETPIVOTDATA("Pago",'3.1. TD_Pens'!$A$86,"Mes",$V$1,"Departamento",C20,"Año ",$X$4),0) -> 530718.97 | Q20: =IFERROR(GETPIVOTDATA("Pago",'3.1. TD_Pens'!$A$122,"Mes",$V$1,"Departamento",C20,"Año ",$X$4),0) -> 190238.11 | R20: =IFERROR(GETPIVOTDATA("Pago",'3.1. TD_Pens'!$A$158,"Mes",$V$1,"Departamento",C20,"Año ",$X$4),0) -> 1543.55 | S20: =+IFERROR(GETPIVOTDATA("Consulta",'5.1 TD_Costos'!$A$40,"Departamento",C20,"Mes",$V$1,"Año",$X$4),0) -> 726263 | T20: =+IFERROR(GETPIVOTDATA("Egresos",'5.1 TD_Costos'!$A$75,"Departamento",C20,"Mes",$V$1,"Año",$X$4),0) -> 314682 | U20: =+IFERROR(GETPIVOTDATA("Emergencia",'5.1 TD_Costos'!$A$110,"Departamento",C20,"Mes",$V$1,"Año",$X$4),0) -> 206925 | V20: =+IFERROR(GETPIVOTDATA("Auxilios",'5.1 TD_Costos'!$A$145,"Departamento",C20,"Mes",$V$1,"Año",$X$4),0) -> 0 | W20: =IFERROR(GETPIVOTDATA("Trabajadores",'4.1. TD_RRHH'!A11,"Mes",$Y$5,"Departamento",C20,"Año",$X$4),0) -> 51 | X20: =IFERROR(IF($X$5="Anual",GETPIVOTDATA("Salarios",'4.1. TD_RRHH'!B11,"Departamento",C20,"Mes",$Y$5,"Año",$X$4),GETPIVOTDATA("Salarios",'4.1. TD_RRHH'!B11,"Mes",$Y$5,"Departamento",C20,"Año",$X$4)),0) -> 308613.54
B21: 9 | C21: Quetzaltenango | D21: =IFERROR(GETPIVOTDATA("Afiliados ",'1.1. TD_Afil_1'!$A$4,"Mes",$Y$5,"Departamento ",C21,"Año",$X$4),0) -> 72688 | E21: =IFERROR(GETPIVOTDATA("Salarios ",'1.1. TD_Afil_1'!$A$4,"Mes",$Y$5,"Departamento ",C21,"Año",$X$4),0) -> 383537851 | F21: 5276.494758 | G21: =IFERROR(GETPIVOTDATA("Consulta",'2.2. TD_Salud_Produc2'!$A$7,"Mes",$V$1,"Departamento",C21,"Año",$X$4),0) -> 35214 | H21: =IFERROR(GETPIVOTDATA("Emergencia",'2.2. TD_Salud_Produc2'!$A$41,"Mes",$V$1,"Departamento",C21,"Año",$X$4),0) -> 12706 | I21: =IFERROR(GETPIVOTDATA("Egresos",'2.2. TD_Salud_Produc2'!$A$75,"Mes",$V$1,"Departamento",C21,"Año",$X$4),0) -> 1318 | J21: =IFERROR(GETPIVOTDATA("Primeros Auxilios",'2.2. TD_Salud_Produc2'!$A$109,"Mes",$V$1,"Departamento",C21,"Año",$X$4),0) -> 204 | K21: =IFERROR(GETPIVOTDATA("Pensiones",'3.1. TD_Pens'!$A$48,"Mes",$V$1,"departamento",C21,"Año ",$X$4),0) -> 314 | L21: =IFERROR(GETPIVOTDATA("Pensiones",'3.1. TD_Pens'!$A$86,"Mes",$V$1,"Departamento",C21,"Año ",$X$4),0) -> 6150 | M21: =IFERROR(GETPIVOTDATA("Pensiones",'3.1. TD_Pens'!$A$122,"Mes",$V$1,"Departamento",C21,"Año ",$X$4),0) -> 3876 | N21: =IFERROR(GETPIVOTDATA("Pensiones",'3.1. TD_Pens'!$A$158,"Mes",$V$1,"Departamento",C21,"Año ",$X$4),0) -> 119 | O21: =IFERROR(GETPIVOTDATA("Pago",'3.1. TD_Pens'!$A$48,"Mes",$V$1,"departamento",C21,"Año ",$X$4),0) -> 629094.27 | P21: =IFERROR(GETPIVOTDATA("Pago",'3.1. TD_Pens'!$A$86,"Mes",$V$1,"Departamento",C21,"Año ",$X$4),0) -> 12674966.29 | Q21: =IFERROR(GETPIVOTDATA("Pago",'3.1. TD_Pens'!$A$122,"Mes",$V$1,"Departamento",C21,"Año ",$X$4),0) -> 2689787.48 | R21: =IFERROR(GETPIVOTDATA("Pago",'3.1. TD_Pens'!$A$158,"Mes",$V$1,"Departamento",C21,"Año ",$X$4),0) -> 14426.27 | S21: =+IFERROR(GETPIVOTDATA("Consulta",'5.1 TD_Costos'!$A$40,"Departamento",C21,"Mes",$V$1,"Año",$X$4),0) -> 21431793 | T21: =+IFERROR(GETPIVOTDATA("Egresos",'5.1 TD_Costos'!$A$75,"Departamento",C21,"Mes",$V$1,"Año",$X$4),0) -> 16028055 | U21: =+IFERROR(GETPIVOTDATA("Emergencia",'5.1 TD_Costos'!$A$110,"Departamento",C21,"Mes",$V$1,"Año",$X$4),0) -> 5501165 | V21: =+IFERROR(GETPIVOTDATA("Auxilios",'5.1 TD_Costos'!$A$145,"Departamento",C21,"Mes",$V$1,"Año",$X$4),0) -> 26082 | W21: =IFERROR(GETPIVOTDATA("Trabajadores",'4.1. TD_RRHH'!A12,"Mes",$Y$5,"Departamento",C21,"Año",$X$4),0) -> 2074 | X21: =IFERROR(IF($X$5="Anual",GETPIVOTDATA("Salarios",'4.1. TD_RRHH'!B12,"Departamento",C21,"Mes",$Y$5,"Año",$X$4),GETPIVOTDATA("Salarios",'4.1. TD_RRHH'!B12,"Mes",$Y$5,"Departamento",C21,"Año",$X$4)),0) -> 13336339.55
B22: 10 | C22: Suchitepéquez | D22: =IFERROR(GETPIVOTDATA("Afiliados ",'1.1. TD_Afil_1'!$A$4,"Mes",$Y$5,"Departamento ",C22,"Año",$X$4),0) -> 39672 | E22: =IFERROR(GETPIVOTDATA("Salarios ",'1.1. TD_Afil_1'!$A$4,"Mes",$Y$5,"Departamento ",C22,"Año",$X$4),0) -> 192923139 | F22: 4862.954704 | G22: =IFERROR(GETPIVOTDATA("Consulta",'2.2. TD_Salud_Produc2'!$A$7,"Mes",$V$1,"Departamento",C22,"Año",$X$4),0) -> 20963 | H22: =IFERROR(GETPIVOTDATA("Emergencia",'2.2. TD_Salud_Produc2'!$A$41,"Mes",$V$1,"Departamento",C22,"Año",$X$4),0) -> 9400 | I22: =IFERROR(GETPIVOTDATA("Egresos",'2.2. TD_Salud_Produc2'!$A$75,"Mes",$V$1,"Departamento",C22,"Año",$X$4),0) -> 755 | J22: =IFERROR(GETPIVOTDATA("Primeros Auxilios",'2.2. TD_Salud_Produc2'!$A$109,"Mes",$V$1,"Departamento",C22,"Año",$X$4),0) -> 1213 | K22: =IFERROR(GETPIVOTDATA("Pensiones",'3.1. TD_Pens'!$A$48,"Mes",$V$1,"departamento",C22,"Año ",$X$4),0) -> 330 | L22: =IFERROR(GETPIVOTDATA("Pensiones",'3.1. TD_Pens'!$A$86,"Mes",$V$1,"Departamento",C22,"Año ",$X$4),0) -> 5150 | M22: =IFERROR(GETPIVOTDATA("Pensiones",'3.1. TD_Pens'!$A$122,"Mes",$V$1,"Departamento",C22,"Año ",$X$4),0) -> 4272 | N22: =IFERROR(GETPIVOTDATA("Pensiones",'3.1. TD_Pens'!$A$158,"Mes",$V$1,"Departamento",C22,"Año ",$X$4),0) -> 62 | O22: =IFERROR(GETPIVOTDATA("Pago",'3.1. TD_Pens'!$A$48,"Mes",$V$1,"departamento",C22,"Año ",$X$4),0) -> 466433.54 | P22: =IFERROR(GETPIVOTDATA("Pago",'3.1. TD_Pens'!$A$86,"Mes",$V$1,"Departamento",C22,"Año ",$X$4),0) -> 8628025.33 | Q22: =IFERROR(GETPIVOTDATA("Pago",'3.1. TD_Pens'!$A$122,"Mes",$V$1,"Departamento",C22,"Año ",$X$4),0) -> 2868316.78 | R22: =IFERROR(GETPIVOTDATA("Pago",'3.1. TD_Pens'!$A$158,"Mes",$V$1,"Departamento",C22,"Año ",$X$4),0) -> 7955.21 | S22: =+IFERROR(GETPIVOTDATA("Consulta",'5.1 TD_Costos'!$A$40,"Departamento",C22,"Mes",$V$1,"Año",$X$4),0) -> 7713465 | T22: =+IFERROR(GETPIVOTDATA("Egresos",'5.1 TD_Costos'!$A$75,"Departamento",C22,"Mes",$V$1,"Año",$X$4),0) -> 7896222 | U22: =+IFERROR(GETPIVOTDATA("Emergencia",'5.1 TD_Costos'!$A$110,"Departamento",C22,"Mes",$V$1,"Año",$X$4),0) -> 2682839 | V22: =+IFERROR(GETPIVOTDATA("Auxilios",'5.1 TD_Costos'!$A$145,"Departamento",C22,"Mes",$V$1,"Año",$X$4),0) -> 54601 | W22: =IFERROR(GETPIVOTDATA("Trabajadores",'4.1. TD_RRHH'!A13,"Mes",$Y$5,"Departamento",C22,"Año",$X$4),0) -> 1132 | X22: =IFERROR(IF($X$5="Anual",GETPIVOTDATA("Salarios",'4.1. TD_RRHH'!B13,"Departamento",C22,"Mes",$Y$5,"Año",$X$4),GETPIVOTDATA("Salarios",'4.1. TD_RRHH'!B13,"Mes",$Y$5,"Departamento",C22,"Año",$X$4)),0) -> 7184698.69
B23: 11 | C23: Retalhuleu | D23: =IFERROR(GETPIVOTDATA("Afiliados ",'1.1. TD_Afil_1'!$A$4,"Mes",$Y$5,"Departamento ",C23,"Año",$X$4),0) -> 33820 | E23: =IFERROR(GETPIVOTDATA("Salarios ",'1.1. TD_Afil_1'!$A$4,"Mes",$Y$5,"Departamento ",C23,"Año",$X$4),0) -> 172466638 | F23: 5099.545772 | G23: =IFERROR(GETPIVOTDATA("Consulta",'2.2. TD_Salud_Produc2'!$A$7,"Mes",$V$1,"Departamento",C23,"Año",$X$4),0) -> 8815 | H23: =IFERROR(GETPIVOTDATA("Emergencia",'2.2. TD_Salud_Produc2'!$A$41,"Mes",$V$1,"Departamento",C23,"Año",$X$4),0) -> 4891 | I23: =IFERROR(GETPIVOTDATA("Egresos",'2.2. TD_Salud_Produc2'!$A$75,"Mes",$V$1,"Departamento",C23,"Año",$X$4),0) -> 402 | J23: =IFERROR(GETPIVOTDATA("Primeros Auxilios",'2.2. TD_Salud_Produc2'!$A$109,"Mes",$V$1,"Departamento",C23,"Año",$X$4),0) -> 0 | K23: =IFERROR(GETPIVOTDATA("Pensiones",'3.1. TD_Pens'!$A$48,"Mes",$V$1,"departamento",C23,"Año ",$X$4),0) -> 208 | L23: =IFERROR(GETPIVOTDATA("Pensiones",'3.1. TD_Pens'!$A$86,"Mes",$V$1,"Departamento",C23,"Año ",$X$4),0) -> 3009 | M23: =IFERROR(GETPIVOTDATA("Pensiones",'3.1. TD_Pens'!$A$122,"Mes",$V$1,"Departamento",C23,"Año ",$X$4),0) -> 2595 | N23: =IFERROR(GETPIVOTDATA("Pensiones",'3.1. TD_Pens'!$A$158,"Mes",$V$1,"Departamento",C23,"Año ",$X$4),0) -> 43 | O23: =IFERROR(GETPIVOTDATA("Pago",'3.1. TD_Pens'!$A$48,"Mes",$V$1,"departamento",C23,"Año ",$X$4),0) -> 349163.14 | P23: =IFERROR(GETPIVOTDATA("Pago",'3.1. TD_Pens'!$A$86,"Mes",$V$1,"Departamento",C23,"Año ",$X$4),0) -> 5929707.84 | Q23: =IFERROR(GETPIVOTDATA("Pago",'3.1. TD_Pens'!$A$122,"Mes",$V$1,"Departamento",C23,"Año ",$X$4),0) -> 1877631.93 | R23: =IFERROR(GETPIVOTDATA("Pago",'3.1. TD_Pens'!$A$158,"Mes",$V$1,"Departamento",C23,"Año ",$X$4),0) -> 5580.54 | S23: =+IFERROR(GETPIVOTDATA("Consulta",'5.1 TD_Costos'!$A$40,"Departamento",C23,"Mes",$V$1,"Año",$X$4),0) -> 4232796 | T23: =+IFERROR(GETPIVOTDATA("Egresos",'5.1 TD_Costos'!$A$75,"Departamento",C23,"Mes",$V$1,"Año",$X$4),0) -> 3297728 | U23: =+IFERROR(GETPIVOTDATA("Emergencia",'5.1 TD_Costos'!$A$110,"Departamento",C23,"Mes",$V$1,"Año",$X$4),0) -> 1599661 | V23: =+IFERROR(GETPIVOTDATA("Auxilios",'5.1 TD_Costos'!$A$145,"Departamento",C23,"Mes",$V$1,"Año",$X$4),0) -> 0 | W23: =IFERROR(GETPIVOTDATA("Trabajadores",'4.1. TD_RRHH'!A14,"Mes",$Y$5,"Departamento",C23,"Año",$X$4),0) -> 379 | X23: =IFERROR(IF($X$5="Anual",GETPIVOTDATA("Salarios",'4.1. TD_RRHH'!B14,"Departamento",C23,"Mes",$Y$5,"Año",$X$4),GETPIVOTDATA("Salarios",'4.1. TD_RRHH'!B14,"Mes",$Y$5,"Departamento",C23,"Año",$X$4)),0) -> 2377726.74
B24: 12 | C24: San Marcos | D24: =IFERROR(GETPIVOTDATA("Afiliados ",'1.1. TD_Afil_1'!$A$4,"Mes",$Y$5,"Departamento ",C24,"Año",$X$4),0) -> 42082 | E24: =IFERROR(GETPIVOTDATA("Salarios ",'1.1. TD_Afil_1'!$A$4,"Mes",$Y$5,"Departamento ",C24,"Año",$X$4),0) -> 225161409 | F24: 5350.539637 | G24: =IFERROR(GETPIVOTDATA("Consulta",'2.2. TD_Salud_Produc2'!$A$7,"Mes",$V$1,"Departamento",C24,"Año",$X$4),0) -> 21644 | H24: =IFERROR(GETPIVOTDATA("Emergencia",'2.2. TD_Salud_Produc2'!$A$41,"Mes",$V$1,"Departamento",C24,"Año",$X$4),0) -> 4633 | I24: =IFERROR(GETPIVOTDATA("Egresos",'2.2. TD_Salud_Produc2'!$A$75,"Mes",$V$1,"Departamento",C24,"Año",$X$4),0) -> 442 | J24: =IFERROR(GETPIVOTDATA("Primeros Auxilios",'2.2. TD_Salud_Produc2'!$A$109,"Mes",$V$1,"Departamento",C24,"Año",$X$4),0) -> 222 | K24: =IFERROR(GETPIVOTDATA("Pensiones",'3.1. TD_Pens'!$A$48,"Mes",$V$1,"departamento",C24,"Año ",$X$4),0) -> 188 | L24: =IFERROR(GETPIVOTDATA("Pensiones",'3.1. TD_Pens'!$A$86,"Mes",$V$1,"Departamento",C24,"Año ",$X$4),0) -> 3527 | M24: =IFERROR(GETPIVOTDATA("Pensiones",'3.1. TD_Pens'!$A$122,"Mes",$V$1,"Departamento",C24,"Año ",$X$4),0) -> 2514 | N24: =IFERROR(GETPIVOTDATA("Pensiones",'3.1. TD_Pens'!$A$158,"Mes",$V$1,"Departamento",C24,"Año ",$X$4),0) -> 73 | O24: =IFERROR(GETPIVOTDATA("Pago",'3.1. TD_Pens'!$A$48,"Mes",$V$1,"departamento",C24,"Año ",$X$4),0) -> 266865.49 | P24: =IFERROR(GETPIVOTDATA("Pago",'3.1. TD_Pens'!$A$86,"Mes",$V$1,"Departamento",C24,"Año ",$X$4),0) -> 5027576.97 | Q24: =IFERROR(GETPIVOTDATA("Pago",'3.1. TD_Pens'!$A$122,"Mes",$V$1,"Departamento",C24,"Año ",$X$4),0) -> 1470202.31 | R24: =IFERROR(GETPIVOTDATA("Pago",'3.1. TD_Pens'!$A$158,"Mes",$V$1,"Departamento",C24,"Año ",$X$4),0) -> 8786.36 | S24: =+IFERROR(GETPIVOTDATA("Consulta",'5.1 TD_Costos'!$A$40,"Departamento",C24,"Mes",$V$1,"Año",$X$4),0) -> 8620198 | T24: =+IFERROR(GETPIVOTDATA("Egresos",'5.1 TD_Costos'!$A$75,"Departamento",C24,"Mes",$V$1,"Año",$X$4),0) -> 1773975 | U24: =+IFERROR(GETPIVOTDATA("Emergencia",'5.1 TD_Costos'!$A$110,"Departamento",C24,"Mes",$V$1,"Año",$X$4),0) -> 1803435 | V24: =+IFERROR(GETPIVOTDATA("Auxilios",'5.1 TD_Costos'!$A$145,"Departamento",C24,"Mes",$V$1,"Año",$X$4),0) -> 80349 | W24: =IFERROR(GETPIVOTDATA("Trabajadores",'4.1. TD_RRHH'!A15,"Mes",$Y$5,"Departamento",C24,"Año",$X$4),0) -> 476 | X24: =IFERROR(IF($X$5="Anual",GETPIVOTDATA("Salarios",'4.1. TD_RRHH'!B15,"Departamento",C24,"Mes",$Y$5,"Año",$X$4),GETPIVOTDATA("Salarios",'4.1. TD_RRHH'!B15,"Mes",$Y$5,"Departamento",C24,"Año",$X$4)),0) -> 3095104.66
B25: 13 | C25: Huehuetenango | D25: =IFERROR(GETPIVOTDATA("Afiliados ",'1.1. TD_Afil_1'!$A$4,"Mes",$Y$5,"Departamento ",C25,"Año",$X$4),0) -> 34820 | E25: =IFERROR(GETPIVOTDATA("Salarios ",'1.1. TD_Afil_1'!$A$4,"Mes",$Y$5,"Departamento ",C25,"Año",$X$4),0) -> 209017563 | F25: 6002.801924 | G25: =IFERROR(GETPIVOTDATA("Consulta",'2.2. TD_Salud_Produc2'!$A$7,"Mes",$V$1,"Departamento",C25,"Año",$X$4),0) -> 7294 | H25: =IFERROR(GETPIVOTDATA("Emergencia",'2.2. TD_Salud_Produc2'!$A$41,"Mes",$V$1,"Departamento",C25,"Año",$X$4),0) -> 3088 | I25: =IFERROR(GETPIVOTDATA("Egresos",'2.2. TD_Salud_Produc2'!$A$75,"Mes",$V$1,"Departamento",C25,"Año",$X$4),0) -> 172 | J25: =IFERROR(GETPIVOTDATA("Primeros Auxilios",'2.2. TD_Salud_Produc2'!$A$109,"Mes",$V$1,"Departamento",C25,"Año",$X$4),0) -> 13 | K25: =IFERROR(GETPIVOTDATA("Pensiones",'3.1. TD_Pens'!$A$48,"Mes",$V$1,"departamento",C25,"Año ",$X$4),0) -> 77 | L25: =IFERROR(GETPIVOTDATA("Pensiones",'3.1. TD_Pens'!$A$86,"Mes",$V$1,"Departamento",C25,"Año ",$X$4),0) -> 1083 | M25: =IFERROR(GETPIVOTDATA("Pensiones",'3.1. TD_Pens'!$A$122,"Mes",$V$1,"Departamento",C25,"Año ",$X$4),0) -> 813 | N25: =IFERROR(GETPIVOTDATA("Pensiones",'3.1. TD_Pens'!$A$158,"Mes",$V$1,"Departamento",C25,"Año ",$X$4),0) -> 79 | O25: =IFERROR(GETPIVOTDATA("Pago",'3.1. TD_Pens'!$A$48,"Mes",$V$1,"departamento",C25,"Año ",$X$4),0) -> 137157.5 | P25: =IFERROR(GETPIVOTDATA("Pago",'3.1. TD_Pens'!$A$86,"Mes",$V$1,"Departamento",C25,"Año ",$X$4),0) -> 2641316.9 | Q25: =IFERROR(GETPIVOTDATA("Pago",'3.1. TD_Pens'!$A$122,"Mes",$V$1,"Departamento",C25,"Año ",$X$4),0) -> 621286.36 | R25: =IFERROR(GETPIVOTDATA("Pago",'3.1. TD_Pens'!$A$158,"Mes",$V$1,"Departamento",C25,"Año ",$X$4),0) -> 9083.18 | S25: =+IFERROR(GETPIVOTDATA("Consulta",'5.1 TD_Costos'!$A$40,"Departamento",C25,"Mes",$V$1,"Año",$X$4),0) -> 3411415 | T25: =+IFERROR(GETPIVOTDATA("Egresos",'5.1 TD_Costos'!$A$75,"Departamento",C25,"Mes",$V$1,"Año",$X$4),0) -> 1046940 | U25: =+IFERROR(GETPIVOTDATA("Emergencia",'5.1 TD_Costos'!$A$110,"Departamento",C25,"Mes",$V$1,"Año",$X$4),0) -> 684018 | V25: =+IFERROR(GETPIVOTDATA("Auxilios",'5.1 TD_Costos'!$A$145,"Departamento",C25,"Mes",$V$1,"Año",$X$4),0) -> 6177 | W25: =IFERROR(GETPIVOTDATA("Trabajadores",'4.1. TD_RRHH'!A16,"Mes",$Y$5,"Departamento",C25,"Año",$X$4),0) -> 223 | X25: =IFERROR(IF($X$5="Anual",GETPIVOTDATA("Salarios",'4.1. TD_RRHH'!B16,"Departamento",C25,"Mes",$Y$5,"Año",$X$4),GETPIVOTDATA("Salarios",'4.1. TD_RRHH'!B16,"Mes",$Y$5,"Departamento",C25,"Año",$X$4)),0) -> 1348630.68
B26: 14 | C26: Quiché | D26: =IFERROR(GETPIVOTDATA("Afiliados ",'1.1. TD_Afil_1'!$A$4,"Mes",$Y$5,"Departamento ",C26,"Año",$X$4),0) -> 26947 | E26: =IFERROR(GETPIVOTDATA("Salarios ",'1.1. TD_Afil_1'!$A$4,"Mes",$Y$5,"Departamento ",C26,"Año",$X$4),0) -> 166607314 | F26: 6182.777823 | G26: =IFERROR(GETPIVOTDATA("Consulta",'2.2. TD_Salud_Produc2'!$A$7,"Mes",$V$1,"Departamento",C26,"Año",$X$4),0) -> 3505 | H26: =IFERROR(GETPIVOTDATA("Emergencia",'2.2. TD_Salud_Produc2'!$A$41,"Mes",$V$1,"Departamento",C26,"Año",$X$4),0) -> 1635 | I26: =IFERROR(GETPIVOTDATA("Egresos",'2.2. TD_Salud_Produc2'!$A$75,"Mes",$V$1,"Departamento",C26,"Año",$X$4),0) -> 74 | J26: =IFERROR(GETPIVOTDATA("Primeros Auxilios",'2.2. TD_Salud_Produc2'!$A$109,"Mes",$V$1,"Departamento",C26,"Año",$X$4),0) -> 0 | K26: =IFERROR(GETPIVOTDATA("Pensiones",'3.1. TD_Pens'!$A$48,"Mes",$V$1,"departamento",C26,"Año ",$X$4),0) -> 48 | L26: =IFERROR(GETPIVOTDATA("Pensiones",'3.1. TD_Pens'!$A$86,"Mes",$V$1,"Departamento",C26,"Año ",$X$4),0) -> 589 | M26: =IFERROR(GETPIVOTDATA("Pensiones",'3.1. TD_Pens'!$A$122,"Mes",$V$1,"Departamento",C26,"Año ",$X$4),0) -> 542 | N26: =IFERROR(GETPIVOTDATA("Pensiones",'3.1. TD_Pens'!$A$158,"Mes",$V$1,"Departamento",C26,"Año ",$X$4),0) -> 59 | O26: =IFERROR(GETPIVOTDATA("Pago",'3.1. TD_Pens'!$A$48,"Mes",$V$1,"departamento",C26,"Año ",$X$4),0) -> 65827.37 | P26: =IFERROR(GETPIVOTDATA("Pago",'3.1. TD_Pens'!$A$86,"Mes",$V$1,"Departamento",C26,"Año ",$X$4),0) -> 1112675.04 | Q26: =IFERROR(GETPIVOTDATA("Pago",'3.1. TD_Pens'!$A$122,"Mes",$V$1,"Departamento",C26,"Año ",$X$4),0) -> 377501.46 | R26: =IFERROR(GETPIVOTDATA("Pago",'3.1. TD_Pens'!$A$158,"Mes",$V$1,"Departamento",C26,"Año ",$X$4),0) -> 7005.35 | S26: =+IFERROR(GETPIVOTDATA("Consulta",'5.1 TD_Costos'!$A$40,"Departamento",C26,"Mes",$V$1,"Año",$X$4),0) -> 136311 | T26: =+IFERROR(GETPIVOTDATA("Egresos",'5.1 TD_Costos'!$A$75,"Departamento",C26,"Mes",$V$1,"Año",$X$4),0) -> 0 | U26: =+IFERROR(GETPIVOTDATA("Emergencia",'5.1 TD_Costos'!$A$110,"Departamento",C26,"Mes",$V$1,"Año",$X$4),0) -> 0 | V26: =+IFERROR(GETPIVOTDATA("Auxilios",'5.1 TD_Costos'!$A$145,"Departamento",C26,"Mes",$V$1,"Año",$X$4),0) -> 0 | W26: =IFERROR(GETPIVOTDATA("Trabajadores",'4.1. TD_RRHH'!A17,"Mes",$Y$5,"Departamento",C26,"Año",$X$4),0) -> 115 | X26: =IFERROR(IF($X$5="Anual",GETPIVOTDATA("Salarios",'4.1. TD_RRHH'!B17,"Departamento",C26,"Mes",$Y$5,"Año",$X$4),GETPIVOTDATA("Salarios",'4.1. TD_RRHH'!B17,"Mes",$Y$5,"Departamento",C26,"Año",$X$4)),0) -> 702103.69
B27: 15 | C27: Baja Verapaz | D27: =IFERROR(GETPIVOTDATA("Afiliados ",'1.1. TD_Afil_1'!$A$4,"Mes",$Y$5,"Departamento ",C27,"Año",$X$4),0) -> 11691 | E27: =IFERROR(GETPIVOTDATA("Salarios ",'1.1. TD_Afil_1'!$A$4,"Mes",$Y$5,"Departamento ",C27,"Año",$X$4),0) -> 67629967 | F27: 5784.788897 | G27: =IFERROR(GETPIVOTDATA("Consulta",'2.2. TD_Salud_Produc2'!$A$7,"Mes",$V$1,"Departamento",C27,"Año",$X$4),0) -> 3832 | H27: =IFERROR(GETPIVOTDATA("Emergencia",'2.2. TD_Salud_Produc2'!$A$41,"Mes",$V$1,"Departamento",C27,"Año",$X$4),0) -> 2276 | I27: =IFERROR(GETPIVOTDATA("Egresos",'2.2. TD_Salud_Produc2'!$A$75,"Mes",$V$1,"Departamento",C27,"Año",$X$4),0) -> 29 | J27: =IFERROR(GETPIVOTDATA("Primeros Auxilios",'2.2. TD_Salud_Produc2'!$A$109,"Mes",$V$1,"Departamento",C27,"Año",$X$4),0) -> 0 | K27: =IFERROR(GETPIVOTDATA("Pensiones",'3.1. TD_Pens'!$A$48,"Mes",$V$1,"departamento",C27,"Año ",$X$4),0) -> 90 | L27: =IFERROR(GETPIVOTDATA("Pensiones",'3.1. TD_Pens'!$A$86,"Mes",$V$1,"Departamento",C27,"Año ",$X$4),0) -> 607 | M27: =IFERROR(GETPIVOTDATA("Pensiones",'3.1. TD_Pens'!$A$122,"Mes",$V$1,"Departamento",C27,"Año ",$X$4),0) -> 522 | N27: =IFERROR(GETPIVOTDATA("Pensiones",'3.1. TD_Pens'!$A$158,"Mes",$V$1,"Departamento",C27,"Año ",$X$4),0) -> 29 | O27: =IFERROR(GETPIVOTDATA("Pago",'3.1. TD_Pens'!$A$48,"Mes",$V$1,"departamento",C27,"Año ",$X$4),0) -> 138743.9 | P27: =IFERROR(GETPIVOTDATA("Pago",'3.1. TD_Pens'!$A$86,"Mes",$V$1,"Departamento",C27,"Año ",$X$4),0) -> 1298998.8 | Q27: =IFERROR(GETPIVOTDATA("Pago",'3.1. TD_Pens'!$A$122,"Mes",$V$1,"Departamento",C27,"Año ",$X$4),0) -> 374306.35 | R27: =IFERROR(GETPIVOTDATA("Pago",'3.1. TD_Pens'!$A$158,"Mes",$V$1,"Departamento",C27,"Año ",$X$4),0) -> 3502.68 | S27: =+IFERROR(GETPIVOTDATA("Consulta",'5.1 TD_Costos'!$A$40,"Departamento",C27,"Mes",$V$1,"Año",$X$4),0) -> 2718508 | T27: =+IFERROR(GETPIVOTDATA("Egresos",'5.1 TD_Costos'!$A$75,"Departamento",C27,"Mes",$V$1,"Año",$X$4),0) -> 289898 | U27: =+IFERROR(GETPIVOTDATA("Emergencia",'5.1 TD_Costos'!$A$110,"Departamento",C27,"Mes",$V$1,"Año",$X$4),0) -> 553606 | V27: =+IFERROR(GETPIVOTDATA("Auxilios",'5.1 TD_Costos'!$A$145,"Departamento",C27,"Mes",$V$1,"Año",$X$4),0) -> 0 | W27: =IFERROR(GETPIVOTDATA("Trabajadores",'4.1. TD_RRHH'!A18,"Mes",$Y$5,"Departamento",C27,"Año",$X$4),0) -> 126 | X27: =IFERROR(IF($X$5="Anual",GETPIVOTDATA("Salarios",'4.1. TD_RRHH'!B18,"Departamento",C27,"Mes",$Y$5,"Año",$X$4),GETPIVOTDATA("Salarios",'4.1. TD_RRHH'!B18,"Mes",$Y$5,"Departamento",C27,"Año",$X$4)),0) -> 777683.93
B28: 16 | C28: Alta Verapaz | D28: =IFERROR(GETPIVOTDATA("Afiliados ",'1.1. TD_Afil_1'!$A$4,"Mes",$Y$5,"Departamento ",C28,"Año",$X$4),0) -> 42350 | E28: =IFERROR(GETPIVOTDATA("Salarios ",'1.1. TD_Afil_1'!$A$4,"Mes",$Y$5,"Departamento ",C28,"Año",$X$4),0) -> 229530364 | F28: 5419.843306 | G28: =IFERROR(GETPIVOTDATA("Consulta",'2.2. TD_Salud_Produc2'!$A$7,"Mes",$V$1,"Departamento",C28,"Año",$X$4),0) -> 8587 | H28: =IFERROR(GETPIVOTDATA("Emergencia",'2.2. TD_Salud_Produc2'!$A$41,"Mes",$V$1,"Departamento",C28,"Año",$X$4),0) -> 2296 | I28: =IFERROR(GETPIVOTDATA("Egresos",'2.2. TD_Salud_Produc2'!$A$75,"Mes",$V$1,"Departamento",C28,"Año",$X$4),0) -> 257 | J28: =IFERROR(GETPIVOTDATA("Primeros Auxilios",'2.2. TD_Salud_Produc2'!$A$109,"Mes",$V$1,"Departamento",C28,"Año",$X$4),0) -> 0 | K28: =IFERROR(GETPIVOTDATA("Pensiones",'3.1. TD_Pens'!$A$48,"Mes",$V$1,"departamento",C28,"Año ",$X$4),0) -> 97 | L28: =IFERROR(GETPIVOTDATA("Pensiones",'3.1. TD_Pens'!$A$86,"Mes",$V$1,"Departamento",C28,"Año ",$X$4),0) -> 2944 | M28: =IFERROR(GETPIVOTDATA("Pensiones",'3.1. TD_Pens'!$A$122,"Mes",$V$1,"Departamento",C28,"Año ",$X$4),0) -> 1896 | N28: =IFERROR(GETPIVOTDATA("Pensiones",'3.1. TD_Pens'!$A$158,"Mes",$V$1,"Departamento",C28,"Año ",$X$4),0) -> 48 | O28: =IFERROR(GETPIVOTDATA("Pago",'3.1. TD_Pens'!$A$48,"Mes",$V$1,"departamento",C28,"Año ",$X$4),0) -> 165389.15 | P28: =IFERROR(GETPIVOTDATA("Pago",'3.1. TD_Pens'!$A$86,"Mes",$V$1,"Departamento",C28,"Año ",$X$4),0) -> 5577754.35 | Q28: =IFERROR(GETPIVOTDATA("Pago",'3.1. TD_Pens'!$A$122,"Mes",$V$1,"Departamento",C28,"Año ",$X$4),0) -> 1430222.85 | R28: =IFERROR(GETPIVOTDATA("Pago",'3.1. TD_Pens'!$A$158,"Mes",$V$1,"Departamento",C28,"Año ",$X$4),0) -> 6174.2 | S28: =+IFERROR(GETPIVOTDATA("Consulta",'5.1 TD_Costos'!$A$40,"Departamento",C28,"Mes",$V$1,"Año",$X$4),0) -> 3739271 | T28: =+IFERROR(GETPIVOTDATA("Egresos",'5.1 TD_Costos'!$A$75,"Departamento",C28,"Mes",$V$1,"Año",$X$4),0) -> 1108579 | U28: =+IFERROR(GETPIVOTDATA("Emergencia",'5.1 TD_Costos'!$A$110,"Departamento",C28,"Mes",$V$1,"Año",$X$4),0) -> 614483 | V28: =+IFERROR(GETPIVOTDATA("Auxilios",'5.1 TD_Costos'!$A$145,"Departamento",C28,"Mes",$V$1,"Año",$X$4),0) -> 0 | W28: =IFERROR(GETPIVOTDATA("Trabajadores",'4.1. TD_RRHH'!A19,"Mes",$Y$5,"Departamento",C28,"Año",$X$4),0) -> 241 | X28: =IFERROR(IF($X$5="Anual",GETPIVOTDATA("Salarios",'4.1. TD_RRHH'!B19,"Departamento",C28,"Mes",$Y$5,"Año",$X$4),GETPIVOTDATA("Salarios",'4.1. TD_RRHH'!B19,"Mes",$Y$5,"Departamento",C28,"Año",$X$4)),0) -> 1447513.97
B29: 17 | C29: Petén | D29: =IFERROR(GETPIVOTDATA("Afiliados ",'1.1. TD_Afil_1'!$A$4,"Mes",$Y$5,"Departamento ",C29,"Año",$X$4),0) -> 40826 | E29: =IFERROR(GETPIVOTDATA("Salarios ",'1.1. TD_Afil_1'!$A$4,"Mes",$Y$5,"Departamento ",C29,"Año",$X$4),0) -> 200814130 | F29: 4918.780434 | G29: =IFERROR(GETPIVOTDATA("Consulta",'2.2. TD_Salud_Produc2'!$A$7,"Mes",$V$1,"Departamento",C29,"Año",$X$4),0) -> 6486 | H29: =IFERROR(GETPIVOTDATA("Emergencia",'2.2. TD_Salud_Produc2'!$A$41,"Mes",$V$1,"Departamento",C29,"Año",$X$4),0) -> 28 | I29: =IFERROR(GETPIVOTDATA("Egresos",'2.2. TD_Salud_Produc2'!$A$75,"Mes",$V$1,"Departamento",C29,"Año",$X$4),0) -> 15 | J29: =IFERROR(GETPIVOTDATA("Primeros Auxilios",'2.2. TD_Salud_Produc2'!$A$109,"Mes",$V$1,"Departamento",C29,"Año",$X$4),0) -> 0 | K29: =IFERROR(GETPIVOTDATA("Pensiones",'3.1. TD_Pens'!$A$48,"Mes",$V$1,"departamento",C29,"Año ",$X$4),0) -> 36 | L29: =IFERROR(GETPIVOTDATA("Pensiones",'3.1. TD_Pens'!$A$86,"Mes",$V$1,"Departamento",C29,"Año ",$X$4),0) -> 704 | M29: =IFERROR(GETPIVOTDATA("Pensiones",'3.1. TD_Pens'!$A$122,"Mes",$V$1,"Departamento",C29,"Año ",$X$4),0) -> 812 | N29: =IFERROR(GETPIVOTDATA("Pensiones",'3.1. TD_Pens'!$A$158,"Mes",$V$1,"Departamento",C29,"Año ",$X$4),0) -> 22 | O29: =IFERROR(GETPIVOTDATA("Pago",'3.1. TD_Pens'!$A$48,"Mes",$V$1,"departamento",C29,"Año ",$X$4),0) -> 75117.92 | P29: =IFERROR(GETPIVOTDATA("Pago",'3.1. TD_Pens'!$A$86,"Mes",$V$1,"Departamento",C29,"Año ",$X$4),0) -> 1658739.5 | Q29: =IFERROR(GETPIVOTDATA("Pago",'3.1. TD_Pens'!$A$122,"Mes",$V$1,"Departamento",C29,"Año ",$X$4),0) -> 656623.34 | R29: =IFERROR(GETPIVOTDATA("Pago",'3.1. TD_Pens'!$A$158,"Mes",$V$1,"Departamento",C29,"Año ",$X$4),0) -> 2730.88 | S29: =+IFERROR(GETPIVOTDATA("Consulta",'5.1 TD_Costos'!$A$40,"Departamento",C29,"Mes",$V$1,"Año",$X$4),0) -> 3072047 | T29: =+IFERROR(GETPIVOTDATA("Egresos",'5.1 TD_Costos'!$A$75,"Departamento",C29,"Mes",$V$1,"Año",$X$4),0) -> 79933 | U29: =+IFERROR(GETPIVOTDATA("Emergencia",'5.1 TD_Costos'!$A$110,"Departamento",C29,"Mes",$V$1,"Año",$X$4),0) -> 35342 | V29: =+IFERROR(GETPIVOTDATA("Auxilios",'5.1 TD_Costos'!$A$145,"Departamento",C29,"Mes",$V$1,"Año",$X$4),0) -> 0 | W29: =IFERROR(GETPIVOTDATA("Trabajadores",'4.1. TD_RRHH'!A20,"Mes",$Y$5,"Departamento",C29,"Año",$X$4),0) -> 122 | X29: =IFERROR(IF($X$5="Anual",GETPIVOTDATA("Salarios",'4.1. TD_RRHH'!B20,"Departamento",C29,"Mes",$Y$5,"Año",$X$4),GETPIVOTDATA("Salarios",'4.1. TD_RRHH'!B20,"Mes",$Y$5,"Departamento",C29,"Año",$X$4)),0) -> 745136.79
B30: 18 | C30: Izabal | D30: =IFERROR(GETPIVOTDATA("Afiliados ",'1.1. TD_Afil_1'!$A$4,"Mes",$Y$5,"Departamento ",C30,"Año",$X$4),0) -> 43902 | E30: =IFERROR(GETPIVOTDATA("Salarios ",'1.1. TD_Afil_1'!$A$4,"Mes",$Y$5,"Departamento ",C30,"Año",$X$4),0) -> 219975967 | F30: 5010.613799 | G30: =IFERROR(GETPIVOTDATA("Consulta",'2.2. TD_Salud_Produc2'!$A$7,"Mes",$V$1,"Departamento",C30,"Año",$X$4),0) -> 14819 | H30: =IFERROR(GETPIVOTDATA("Emergencia",'2.2. TD_Salud_Produc2'!$A$41,"Mes",$V$1,"Departamento",C30,"Año",$X$4),0) -> 6733 | I30: =IFERROR(GETPIVOTDATA("Egresos",'2.2. TD_Salud_Produc2'!$A$75,"Mes",$V$1,"Departamento",C30,"Año",$X$4),0) -> 663 | J30: =IFERROR(GETPIVOTDATA("Primeros Auxilios",'2.2. TD_Salud_Produc2'!$A$109,"Mes",$V$1,"Departamento",C30,"Año",$X$4),0) -> 0 | K30: =IFERROR(GETPIVOTDATA("Pensiones",'3.1. TD_Pens'!$A$48,"Mes",$V$1,"departamento",C30,"Año ",$X$4),0) -> 260 | L30: =IFERROR(GETPIVOTDATA("Pensiones",'3.1. TD_Pens'!$A$86,"Mes",$V$1,"Departamento",C30,"Año ",$X$4),0) -> 4199 | M30: =IFERROR(GETPIVOTDATA("Pensiones",'3.1. TD_Pens'!$A$122,"Mes",$V$1,"Departamento",C30,"Año ",$X$4),0) -> 3276 | N30: =IFERROR(GETPIVOTDATA("Pensiones",'3.1. TD_Pens'!$A$158,"Mes",$V$1,"Departamento",C30,"Año ",$X$4),0) -> 34 | O30: =IFERROR(GETPIVOTDATA("Pago",'3.1. TD_Pens'!$A$48,"Mes",$V$1,"departamento",C30,"Año ",$X$4),0) -> 500122.47 | P30: =IFERROR(GETPIVOTDATA("Pago",'3.1. TD_Pens'!$A$86,"Mes",$V$1,"Departamento",C30,"Año ",$X$4),0) -> 10497337.23 | Q30: =IFERROR(GETPIVOTDATA("Pago",'3.1. TD_Pens'!$A$122,"Mes",$V$1,"Departamento",C30,"Año ",$X$4),0) -> 2969268.94 | R30: =IFERROR(GETPIVOTDATA("Pago",'3.1. TD_Pens'!$A$158,"Mes",$V$1,"Departamento",C30,"Año ",$X$4),0) -> 4155.71 | S30: =+IFERROR(GETPIVOTDATA("Consulta",'5.1 TD_Costos'!$A$40,"Departamento",C30,"Mes",$V$1,"Año",$X$4),0) -> 7485582 | T30: =+IFERROR(GETPIVOTDATA("Egresos",'5.1 TD_Costos'!$A$75,"Departamento",C30,"Mes",$V$1,"Año",$X$4),0) -> 5287587 | U30: =+IFERROR(GETPIVOTDATA("Emergencia",'5.1 TD_Costos'!$A$110,"Departamento",C30,"Mes",$V$1,"Año",$X$4),0) -> 2455094 | V30: =+IFERROR(GETPIVOTDATA("Auxilios",'5.1 TD_Costos'!$A$145,"Departamento",C30,"Mes",$V$1,"Año",$X$4),0) -> 0 | W30: =IFERROR(GETPIVOTDATA("Trabajadores",'4.1. TD_RRHH'!A21,"Mes",$Y$5,"Departamento",C30,"Año",$X$4),0) -> 762 | X30: =IFERROR(IF($X$5="Anual",GETPIVOTDATA("Salarios",'4.1. TD_RRHH'!B21,"Departamento",C30,"Mes",$Y$5,"Año",$X$4),GETPIVOTDATA("Salarios",'4.1. TD_RRHH'!B21,"Mes",$Y$5,"Departamento",C30,"Año",$X$4)),0) -> 4626505.31
B31: 19 | C31: Zacapa | D31: =IFERROR(GETPIVOTDATA("Afiliados ",'1.1. TD_Afil_1'!$A$4,"Mes",$Y$5,"Departamento ",C31,"Año",$X$4),0) -> 30794 | E31: =IFERROR(GETPIVOTDATA("Salarios ",'1.1. TD_Afil_1'!$A$4,"Mes",$Y$5,"Departamento ",C31,"Año",$X$4),0) -> 155457892 | F31: 5048.317594 | G31: =IFERROR(GETPIVOTDATA("Consulta",'2.2. TD_Salud_Produc2'!$A$7,"Mes",$V$1,"Departamento",C31,"Año",$X$4),0) -> 10315 | H31: =IFERROR(GETPIVOTDATA("Emergencia",'2.2. TD_Salud_Produc2'!$A$41,"Mes",$V$1,"Departamento",C31,"Año",$X$4),0) -> 2844 | I31: =IFERROR(GETPIVOTDATA("Egresos",'2.2. TD_Salud_Produc2'!$A$75,"Mes",$V$1,"Departamento",C31,"Año",$X$4),0) -> 91 | J31: =IFERROR(GETPIVOTDATA("Primeros Auxilios",'2.2. TD_Salud_Produc2'!$A$109,"Mes",$V$1,"Departamento",C31,"Año",$X$4),0) -> 694 | K31: =IFERROR(GETPIVOTDATA("Pensiones",'3.1. TD_Pens'!$A$48,"Mes",$V$1,"departamento",C31,"Año ",$X$4),0) -> 350 | L31: =IFERROR(GETPIVOTDATA("Pensiones",'3.1. TD_Pens'!$A$86,"Mes",$V$1,"Departamento",C31,"Año ",$X$4),0) -> 1754 | M31: =IFERROR(GETPIVOTDATA("Pensiones",'3.1. TD_Pens'!$A$122,"Mes",$V$1,"Departamento",C31,"Año ",$X$4),0) -> 1741 | N31: =IFERROR(GETPIVOTDATA("Pensiones",'3.1. TD_Pens'!$A$158,"Mes",$V$1,"Departamento",C31,"Año ",$X$4),0) -> 68 | O31: =IFERROR(GETPIVOTDATA("Pago",'3.1. TD_Pens'!$A$48,"Mes",$V$1,"departamento",C31,"Año ",$X$4),0) -> 525073.67 | P31: =IFERROR(GETPIVOTDATA("Pago",'3.1. TD_Pens'!$A$86,"Mes",$V$1,"Departamento",C31,"Año ",$X$4),0) -> 4022811.33 | Q31: =IFERROR(GETPIVOTDATA("Pago",'3.1. TD_Pens'!$A$122,"Mes",$V$1,"Departamento",C31,"Año ",$X$4),0) -> 1344596.21 | R31: =IFERROR(GETPIVOTDATA("Pago",'3.1. TD_Pens'!$A$158,"Mes",$V$1,"Departamento",C31,"Año ",$X$4),0) -> 8252.06 | S31: =+IFERROR(GETPIVOTDATA("Consulta",'5.1 TD_Costos'!$A$40,"Departamento",C31,"Mes",$V$1,"Año",$X$4),0) -> 5094988 | T31: =+IFERROR(GETPIVOTDATA("Egresos",'5.1 TD_Costos'!$A$75,"Departamento",C31,"Mes",$V$1,"Año",$X$4),0) -> 514972 | U31: =+IFERROR(GETPIVOTDATA("Emergencia",'5.1 TD_Costos'!$A$110,"Departamento",C31,"Mes",$V$1,"Año",$X$4),0) -> 685587 | V31: =+IFERROR(GETPIVOTDATA("Auxilios",'5.1 TD_Costos'!$A$145,"Departamento",C31,"Mes",$V$1,"Año",$X$4),0) -> 30748 | W31: =IFERROR(GETPIVOTDATA("Trabajadores",'4.1. TD_RRHH'!A22,"Mes",$Y$5,"Departamento",C31,"Año",$X$4),0) -> 263 | X31: =IFERROR(IF($X$5="Anual",GETPIVOTDATA("Salarios",'4.1. TD_RRHH'!B22,"Departamento",C31,"Mes",$Y$5,"Año",$X$4),GETPIVOTDATA("Salarios",'4.1. TD_RRHH'!B22,"Mes",$Y$5,"Departamento",C31,"Año",$X$4)),0) -> 1647434.27
B32: 20 | C32: Chiquimula | D32: =IFERROR(GETPIVOTDATA("Afiliados ",'1.1. TD_Afil_1'!$A$4,"Mes",$Y$5,"Departamento ",C32,"Año",$X$4),0) -> 21869 | E32: =IFERROR(GETPIVOTDATA("Salarios ",'1.1. TD_Afil_1'!$A$4,"Mes",$Y$5,"Departamento ",C32,"Año",$X$4),0) -> 120914166 | F32: 5529.021263 | G32: =IFERROR(GETPIVOTDATA("Consulta",'2.2. TD_Salud_Produc2'!$A$7,"Mes",$V$1,"Departamento",C32,"Año",$X$4),0) -> 6955 | H32: =IFERROR(GETPIVOTDATA("Emergencia",'2.2. TD_Salud_Produc2'!$A$41,"Mes",$V$1,"Departamento",C32,"Año",$X$4),0) -> 1772 | I32: =IFERROR(GETPIVOTDATA("Egresos",'2.2. TD_Salud_Produc2'!$A$75,"Mes",$V$1,"Departamento",C32,"Año",$X$4),0) -> 76 | J32: =IFERROR(GETPIVOTDATA("Primeros Auxilios",'2.2. TD_Salud_Produc2'!$A$109,"Mes",$V$1,"Departamento",C32,"Año",$X$4),0) -> 0 | K32: =IFERROR(GETPIVOTDATA("Pensiones",'3.1. TD_Pens'!$A$48,"Mes",$V$1,"departamento",C32,"Año ",$X$4),0) -> 129 | L32: =IFERROR(GETPIVOTDATA("Pensiones",'3.1. TD_Pens'!$A$86,"Mes",$V$1,"Departamento",C32,"Año ",$X$4),0) -> 1200 | M32: =IFERROR(GETPIVOTDATA("Pensiones",'3.1. TD_Pens'!$A$122,"Mes",$V$1,"Departamento",C32,"Año ",$X$4),0) -> 1067 | N32: =IFERROR(GETPIVOTDATA("Pensiones",'3.1. TD_Pens'!$A$158,"Mes",$V$1,"Departamento",C32,"Año ",$X$4),0) -> 50 | O32: =IFERROR(GETPIVOTDATA("Pago",'3.1. TD_Pens'!$A$48,"Mes",$V$1,"departamento",C32,"Año ",$X$4),0) -> 197585.03 | P32: =IFERROR(GETPIVOTDATA("Pago",'3.1. TD_Pens'!$A$86,"Mes",$V$1,"Departamento",C32,"Año ",$X$4),0) -> 3203300.49 | Q32: =IFERROR(GETPIVOTDATA("Pago",'3.1. TD_Pens'!$A$122,"Mes",$V$1,"Departamento",C32,"Año ",$X$4),0) -> 868768.25 | R32: =IFERROR(GETPIVOTDATA("Pago",'3.1. TD_Pens'!$A$158,"Mes",$V$1,"Departamento",C32,"Año ",$X$4),0) -> 6233.57 | S32: =+IFERROR(GETPIVOTDATA("Consulta",'5.1 TD_Costos'!$A$40,"Departamento",C32,"Mes",$V$1,"Año",$X$4),0) -> 3996067 | T32: =+IFERROR(GETPIVOTDATA("Egresos",'5.1 TD_Costos'!$A$75,"Departamento",C32,"Mes",$V$1,"Año",$X$4),0) -> 400988 | U32: =+IFERROR(GETPIVOTDATA("Emergencia",'5.1 TD_Costos'!$A$110,"Departamento",C32,"Mes",$V$1,"Año",$X$4),0) -> 690741 | V32: =+IFERROR(GETPIVOTDATA("Auxilios",'5.1 TD_Costos'!$A$145,"Departamento",C32,"Mes",$V$1,"Año",$X$4),0) -> 0 | W32: =IFERROR(GETPIVOTDATA("Trabajadores",'4.1. TD_RRHH'!A23,"Mes",$Y$5,"Departamento",C32,"Año",$X$4),0) -> 105 | X32: =IFERROR(IF($X$5="Anual",GETPIVOTDATA("Salarios",'4.1. TD_RRHH'!B23,"Departamento",C32,"Mes",$Y$5,"Año",$X$4),GETPIVOTDATA("Salarios",'4.1. TD_RRHH'!B23,"Mes",$Y$5,"Departamento",C32,"Año",$X$4)),0) -> 655782.3
B33: 21 | C33: Jalapa | D33: =IFERROR(GETPIVOTDATA("Afiliados ",'1.1. TD_Afil_1'!$A$4,"Mes",$Y$5,"Departamento ",C33,"Año",$X$4),0) -> 14039 | E33: =IFERROR(GETPIVOTDATA("Salarios ",'1.1. TD_Afil_1'!$A$4,"Mes",$Y$5,"Departamento ",C33,"Año",$X$4),0) -> 77643852 | F33: 5530.582805 | G33: =IFERROR(GETPIVOTDATA("Consulta",'2.2. TD_Salud_Produc2'!$A$7,"Mes",$V$1,"Departamento",C33,"Año",$X$4),0) -> 5641 | H33: =IFERROR(GETPIVOTDATA("Emergencia",'2.2. TD_Salud_Produc2'!$A$41,"Mes",$V$1,"Departamento",C33,"Año",$X$4),0) -> 1342 | I33: =IFERROR(GETPIVOTDATA("Egresos",'2.2. TD_Salud_Produc2'!$A$75,"Mes",$V$1,"Departamento",C33,"Año",$X$4),0) -> 52 | J33: =IFERROR(GETPIVOTDATA("Primeros Auxilios",'2.2. TD_Salud_Produc2'!$A$109,"Mes",$V$1,"Departamento",C33,"Año",$X$4),0) -> 0 | K33: =IFERROR(GETPIVOTDATA("Pensiones",'3.1. TD_Pens'!$A$48,"Mes",$V$1,"departamento",C33,"Año ",$X$4),0) -> 94 | L33: =IFERROR(GETPIVOTDATA("Pensiones",'3.1. TD_Pens'!$A$86,"Mes",$V$1,"Departamento",C33,"Año ",$X$4),0) -> 493 | M33: =IFERROR(GETPIVOTDATA("Pensiones",'3.1. TD_Pens'!$A$122,"Mes",$V$1,"Departamento",C33,"Año ",$X$4),0) -> 631 | N33: =IFERROR(GETPIVOTDATA("Pensiones",'3.1. TD_Pens'!$A$158,"Mes",$V$1,"Departamento",C33,"Año ",$X$4),0) -> 34 | O33: =IFERROR(GETPIVOTDATA("Pago",'3.1. TD_Pens'!$A$48,"Mes",$V$1,"departamento",C33,"Año ",$X$4),0) -> 135079.78 | P33: =IFERROR(GETPIVOTDATA("Pago",'3.1. TD_Pens'!$A$86,"Mes",$V$1,"Departamento",C33,"Año ",$X$4),0) -> 1377021.09 | Q33: =IFERROR(GETPIVOTDATA("Pago",'3.1. TD_Pens'!$A$122,"Mes",$V$1,"Departamento",C33,"Año ",$X$4),0) -> 491042.82 | R33: =IFERROR(GETPIVOTDATA("Pago",'3.1. TD_Pens'!$A$158,"Mes",$V$1,"Departamento",C33,"Año ",$X$4),0) -> 4155.72 | S33: =+IFERROR(GETPIVOTDATA("Consulta",'5.1 TD_Costos'!$A$40,"Departamento",C33,"Mes",$V$1,"Año",$X$4),0) -> 3925741 | T33: =+IFERROR(GETPIVOTDATA("Egresos",'5.1 TD_Costos'!$A$75,"Departamento",C33,"Mes",$V$1,"Año",$X$4),0) -> 245493 | U33: =+IFERROR(GETPIVOTDATA("Emergencia",'5.1 TD_Costos'!$A$110,"Departamento",C33,"Mes",$V$1,"Año",$X$4),0) -> 567748 | V33: =+IFERROR(GETPIVOTDATA("Auxilios",'5.1 TD_Costos'!$A$145,"Departamento",C33,"Mes",$V$1,"Año",$X$4),0) -> 0 | W33: =IFERROR(GETPIVOTDATA("Trabajadores",'4.1. TD_RRHH'!A24,"Mes",$Y$5,"Departamento",C33,"Año",$X$4),0) -> 116 | X33: =IFERROR(IF($X$5="Anual",GETPIVOTDATA("Salarios",'4.1. TD_RRHH'!B24,"Departamento",C33,"Mes",$Y$5,"Año",$X$4),GETPIVOTDATA("Salarios",'4.1. TD_RRHH'!B24,"Mes",$Y$5,"Departamento",C33,"Año",$X$4)),0) -> 726718.61
B34: 22 | C34: Jutiapa | D34: =IFERROR(GETPIVOTDATA("Afiliados ",'1.1. TD_Afil_1'!$A$4,"Mes",$Y$5,"Departamento ",C34,"Año",$X$4),0) -> 21361 | E34: =IFERROR(GETPIVOTDATA("Salarios ",'1.1. TD_Afil_1'!$A$4,"Mes",$Y$5,"Departamento ",C34,"Año",$X$4),0) -> 121756397 | F34: 5699.939001 | G34: =IFERROR(GETPIVOTDATA("Consulta",'2.2. TD_Salud_Produc2'!$A$7,"Mes",$V$1,"Departamento",C34,"Año",$X$4),0) -> 10760 | H34: =IFERROR(GETPIVOTDATA("Emergencia",'2.2. TD_Salud_Produc2'!$A$41,"Mes",$V$1,"Departamento",C34,"Año",$X$4),0) -> 1931 | I34: =IFERROR(GETPIVOTDATA("Egresos",'2.2. TD_Salud_Produc2'!$A$75,"Mes",$V$1,"Departamento",C34,"Año",$X$4),0) -> 149 | J34: =IFERROR(GETPIVOTDATA("Primeros Auxilios",'2.2. TD_Salud_Produc2'!$A$109,"Mes",$V$1,"Departamento",C34,"Año",$X$4),0) -> 0 | K34: =IFERROR(GETPIVOTDATA("Pensiones",'3.1. TD_Pens'!$A$48,"Mes",$V$1,"departamento",C34,"Año ",$X$4),0) -> 144 | L34: =IFERROR(GETPIVOTDATA("Pensiones",'3.1. TD_Pens'!$A$86,"Mes",$V$1,"Departamento",C34,"Año ",$X$4),0) -> 927 | M34: =IFERROR(GETPIVOTDATA("Pensiones",'3.1. TD_Pens'!$A$122,"Mes",$V$1,"Departamento",C34,"Año ",$X$4),0) -> 1350 | N34: =IFERROR(GETPIVOTDATA("Pensiones",'3.1. TD_Pens'!$A$158,"Mes",$V$1,"Departamento",C34,"Año ",$X$4),0) -> 117 | O34: =IFERROR(GETPIVOTDATA("Pago",'3.1. TD_Pens'!$A$48,"Mes",$V$1,"departamento",C34,"Año ",$X$4),0) -> 207287.87 | P34: =IFERROR(GETPIVOTDATA("Pago",'3.1. TD_Pens'!$A$86,"Mes",$V$1,"Departamento",C34,"Año ",$X$4),0) -> 2064039.27 | Q34: =IFERROR(GETPIVOTDATA("Pago",'3.1. TD_Pens'!$A$122,"Mes",$V$1,"Departamento",C34,"Año ",$X$4),0) -> 992124.34 | R34: =IFERROR(GETPIVOTDATA("Pago",'3.1. TD_Pens'!$A$158,"Mes",$V$1,"Departamento",C34,"Año ",$X$4),0) -> 13773.23 | S34: =+IFERROR(GETPIVOTDATA("Consulta",'5.1 TD_Costos'!$A$40,"Departamento",C34,"Mes",$V$1,"Año",$X$4),0) -> 4128652 | T34: =+IFERROR(GETPIVOTDATA("Egresos",'5.1 TD_Costos'!$A$75,"Departamento",C34,"Mes",$V$1,"Año",$X$4),0) -> 864565 | U34: =+IFERROR(GETPIVOTDATA("Emergencia",'5.1 TD_Costos'!$A$110,"Departamento",C34,"Mes",$V$1,"Año",$X$4),0) -> 811787 | V34: =+IFERROR(GETPIVOTDATA("Auxilios",'5.1 TD_Costos'!$A$145,"Departamento",C34,"Mes",$V$1,"Año",$X$4),0) -> 0 | W34: =IFERROR(GETPIVOTDATA("Trabajadores",'4.1. TD_RRHH'!A25,"Mes",$Y$5,"Departamento",C34,"Año",$X$4),0) -> 174 | X34: =IFERROR(IF($X$5="Anual",GETPIVOTDATA("Salarios",'4.1. TD_RRHH'!B25,"Departamento",C34,"Mes",$Y$5,"Año",$X$4),GETPIVOTDATA("Salarios",'4.1. TD_RRHH'!B25,"Mes",$Y$5,"Departamento",C34,"Año",$X$4)),0) -> 1164888.76
B35: */ No incluye cantidad de pagos ni montos pagados por las incapacidades temporales ni por cuota mortuoria.
B36: Fuente: IGSS (2025). Subgerencia de Planificación y Desarrollo, Departamento Actuarial y Estadístico, Área Estadística

Sheet C1
B4: ="C1. IGSS - Historial de afiliados cotizantes. Período 1948 - 2025, (1948 a 2024, datos promedio al 31 de diciembre de cada año). Año 2025, datos promedio al mes de"&" "&LOWER('1.1. TD_Afil_1'!$Q$39&"") -> C1. IGSS - Historial de afiliados cotizantes. Período 1948 - 2025, (1948 a 2024, datos promedio al 31 de diciembre de cada año). Año 2025, datos promedio al mes de enero
B47: Fuente: IGSS (2025). Subgerencia de Planificación y Desarrollo. Departamento Actuarial y Estadístico, Área Estadística, Subsistema de Estadísticas Económicas y Financieras

Sheet C2
B4: ="C2. IGSS - Afiliados cotizantes por actividad económica. Período 1960 - 2025, (1960 a 2024 datos promedio al 31 de diciembre de cada año). Año 2025, datos promedio al mes de"&" "&LOWER('1.1. TD_Afil_1'!$Q$39&".")&" "&"Referencia CIIU versión 2 (1960 - 2019). Referencia CIIU versión 3 (a partir del año 2020)" -> C2. IGSS - Afiliados cotizantes por actividad económica. Período 1960 - 2025, (1960 a 2024 datos promedio al 31 de diciembre de cada año). Año 2025, datos promedio al mes de enero. Referencia CIIU versión 2 (1960 - 2019). Referencia CIIU versión 3 (a partir del año 2020)
B5: Año | C5: Agricultura, ganadería, caza y silvicultura | D5: Pesca | E5: Explotación de minas y canteras | F5: Industrias manufactureras | G5: Suministro de electricidad, gas y agua | H5: Construcción | I5: Comercio | J5: Hoteles y Restaurantes | K5: Transporte, almacenamiento y comunicaciones | L5: Servicios | M5: Intermediación Financiera | N5: Actividades inmobiliarias, empresariales y de alquiler | O5: Administración pública y defensa; planes de seguridad social | P5: Enseñanza | Q5: Servicios sociales y de salud | R5: Actividades de servicios comunitarios, sociales y personales | S5: Hogares privados como empleadores | T5: Organizaciones y órganos extraterritoriales | U5: Total | W5: Año | X5: Agricultura | Y5: Minas y Canteras | Z5: Industrias manufactureras | AA5: Electricidad, gas y agua | AB5: Construcción | AC5: Comercio | AD5: Transportes, almacenamiento y comunicaciones | AE5: Servicios | AF5: Total
B7: 1960 | C7: =GETPIVOTDATA("Afiliados",'1.1. TD_Afil_1'!$A$167,"Año",B7,"Actividad",$C$5) -> 135632 | D7: =GETPIVOTDATA("Afiliados",'1.1. TD_Afil_1'!$A$167,"Año",B7,"Actividad",$D$5) -> 0 | E7: =GETPIVOTDATA("Afiliados",'1.1. TD_Afil_1'!$A$167,"Año",B7,"Actividad",$E$5) -> 1517 | F7: =GETPIVOTDATA("Afiliados",'1.1. TD_Afil_1'!$A$167,"Año",B7,"Actividad",$F$5) -> 26225 | G7: =GETPIVOTDATA("Afiliados",'1.1. TD_Afil_1'!$A$167,"Año",B7,"Actividad",$G$5) -> 1327 | H7: =GETPIVOTDATA("Afiliados",'1.1. TD_Afil_1'!$A$167,"Año",B7,"Actividad",$H$5) -> 23517 | I7: =GETPIVOTDATA("Afiliados",'1.1. TD_Afil_1'!$A$167,"Año",B7,"Actividad",$I$5) -> 15927 | J7: =GETPIVOTDATA("Afiliados",'1.1. TD_Afil_1'!$A$167,"Año",B7,"Actividad",$J$5) -> 0 | K7: =GETPIVOTDATA("Afiliados",'1.1. TD_Afil_1'!$A$167,"Año",B7,"Actividad",$K$5) -> 9480 | L7: =GETPIVOTDATA("Afiliados",'1.1. TD_Afil_1'!$A$167,"Año",B7,"Actividad",$L$5) -> 50475 | M7: =GETPIVOTDATA("Afiliados",'1.1. TD_Afil_1'!$A$167,"Año",B7,"Actividad",$M$5) -> 0 | N7: =GETPIVOTDATA("Afiliados",'1.1. TD_Afil_1'!$A$167,"Año",B7,"Actividad",$N$5) -> 0 | O7: =GETPIVOTDATA("Afiliados",'1.1. TD_Afil_1'!$A$167,"Año",B7,"Actividad",$O$5) -> 0 | P7: =GETPIVOTDATA("Afiliados",'1.1. TD_Afil_1'!$A$167,"Año",B7,"Actividad",$P$5) -> 0 | Q7: =GETPIVOTDATA("Afiliados",'1.1. TD_Afil_1'!$A$167,"Año",B7,"Actividad",$Q$5) -> 0 | R7: =GETPIVOTDATA("Afiliados",'1.1. TD_Afil_1'!$A$167,"Año",B7,"Actividad",$R$5) -> 0 | S7: =GETPIVOTDATA("Afiliados",'1.1. TD_Afil_1'!$A$167,"Año",B7,"Actividad",$S$5) -> 0 | T7: =GETPIVOTDATA("Afiliados",'1.1. TD_Afil_1'!$A$167,"Año",B7,"Actividad",$T$5) -> 0 | U7: =SUM(C7:T7) -> 264100 | W7: 1960 | X7: 135632 | Y7: 1517 | Z7: 26225 | AA7: 1327 | AB7: 23517 | AC7: 15927 | AD7: 9480 | AE7: 50475 | AF7: 264100
B8: 1961 | C8: =GETPIVOTDATA("Afiliados",'1.1. TD_Afil_1'!$A$167,"Año",B8,"Actividad",$C$5) -> 135498 | D8: =GETPIVOTDATA("Afiliados",'1.1. TD_Afil_1'!$A$167,"Año",B8,"Actividad",$D$5) -> 0 | E8: =GETPIVOTDATA("Afiliados",'1.1. TD_Afil_1'!$A$167,"Año",B8,"Actividad",$E$5) -> 1411 | F8: =GETPIVOTDATA("Afiliados",'1.1. TD_Afil_1'!$A$167,"Año",B8,"Actividad",$F$5) -> 27597 | G8: =GETPIVOTDATA("Afiliados",'1.1. TD_Afil_1'!$A$167,"Año",B8,"Actividad",$G$5) -> 1368 | H8: =GETPIVOTDATA("Afiliados",'1.1. TD_Afil_1'!$A$167,"Año",B8,"Actividad",$H$5) -> 10439 | I8: =GETPIVOTDATA("Afiliados",'1.1. TD_Afil_1'!$A$167,"Año",B8,"Actividad",$I$5) -> 18008 | J8: =GETPIVOTDATA("Afiliados",'1.1. TD_Afil_1'!$A$167,"Año",B8,"Actividad",$J$5) -> 0 | K8: =GETPIVOTDATA("Afiliados",'1.1. TD_Afil_1'!$A$167,"Año",B8,"Actividad",$K$5) -> 9176 | L8: =GETPIVOTDATA("Afiliados",'1.1. TD_Afil_1'!$A$167,"Año",B8,"Actividad",$L$5) -> 65568 | M8: =GETPIVOTDATA("Afiliados",'1.1. TD_Afil_1'!$A$167,"Año",B8,"Actividad",$M$5) -> 0 | N8: =GETPIVOTDATA("Afiliados",'1.1. TD_Afil_1'!$A$167,"Año",B8,"Actividad",$N$5) -> 0 | O8: =GETPIVOTDATA("Afiliados",'1.1. TD_Afil_1'!$A$167,"Año",B8,"Actividad",$O$5) -> 0 | P8: =GETPIVOTDATA("Afiliados",'1.1. TD_Afil_1'!$A$167,"Año",B8,"Actividad",$P$5) -> 0 | Q8: =GETPIVOTDATA("Afiliados",'1.1. TD_Afil_1'!$A$167,"Año",B8,"Actividad",$Q$5) -> 0 | R8: =GETPIVOTDATA("Afiliados",'1.1. TD_Afil_1'!$A$167,"Año",B8,"Actividad",$R$5) -> 0 | S8: =GETPIVOTDATA("Afiliados",'1.1. TD_Afil_1'!$A$167,"Año",B8,"Actividad",$S$5) -> 0 | T8: =GETPIVOTDATA("Afiliados",'1.1. TD_Afil_1'!$A$167,"Año",B8,"Actividad",$T$5) -> 0 | U8: =SUM(C8:T8) -> 269065 | W8: 1961 | X8: 135498 | Y8: 1411 | Z8: 27597 | AA8: 1368 | AB8: 10439 | AC8: 18008 | AD8: 9176 | AE8: 65568 | AF8: 269065
B9: 1962 | C9: =GETPIVOTDATA("Afiliados",'1.1. TD_Afil_1'!$A$167,"Año",B9,"Actividad",$C$5) -> 132973 | D9: =GETPIVOTDATA("Afiliados",'1.1. TD_Afil_1'!$A$167,"Año",B9,"Actividad",$D$5) -> 0 | E9: =GETPIVOTDATA("Afiliados",'1.1. TD_Afil_1'!$A$167,"Año",B9,"Actividad",$E$5) -> 1237 | F9: =GETPIVOTDATA("Afiliados",'1.1. TD_Afil_1'!$A$167,"Año",B9,"Actividad",$F$5) -> 26695 | G9: =GETPIVOTDATA("Afiliados",'1.1. TD_Afil_1'!$A$167,"Año",B9,"Actividad",$G$5) -> 1988 | H9: =GETPIVOTDATA("Afiliados",'1.1. TD_Afil_1'!$A$167,"Año",B9,"Actividad",$H$5) -> 7571 | I9: =GETPIVOTDATA("Afiliados",'1.1. TD_Afil_1'!$A$167,"Año",B9,"Actividad",$I$5) -> 20576 | J9: =GETPIVOTDATA("Afiliados",'1.1. TD_Afil_1'!$A$167,"Año",B9,"Actividad",$J$5) -> 0 | K9: =GETPIVOTDATA("Afiliados",'1.1. TD_Afil_1'!$A$167,"Año",B9,"Actividad",$K$5) -> 9330 | L9: =GETPIVOTDATA("Afiliados",'1.1. TD_Afil_1'!$A$167,"Año",B9,"Actividad",$L$5) -> 64514 | M9: =GETPIVOTDATA("Afiliados",'1.1. TD_Afil_1'!$A$167,"Año",B9,"Actividad",$M$5) -> 0 | N9: =GETPIVOTDATA("Afiliados",'1.1. TD_Afil_1'!$A$167,"Año",B9,"Actividad",$N$5) -> 0 | O9: =GETPIVOTDATA("Afiliados",'1.1. TD_Afil_1'!$A$167,"Año",B9,"Actividad",$O$5) -> 0 | P9: =GETPIVOTDATA("Afiliados",'1.1. TD_Afil_1'!$A$167,"Año",B9,"Actividad",$P$5) -> 0 | Q9: =GETPIVOTDATA("Afiliados",'1.1. TD_Afil_1'!$A$167,"Año",B9,"Actividad",$Q$5) -> 0 | R9: =GETPIVOTDATA("Afiliados",'1.1. TD_Afil_1'!$A$167,"Año",B9,"Actividad",$R$5) -> 0 | S9: =GETPIVOTDATA("Afiliados",'1.1. TD_Afil_1'!$A$167,"Año",B9,"Actividad",$S$5) -> 0 | T9: =GETPIVOTDATA("Afiliados",'1.1. TD_Afil_1'!$A$167,"Año",B9,"Actividad",$T$5) -> 0 | U9: 264884 | W9: 1962 | X9: 132973 | Y9: 1237 | Z9: 26695 | AA9: 1988 | AB9: 7571 | AC9: 20576 | AD9: 9330 | AE9: 64514 | AF9: 264884
B10: 1963 | C10: =GETPIVOTDATA("Afiliados",'1.1. TD_Afil_1'!$A$167,"Año",B10,"Actividad",$C$5) -> 137796 | D10: =GETPIVOTDATA("Afiliados",'1.1. TD_Afil_1'!$A$167,"Año",B10,"Actividad",$D$5) -> 0 | E10: =GETPIVOTDATA("Afiliados",'1.1. TD_Afil_1'!$A$167,"Año",B10,"Actividad",$E$5) -> 842 | F10: =GETPIVOTDATA("Afiliados",'1.1. TD_Afil_1'!$A$167,"Año",B10,"Actividad",$F$5) -> 28666 | G10: =GETPIVOTDATA("Afiliados",'1.1. TD_Afil_1'!$A$167,"Año",B10,"Actividad",$G$5) -> 1931 | H10: =GETPIVOTDATA("Afiliados",'1.1. TD_Afil_1'!$A$167,"Año",B10,"Actividad",$H$5) -> 12271 | I10: =GETPIVOTDATA("Afiliados",'1.1. TD_Afil_1'!$A$167,"Año",B10,"Actividad",$I$5) -> 16172 | J10: =GETPIVOTDATA("Afiliados",'1.1. TD_Afil_1'!$A$167,"Año",B10,"Actividad",$J$5) -> 0 | K10: =GETPIVOTDATA("Afiliados",'1.1. TD_Afil_1'!$A$167,"Año",B10,"Actividad",$K$5) -> 9772 | L10: =GETPIVOTDATA("Afiliados",'1.1. TD_Afil_1'!$A$167,"Año",B10,"Actividad",$L$5) -> 67388 | M10: =GETPIVOTDATA("Afiliados",'1.1. TD_Afil_1'!$A$167,"Año",B10,"Actividad",$M$5) -> 0 | N10: =GETPIVOTDATA("Afiliados",'1.1. TD_Afil_1'!$A$167,"Año",B10,"Actividad",$N$5) -> 0 | O10: =GETPIVOTDATA("Afiliados",'1.1. TD_Afil_1'!$A$167,"Año",B10,"Actividad",$O$5) -> 0 | P10: =GETPIVOTDATA("Afiliados",'1.1. TD_Afil_1'!$A$167,"Año",B10,"Actividad",$P$5) -> 0 | Q10: =GETPIVOTDATA("Afiliados",'1.1. TD_Afil_1'!$A$167,"Año",B10,"Actividad",$Q$5) -> 0 | R10: =GETPIVOTDATA("Afiliados",'1.1. TD_Afil_1'!$A$167,"Año",B10,"Actividad",$R$5) -> 0 | S10: =GETPIVOTDATA("Afiliados",'1.1. TD_Afil_1'!$A$167,"Año",B10,"Actividad",$S$5) -> 0 | T10: =GETPIVOTDATA("Afiliados",'1.1. TD_Afil_1'!$A$167,"Año",B10,"Actividad",$T$5) -> 0 | U10: 274838 | W10: 1963 | X10: 137796 | Y10: 842 | Z10: 28666 | AA10: 1931 | AB10: 12271 | AC10: 16172 | AD10: 9772 | AE10: 67388 | AF10: 274838
B11: 1964 | C11: =GETPIVOTDATA("Afiliados",'1.1. TD_Afil_1'!$A$167,"Año",B11,"Actividad",$C$5) -> 173291 | D11: =GETPIVOTDATA("Afiliados",'1.1. TD_Afil_1'!$A$167,"Año",B11,"Actividad",$D$5) -> 0 | E11: =GETPIVOTDATA("Afiliados",'1.1. TD_Afil_1'!$A$167,"Año",B11,"Actividad",$E$5) -> 813 | F11: =GETPIVOTDATA("Afiliados",'1.1. TD_Afil_1'!$A$167,"Año",B11,"Actividad",$F$5) -> 30566 | G11: =GETPIVOTDATA("Afiliados",'1.1. TD_Afil_1'!$A$167,"Año",B11,"Actividad",$G$5) -> 1744 | H11: =GETPIVOTDATA("Afiliados",'1.1. TD_Afil_1'!$A$167,"Año",B11,"Actividad",$H$5) -> 13726 | I11: =GETPIVOTDATA("Afiliados",'1.1. TD_Afil_1'!$A$167,"Año",B11,"Actividad",$I$5) -> 19433 | J11: =GETPIVOTDATA("Afiliados",'1.1. TD_Afil_1'!$A$167,"Año",B11,"Actividad",$J$5) -> 0 | K11: =GETPIVOTDATA("Afiliados",'1.1. TD_Afil_1'!$A$167,"Año",B11,"Actividad",$K$5) -> 9876 | L11: =GETPIVOTDATA("Afiliados",'1.1. TD_Afil_1'!$A$167,"Año",B11,"Actividad",$L$5) -> 72840 | M11: =GETPIVOTDATA("Afiliados",'1.1. TD_Afil_1'!$A$167,"Año",B11,"Actividad",$M$5) -> 0 | N11: =GETPIVOTDATA("Afiliados",'1.1. TD_Afil_1'!$A$167,"Año",B11,"Actividad",$N$5) -> 0 | O11: =GETPIVOTDATA("Afiliados",'1.1. TD_Afil_1'!$A$167,"Año",B11,"Actividad",$O$5) -> 0 | P11: =GETPIVOTDATA("Afiliados",'1.1. TD_Afil_1'!$A$167,"Año",B11,"Actividad",$P$5) -> 0 | Q11: =GETPIVOTDATA("Afiliados",'1.1. TD_Afil_1'!$A$167,"Año",B11,"Actividad",$Q$5) -> 0 | R11: =GETPIVOTDATA("Afiliados",'1.1. TD_Afil_1'!$A$167,"Año",B11,"Actividad",$R$5) -> 0 | S11: =GETPIVOTDATA("Afiliados",'1.1. TD_Afil_1'!$A$167,"Año",B11,"Actividad",$S$5) -> 0 | T11: =GETPIVOTDATA("Afiliados",'1.1. TD_Afil_1'!$A$167,"Año",B11,"Actividad",$T$5) -> 0 | U11: 322289 | W11: 1964 | X11: 173291 | Y11: 813 | Z11: 30566 | AA11: 1744 | AB11: 13726 | AC11: 19433 | AD11: 9876 | AE11: 72840 | AF11: 322289
B12: 1965 | C12: =GETPIVOTDATA("Afiliados",'1.1. TD_Afil_1'!$A$167,"Año",B12,"Actividad",$C$5) -> 171916 | D12: =GETPIVOTDATA("Afiliados",'1.1. TD_Afil_1'!$A$167,"Año",B12,"Actividad",$D$5) -> 0 | E12: =GETPIVOTDATA("Afiliados",'1.1. TD_Afil_1'!$A$167,"Año",B12,"Actividad",$E$5) -> 1189 | F12: =GETPIVOTDATA("Afiliados",'1.1. TD_Afil_1'!$A$167,"Año",B12,"Actividad",$F$5) -> 33433 | G12: =GETPIVOTDATA("Afiliados",'1.1. TD_Afil_1'!$A$167,"Año",B12,"Actividad",$G$5) -> 2605 | H12: =GETPIVOTDATA("Afiliados",'1.1. TD_Afil_1'!$A$167,"Año",B12,"Actividad",$H$5) -> 16851 | I12: =GETPIVOTDATA("Afiliados",'1.1. TD_Afil_1'!$A$167,"Año",B12,"Actividad",$I$5) -> 20494 | J12: =GETPIVOTDATA("Afiliados",'1.1. TD_Afil_1'!$A$167,"Año",B12,"Actividad",$J$5) -> 0 | K12: =GETPIVOTDATA("Afiliados",'1.1. TD_Afil_1'!$A$167,"Año",B12,"Actividad",$K$5) -> 10204 | L12: =GETPIVOTDATA("Afiliados",'1.1. TD_Afil_1'!$A$167,"Año",B12,"Actividad",$L$5) -> 88877 | M12: =GETPIVOTDATA("Afiliados",'1.1. TD_Afil_1'!$A$167,"Año",B12,"Actividad",$M$5) -> 0 | N12: =GETPIVOTDATA("Afiliados",'1.1. TD_Afil_1'!$A$167,"Año",B12,"Actividad",$N$5) -> 0 | O12: =GETPIVOTDATA("Afiliados",'1.1. TD_Afil_1'!$A$167,"Año",B12,"Actividad",$O$5) -> 0 | P12: =GETPIVOTDATA("Afiliados",'1.1. TD_Afil_1'!$A$167,"Año",B12,"Actividad",$P$5) -> 0 | Q12: =GETPIVOTDATA("Afiliados",'1.1. TD_Afil_1'!$A$167,"Año",B12,"Actividad",$Q$5) -> 0 | R12: =GETPIVOTDATA("Afiliados",'1.1. TD_Afil_1'!$A$167,"Año",B12,"Actividad",$R$5) -> 0 | S12: =GETPIVOTDATA("Afiliados",'1.1. TD_Afil_1'!$A$167,"Año",B12,"Actividad",$S$5) -> 0 | T12: =GETPIVOTDATA("Afiliados",'1.1. TD_Afil_1'!$A$167,"Año",B12,"Actividad",$T$5) -> 0 | U12: 345569 | W12: 1965 | X12: 171916 | Y12: 1189 | Z12: 33433 | AA12: 2605 | AB12: 16851 | AC12: 20494 | AD12: 10204 | AE12: 88877 | AF12: 345569
B13: 1966 | C13: =GETPIVOTDATA("Afiliados",'1.1. TD_Afil_1'!$A$167,"Año",B13,"Actividad",$C$5) -> 193856 | D13: =GETPIVOTDATA("Afiliados",'1.1. TD_Afil_1'!$A$167,"Año",B13,"Actividad",$D$5) -> 0 | E13: =GETPIVOTDATA("Afiliados",'1.1. TD_Afil_1'!$A$167,"Año",B13,"Actividad",$E$5) -> 1161 | F13: =GETPIVOTDATA("Afiliados",'1.1. TD_Afil_1'!$A$167,"Año",B13,"Actividad",$F$5) -> 37773 | G13: =GETPIVOTDATA("Afiliados",'1.1. TD_Afil_1'!$A$167,"Año",B13,"Actividad",$G$5) -> 1351 | H13: =GETPIVOTDATA("Afiliados",'1.1. TD_Afil_1'!$A$167,"Año",B13,"Actividad",$H$5) -> 12893 | I13: =GETPIVOTDATA("Afiliados",'1.1. TD_Afil_1'!$A$167,"Año",B13,"Actividad",$I$5) -> 22269 | J13: =GETPIVOTDATA("Afiliados",'1.1. TD_Afil_1'!$A$167,"Año",B13,"Actividad",$J$5) -> 0 | K13: =GETPIVOTDATA("Afiliados",'1.1. TD_Afil_1'!$A$167,"Año",B13,"Actividad",$K$5) -> 11084 | L13: =GETPIVOTDATA("Afiliados",'1.1. TD_Afil_1'!$A$167,"Año",B13,"Actividad",$L$5) -> 86559 | M13: =GETPIVOTDATA("Afiliados",'1.1. TD_Afil_1'!$A$167,"Año",B13,"Actividad",$M$5) -> 0 | N13: =GETPIVOTDATA("Afiliados",'1.1. TD_Afil_1'!$A$167,"Año",B13,"Actividad",$N$5) -> 0 | O13: =GETPIVOTDATA("Afiliados",'1.1. TD_Afil_1'!$A$167,"Año",B13,"Actividad",$O$5) -> 0 | P13: =GETPIVOTDATA("Afiliados",'1.1. TD_Afil_1'!$A$167,"Año",B13,"Actividad",$P$5) -> 0 | Q13: =GETPIVOTDATA("Afiliados",'1.1. TD_Afil_1'!$A$167,"Año",B13,"Actividad",$Q$5) -> 0 | R13: =GETPIVOTDATA("Afiliados",'1.1. TD_Afil_1'!$A$167,"Año",B13,"Actividad",$R$5) -> 0 | S13: =GETPIVOTDATA("Afiliados",'1.1. TD_Afil_1'!$A$167,"Año",B13,"Actividad",$S$5) -> 0 | T13: =GETPIVOTDATA("Afiliados",'1.1. TD_Afil_1'!$A$167,"Año",B13,"Actividad",$T$5) -> 0 | U13: 366946 | W13: 1966 | X13: 193856 | Y13: 1161 | Z13: 37773 | AA13: 1351 | AB13: 12893 | AC13: 22269 | AD13: 11084 | AE13: 86559 | AF13: 366946
B14: 1967 | C14: =GETPIVOTDATA("Afiliados",'1.1. TD_Afil_1'!$A$167,"Año",B14,"Actividad",$C$5) -> 188915 | D14: =GETPIVOTDATA("Afiliados",'1.1. TD_Afil_1'!$A$167,"Año",B14,"Actividad",$D$5) -> 0 | E14: =GETPIVOTDATA("Afiliados",'1.1. TD_Afil_1'!$A$167,"Año",B14,"Actividad",$E$5) -> 1006 | F14: =GETPIVOTDATA("Afiliados",'1.1. TD_Afil_1'!$A$167,"Año",B14,"Actividad",$F$5) -> 39947 | G14: =GETPIVOTDATA("Afiliados",'1.1. TD_Afil_1'!$A$167,"Año",B14,"Actividad",$G$5) -> 1759 | H14: =GETPIVOTDATA("Afiliados",'1.1. TD_Afil_1'!$A$167,"Año",B14,"Actividad",$H$5) -> 12679 | I14: =GETPIVOTDATA("Afiliados",'1.1. TD_Afil_1'!$A$167,"Año",B14,"Actividad",$I$5) -> 23398 | J14: =GETPIVOTDATA("Afiliados",'1.1. TD_Afil_1'!$A$167,"Año",B14,"Actividad",$J$5) -> 0 | K14: =GETPIVOTDATA("Afiliados",'1.1. TD_Afil_1'!$A$167,"Año",B14,"Actividad",$K$5) -> 9047 | L14: =GETPIVOTDATA("Afiliados",'1.1. TD_Afil_1'!$A$167,"Año",B14,"Actividad",$L$5) -> 90650 | M14: =GETPIVOTDATA("Afiliados",'1.1. TD_Afil_1'!$A$167,"Año",B14,"Actividad",$M$5) -> 0 | N14: =GETPIVOTDATA("Afiliados",'1.1. TD_Afil_1'!$A$167,"Año",B14,"Actividad",$N$5) -> 0 | O14: =GETPIVOTDATA("Afiliados",'1.1. TD_Afil_1'!$A$167,"Año",B14,"Actividad",$O$5) -> 0 | P14: =GETPIVOTDATA("Afiliados",'1.1. TD_Afil_1'!$A$167,"Año",B14,"Actividad",$P$5) -> 0 | Q14: =GETPIVOTDATA("Afiliados",'1.1. TD_Afil_1'!$A$167,"Año",B14,"Actividad",$Q$5) -> 0 | R14: =GETPIVOTDATA("Afiliados",'1.1. TD_Afil_1'!$A$167,"Año",B14,"Actividad",$R$5) -> 0 | S14: =GETPIVOTDATA("Afiliados",'1.1. TD_Afil_1'!$A$167,"Año",B14,"Actividad",$S$5) -> 0 | T14: =GETPIVOTDATA("Afiliados",'1.1. TD_Afil_1'!$A$167,"Año",B14,"Actividad",$T$5) -> 0 | U14: 367401 | W14: 1967 | X14: 188915 | Y14: 1006 | Z14: 39947 | AA14: 1759 | AB14: 12679 | AC14: 23398 | AD14: 9047 | AE14: 90650 | AF14: 367401
B15: 1968 | C15: =GETPIVOTDATA("Afiliados",'1.1. TD_Afil_1'!$A$167,"Año",B15,"Actividad",$C$5) -> 227973 | D15: =GETPIVOTDATA("Afiliados",'1.1. TD_Afil_1'!$A$167,"Año",B15,"Actividad",$D$5) -> 0 | E15: =GETPIVOTDATA("Afiliados",'1.1. TD_Afil_1'!$A$167,"Año",B15,"Actividad",$E$5) -> 1448 | F15: =GETPIVOTDATA("Afiliados",'1.1. TD_Afil_1'!$A$167,"Año",B15,"Actividad",$F$5) -> 39487 | G15: =GETPIVOTDATA("Afiliados",'1.1. TD_Afil_1'!$A$167,"Año",B15,"Actividad",$G$5) -> 3564 | H15: =GETPIVOTDATA("Afiliados",'1.1. TD_Afil_1'!$A$167,"Año",B15,"Actividad",$H$5) -> 11312 | I15: =GETPIVOTDATA("Afiliados",'1.1. TD_Afil_1'!$A$167,"Año",B15,"Actividad",$I$5) -> 20617 | J15: =GETPIVOTDATA("Afiliados",'1.1. TD_Afil_1'!$A$167,"Año",B15,"Actividad",$J$5) -> 0 | K15: =GETPIVOTDATA("Afiliados",'1.1. TD_Afil_1'!$A$167,"Año",B15,"Actividad",$K$5) -> 11357 | L15: =GETPIVOTDATA("Afiliados",'1.1. TD_Afil_1'!$A$167,"Año",B15,"Actividad",$L$5) -> 80050 | M15: =GETPIVOTDATA("Afiliados",'1.1. TD_Afil_1'!$A$167,"Año",B15,"Actividad",$M$5) -> 0 | N15: =GETPIVOTDATA("Afiliados",'1.1. TD_Afil_1'!$A$167,"Año",B15,"Actividad",$N$5) -> 0 | O15: =GETPIVOTDATA("Afiliados",'1.1. TD_Afil_1'!$A$167,"Año",B15,"Actividad",$O$5) -> 0 | P15: =GETPIVOTDATA("Afiliados",'1.1. TD_Afil_1'!$A$167,"Año",B15,"Actividad",$P$5) -> 0 | Q15: =GETPIVOTDATA("Afiliados",'1.1. TD_Afil_1'!$A$167,"Año",B15,"Actividad",$Q$5) -> 0 | R15: =GETPIVOTDATA("Afiliados",'1.1. TD_Afil_1'!$A$167,"Año",B15,"Actividad",$R$5) -> 0 | S15: =GETPIVOTDATA("Afiliados",'1.1. TD_Afil_1'!$A$167,"Año",B15,"Actividad",$S$5) -> 0 | T15: =GETPIVOTDATA("Afiliados",'1.1. TD_Afil_1'!$A$167,"Año",B15,"Actividad",$T$5) -> 0 | U15: 395808 | W15: 1968 | X15: 227973 | Y15: 1448 | Z15: 39487 | AA15: 3564 | AB15: 11312 | AC15: 20617 | AD15: 11357 | AE15: 80050 | AF15: 395808
B16: 1969 | C16: =GETPIVOTDATA("Afiliados",'1.1. TD_Afil_1'!$A$167,"Año",B16,"Actividad",$C$5) -> 269079 | D16: =GETPIVOTDATA("Afiliados",'1.1. TD_Afil_1'!$A$167,"Año",B16,"Actividad",$D$5) -> 0 | E16: =GETPIVOTDATA("Afiliados",'1.1. TD_Afil_1'!$A$167,"Año",B16,"Actividad",$E$5) -> 1618 | F16: =GETPIVOTDATA("Afiliados",'1.1. TD_Afil_1'!$A$167,"Año",B16,"Actividad",$F$5) -> 38169 | G16: =GETPIVOTDATA("Afiliados",'1.1. TD_Afil_1'!$A$167,"Año",B16,"Actividad",$G$5) -> 3763 | H16: =GETPIVOTDATA("Afiliados",'1.1. TD_Afil_1'!$A$167,"Año",B16,"Actividad",$H$5) -> 14337 | I16: =GETPIVOTDATA("Afiliados",'1.1. TD_Afil_1'!$A$167,"Año",B16,"Actividad",$I$5) -> 22442 | J16: =GETPIVOTDATA("Afiliados",'1.1. TD_Afil_1'!$A$167,"Año",B16,"Actividad",$J$5) -> 0 | K16: =GETPIVOTDATA("Afiliados",'1.1. TD_Afil_1'!$A$167,"Año",B16,"Actividad",$K$5) -> 10404 | L16: =GETPIVOTDATA("Afiliados",'1.1. TD_Afil_1'!$A$167,"Año",B16,"Actividad",$L$5) -> 86728 | M16: =GETPIVOTDATA("Afiliados",'1.1. TD_Afil_1'!$A$167,"Año",B16,"Actividad",$M$5) -> 0 | N16: =GETPIVOTDATA("Afiliados",'1.1. TD_Afil_1'!$A$167,"Año",B16,"Actividad",$N$5) -> 0 | O16: =GETPIVOTDATA("Afiliados",'1.1. TD_Afil_1'!$A$167,"Año",B16,"Actividad",$O$5) -> 0 | P16: =GETPIVOTDATA("Afiliados",'1.1. TD_Afil_1'!$A$167,"Año",B16,"Actividad",$P$5) -> 0 | Q16: =GETPIVOTDATA("Afiliados",'1.1. TD_Afil_1'!$A$167,"Año",B16,"Actividad",$Q$5) -> 0 | R16: =GETPIVOTDATA("Afiliados",'1.1. TD_Afil_1'!$A$167,"Año",B16,"Actividad",$R$5) -> 0 | S16: =GETPIVOTDATA("Afiliados",'1.1. TD_Afil_1'!$A$167,"Año",B16,"Actividad",$S$5) -> 0 | T16: =GETPIVOTDATA("Afiliados",'1.1. TD_Afil_1'!$A$167,"Año",B16,"Actividad",$T$5) -> 0 | U16: 446540 | W16: 1969 | X16: 269079 | Y16: 1618 | Z16: 38169 | AA16: 3763 | AB16: 14337 | AC16: 22442 | AD16: 10404 | AE16: 86728 | AF16: 446540
B17: 1970 | C17: =GETPIVOTDATA("Afiliados",'1.1. TD_Afil_1'!$A$167,"Año",B17,"Actividad",$C$5) -> 207055 | D17: =GETPIVOTDATA("Afiliados",'1.1. TD_Afil_1'!$A$167,"Año",B17,"Actividad",$D$5) -> 0 | E17: =GETPIVOTDATA("Afiliados",'1.1. TD_Afil_1'!$A$167,"Año",B17,"Actividad",$E$5) -> 3417 | F17: =GETPIVOTDATA("Afiliados",'1.1. TD_Afil_1'!$A$167,"Año",B17,"Actividad",$F$5) -> 69325 | G17: =GETPIVOTDATA("Afiliados",'1.1. TD_Afil_1'!$A$167,"Año",B17,"Actividad",$G$5) -> 4827 | H17: =GETPIVOTDATA("Afiliados",'1.1. TD_Afil_1'!$A$167,"Año",B17,"Actividad",$H$5) -> 21585 | I17: =GETPIVOTDATA("Afiliados",'1.1. TD_Afil_1'!$A$167,"Año",B17,"Actividad",$I$5) -> 36649 | J17: =GETPIVOTDATA("Afiliados",'1.1. TD_Afil_1'!$A$167,"Año",B17,"Actividad",$J$5) -> 0 | K17: =GETPIVOTDATA("Afiliados",'1.1. TD_Afil_1'!$A$167,"Año",B17,"Actividad",$K$5) -> 8833 | L17: =GETPIVOTDATA("Afiliados",'1.1. TD_Afil_1'!$A$167,"Año",B17,"Actividad",$L$5) -> 96585 | M17: =GETPIVOTDATA("Afiliados",'1.1. TD_Afil_1'!$A$167,"Año",B17,"Actividad",$M$5) -> 0 | N17: =GETPIVOTDATA("Afiliados",'1.1. TD_Afil_1'!$A$167,"Año",B17,"Actividad",$N$5) -> 0 | O17: =GETPIVOTDATA("Afiliados",'1.1. TD_Afil_1'!$A$167,"Año",B17,"Actividad",$O$5) -> 0 | P17: =GETPIVOTDATA("Afiliados",'1.1. TD_Afil_1'!$A$167,"Año",B17,"Actividad",$P$5) -> 0 | Q17: =GETPIVOTDATA("Afiliados",'1.1. TD_Afil_1'!$A$167,"Año",B17,"Actividad",$Q$5) -> 0 | R17: =GETPIVOTDATA("Afiliados",'1.1. TD_Afil_1'!$A$167,"Año",B17,"Actividad",$R$5) -> 0 | S17: =GETPIVOTDATA("Afiliados",'1.1. TD_Afil_1'!$A$167,"Año",B17,"Actividad",$S$5) -> 0 | T17: =GETPIVOTDATA("Afiliados",'1.1. TD_Afil_1'!$A$167,"Año",B17,"Actividad",$T$5) -> 0 | U17: 448276 | W17: 1970 | X17: 207055 | Y17: 3417 | Z17: 69325 | AA17: 4827 | AB17: 21585 | AC17: 36649 | AD17: 8833 | AE17: 96585 | AF17: 448276
B18: 1971 | C18: =GETPIVOTDATA("Afiliados",'1.1. TD_Afil_1'!$A$167,"Año",B18,"Actividad",$C$5) -> 246702 | D18: =GETPIVOTDATA("Afiliados",'1.1. TD_Afil_1'!$A$167,"Año",B18,"Actividad",$D$5) -> 0 | E18: =GETPIVOTDATA("Afiliados",'1.1. TD_Afil_1'!$A$167,"Año",B18,"Actividad",$E$5) -> 1733 | F18: =GETPIVOTDATA("Afiliados",'1.1. TD_Afil_1'!$A$167,"Año",B18,"Actividad",$F$5) -> 46864 | G18: =GETPIVOTDATA("Afiliados",'1.1. TD_Afil_1'!$A$167,"Año",B18,"Actividad",$G$5) -> 4649 | H18: =GETPIVOTDATA("Afiliados",'1.1. TD_Afil_1'!$A$167,"Año",B18,"Actividad",$H$5) -> 14968 | I18: =GETPIVOTDATA("Afiliados",'1.1. TD_Afil_1'!$A$167,"Año",B18,"Actividad",$I$5) -> 30931 | J18: =GETPIVOTDATA("Afiliados",'1.1. TD_Afil_1'!$A$167,"Año",B18,"Actividad",$J$5) -> 0 | K18: =GETPIVOTDATA("Afiliados",'1.1. TD_Afil_1'!$A$167,"Año",B18,"Actividad",$K$5) -> 9860 | L18: =GETPIVOTDATA("Afiliados",'1.1. TD_Afil_1'!$A$167,"Año",B18,"Actividad",$L$5) -> 87135 | M18: =GETPIVOTDATA("Afiliados",'1.1. TD_Afil_1'!$A$167,"Año",B18,"Actividad",$M$5) -> 0 | N18: =GETPIVOTDATA("Afiliados",'1.1. TD_Afil_1'!$A$167,"Año",B18,"Actividad",$N$5) -> 0 | O18: =GETPIVOTDATA("Afiliados",'1.1. TD_Afil_1'!$A$167,"Año",B18,"Actividad",$O$5) -> 0 | P18: =GETPIVOTDATA("Afiliados",'1.1. TD_Afil_1'!$A$167,"Año",B18,"Actividad",$P$5) -> 0 | Q18: =GETPIVOTDATA("Afiliados",'1.1. TD_Afil_1'!$A$167,"Año",B18,"Actividad",$Q$5) -> 0 | R18: =GETPIVOTDATA("Afiliados",'1.1. TD_Afil_1'!$A$167,"Año",B18,"Actividad",$R$5) -> 0 | S18: =GETPIVOTDATA("Afiliados",'1.1. TD_Afil_1'!$A$167,"Año",B18,"Actividad",$S$5) -> 0 | T18: =GETPIVOTDATA("Afiliados",'1.1. TD_Afil_1'!$A$167,"Año",B18,"Actividad",$T$5) -> 0 | U18: 442842 | W18: 1971 | X18: 246702 | Y18: 1733 | Z18: 46864 | AA18: 4649 | AB18: 14968 | AC18: 30931 | AD18: 9860 | AE18: 87135 | AF18: 442842
B19: 1972 | C19: =GETPIVOTDATA("Afiliados",'1.1. TD_Afil_1'!$A$167,"Año",B19,"Actividad",$C$5) -> 251277 | D19: =GETPIVOTDATA("Afiliados",'1.1. TD_Afil_1'!$A$167,"Año",B19,"Actividad",$D$5) -> 0 | E19: =GETPIVOTDATA("Afiliados",'1.1. TD_Afil_1'!$A$167,"Año",B19,"Actividad",$E$5) -> 1346 | F19: =GETPIVOTDATA("Afiliados",'1.1. TD_Afil_1'!$A$167,"Año",B19,"Actividad",$F$5) -> 40694 | G19: =GETPIVOTDATA("Afiliados",'1.1. TD_Afil_1'!$A$167,"Año",B19,"Actividad",$G$5) -> 4728 | H19: =GETPIVOTDATA("Afiliados",'1.1. TD_Afil_1'!$A$167,"Año",B19,"Actividad",$H$5) -> 12239 | I19: =GETPIVOTDATA("Afiliados",'1.1. TD_Afil_1'!$A$167,"Año",B19,"Actividad",$I$5) -> 28627 | J19: =GETPIVOTDATA("Afiliados",'1.1. TD_Afil_1'!$A$167,"Año",B19,"Actividad",$J$5) -> 0 | K19: =GETPIVOTDATA("Afiliados",'1.1. TD_Afil_1'!$A$167,"Año",B19,"Actividad",$K$5) -> 10556 | L19: =GETPIVOTDATA("Afiliados",'1.1. TD_Afil_1'!$A$167,"Año",B19,"Actividad",$L$5) -> 98911 | M19: =GETPIVOTDATA("Afiliados",'1.1. TD_Afil_1'!$A$167,"Año",B19,"Actividad",$M$5) -> 0 | N19: =GETPIVOTDATA("Afiliados",'1.1. TD_Afil_1'!$A$167,"Año",B19,"Actividad",$N$5) -> 0 | O19: =GETPIVOTDATA("Afiliados",'1.1. TD_Afil_1'!$A$167,"Año",B19,"Actividad",$O$5) -> 0 | P19: =GETPIVOTDATA("Afiliados",'1.1. TD_Afil_1'!$A$167,"Año",B19,"Actividad",$P$5) -> 0 | Q19: =GETPIVOTDATA("Afiliados",'1.1. TD_Afil_1'!$A$167,"Año",B19,"Actividad",$Q$5) -> 0 | R19: =GETPIVOTDATA("Afiliados",'1.1. TD_Afil_1'!$A$167,"Año",B19,"Actividad",$R$5) -> 0 | S19: =GETPIVOTDATA("Afiliados",'1.1. TD_Afil_1'!$A$167,"Año",B19,"Actividad",$S$5) -> 0 | T19: =GETPIVOTDATA("Afiliados",'1.1. TD_Afil_1'!$A$167,"Año",B19,"Actividad",$T$5) -> 0 | U19: 448378 | W19: 1972 | X19: 251277 | Y19: 1346 | Z19: 40694 | AA19: 4728 | AB19: 12239 | AC19: 28627 | AD19: 10556 | AE19: 98911 | AF19: 448378
B20: 1973 | C20: =GETPIVOTDATA("Afiliados",'1.1. TD_Afil_1'!$A$167,"Año",B20,"Actividad",$C$5) -> 249105 | D20: =GETPIVOTDATA("Afiliados",'1.1. TD_Afil_1'!$A$167,"Año",B20,"Actividad",$D$5) -> 0 | E20: =GETPIVOTDATA("Afiliados",'1.1. TD_Afil_1'!$A$167,"Año",B20,"Actividad",$E$5) -> 1375 | F20: =GETPIVOTDATA("Afiliados",'1.1. TD_Afil_1'!$A$167,"Año",B20,"Actividad",$F$5) -> 49749 | G20: =GETPIVOTDATA("Afiliados",'1.1. TD_Afil_1'!$A$167,"Año",B20,"Actividad",$G$5) -> 3970 | H20: =GETPIVOTDATA("Afiliados",'1.1. TD_Afil_1'!$A$167,"Año",B20,"Actividad",$H$5) -> 16947 | I20: =GETPIVOTDATA("Afiliados",'1.1. TD_Afil_1'!$A$167,"Año",B20,"Actividad",$I$5) -> 32757 | J20: =GETPIVOTDATA("Afiliados",'1.1. TD_Afil_1'!$A$167,"Año",B20,"Actividad",$J$5) -> 0 | K20: =GETPIVOTDATA("Afiliados",'1.1. TD_Afil_1'!$A$167,"Año",B20,"Actividad",$K$5) -> 10510 | L20: =GETPIVOTDATA("Afiliados",'1.1. TD_Afil_1'!$A$167,"Año",B20,"Actividad",$L$5) -> 104450 | M20: =GETPIVOTDATA("Afiliados",'1.1. TD_Afil_1'!$A$167,"Año",B20,"Actividad",$M$5) -> 0 | N20: =GETPIVOTDATA("Afiliados",'1.1. TD_Afil_1'!$A$167,"Año",B20,"Actividad",$N$5) -> 0 | O20: =GETPIVOTDATA("Afiliados",'1.1. TD_Afil_1'!$A$167,"Año",B20,"Actividad",$O$5) -> 0 | P20: =GETPIVOTDATA("Afiliados",'1.1. TD_Afil_1'!$A$167,"Año",B20,"Actividad",$P$5) -> 0 | Q20: =GETPIVOTDATA("Afiliados",'1.1. TD_Afil_1'!$A$167,"Año",B20,"Actividad",$Q$5) -> 0 | R20: =GETPIVOTDATA("Afiliados",'1.1. TD_Afil_1'!$A$167,"Año",B20,"Actividad",$R$5) -> 0 | S20: =GETPIVOTDATA("Afiliados",'1.1. TD_Afil_1'!$A$167,"Año",B20,"Actividad",$S$5) -> 0 | T20: =GETPIVOTDATA("Afiliados",'1.1. TD_Afil_1'!$A$167,"Año",B20,"Actividad",$T$5) -> 0 | U20: 468863 | W20: 1973 | X20: 249105 | Y20: 1375 | Z20: 49749 | AA20: 3970 | AB20: 16947 | AC20: 32757 | AD20: 10510 | AE20: 104450 | AF20: 468863
B21: 1974 | C21: =GETPIVOTDATA("Afiliados",'1.1. TD_Afil_1'!$A$167,"Año",B21,"Actividad",$C$5) -> 271437 | D21: =GETPIVOTDATA("Afiliados",'1.1. TD_Afil_1'!$A$167,"Año",B21,"Actividad",$D$5) -> 0 | E21: =GETPIVOTDATA("Afiliados",'1.1. TD_Afil_1'!$A$167,"Año",B21,"Actividad",$E$5) -> 4016 | F21: =GETPIVOTDATA("Afiliados",'1.1. TD_Afil_1'!$A$167,"Año",B21,"Actividad",$F$5) -> 58117 | G21: =GETPIVOTDATA("Afiliados",'1.1. TD_Afil_1'!$A$167,"Año",B21,"Actividad",$G$5) -> 6717 | H21: =GETPIVOTDATA("Afiliados",'1.1. TD_Afil_1'!$A$167,"Año",B21,"Actividad",$H$5) -> 22439 | I21: =GETPIVOTDATA("Afiliados",'1.1. TD_Afil_1'!$A$167,"Año",B21,"Actividad",$I$5) -> 45184 | J21: =GETPIVOTDATA("Afiliados",'1.1. TD_Afil_1'!$A$167,"Año",B21,"Actividad",$J$5) -> 0 | K21: =GETPIVOTDATA("Afiliados",'1.1. TD_Afil_1'!$A$167,"Año",B21,"Actividad",$K$5) -> 12452 | L21: =GETPIVOTDATA("Afiliados",'1.1. TD_Afil_1'!$A$167,"Año",B21,"Actividad",$L$5) -> 119430 | M21: =GETPIVOTDATA("Afiliados",'1.1. TD_Afil_1'!$A$167,"Año",B21,"Actividad",$M$5) -> 0 | N21: =GETPIVOTDATA("Afiliados",'1.1. TD_Afil_1'!$A$167,"Año",B21,"Actividad",$N$5) -> 0 | O21: =GETPIVOTDATA("Afiliados",'1.1. TD_Afil_1'!$A$167,"Año",B21,"Actividad",$O$5) -> 0 | P21: =GETPIVOTDATA("Afiliados",'1.1. TD_Afil_1'!$A$167,"Año",B21,"Actividad",$P$5) -> 0 | Q21: =GETPIVOTDATA("Afiliados",'1.1. TD_Afil_1'!$A$167,"Año",B21,"Actividad",$Q$5) -> 0 | R21: =GETPIVOTDATA("Afiliados",'1.1. TD_Afil_1'!$A$167,"Año",B21,"Actividad",$R$5) -> 0 | S21: =GETPIVOTDATA("Afiliados",'1.1. TD_Afil_1'!$A$167,"Año",B21,"Actividad",$S$5) -> 0 | T21: =GETPIVOTDATA("Afiliados",'1.1. TD_Afil_1'!$A$167,"Año",B21,"Actividad",$T$5) -> 0 | U21: 539792 | W21: 1974 | X21: 271437 | Y21: 4016 | Z21: 58117 | AA21: 6717 | AB21: 22439 | AC21: 45184 | AD21: 12452 | AE21: 119430 | AF21: 539792
B22: 1975 | C22: =GETPIVOTDATA("Afiliados",'1.1. TD_Afil_1'!$A$167,"Año",B22,"Actividad",$C$5) -> 260065 | D22: =GETPIVOTDATA("Afiliados",'1.1. TD_Afil_1'!$A$167,"Año",B22,"Actividad",$D$5) -> 0 | E22: =GETPIVOTDATA("Afiliados",'1.1. TD_Afil_1'!$A$167,"Año",B22,"Actividad",$E$5) -> 2733 | F22: =GETPIVOTDATA("Afiliados",'1.1. TD_Afil_1'!$A$167,"Año",B22,"Actividad",$F$5) -> 61796 | G22: =GETPIVOTDATA("Afiliados",'1.1. TD_Afil_1'!$A$167,"Año",B22,"Actividad",$G$5) -> 5788 | H22: =GETPIVOTDATA("Afiliados",'1.1. TD_Afil_1'!$A$167,"Año",B22,"Actividad",$H$5) -> 20865 | I22: =GETPIVOTDATA("Afiliados",'1.1. TD_Afil_1'!$A$167,"Año",B22,"Actividad",$I$5) -> 38233 | J22: =GETPIVOTDATA("Afiliados",'1.1. TD_Afil_1'!$A$167,"Año",B22,"Actividad",$J$5) -> 0 | K22: =GETPIVOTDATA("Afiliados",'1.1. TD_Afil_1'!$A$167,"Año",B22,"Actividad",$K$5) -> 10844 | L22: =GETPIVOTDATA("Afiliados",'1.1. TD_Afil_1'!$A$167,"Año",B22,"Actividad",$L$5) -> 120372 | M22: =GETPIVOTDATA("Afiliados",'1.1. TD_Afil_1'!$A$167,"Año",B22,"Actividad",$M$5) -> 0 | N22: =GETPIVOTDATA("Afiliados",'1.1. TD_Afil_1'!$A$167,"Año",B22,"Actividad",$N$5) -> 0 | O22: =GETPIVOTDATA("Afiliados",'1.1. TD_Afil_1'!$A$167,"Año",B22,"Actividad",$O$5) -> 0 | P22: =GETPIVOTDATA("Afiliados",'1.1. TD_Afil_1'!$A$167,"Año",B22,"Actividad",$P$5) -> 0 | Q22: =GETPIVOTDATA("Afiliados",'1.1. TD_Afil_1'!$A$167,"Año",B22,"Actividad",$Q$5) -> 0 | R22: =GETPIVOTDATA("Afiliados",'1.1. TD_Afil_1'!$A$167,"Año",B22,"Actividad",$R$5) -> 0 | S22: =GETPIVOTDATA("Afiliados",'1.1. TD_Afil_1'!$A$167,"Año",B22,"Actividad",$S$5) -> 0 | T22: =GETPIVOTDATA("Afiliados",'1.1. TD_Afil_1'!$A$167,"Año",B22,"Actividad",$T$5) -> 0 | U22: 520696 | W22: 1975 | X22: 260065 | Y22: 2733 | Z22: 61796 | AA22: 5788 | AB22: 20865 | AC22: 38233 | AD22: 10844 | AE22: 120372 | AF22: 520696
B23: 1976 | C23: =GETPIVOTDATA("Afiliados",'1.1. TD_Afil_1'!$A$167,"Año",B23,"Actividad",$C$5) -> 283904 | D23: =GETPIVOTDATA("Afiliados",'1.1. TD_Afil_1'!$A$167,"Año",B23,"Actividad",$D$5) -> 0 | E23: =GETPIVOTDATA("Afiliados",'1.1. TD_Afil_1'!$A$167,"Año",B23,"Actividad",$E$5) -> 1907 | F23: =GETPIVOTDATA("Afiliados",'1.1. TD_Afil_1'!$A$167,"Año",B23,"Actividad",$F$5) -> 73279 | G23: =GETPIVOTDATA("Afiliados",'1.1. TD_Afil_1'!$A$167,"Año",B23,"Actividad",$G$5) -> 5685 | H23: =GETPIVOTDATA("Afiliados",'1.1. TD_Afil_1'!$A$167,"Año",B23,"Actividad",$H$5) -> 22156 | I23: =GETPIVOTDATA("Afiliados",'1.1. TD_Afil_1'!$A$167,"Año",B23,"Actividad",$I$5) -> 36893 | J23: =GETPIVOTDATA("Afiliados",'1.1. TD_Afil_1'!$A$167,"Año",B23,"Actividad",$J$5) -> 0 | K23: =GETPIVOTDATA("Afiliados",'1.1. TD_Afil_1'!$A$167,"Año",B23,"Actividad",$K$5) -> 10770 | L23: =GETPIVOTDATA("Afiliados",'1.1. TD_Afil_1'!$A$167,"Año",B23,"Actividad",$L$5) -> 143326 | M23: =GETPIVOTDATA("Afiliados",'1.1. TD_Afil_1'!$A$167,"Año",B23,"Actividad",$M$5) -> 0 | N23: =GETPIVOTDATA("Afiliados",'1.1. TD_Afil_1'!$A$167,"Año",B23,"Actividad",$N$5) -> 0 | O23: =GETPIVOTDATA("Afiliados",'1.1. TD_Afil_1'!$A$167,"Año",B23,"Actividad",$O$5) -> 0 | P23: =GETPIVOTDATA("Afiliados",'1.1. TD_Afil_1'!$A$167,"Año",B23,"Actividad",$P$5) -> 0 | Q23: =GETPIVOTDATA("Afiliados",'1.1. TD_Afil_1'!$A$167,"Año",B23,"Actividad",$Q$5) -> 0 | R23: =GETPIVOTDATA("Afiliados",'1.1. TD_Afil_1'!$A$167,"Año",B23,"Actividad",$R$5) -> 0 | S23: =GETPIVOTDATA("Afiliados",'1.1. TD_Afil_1'!$A$167,"Año",B23,"Actividad",$S$5) -> 0 | T23: =GETPIVOTDATA("Afiliados",'1.1. TD_Afil_1'!$A$167,"Año",B23,"Actividad",$T$5) -> 0 | U23: 577920 | W23: 1976 | X23: 283904 | Y23: 1907 | Z23: 73279 | AA23: 5685 | AB23: 22156 | AC23: 36893 | AD23: 10770 | AE23: 143326 | AF23: 577920
B24: 1977 | C24: =GETPIVOTDATA("Afiliados",'1.1. TD_Afil_1'!$A$167,"Año",B24,"Actividad",$C$5) -> 368342 | D24: =GETPIVOTDATA("Afiliados",'1.1. TD_Afil_1'!$A$167,"Año",B24,"Actividad",$D$5) -> 0 | E24: =GETPIVOTDATA("Afiliados",'1.1. TD_Afil_1'!$A$167,"Año",B24,"Actividad",$E$5) -> 3960 | F24: =GETPIVOTDATA("Afiliados",'1.1. TD_Afil_1'!$A$167,"Año",B24,"Actividad",$F$5) -> 84529 | G24: =GETPIVOTDATA("Afiliados",'1.1. TD_Afil_1'!$A$167,"Año",B24,"Actividad",$G$5) -> 9204 | H24: =GETPIVOTDATA("Afiliados",'1.1. TD_Afil_1'!$A$167,"Año",B24,"Actividad",$H$5) -> 24177 | I24: =GETPIVOTDATA("Afiliados",'1.1. TD_Afil_1'!$A$167,"Año",B24,"Actividad",$I$5) -> 51062 | J24: =GETPIVOTDATA("Afiliados",'1.1. TD_Afil_1'!$A$167,"Año",B24,"Actividad",$J$5) -> 0 | K24: =GETPIVOTDATA("Afiliados",'1.1. TD_Afil_1'!$A$167,"Año",B24,"Actividad",$K$5) -> 14318 | L24: =GETPIVOTDATA("Afiliados",'1.1. TD_Afil_1'!$A$167,"Año",B24,"Actividad",$L$5) -> 153223 | M24: =GETPIVOTDATA("Afiliados",'1.1. TD_Afil_1'!$A$167,"Año",B24,"Actividad",$M$5) -> 0 | N24: =GETPIVOTDATA("Afiliados",'1.1. TD_Afil_1'!$A$167,"Año",B24,"Actividad",$N$5) -> 0 | O24: =GETPIVOTDATA("Afiliados",'1.1. TD_Afil_1'!$A$167,"Año",B24,"Actividad",$O$5) -> 0 | P24: =GETPIVOTDATA("Afiliados",'1.1. TD_Afil_1'!$A$167,"Año",B24,"Actividad",$P$5) -> 0 | Q24: =GETPIVOTDATA("Afiliados",'1.1. TD_Afil_1'!$A$167,"Año",B24,"Actividad",$Q$5) -> 0 | R24: =GETPIVOTDATA("Afiliados",'1.1. TD_Afil_1'!$A$167,"Año",B24,"Actividad",$R$5) -> 0 | S24: =GETPIVOTDATA("Afiliados",'1.1. TD_Afil_1'!$A$167,"Año",B24,"Actividad",$S$5) -> 0 | T24: =GETPIVOTDATA("Afiliados",'1.1. TD_Afil_1'!$A$167,"Año",B24,"Actividad",$T$5) -> 0 | U24: 708815 | W24: 1977 | X24: 368342 | Y24: 3960 | Z24: 84529 | AA24: 9204 | AB24: 24177 | AC24: 51062 | AD24: 14318 | AE24: 153223 | AF24: 708815
B25: 1978 | C25: =GETPIVOTDATA("Afiliados",'1.1. TD_Afil_1'!$A$167,"Año",B25,"Actividad",$C$5) -> 395305 | D25: =GETPIVOTDATA("Afiliados",'1.1. TD_Afil_1'!$A$167,"Año",B25,"Actividad",$D$5) -> 0 | E25: =GETPIVOTDATA("Afiliados",'1.1. TD_Afil_1'!$A$167,"Año",B25,"Actividad",$E$5) -> 3649 | F25: =GETPIVOTDATA("Afiliados",'1.1. TD_Afil_1'!$A$167,"Año",B25,"Actividad",$F$5) -> 91701 | G25: =GETPIVOTDATA("Afiliados",'1.1. TD_Afil_1'!$A$167,"Año",B25,"Actividad",$G$5) -> 10572 | H25: =GETPIVOTDATA("Afiliados",'1.1. TD_Afil_1'!$A$167,"Año",B25,"Actividad",$H$5) -> 37215 | I25: =GETPIVOTDATA("Afiliados",'1.1. TD_Afil_1'!$A$167,"Año",B25,"Actividad",$I$5) -> 56616 | J25: =GETPIVOTDATA("Afiliados",'1.1. TD_Afil_1'!$A$167,"Año",B25,"Actividad",$J$5) -> 0 | K25: =GETPIVOTDATA("Afiliados",'1.1. TD_Afil_1'!$A$167,"Año",B25,"Actividad",$K$5) -> 15073 | L25: =GETPIVOTDATA("Afiliados",'1.1. TD_Afil_1'!$A$167,"Año",B25,"Actividad",$L$5) -> 158914 | M25: =GETPIVOTDATA("Afiliados",'1.1. TD_Afil_1'!$A$167,"Año",B25,"Actividad",$M$5) -> 0 | N25: =GETPIVOTDATA("Afiliados",'1.1. TD_Afil_1'!$A$167,"Año",B25,"Actividad",$N$5) -> 0 | O25: =GETPIVOTDATA("Afiliados",'1.1. TD_Afil_1'!$A$167,"Año",B25,"Actividad",$O$5) -> 0 | P25: =GETPIVOTDATA("Afiliados",'1.1. TD_Afil_1'!$A$167,"Año",B25,"Actividad",$P$5) -> 0 | Q25: =GETPIVOTDATA("Afiliados",'1.1. TD_Afil_1'!$A$167,"Año",B25,"Actividad",$Q$5) -> 0 | R25: =GETPIVOTDATA("Afiliados",'1.1. TD_Afil_1'!$A$167,"Año",B25,"Actividad",$R$5) -> 0 | S25: =GETPIVOTDATA("Afiliados",'1.1. TD_Afil_1'!$A$167,"Año",B25,"Actividad",$S$5) -> 0 | T25: =GETPIVOTDATA("Afiliados",'1.1. TD_Afil_1'!$A$167,"Año",B25,"Actividad",$T$5) -> 0 | U25: 769045 | W25: 1978 | X25: 395305 | Y25: 3649 | Z25: 91701 | AA25: 10572 | AB25: 37215 | AC25: 56616 | AD25: 15073 | AE25: 158914 | AF25: 769045
B26: 1979 | C26: =GETPIVOTDATA("Afiliados",'1.1. TD_Afil_1'!$A$167,"Año",B26,"Actividad",$C$5) -> 374609 | D26: =GETPIVOTDATA("Afiliados",'1.1. TD_Afil_1'!$A$167,"Año",B26,"Actividad",$D$5) -> 0 | E26: =GETPIVOTDATA("Afiliados",'1.1. TD_Afil_1'!$A$167,"Año",B26,"Actividad",$E$5) -> 2662 | F26: =GETPIVOTDATA("Afiliados",'1.1. TD_Afil_1'!$A$167,"Año",B26,"Actividad",$F$5) -> 81774 | G26: =GETPIVOTDATA("Afiliados",'1.1. TD_Afil_1'!$A$167,"Año",B26,"Actividad",$G$5) -> 10161 | H26: =GETPIVOTDATA("Afiliados",'1.1. TD_Afil_1'!$A$167,"Año",B26,"Actividad",$H$5) -> 42252 | I26: =GETPIVOTDATA("Afiliados",'1.1. TD_Afil_1'!$A$167,"Año",B26,"Actividad",$I$5) -> 58540 | J26: =GETPIVOTDATA("Afiliados",'1.1. TD_Afil_1'!$A$167,"Año",B26,"Actividad",$J$5) -> 0 | K26: =GETPIVOTDATA("Afiliados",'1.1. TD_Afil_1'!$A$167,"Año",B26,"Actividad",$K$5) -> 17139 | L26: =GETPIVOTDATA("Afiliados",'1.1. TD_Afil_1'!$A$167,"Año",B26,"Actividad",$L$5) -> 169034 | M26: =GETPIVOTDATA("Afiliados",'1.1. TD_Afil_1'!$A$167,"Año",B26,"Actividad",$M$5) -> 0 | N26: =GETPIVOTDATA("Afiliados",'1.1. TD_Afil_1'!$A$167,"Año",B26,"Actividad",$N$5) -> 0 | O26: =GETPIVOTDATA("Afiliados",'1.1. TD_Afil_1'!$A$167,"Año",B26,"Actividad",$O$5) -> 0 | P26: =GETPIVOTDATA("Afiliados",'1.1. TD_Afil_1'!$A$167,"Año",B26,"Actividad",$P$5) -> 0 | Q26: =GETPIVOTDATA("Afiliados",'1.1. TD_Afil_1'!$A$167,"Año",B26,"Actividad",$Q$5) -> 0 | R26: =GETPIVOTDATA("Afiliados",'1.1. TD_Afil_1'!$A$167,"Año",B26,"Actividad",$R$5) -> 0 | S26: =GETPIVOTDATA("Afiliados",'1.1. TD_Afil_1'!$A$167,"Año",B26,"Actividad",$S$5) -> 0 | T26: =GETPIVOTDATA("Afiliados",'1.1. TD_Afil_1'!$A$167,"Año",B26,"Actividad",$T$5) -> 0 | U26: 756171 | W26: 1979 | X26: 374609 | Y26: 2662 | Z26: 81774 | AA26: 10161 | AB26: 42252 | AC26: 58540 | AD26: 17139 | AE26: 169034 | AF26: 756171
B27: 1980 | C27: =GETPIVOTDATA("Afiliados",'1.1. TD_Afil_1'!$A$167,"Año",B27,"Actividad",$C$5) -> 373469 | D27: =GETPIVOTDATA("Afiliados",'1.1. TD_Afil_1'!$A$167,"Año",B27,"Actividad",$D$5) -> 0 | E27: =GETPIVOTDATA("Afiliados",'1.1. TD_Afil_1'!$A$167,"Año",B27,"Actividad",$E$5) -> 3744 | F27: =GETPIVOTDATA("Afiliados",'1.1. TD_Afil_1'!$A$167,"Año",B27,"Actividad",$F$5) -> 83066 | G27: =GETPIVOTDATA("Afiliados",'1.1. TD_Afil_1'!$A$167,"Año",B27,"Actividad",$G$5) -> 13480 | H27: =GETPIVOTDATA("Afiliados",'1.1. TD_Afil_1'!$A$167,"Año",B27,"Actividad",$H$5) -> 27738 | I27: =GETPIVOTDATA("Afiliados",'1.1. TD_Afil_1'!$A$167,"Año",B27,"Actividad",$I$5) -> 58913 | J27: =GETPIVOTDATA("Afiliados",'1.1. TD_Afil_1'!$A$167,"Año",B27,"Actividad",$J$5) -> 0 | K27: =GETPIVOTDATA("Afiliados",'1.1. TD_Afil_1'!$A$167,"Año",B27,"Actividad",$K$5) -> 21634 | L27: =GETPIVOTDATA("Afiliados",'1.1. TD_Afil_1'!$A$167,"Año",B27,"Actividad",$L$5) -> 173498 | M27: =GETPIVOTDATA("Afiliados",'1.1. TD_Afil_1'!$A$167,"Año",B27,"Actividad",$M$5) -> 0 | N27: =GETPIVOTDATA("Afiliados",'1.1. TD_Afil_1'!$A$167,"Año",B27,"Actividad",$N$5) -> 0 | O27: =GETPIVOTDATA("Afiliados",'1.1. TD_Afil_1'!$A$167,"Año",B27,"Actividad",$O$5) -> 0 | P27: =GETPIVOTDATA("Afiliados",'1.1. TD_Afil_1'!$A$167,"Año",B27,"Actividad",$P$5) -> 0 | Q27: =GETPIVOTDATA("Afiliados",'1.1. TD_Afil_1'!$A$167,"Año",B27,"Actividad",$Q$5) -> 0 | R27: =GETPIVOTDATA("Afiliados",'1.1. TD_Afil_1'!$A$167,"Año",B27,"Actividad",$R$5) -> 0 | S27: =GETPIVOTDATA("Afiliados",'1.1. TD_Afil_1'!$A$167,"Año",B27,"Actividad",$S$5) -> 0 | T27: =GETPIVOTDATA("Afiliados",'1.1. TD_Afil_1'!$A$167,"Año",B27,"Actividad",$T$5) -> 0 | U27: 755542 | W27: 1980 | X27: 373469 | Y27: 3744 | Z27: 83066 | AA27: 13480 | AB27: 27738 | AC27: 58913 | AD27: 21634 | AE27: 173498 | AF27: 755542
B28: 1981 | C28: =GETPIVOTDATA("Afiliados",'1.1. TD_Afil_1'!$A$167,"Año",B28,"Actividad",$C$5) -> 225688 | D28: =GETPIVOTDATA("Afiliados",'1.1. TD_Afil_1'!$A$167,"Año",B28,"Actividad",$D$5) -> 0 | E28: =GETPIVOTDATA("Afiliados",'1.1. TD_Afil_1'!$A$167,"Año",B28,"Actividad",$E$5) -> 3462 | F28: =GETPIVOTDATA("Afiliados",'1.1. TD_Afil_1'!$A$167,"Año",B28,"Actividad",$F$5) -> 73683 | G28: =GETPIVOTDATA("Afiliados",'1.1. TD_Afil_1'!$A$167,"Año",B28,"Actividad",$G$5) -> 11673 | H28: =GETPIVOTDATA("Afiliados",'1.1. TD_Afil_1'!$A$167,"Año",B28,"Actividad",$H$5) -> 23440 | I28: =GETPIVOTDATA("Afiliados",'1.1. TD_Afil_1'!$A$167,"Año",B28,"Actividad",$I$5) -> 58925 | J28: =GETPIVOTDATA("Afiliados",'1.1. TD_Afil_1'!$A$167,"Año",B28,"Actividad",$J$5) -> 0 | K28: =GETPIVOTDATA("Afiliados",'1.1. TD_Afil_1'!$A$167,"Año",B28,"Actividad",$K$5) -> 18685 | L28: =GETPIVOTDATA("Afiliados",'1.1. TD_Afil_1'!$A$167,"Año",B28,"Actividad",$L$5) -> 175463 | M28: =GETPIVOTDATA("Afiliados",'1.1. TD_Afil_1'!$A$167,"Año",B28,"Actividad",$M$5) -> 0 | N28: =GETPIVOTDATA("Afiliados",'1.1. TD_Afil_1'!$A$167,"Año",B28,"Actividad",$N$5) -> 0 | O28: =GETPIVOTDATA("Afiliados",'1.1. TD_Afil_1'!$A$167,"Año",B28,"Actividad",$O$5) -> 0 | P28: =GETPIVOTDATA("Afiliados",'1.1. TD_Afil_1'!$A$167,"Año",B28,"Actividad",$P$5) -> 0 | Q28: =GETPIVOTDATA("Afiliados",'1.1. TD_Afil_1'!$A$167,"Año",B28,"Actividad",$Q$5) -> 0 | R28: =GETPIVOTDATA("Afiliados",'1.1. TD_Afil_1'!$A$167,"Año",B28,"Actividad",$R$5) -> 0 | S28: =GETPIVOTDATA("Afiliados",'1.1. TD_Afil_1'!$A$167,"Año",B28,"Actividad",$S$5) -> 0 | T28: =GETPIVOTDATA("Afiliados",'1.1. TD_Afil_1'!$A$167,"Año",B28,"Actividad",$T$5) -> 0 | U28: 591019 | W28: 1981 | X28: 225688 | Y28: 3462 | Z28: 73683 | AA28: 11673 | AB28: 23440 | AC28: 58925 | AD28: 18685 | AE28: 175463 | AF28: 591019
B29: 1982 | C29: =GETPIVOTDATA("Afiliados",'1.1. TD_Afil_1'!$A$167,"Año",B29,"Actividad",$C$5) -> 215709 | D29: =GETPIVOTDATA("Afiliados",'1.1. TD_Afil_1'!$A$167,"Año",B29,"Actividad",$D$5) -> 0 | E29: =GETPIVOTDATA("Afiliados",'1.1. TD_Afil_1'!$A$167,"Año",B29,"Actividad",$E$5) -> 3099 | F29: =GETPIVOTDATA("Afiliados",'1.1. TD_Afil_1'!$A$167,"Año",B29,"Actividad",$F$5) -> 73851 | G29: =GETPIVOTDATA("Afiliados",'1.1. TD_Afil_1'!$A$167,"Año",B29,"Actividad",$G$5) -> 14810 | H29: =GETPIVOTDATA("Afiliados",'1.1. TD_Afil_1'!$A$167,"Año",B29,"Actividad",$H$5) -> 26894 | I29: =GETPIVOTDATA("Afiliados",'1.1. TD_Afil_1'!$A$167,"Año",B29,"Actividad",$I$5) -> 61314 | J29: =GETPIVOTDATA("Afiliados",'1.1. TD_Afil_1'!$A$167,"Año",B29,"Actividad",$J$5) -> 0 | K29: =GETPIVOTDATA("Afiliados",'1.1. TD_Afil_1'!$A$167,"Año",B29,"Actividad",$K$5) -> 19951 | L29: =GETPIVOTDATA("Afiliados",'1.1. TD_Afil_1'!$A$167,"Año",B29,"Actividad",$L$5) -> 193516 | M29: =GETPIVOTDATA("Afiliados",'1.1. TD_Afil_1'!$A$167,"Año",B29,"Actividad",$M$5) -> 0 | N29: =GETPIVOTDATA("Afiliados",'1.1. TD_Afil_1'!$A$167,"Año",B29,"Actividad",$N$5) -> 0 | O29: =GETPIVOTDATA("Afiliados",'1.1. TD_Afil_1'!$A$167,"Año",B29,"Actividad",$O$5) -> 0 | P29: =GETPIVOTDATA("Afiliados",'1.1. TD_Afil_1'!$A$167,"Año",B29,"Actividad",$P$5) -> 0 | Q29: =GETPIVOTDATA("Afiliados",'1.1. TD_Afil_1'!$A$167,"Año",B29,"Actividad",$Q$5) -> 0 | R29: =GETPIVOTDATA("Afiliados",'1.1. TD_Afil_1'!$A$167,"Año",B29,"Actividad",$R$5) -> 0 | S29: =GETPIVOTDATA("Afiliados",'1.1. TD_Afil_1'!$A$167,"Año",B29,"Actividad",$S$5) -> 0 | T29: =GETPIVOTDATA("Afiliados",'1.1. TD_Afil_1'!$A$167,"Año",B29,"Actividad",$T$5) -> 0 | U29: 609144 | W29: 1982 | X29: 215709 | Y29: 3099 | Z29: 73851 | AA29: 14810 | AB29: 26894 | AC29: 61314 | AD29: 19951 | AE29: 193516 | AF29: 609144
B30: 1983 | C30: =GETPIVOTDATA("Afiliados",'1.1. TD_Afil_1'!$A$167,"Año",B30,"Actividad",$C$5) -> 199847 | D30: =GETPIVOTDATA("Afiliados",'1.1. TD_Afil_1'!$A$167,"Año",B30,"Actividad",$D$5) -> 0 | E30: =GETPIVOTDATA("Afiliados",'1.1. TD_Afil_1'!$A$167,"Año",B30,"Actividad",$E$5) -> 3388 | F30: =GETPIVOTDATA("Afiliados",'1.1. TD_Afil_1'!$A$167,"Año",B30,"Actividad",$F$5) -> 77842 | G30: =GETPIVOTDATA("Afiliados",'1.1. TD_Afil_1'!$A$167,"Año",B30,"Actividad",$G$5) -> 14230 | H30: =GETPIVOTDATA("Afiliados",'1.1. TD_Afil_1'!$A$167,"Año",B30,"Actividad",$H$5) -> 17817 | I30: =GETPIVOTDATA("Afiliados",'1.1. TD_Afil_1'!$A$167,"Año",B30,"Actividad",$I$5) -> 63446 | J30: =GETPIVOTDATA("Afiliados",'1.1. TD_Afil_1'!$A$167,"Año",B30,"Actividad",$J$5) -> 0 | K30: =GETPIVOTDATA("Afiliados",'1.1. TD_Afil_1'!$A$167,"Año",B30,"Actividad",$K$5) -> 15990 | L30: =GETPIVOTDATA("Afiliados",'1.1. TD_Afil_1'!$A$167,"Año",B30,"Actividad",$L$5) -> 190988 | M30: =GETPIVOTDATA("Afiliados",'1.1. TD_Afil_1'!$A$167,"Año",B30,"Actividad",$M$5) -> 0 | N30: =GETPIVOTDATA("Afiliados",'1.1. TD_Afil_1'!$A$167,"Año",B30,"Actividad",$N$5) -> 0 | O30: =GETPIVOTDATA("Afiliados",'1.1. TD_Afil_1'!$A$167,"Año",B30,"Actividad",$O$5) -> 0 | P30: =GETPIVOTDATA("Afiliados",'1.1. TD_Afil_1'!$A$167,"Año",B30,"Actividad",$P$5) -> 0 | Q30: =GETPIVOTDATA("Afiliados",'1.1. TD_Afil_1'!$A$167,"Año",B30,"Actividad",$Q$5) -> 0 | R30: =GETPIVOTDATA("Afiliados",'1.1. TD_Afil_1'!$A$167,"Año",B30,"Actividad",$R$5) -> 0 | S30: =GETPIVOTDATA("Afiliados",'1.1. TD_Afil_1'!$A$167,"Año",B30,"Actividad",$S$5) -> 0 | T30: =GETPIVOTDATA("Afiliados",'1.1. TD_Afil_1'!$A$167,"Año",B30,"Actividad",$T$5) -> 0 | U30: 583548 | W30: 1983 | X30: 199847 | Y30: 3388 | Z30: 77842 | AA30: 14230 | AB30: 17817 | AC30: 63446 | AD30: 15990 | AE30: 190988 | AF30: 583548
B31: 1984 | C31: =GETPIVOTDATA("Afiliados",'1.1. TD_Afil_1'!$A$167,"Año",B31,"Actividad",$C$5) -> 205514 | D31: =GETPIVOTDATA("Afiliados",'1.1. TD_Afil_1'!$A$167,"Año",B31,"Actividad",$D$5) -> 0 | E31: =GETPIVOTDATA("Afiliados",'1.1. TD_Afil_1'!$A$167,"Año",B31,"Actividad",$E$5) -> 2146 | F31: =GETPIVOTDATA("Afiliados",'1.1. TD_Afil_1'!$A$167,"Año",B31,"Actividad",$F$5) -> 69506 | G31: =GETPIVOTDATA("Afiliados",'1.1. TD_Afil_1'!$A$167,"Año",B31,"Actividad",$G$5) -> 13579 | H31: =GETPIVOTDATA("Afiliados",'1.1. TD_Afil_1'!$A$167,"Año",B31,"Actividad",$H$5) -> 13041 | I31: =GETPIVOTDATA("Afiliados",'1.1. TD_Afil_1'!$A$167,"Año",B31,"Actividad",$I$5) -> 59395 | J31: =GETPIVOTDATA("Afiliados",'1.1. TD_Afil_1'!$A$167,"Año",B31,"Actividad",$J$5) -> 0 | K31: =GETPIVOTDATA("Afiliados",'1.1. TD_Afil_1'!$A$167,"Año",B31,"Actividad",$K$5) -> 19755 | L31: =GETPIVOTDATA("Afiliados",'1.1. TD_Afil_1'!$A$167,"Año",B31,"Actividad",$L$5) -> 212000 | M31: =GETPIVOTDATA("Afiliados",'1.1. TD_Afil_1'!$A$167,"Año",B31,"Actividad",$M$5) -> 0 | N31: =GETPIVOTDATA("Afiliados",'1.1. TD_Afil_1'!$A$167,"Año",B31,"Actividad",$N$5) -> 0 | O31: =GETPIVOTDATA("Afiliados",'1.1. TD_Afil_1'!$A$167,"Año",B31,"Actividad",$O$5) -> 0 | P31: =GETPIVOTDATA("Afiliados",'1.1. TD_Afil_1'!$A$167,"Año",B31,"Actividad",$P$5) -> 0 | Q31: =GETPIVOTDATA("Afiliados",'1.1. TD_Afil_1'!$A$167,"Año",B31,"Actividad",$Q$5) -> 0 | R31: =GETPIVOTDATA("Afiliados",'1.1. TD_Afil_1'!$A$167,"Año",B31,"Actividad",$R$5) -> 0 | S31: =GETPIVOTDATA("Afiliados",'1.1. TD_Afil_1'!$A$167,"Año",B31,"Actividad",$S$5) -> 0 | T31: =GETPIVOTDATA("Afiliados",'1.1. TD_Afil_1'!$A$167,"Año",B31,"Actividad",$T$5) -> 0 | U31: 594936 | W31: 1984 | X31: 205514 | Y31: 2146 | Z31: 69506 | AA31: 13579 | AB31: 13041 | AC31: 59395 | AD31: 19755 | AE31: 212000 | AF31: 594936
B32: 1985 | C32: =GETPIVOTDATA("Afiliados",'1.1. TD_Afil_1'!$A$167,"Año",B32,"Actividad",$C$5) -> 233572 | D32: =GETPIVOTDATA("Afiliados",'1.1. TD_Afil_1'!$A$167,"Año",B32,"Actividad",$D$5) -> 0 | E32: =GETPIVOTDATA("Afiliados",'1.1. TD_Afil_1'!$A$167,"Año",B32,"Actividad",$E$5) -> 2085 | F32: =GETPIVOTDATA("Afiliados",'1.1. TD_Afil_1'!$A$167,"Año",B32,"Actividad",$F$5) -> 78205 | G32: =GETPIVOTDATA("Afiliados",'1.1. TD_Afil_1'!$A$167,"Año",B32,"Actividad",$G$5) -> 13034 | H32: =GETPIVOTDATA("Afiliados",'1.1. TD_Afil_1'!$A$167,"Año",B32,"Actividad",$H$5) -> 14077 | I32: =GETPIVOTDATA("Afiliados",'1.1. TD_Afil_1'!$A$167,"Año",B32,"Actividad",$I$5) -> 58393 | J32: =GETPIVOTDATA("Afiliados",'1.1. TD_Afil_1'!$A$167,"Año",B32,"Actividad",$J$5) -> 0 | K32: =GETPIVOTDATA("Afiliados",'1.1. TD_Afil_1'!$A$167,"Año",B32,"Actividad",$K$5) -> 20333 | L32: =GETPIVOTDATA("Afiliados",'1.1. TD_Afil_1'!$A$167,"Año",B32,"Actividad",$L$5) -> 211955 | M32: =GETPIVOTDATA("Afiliados",'1.1. TD_Afil_1'!$A$167,"Año",B32,"Actividad",$M$5) -> 0 | N32: =GETPIVOTDATA("Afiliados",'1.1. TD_Afil_1'!$A$167,"Año",B32,"Actividad",$N$5) -> 0 | O32: =GETPIVOTDATA("Afiliados",'1.1. TD_Afil_1'!$A$167,"Año",B32,"Actividad",$O$5) -> 0 | P32: =GETPIVOTDATA("Afiliados",'1.1. TD_Afil_1'!$A$167,"Año",B32,"Actividad",$P$5) -> 0 | Q32: =GETPIVOTDATA("Afiliados",'1.1. TD_Afil_1'!$A$167,"Año",B32,"Actividad",$Q$5) -> 0 | R32: =GETPIVOTDATA("Afiliados",'1.1. TD_Afil_1'!$A$167,"Año",B32,"Actividad",$R$5) -> 0 | S32: =GETPIVOTDATA("Afiliados",'1.1. TD_Afil_1'!$A$167,"Año",B32,"Actividad",$S$5) -> 0 | T32: =GETPIVOTDATA("Afiliados",'1.1. TD_Afil_1'!$A$167,"Año",B32,"Actividad",$T$5) -> 0 | U32: 631654 | W32: 1985 | X32: 233572 | Y32: 2085 | Z32: 78205 | AA32: 13034 | AB32: 14077 | AC32: 58393 | AD32: 20333 | AE32: 211955 | AF32: 631654
B33: 1986 | C33: =GETPIVOTDATA("Afiliados",'1.1. TD_Afil_1'!$A$167,"Año",B33,"Actividad",$C$5) -> 239107 | D33: =GETPIVOTDATA("Afiliados",'1.1. TD_Afil_1'!$A$167,"Año",B33,"Actividad",$D$5) -> 0 | E33: =GETPIVOTDATA("Afiliados",'1.1. TD_Afil_1'!$A$167,"Año",B33,"Actividad",$E$5) -> 2518 | F33: =GETPIVOTDATA("Afiliados",'1.1. TD_Afil_1'!$A$167,"Año",B33,"Actividad",$F$5) -> 78251 | G33: =GETPIVOTDATA("Afiliados",'1.1. TD_Afil_1'!$A$167,"Año",B33,"Actividad",$G$5) -> 11435 | H33: =GETPIVOTDATA("Afiliados",'1.1. TD_Afil_1'!$A$167,"Año",B33,"Actividad",$H$5) -> 15702 | I33: =GETPIVOTDATA("Afiliados",'1.1. TD_Afil_1'!$A$167,"Año",B33,"Actividad",$I$5) -> 61763 | J33: =GETPIVOTDATA("Afiliados",'1.1. TD_Afil_1'!$A$167,"Año",B33,"Actividad",$J$5) -> 0 | K33: =GETPIVOTDATA("Afiliados",'1.1. TD_Afil_1'!$A$167,"Año",B33,"Actividad",$K$5) -> 21730 | L33: =GETPIVOTDATA("Afiliados",'1.1. TD_Afil_1'!$A$167,"Año",B33,"Actividad",$L$5) -> 229938 | M33: =GETPIVOTDATA("Afiliados",'1.1. TD_Afil_1'!$A$167,"Año",B33,"Actividad",$M$5) -> 0 | N33: =GETPIVOTDATA("Afiliados",'1.1. TD_Afil_1'!$A$167,"Año",B33,"Actividad",$N$5) -> 0 | O33: =GETPIVOTDATA("Afiliados",'1.1. TD_Afil_1'!$A$167,"Año",B33,"Actividad",$O$5) -> 0 | P33: =GETPIVOTDATA("Afiliados",'1.1. TD_Afil_1'!$A$167,"Año",B33,"Actividad",$P$5) -> 0 | Q33: =GETPIVOTDATA("Afiliados",'1.1. TD_Afil_1'!$A$167,"Año",B33,"Actividad",$Q$5) -> 0 | R33: =GETPIVOTDATA("Afiliados",'1.1. TD_Afil_1'!$A$167,"Año",B33,"Actividad",$R$5) -> 0 | S33: =GETPIVOTDATA("Afiliados",'1.1. TD_Afil_1'!$A$167,"Año",B33,"Actividad",$S$5) -> 0 | T33: =GETPIVOTDATA("Afiliados",'1.1. TD_Afil_1'!$A$167,"Año",B33,"Actividad",$T$5) -> 0 | U33: 660444 | W33: 1986 | X33: 239107 | Y33: 2518 | Z33: 78251 | AA33: 11435 | AB33: 15702 | AC33: 61763 | AD33: 21730 | AE33: 229938 | AF33: 660444
B34: 1987 | C34: =GETPIVOTDATA("Afiliados",'1.1. TD_Afil_1'!$A$167,"Año",B34,"Actividad",$C$5) -> 254220 | D34: =GETPIVOTDATA("Afiliados",'1.1. TD_Afil_1'!$A$167,"Año",B34,"Actividad",$D$5) -> 0 | E34: =GETPIVOTDATA("Afiliados",'1.1. TD_Afil_1'!$A$167,"Año",B34,"Actividad",$E$5) -> 2201 | F34: =GETPIVOTDATA("Afiliados",'1.1. TD_Afil_1'!$A$167,"Año",B34,"Actividad",$F$5) -> 78425 | G34: =GETPIVOTDATA("Afiliados",'1.1. TD_Afil_1'!$A$167,"Año",B34,"Actividad",$G$5) -> 10986 | H34: =GETPIVOTDATA("Afiliados",'1.1. TD_Afil_1'!$A$167,"Año",B34,"Actividad",$H$5) -> 12992 | I34: =GETPIVOTDATA("Afiliados",'1.1. TD_Afil_1'!$A$167,"Año",B34,"Actividad",$I$5) -> 62118 | J34: =GETPIVOTDATA("Afiliados",'1.1. TD_Afil_1'!$A$167,"Año",B34,"Actividad",$J$5) -> 0 | K34: =GETPIVOTDATA("Afiliados",'1.1. TD_Afil_1'!$A$167,"Año",B34,"Actividad",$K$5) -> 21694 | L34: =GETPIVOTDATA("Afiliados",'1.1. TD_Afil_1'!$A$167,"Año",B34,"Actividad",$L$5) -> 236359 | M34: =GETPIVOTDATA("Afiliados",'1.1. TD_Afil_1'!$A$167,"Año",B34,"Actividad",$M$5) -> 0 | N34: =GETPIVOTDATA("Afiliados",'1.1. TD_Afil_1'!$A$167,"Año",B34,"Actividad",$N$5) -> 0 | O34: =GETPIVOTDATA("Afiliados",'1.1. TD_Afil_1'!$A$167,"Año",B34,"Actividad",$O$5) -> 0 | P34: =GETPIVOTDATA("Afiliados",'1.1. TD_Afil_1'!$A$167,"Año",B34,"Actividad",$P$5) -> 0 | Q34: =GETPIVOTDATA("Afiliados",'1.1. TD_Afil_1'!$A$167,"Año",B34,"Actividad",$Q$5) -> 0 | R34: =GETPIVOTDATA("Afiliados",'1.1. TD_Afil_1'!$A$167,"Año",B34,"Actividad",$R$5) -> 0 | S34: =GETPIVOTDATA("Afiliados",'1.1. TD_Afil_1'!$A$167,"Año",B34,"Actividad",$S$5) -> 0 | T34: =GETPIVOTDATA("Afiliados",'1.1. TD_Afil_1'!$A$167,"Año",B34,"Actividad",$T$5) -> 0 | U34: 678995 | W34: 1987 | X34: 254220 | Y34: 2201 | Z34: 78425 | AA34: 10986 | AB34: 12992 | AC34: 62118 | AD34: 21694 | AE34: 236359 | AF34: 678995
B35: 1988 | C35: =GETPIVOTDATA("Afiliados",'1.1. TD_Afil_1'!$A$167,"Año",B35,"Actividad",$C$5) -> 259038 | D35: =GETPIVOTDATA("Afiliados",'1.1. TD_Afil_1'!$A$167,"Año",B35,"Actividad",$D$5) -> 0 | E35: =GETPIVOTDATA("Afiliados",'1.1. TD_Afil_1'!$A$167,"Año",B35,"Actividad",$E$5) -> 3793 | F35: =GETPIVOTDATA("Afiliados",'1.1. TD_Afil_1'!$A$167,"Año",B35,"Actividad",$F$5) -> 103438 | G35: =GETPIVOTDATA("Afiliados",'1.1. TD_Afil_1'!$A$167,"Año",B35,"Actividad",$G$5) -> 13358 | H35: =GETPIVOTDATA("Afiliados",'1.1. TD_Afil_1'!$A$167,"Año",B35,"Actividad",$H$5) -> 15783 | I35: =GETPIVOTDATA("Afiliados",'1.1. TD_Afil_1'!$A$167,"Año",B35,"Actividad",$I$5) -> 77328 | J35: =GETPIVOTDATA("Afiliados",'1.1. TD_Afil_1'!$A$167,"Año",B35,"Actividad",$J$5) -> 0 | K35: =GETPIVOTDATA("Afiliados",'1.1. TD_Afil_1'!$A$167,"Año",B35,"Actividad",$K$5) -> 24234 | L35: =GETPIVOTDATA("Afiliados",'1.1. TD_Afil_1'!$A$167,"Año",B35,"Actividad",$L$5) -> 282588 | M35: =GETPIVOTDATA("Afiliados",'1.1. TD_Afil_1'!$A$167,"Año",B35,"Actividad",$M$5) -> 0 | N35: =GETPIVOTDATA("Afiliados",'1.1. TD_Afil_1'!$A$167,"Año",B35,"Actividad",$N$5) -> 0 | O35: =GETPIVOTDATA("Afiliados",'1.1. TD_Afil_1'!$A$167,"Año",B35,"Actividad",$O$5) -> 0 | P35: =GETPIVOTDATA("Afiliados",'1.1. TD_Afil_1'!$A$167,"Año",B35,"Actividad",$P$5) -> 0 | Q35: =GETPIVOTDATA("Afiliados",'1.1. TD_Afil_1'!$A$167,"Año",B35,"Actividad",$Q$5) -> 0 | R35: =GETPIVOTDATA("Afiliados",'1.1. TD_Afil_1'!$A$167,"Año",B35,"Actividad",$R$5) -> 0 | S35: =GETPIVOTDATA("Afiliados",'1.1. TD_Afil_1'!$A$167,"Año",B35,"Actividad",$S$5) -> 0 | T35: =GETPIVOTDATA("Afiliados",'1.1. TD_Afil_1'!$A$167,"Año",B35,"Actividad",$T$5) -> 0 | U35: 779560 | W35: 1988 | X35: 259038 | Y35: 3793 | Z35: 103438 | AA35: 13358 | AB35: 15783 | AC35: 77328 | AD35: 24234 | AE35: 282588 | AF35: 779560
B36: 1989 | C36: =GETPIVOTDATA("Afiliados",'1.1. TD_Afil_1'!$A$167,"Año",B36,"Actividad",$C$5) -> 291467 | D36: =GETPIVOTDATA("Afiliados",'1.1. TD_Afil_1'!$A$167,"Año",B36,"Actividad",$D$5) -> 0 | E36: =GETPIVOTDATA("Afiliados",'1.1. TD_Afil_1'!$A$167,"Año",B36,"Actividad",$E$5) -> 2895 | F36: =GETPIVOTDATA("Afiliados",'1.1. TD_Afil_1'!$A$167,"Año",B36,"Actividad",$F$5) -> 101250 | G36: =GETPIVOTDATA("Afiliados",'1.1. TD_Afil_1'!$A$167,"Año",B36,"Actividad",$G$5) -> 14002 | H36: =GETPIVOTDATA("Afiliados",'1.1. TD_Afil_1'!$A$167,"Año",B36,"Actividad",$H$5) -> 18186 | I36: =GETPIVOTDATA("Afiliados",'1.1. TD_Afil_1'!$A$167,"Año",B36,"Actividad",$I$5) -> 84846 | J36: =GETPIVOTDATA("Afiliados",'1.1. TD_Afil_1'!$A$167,"Año",B36,"Actividad",$J$5) -> 0 | K36: =GETPIVOTDATA("Afiliados",'1.1. TD_Afil_1'!$A$167,"Año",B36,"Actividad",$K$5) -> 22815 | L36: =GETPIVOTDATA("Afiliados",'1.1. TD_Afil_1'!$A$167,"Año",B36,"Actividad",$L$5) -> 252906 | M36: =GETPIVOTDATA("Afiliados",'1.1. TD_Afil_1'!$A$167,"Año",B36,"Actividad",$M$5) -> 0 | N36: =GETPIVOTDATA("Afiliados",'1.1. TD_Afil_1'!$A$167,"Año",B36,"Actividad",$N$5) -> 0 | O36: =GETPIVOTDATA("Afiliados",'1.1. TD_Afil_1'!$A$167,"Año",B36,"Actividad",$O$5) -> 0 | P36: =GETPIVOTDATA("Afiliados",'1.1. TD_Afil_1'!$A$167,"Año",B36,"Actividad",$P$5) -> 0 | Q36: =GETPIVOTDATA("Afiliados",'1.1. TD_Afil_1'!$A$167,"Año",B36,"Actividad",$Q$5) -> 0 | R36: =GETPIVOTDATA("Afiliados",'1.1. TD_Afil_1'!$A$167,"Año",B36,"Actividad",$R$5) -> 0 | S36: =GETPIVOTDATA("Afiliados",'1.1. TD_Afil_1'!$A$167,"Año",B36,"Actividad",$S$5) -> 0 | T36: =GETPIVOTDATA("Afiliados",'1.1. TD_Afil_1'!$A$167,"Año",B36,"Actividad",$T$5) -> 0 | U36: 788367 | W36: 1989 | X36: 291467 | Y36: 2895 | Z36: 101250 | AA36: 14002 | AB36: 18186 | AC36: 84846 | AD36: 22815 | AE36: 252906 | AF36: 788367
B37: 1990 | C37: =GETPIVOTDATA("Afiliados",'1.1. TD_Afil_1'!$A$167,"Año",B37,"Actividad",$C$5) -> 279234 | D37: =GETPIVOTDATA("Afiliados",'1.1. TD_Afil_1'!$A$167,"Año",B37,"Actividad",$D$5) -> 0 | E37: =GETPIVOTDATA("Afiliados",'1.1. TD_Afil_1'!$A$167,"Año",B37,"Actividad",$E$5) -> 3216 | F37: =GETPIVOTDATA("Afiliados",'1.1. TD_Afil_1'!$A$167,"Año",B37,"Actividad",$F$5) -> 103327 | G37: =GETPIVOTDATA("Afiliados",'1.1. TD_Afil_1'!$A$167,"Año",B37,"Actividad",$G$5) -> 12716 | H37: =GETPIVOTDATA("Afiliados",'1.1. TD_Afil_1'!$A$167,"Año",B37,"Actividad",$H$5) -> 18357 | I37: =GETPIVOTDATA("Afiliados",'1.1. TD_Afil_1'!$A$167,"Año",B37,"Actividad",$I$5) -> 84389 | J37: =GETPIVOTDATA("Afiliados",'1.1. TD_Afil_1'!$A$167,"Año",B37,"Actividad",$J$5) -> 0 | K37: =GETPIVOTDATA("Afiliados",'1.1. TD_Afil_1'!$A$167,"Año",B37,"Actividad",$K$5) -> 21502 | L37: =GETPIVOTDATA("Afiliados",'1.1. TD_Afil_1'!$A$167,"Año",B37,"Actividad",$L$5) -> 263012 | M37: =GETPIVOTDATA("Afiliados",'1.1. TD_Afil_1'!$A$167,"Año",B37,"Actividad",$M$5) -> 0 | N37: =GETPIVOTDATA("Afiliados",'1.1. TD_Afil_1'!$A$167,"Año",B37,"Actividad",$N$5) -> 0 | O37: =GETPIVOTDATA("Afiliados",'1.1. TD_Afil_1'!$A$167,"Año",B37,"Actividad",$O$5) -> 0 | P37: =GETPIVOTDATA("Afiliados",'1.1. TD_Afil_1'!$A$167,"Año",B37,"Actividad",$P$5) -> 0 | Q37: =GETPIVOTDATA("Afiliados",'1.1. TD_Afil_1'!$A$167,"Año",B37,"Actividad",$Q$5) -> 0 | R37: =GETPIVOTDATA("Afiliados",'1.1. TD_Afil_1'!$A$167,"Año",B37,"Actividad",$R$5) -> 0 | S37: =GETPIVOTDATA("Afiliados",'1.1. TD_Afil_1'!$A$167,"Año",B37,"Actividad",$S$5) -> 0 | T37: =GETPIVOTDATA("Afiliados",'1.1. TD_Afil_1'!$A$167,"Año",B37,"Actividad",$T$5) -> 0 | U37: 785753 | W37: 1990 | X37: 279234 | Y37: 3216 | Z37: 103327 | AA37: 12716 | AB37: 18357 | AC37: 84389 | AD37: 21502 | AE37: 263012 | AF37: 785753
B38: 1991 | C38: =GETPIVOTDATA("Afiliados",'1.1. TD_Afil_1'!$A$167,"Año",B38,"Actividad",$C$5) -> 237488 | D38: =GETPIVOTDATA("Afiliados",'1.1. TD_Afil_1'!$A$167,"Año",B38,"Actividad",$D$5) -> 0 | E38: =GETPIVOTDATA("Afiliados",'1.1. TD_Afil_1'!$A$167,"Año",B38,"Actividad",$E$5) -> 2849 | F38: =GETPIVOTDATA("Afiliados",'1.1. TD_Afil_1'!$A$167,"Año",B38,"Actividad",$F$5) -> 118762 | G38: =GETPIVOTDATA("Afiliados",'1.1. TD_Afil_1'!$A$167,"Año",B38,"Actividad",$G$5) -> 14777 | H38: =GETPIVOTDATA("Afiliados",'1.1. TD_Afil_1'!$A$167,"Año",B38,"Actividad",$H$5) -> 14042 | I38: =GETPIVOTDATA("Afiliados",'1.1. TD_Afil_1'!$A$167,"Año",B38,"Actividad",$I$5) -> 99504 | J38: =GETPIVOTDATA("Afiliados",'1.1. TD_Afil_1'!$A$167,"Año",B38,"Actividad",$J$5) -> 0 | K38: =GETPIVOTDATA("Afiliados",'1.1. TD_Afil_1'!$A$167,"Año",B38,"Actividad",$K$5) -> 23194 | L38: =GETPIVOTDATA("Afiliados",'1.1. TD_Afil_1'!$A$167,"Año",B38,"Actividad",$L$5) -> 276287 | M38: =GETPIVOTDATA("Afiliados",'1.1. TD_Afil_1'!$A$167,"Año",B38,"Actividad",$M$5) -> 0 | N38: =GETPIVOTDATA("Afiliados",'1.1. TD_Afil_1'!$A$167,"Año",B38,"Actividad",$N$5) -> 0 | O38: =GETPIVOTDATA("Afiliados",'1.1. TD_Afil_1'!$A$167,"Año",B38,"Actividad",$O$5) -> 0 | P38: =GETPIVOTDATA("Afiliados",'1.1. TD_Afil_1'!$A$167,"Año",B38,"Actividad",$P$5) -> 0 | Q38: =GETPIVOTDATA("Afiliados",'1.1. TD_Afil_1'!$A$167,"Año",B38,"Actividad",$Q$5) -> 0 | R38: =GETPIVOTDATA("Afiliados",'1.1. TD_Afil_1'!$A$167,"Año",B38,"Actividad",$R$5) -> 0 | S38: =GETPIVOTDATA("Afiliados",'1.1. TD_Afil_1'!$A$167,"Año",B38,"Actividad",$S$5) -> 0 | T38: =GETPIVOTDATA("Afiliados",'1.1. TD_Afil_1'!$A$167,"Año",B38,"Actividad",$T$5) -> 0 | U38: 786903 | W38: 1991 | X38: 237488 | Y38: 2849 | Z38: 118762 | AA38: 14777 | AB38: 14042 | AC38: 99504 | AD38: 23194 | AE38: 276287 | AF38: 786903
B39: 1992 | C39: =GETPIVOTDATA("Afiliados",'1.1. TD_Afil_1'!$A$167,"Año",B39,"Actividad",$C$5) -> 221168 | D39: =GETPIVOTDATA("Afiliados",'1.1. TD_Afil_1'!$A$167,"Año",B39,"Actividad",$D$5) -> 0 | E39: =GETPIVOTDATA("Afiliados",'1.1. TD_Afil_1'!$A$167,"Año",B39,"Actividad",$E$5) -> 3144 | F39: =GETPIVOTDATA("Afiliados",'1.1. TD_Afil_1'!$A$167,"Año",B39,"Actividad",$F$5) -> 130659 | G39: =GETPIVOTDATA("Afiliados",'1.1. TD_Afil_1'!$A$167,"Año",B39,"Actividad",$G$5) -> 12858 | H39: =GETPIVOTDATA("Afiliados",'1.1. TD_Afil_1'!$A$167,"Año",B39,"Actividad",$H$5) -> 18043 | I39: =GETPIVOTDATA("Afiliados",'1.1. TD_Afil_1'!$A$167,"Año",B39,"Actividad",$I$5) -> 98029 | J39: =GETPIVOTDATA("Afiliados",'1.1. TD_Afil_1'!$A$167,"Año",B39,"Actividad",$J$5) -> 0 | K39: =GETPIVOTDATA("Afiliados",'1.1. TD_Afil_1'!$A$167,"Año",B39,"Actividad",$K$5) -> 23918 | L39: =GETPIVOTDATA("Afiliados",'1.1. TD_Afil_1'!$A$167,"Año",B39,"Actividad",$L$5) -> 287889 | M39: =GETPIVOTDATA("Afiliados",'1.1. TD_Afil_1'!$A$167,"Año",B39,"Actividad",$M$5) -> 0 | N39: =GETPIVOTDATA("Afiliados",'1.1. TD_Afil_1'!$A$167,"Año",B39,"Actividad",$N$5) -> 0 | O39: =GETPIVOTDATA("Afiliados",'1.1. TD_Afil_1'!$A$167,"Año",B39,"Actividad",$O$5) -> 0 | P39: =GETPIVOTDATA("Afiliados",'1.1. TD_Afil_1'!$A$167,"Año",B39,"Actividad",$P$5) -> 0 | Q39: =GETPIVOTDATA("Afiliados",'1.1. TD_Afil_1'!$A$167,"Año",B39,"Actividad",$Q$5) -> 0 | R39: =GETPIVOTDATA("Afiliados",'1.1. TD_Afil_1'!$A$167,"Año",B39,"Actividad",$R$5) -> 0 | S39: =GETPIVOTDATA("Afiliados",'1.1. TD_Afil_1'!$A$167,"Año",B39,"Actividad",$S$5) -> 0 | T39: =GETPIVOTDATA("Afiliados",'1.1. TD_Afil_1'!$A$167,"Año",B39,"Actividad",$T$5) -> 0 | U39: 795708 | W39: 1992 | X39: 221168 | Y39: 3144 | Z39: 130659 | AA39: 12858 | AB39: 18043 | AC39: 98029 | AD39: 23918 | AE39: 287889 | AF39: 795708
B40: 1993 | C40: =GETPIVOTDATA("Afiliados",'1.1. TD_Afil_1'!$A$167,"Año",B40,"Actividad",$C$5) -> 214639 | D40: =GETPIVOTDATA("Afiliados",'1.1. TD_Afil_1'!$A$167,"Año",B40,"Actividad",$D$5) -> 0 | E40: =GETPIVOTDATA("Afiliados",'1.1. TD_Afil_1'!$A$167,"Año",B40,"Actividad",$E$5) -> 2420 | F40: =GETPIVOTDATA("Afiliados",'1.1. TD_Afil_1'!$A$167,"Año",B40,"Actividad",$F$5) -> 136677 | G40: =GETPIVOTDATA("Afiliados",'1.1. TD_Afil_1'!$A$167,"Año",B40,"Actividad",$G$5) -> 11142 | H40: =GETPIVOTDATA("Afiliados",'1.1. TD_Afil_1'!$A$167,"Año",B40,"Actividad",$H$5) -> 26395 | I40: =GETPIVOTDATA("Afiliados",'1.1. TD_Afil_1'!$A$167,"Año",B40,"Actividad",$I$5) -> 102625 | J40: =GETPIVOTDATA("Afiliados",'1.1. TD_Afil_1'!$A$167,"Año",B40,"Actividad",$J$5) -> 0 | K40: =GETPIVOTDATA("Afiliados",'1.1. TD_Afil_1'!$A$167,"Año",B40,"Actividad",$K$5) -> 25162 | L40: =GETPIVOTDATA("Afiliados",'1.1. TD_Afil_1'!$A$167,"Año",B40,"Actividad",$L$5) -> 304179 | M40: =GETPIVOTDATA("Afiliados",'1.1. TD_Afil_1'!$A$167,"Año",B40,"Actividad",$M$5) -> 0 | N40: =GETPIVOTDATA("Afiliados",'1.1. TD_Afil_1'!$A$167,"Año",B40,"Actividad",$N$5) -> 0 | O40: =GETPIVOTDATA("Afiliados",'1.1. TD_Afil_1'!$A$167,"Año",B40,"Actividad",$O$5) -> 0 | P40: =GETPIVOTDATA("Afiliados",'1.1. TD_Afil_1'!$A$167,"Año",B40,"Actividad",$P$5) -> 0 | Q40: =GETPIVOTDATA("Afiliados",'1.1. TD_Afil_1'!$A$167,"Año",B40,"Actividad",$Q$5) -> 0 | R40: =GETPIVOTDATA("Afiliados",'1.1. TD_Afil_1'!$A$167,"Año",B40,"Actividad",$R$5) -> 0 | S40: =GETPIVOTDATA("Afiliados",'1.1. TD_Afil_1'!$A$167,"Año",B40,"Actividad",$S$5) -> 0 | T40: =GETPIVOTDATA("Afiliados",'1.1. TD_Afil_1'!$A$167,"Año",B40,"Actividad",$T$5) -> 0 | U40: 823239 | W40: 1993 | X40: 214639 | Y40: 2420 | Z40: 136677 | AA40: 11142 | AB40: 26395 | AC40: 102625 | AD40: 25162 | AE40: 304179 | AF40: 823239
B41: 1994 | C41: =GETPIVOTDATA("Afiliados",'1.1. TD_Afil_1'!$A$167,"Año",B41,"Actividad",$C$5) -> 205500 | D41: =GETPIVOTDATA("Afiliados",'1.1. TD_Afil_1'!$A$167,"Año",B41,"Actividad",$D$5) -> 0 | E41: =GETPIVOTDATA("Afiliados",'1.1. TD_Afil_1'!$A$167,"Año",B41,"Actividad",$E$5) -> 1900 | F41: =GETPIVOTDATA("Afiliados",'1.1. TD_Afil_1'!$A$167,"Año",B41,"Actividad",$F$5) -> 152892 | G41: =GETPIVOTDATA("Afiliados",'1.1. TD_Afil_1'!$A$167,"Año",B41,"Actividad",$G$5) -> 9283 | H41: =GETPIVOTDATA("Afiliados",'1.1. TD_Afil_1'!$A$167,"Año",B41,"Actividad",$H$5) -> 23934 | I41: =GETPIVOTDATA("Afiliados",'1.1. TD_Afil_1'!$A$167,"Año",B41,"Actividad",$I$5) -> 108094 | J41: =GETPIVOTDATA("Afiliados",'1.1. TD_Afil_1'!$A$167,"Año",B41,"Actividad",$J$5) -> 0 | K41: =GETPIVOTDATA("Afiliados",'1.1. TD_Afil_1'!$A$167,"Año",B41,"Actividad",$K$5) -> 23475 | L41: =GETPIVOTDATA("Afiliados",'1.1. TD_Afil_1'!$A$167,"Año",B41,"Actividad",$L$5) -> 305246 | M41: =GETPIVOTDATA("Afiliados",'1.1. TD_Afil_1'!$A$167,"Año",B41,"Actividad",$M$5) -> 0 | N41: =GETPIVOTDATA("Afiliados",'1.1. TD_Afil_1'!$A$167,"Año",B41,"Actividad",$N$5) -> 0 | O41: =GETPIVOTDATA("Afiliados",'1.1. TD_Afil_1'!$A$167,"Año",B41,"Actividad",$O$5) -> 0 | P41: =GETPIVOTDATA("Afiliados",'1.1. TD_Afil_1'!$A$167,"Año",B41,"Actividad",$P$5) -> 0 | Q41: =GETPIVOTDATA("Afiliados",'1.1. TD_Afil_1'!$A$167,"Año",B41,"Actividad",$Q$5) -> 0 | R41: =GETPIVOTDATA("Afiliados",'1.1. TD_Afil_1'!$A$167,"Año",B41,"Actividad",$R$5) -> 0 | S41: =GETPIVOTDATA("Afiliados",'1.1. TD_Afil_1'!$A$167,"Año",B41,"Actividad",$S$5) -> 0 | T41: =GETPIVOTDATA("Afiliados",'1.1. TD_Afil_1'!$A$167,"Año",B41,"Actividad",$T$5) -> 0 | U41: 830324 | W41: 1994 | X41: 205500 | Y41: 1900 | Z41: 152892 | AA41: 9283 | AB41: 23934 | AC41: 108094 | AD41: 23475 | AE41: 305246 | AF41: 830324
B42: 1995 | C42: =GETPIVOTDATA("Afiliados",'1.1. TD_Afil_1'!$A$167,"Año",B42,"Actividad",$C$5) -> 224329 | D42: =GETPIVOTDATA("Afiliados",'1.1. TD_Afil_1'!$A$167,"Año",B42,"Actividad",$D$5) -> 0 | E42: =GETPIVOTDATA("Afiliados",'1.1. TD_Afil_1'!$A$167,"Año",B42,"Actividad",$E$5) -> 2494 | F42: =GETPIVOTDATA("Afiliados",'1.1. TD_Afil_1'!$A$167,"Año",B42,"Actividad",$F$5) -> 142365 | G42: =GETPIVOTDATA("Afiliados",'1.1. TD_Afil_1'!$A$167,"Año",B42,"Actividad",$G$5) -> 9800 | H42: =GETPIVOTDATA("Afiliados",'1.1. TD_Afil_1'!$A$167,"Año",B42,"Actividad",$H$5) -> 20056 | I42: =GETPIVOTDATA("Afiliados",'1.1. TD_Afil_1'!$A$167,"Año",B42,"Actividad",$I$5) -> 119985 | J42: =GETPIVOTDATA("Afiliados",'1.1. TD_Afil_1'!$A$167,"Año",B42,"Actividad",$J$5) -> 0 | K42: =GETPIVOTDATA("Afiliados",'1.1. TD_Afil_1'!$A$167,"Año",B42,"Actividad",$K$5) -> 27450 | L42: =GETPIVOTDATA("Afiliados",'1.1. TD_Afil_1'!$A$167,"Año",B42,"Actividad",$L$5) -> 309117 | M42: =GETPIVOTDATA("Afiliados",'1.1. TD_Afil_1'!$A$167,"Año",B42,"Actividad",$M$5) -> 0 | N42: =GETPIVOTDATA("Afiliados",'1.1. TD_Afil_1'!$A$167,"Año",B42,"Actividad",$N$5) -> 0 | O42: =GETPIVOTDATA("Afiliados",'1.1. TD_Afil_1'!$A$167,"Año",B42,"Actividad",$O$5) -> 0 | P42: =GETPIVOTDATA("Afiliados",'1.1. TD_Afil_1'!$A$167,"Año",B42,"Actividad",$P$5) -> 0 | Q42: =GETPIVOTDATA("Afiliados",'1.1. TD_Afil_1'!$A$167,"Año",B42,"Actividad",$Q$5) -> 0 | R42: =GETPIVOTDATA("Afiliados",'1.1. TD_Afil_1'!$A$167,"Año",B42,"Actividad",$R$5) -> 0 | S42: =GETPIVOTDATA("Afiliados",'1.1. TD_Afil_1'!$A$167,"Año",B42,"Actividad",$S$5) -> 0 | T42: =GETPIVOTDATA("Afiliados",'1.1. TD_Afil_1'!$A$167,"Año",B42,"Actividad",$T$5) -> 0 | U42: 855596 | W42: 1995 | X42: 224329 | Y42: 2494 | Z42: 142365 | AA42: 9800 | AB42: 20056 | AC42: 119985 | AD42: 27450 | AE42: 309117 | AF42: 855596
B43: 1996 | C43: =GETPIVOTDATA("Afiliados",'1.1. TD_Afil_1'!$A$167,"Año",B43,"Actividad",$C$5) -> 204374 | D43: =GETPIVOTDATA("Afiliados",'1.1. TD_Afil_1'!$A$167,"Año",B43,"Actividad",$D$5) -> 0 | E43: =GETPIVOTDATA("Afiliados",'1.1. TD_Afil_1'!$A$167,"Año",B43,"Actividad",$E$5) -> 3004 | F43: =GETPIVOTDATA("Afiliados",'1.1. TD_Afil_1'!$A$167,"Año",B43,"Actividad",$F$5) -> 129875 | G43: =GETPIVOTDATA("Afiliados",'1.1. TD_Afil_1'!$A$167,"Año",B43,"Actividad",$G$5) -> 10979 | H43: =GETPIVOTDATA("Afiliados",'1.1. TD_Afil_1'!$A$167,"Año",B43,"Actividad",$H$5) -> 24792 | I43: =GETPIVOTDATA("Afiliados",'1.1. TD_Afil_1'!$A$167,"Año",B43,"Actividad",$I$5) -> 129844 | J43: =GETPIVOTDATA("Afiliados",'1.1. TD_Afil_1'!$A$167,"Año",B43,"Actividad",$J$5) -> 0 | K43: =GETPIVOTDATA("Afiliados",'1.1. TD_Afil_1'!$A$167,"Año",B43,"Actividad",$K$5) -> 25927 | L43: =GETPIVOTDATA("Afiliados",'1.1. TD_Afil_1'!$A$167,"Año",B43,"Actividad",$L$5) -> 323448 | M43: =GETPIVOTDATA("Afiliados",'1.1. TD_Afil_1'!$A$167,"Año",B43,"Actividad",$M$5) -> 0 | N43: =GETPIVOTDATA("Afiliados",'1.1. TD_Afil_1'!$A$167,"Año",B43,"Actividad",$N$5) -> 0 | O43: =GETPIVOTDATA("Afiliados",'1.1. TD_Afil_1'!$A$167,"Año",B43,"Actividad",$O$5) -> 0 | P43: =GETPIVOTDATA("Afiliados",'1.1. TD_Afil_1'!$A$167,"Año",B43,"Actividad",$P$5) -> 0 | Q43: =GETPIVOTDATA("Afiliados",'1.1. TD_Afil_1'!$A$167,"Año",B43,"Actividad",$Q$5) -> 0 | R43: =GETPIVOTDATA("Afiliados",'1.1. TD_Afil_1'!$A$167,"Año",B43,"Actividad",$R$5) -> 0 | S43: =GETPIVOTDATA("Afiliados",'1.1. TD_Afil_1'!$A$167,"Año",B43,"Actividad",$S$5) -> 0 | T43: =GETPIVOTDATA("Afiliados",'1.1. TD_Afil_1'!$A$167,"Año",B43,"Actividad",$T$5) -> 0 | U43: 852243 | W43: 1996 | X43: 204374 | Y43: 3004 | Z43: 129875 | AA43: 10979 | AB43: 24792 | AC43: 129844 | AD43: 25927 | AE43: 323448 | AF43: 852243
B44: 1997 | C44: =GETPIVOTDATA("Afiliados",'1.1. TD_Afil_1'!$A$167,"Año",B44,"Actividad",$C$5) -> 212808 | D44: =GETPIVOTDATA("Afiliados",'1.1. TD_Afil_1'!$A$167,"Año",B44,"Actividad",$D$5) -> 0 | E44: =GETPIVOTDATA("Afiliados",'1.1. TD_Afil_1'!$A$167,"Año",B44,"Actividad",$E$5) -> 2273 | F44: =GETPIVOTDATA("Afiliados",'1.1. TD_Afil_1'!$A$167,"Año",B44,"Actividad",$F$5) -> 138591 | G44: =GETPIVOTDATA("Afiliados",'1.1. TD_Afil_1'!$A$167,"Año",B44,"Actividad",$G$5) -> 10301 | H44: =GETPIVOTDATA("Afiliados",'1.1. TD_Afil_1'!$A$167,"Año",B44,"Actividad",$H$5) -> 22298 | I44: =GETPIVOTDATA("Afiliados",'1.1. TD_Afil_1'!$A$167,"Año",B44,"Actividad",$I$5) -> 124079 | J44: =GETPIVOTDATA("Afiliados",'1.1. TD_Afil_1'!$A$167,"Año",B44,"Actividad",$J$5) -> 0 | K44: =GETPIVOTDATA("Afiliados",'1.1. TD_Afil_1'!$A$167,"Año",B44,"Actividad",$K$5) -> 26098 | L44: =GETPIVOTDATA("Afiliados",'1.1. TD_Afil_1'!$A$167,"Año",B44,"Actividad",$L$5) -> 307960 | M44: =GETPIVOTDATA("Afiliados",'1.1. TD_Afil_1'!$A$167,"Año",B44,"Actividad",$M$5) -> 0 | N44: =GETPIVOTDATA("Afiliados",'1.1. TD_Afil_1'!$A$167,"Año",B44,"Actividad",$N$5) -> 0 | O44: =GETPIVOTDATA("Afiliados",'1.1. TD_Afil_1'!$A$167,"Año",B44,"Actividad",$O$5) -> 0 | P44: =GETPIVOTDATA("Afiliados",'1.1. TD_Afil_1'!$A$167,"Año",B44,"Actividad",$P$5) -> 0 | Q44: =GETPIVOTDATA("Afiliados",'1.1. TD_Afil_1'!$A$167,"Año",B44,"Actividad",$Q$5) -> 0 | R44: =GETPIVOTDATA("Afiliados",'1.1. TD_Afil_1'!$A$167,"Año",B44,"Actividad",$R$5) -> 0 | S44: =GETPIVOTDATA("Afiliados",'1.1. TD_Afil_1'!$A$167,"Año",B44,"Actividad",$S$5) -> 0 | T44: =GETPIVOTDATA("Afiliados",'1.1. TD_Afil_1'!$A$167,"Año",B44,"Actividad",$T$5) -> 0 | U44: 844408 | W44: 1997 | X44: 212808 | Y44: 2273 | Z44: 138591 | AA44: 10301 | AB44: 22298 | AC44: 124079 | AD44: 26098 | AE44: 307960 | AF44: 844408
B45: 1998 | C45: =GETPIVOTDATA("Afiliados",'1.1. TD_Afil_1'!$A$167,"Año",B45,"Actividad",$C$5) -> 203975 | D45: =GETPIVOTDATA("Afiliados",'1.1. TD_Afil_1'!$A$167,"Año",B45,"Actividad",$D$5) -> 0 | E45: =GETPIVOTDATA("Afiliados",'1.1. TD_Afil_1'!$A$167,"Año",B45,"Actividad",$E$5) -> 2787 | F45: =GETPIVOTDATA("Afiliados",'1.1. TD_Afil_1'!$A$167,"Año",B45,"Actividad",$F$5) -> 150251 | G45: =GETPIVOTDATA("Afiliados",'1.1. TD_Afil_1'!$A$167,"Año",B45,"Actividad",$G$5) -> 11280 | H45: =GETPIVOTDATA("Afiliados",'1.1. TD_Afil_1'!$A$167,"Año",B45,"Actividad",$H$5) -> 27882 | I45: =GETPIVOTDATA("Afiliados",'1.1. TD_Afil_1'!$A$167,"Año",B45,"Actividad",$I$5) -> 135859 | J45: =GETPIVOTDATA("Afiliados",'1.1. TD_Afil_1'!$A$167,"Año",B45,"Actividad",$J$5) -> 0 | K45: =GETPIVOTDATA("Afiliados",'1.1. TD_Afil_1'!$A$167,"Año",B45,"Actividad",$K$5) -> 27380 | L45: =GETPIVOTDATA("Afiliados",'1.1. TD_Afil_1'!$A$167,"Año",B45,"Actividad",$L$5) -> 327814 | M45: =GETPIVOTDATA("Afiliados",'1.1. TD_Afil_1'!$A$167,"Año",B45,"Actividad",$M$5) -> 0 | N45: =GETPIVOTDATA("Afiliados",'1.1. TD_Afil_1'!$A$167,"Año",B45,"Actividad",$N$5) -> 0 | O45: =GETPIVOTDATA("Afiliados",'1.1. TD_Afil_1'!$A$167,"Año",B45,"Actividad",$O$5) -> 0 | P45: =GETPIVOTDATA("Afiliados",'1.1. TD_Afil_1'!$A$167,"Año",B45,"Actividad",$P$5) -> 0 | Q45: =GETPIVOTDATA("Afiliados",'1.1. TD_Afil_1'!$A$167,"Año",B45,"Actividad",$Q$5) -> 0 | R45: =GETPIVOTDATA("Afiliados",'1.1. TD_Afil_1'!$A$167,"Año",B45,"Actividad",$R$5) -> 0 | S45: =GETPIVOTDATA("Afiliados",'1.1. TD_Afil_1'!$A$167,"Año",B45,"Actividad",$S$5) -> 0 | T45: =GETPIVOTDATA("Afiliados",'1.1. TD_Afil_1'!$A$167,"Año",B45,"Actividad",$T$5) -> 0 | U45: 887228 | W45: 1998 | X45: 203975 | Y45: 2787 | Z45: 150251 | AA45: 11280 | AB45: 27882 | AC45: 135859 | AD45: 27380 | AE45: 327814 | AF45: 887228
B46: 1999 | C46: =GETPIVOTDATA("Afiliados",'1.1. TD_Afil_1'!$A$167,"Año",B46,"Actividad",$C$5) -> 184292 | D46: =GETPIVOTDATA("Afiliados",'1.1. TD_Afil_1'!$A$167,"Año",B46,"Actividad",$D$5) -> 0 | E46: =GETPIVOTDATA("Afiliados",'1.1. TD_Afil_1'!$A$167,"Año",B46,"Actividad",$E$5) -> 2851 | F46: =GETPIVOTDATA("Afiliados",'1.1. TD_Afil_1'!$A$167,"Año",B46,"Actividad",$F$5) -> 165967 | G46: =GETPIVOTDATA("Afiliados",'1.1. TD_Afil_1'!$A$167,"Año",B46,"Actividad",$G$5) -> 10429 | H46: =GETPIVOTDATA("Afiliados",'1.1. TD_Afil_1'!$A$167,"Año",B46,"Actividad",$H$5) -> 22711 | I46: =GETPIVOTDATA("Afiliados",'1.1. TD_Afil_1'!$A$167,"Año",B46,"Actividad",$I$5) -> 139031 | J46: =GETPIVOTDATA("Afiliados",'1.1. TD_Afil_1'!$A$167,"Año",B46,"Actividad",$J$5) -> 0 | K46: =GETPIVOTDATA("Afiliados",'1.1. TD_Afil_1'!$A$167,"Año",B46,"Actividad",$K$5) -> 27345 | L46: =GETPIVOTDATA("Afiliados",'1.1. TD_Afil_1'!$A$167,"Año",B46,"Actividad",$L$5) -> 340500 | M46: =GETPIVOTDATA("Afiliados",'1.1. TD_Afil_1'!$A$167,"Año",B46,"Actividad",$M$5) -> 0 | N46: =GETPIVOTDATA("Afiliados",'1.1. TD_Afil_1'!$A$167,"Año",B46,"Actividad",$N$5) -> 0 | O46: =GETPIVOTDATA("Afiliados",'1.1. TD_Afil_1'!$A$167,"Año",B46,"Actividad",$O$5) -> 0 | P46: =GETPIVOTDATA("Afiliados",'1.1. TD_Afil_1'!$A$167,"Año",B46,"Actividad",$P$5) -> 0 | Q46: =GETPIVOTDATA("Afiliados",'1.1. TD_Afil_1'!$A$167,"Año",B46,"Actividad",$Q$5) -> 0 | R46: =GETPIVOTDATA("Afiliados",'1.1. TD_Afil_1'!$A$167,"Año",B46,"Actividad",$R$5) -> 0 | S46: =GETPIVOTDATA("Afiliados",'1.1. TD_Afil_1'!$A$167,"Año",B46,"Actividad",$S$5) -> 0 | T46: =GETPIVOTDATA("Afiliados",'1.1. TD_Afil_1'!$A$167,"Año",B46,"Actividad",$T$5) -> 0 | U46: 893126 | W46: 1999 | X46: 184292 | Y46: 2851 | Z46: 165967 | AA46: 10429 | AB46: 22711 | AC46: 139031 | AD46: 27345 | AE46: 340500 | AF46: 893126
B47: 2000 | C47: =GETPIVOTDATA("Afiliados",'1.1. TD_Afil_1'!$A$167,"Año",B47,"Actividad",$C$5) -> 169022 | D47: =GETPIVOTDATA("Afiliados",'1.1. TD_Afil_1'!$A$167,"Año",B47,"Actividad",$D$5) -> 0 | E47: =GETPIVOTDATA("Afiliados",'1.1. TD_Afil_1'!$A$167,"Año",B47,"Actividad",$E$5) -> 2699 | F47: =GETPIVOTDATA("Afiliados",'1.1. TD_Afil_1'!$A$167,"Año",B47,"Actividad",$F$5) -> 184034 | G47: =GETPIVOTDATA("Afiliados",'1.1. TD_Afil_1'!$A$167,"Año",B47,"Actividad",$G$5) -> 9896 | H47: =GETPIVOTDATA("Afiliados",'1.1. TD_Afil_1'!$A$167,"Año",B47,"Actividad",$H$5) -> 20904 | I47: =GETPIVOTDATA("Afiliados",'1.1. TD_Afil_1'!$A$167,"Año",B47,"Actividad",$I$5) -> 141715 | J47: =GETPIVOTDATA("Afiliados",'1.1. TD_Afil_1'!$A$167,"Año",B47,"Actividad",$J$5) -> 0 | K47: =GETPIVOTDATA("Afiliados",'1.1. TD_Afil_1'!$A$167,"Año",B47,"Actividad",$K$5) -> 28799 | L47: =GETPIVOTDATA("Afiliados",'1.1. TD_Afil_1'!$A$167,"Año",B47,"Actividad",$L$5) -> 351053 | M47: =GETPIVOTDATA("Afiliados",'1.1. TD_Afil_1'!$A$167,"Año",B47,"Actividad",$M$5) -> 0 | N47: =GETPIVOTDATA("Afiliados",'1.1. TD_Afil_1'!$A$167,"Año",B47,"Actividad",$N$5) -> 0 | O47: =GETPIVOTDATA("Afiliados",'1.1. TD_Afil_1'!$A$167,"Año",B47,"Actividad",$O$5) -> 0 | P47: =GETPIVOTDATA("Afiliados",'1.1. TD_Afil_1'!$A$167,"Año",B47,"Actividad",$P$5) -> 0 | Q47: =GETPIVOTDATA("Afiliados",'1.1. TD_Afil_1'!$A$167,"Año",B47,"Actividad",$Q$5) -> 0 | R47: =GETPIVOTDATA("Afiliados",'1.1. TD_Afil_1'!$A$167,"Año",B47,"Actividad",$R$5) -> 0 | S47: =GETPIVOTDATA("Afiliados",'1.1. TD_Afil_1'!$A$167,"Año",B47,"Actividad",$S$5) -> 0 | T47: =GETPIVOTDATA("Afiliados",'1.1. TD_Afil_1'!$A$167,"Año",B47,"Actividad",$T$5) -> 0 | U47: 908122 | W47: 2000 | X47: 169022 | Y47: 2699 | Z47: 184034 | AA47: 9896 | AB47: 20904 | AC47: 141715 | AD47: 28799 | AE47: 351053 | AF47: 908122
B48: 2001 | C48: =GETPIVOTDATA("Afiliados",'1.1. TD_Afil_1'!$A$167,"Año",B48,"Actividad",$C$5) -> 151981 | D48: =GETPIVOTDATA("Afiliados",'1.1. TD_Afil_1'!$A$167,"Año",B48,"Actividad",$D$5) -> 0 | E48: =GETPIVOTDATA("Afiliados",'1.1. TD_Afil_1'!$A$167,"Año",B48,"Actividad",$E$5) -> 2610 | F48: =GETPIVOTDATA("Afiliados",'1.1. TD_Afil_1'!$A$167,"Año",B48,"Actividad",$F$5) -> 193111 | G48: =GETPIVOTDATA("Afiliados",'1.1. TD_Afil_1'!$A$167,"Año",B48,"Actividad",$G$5) -> 9984 | H48: =GETPIVOTDATA("Afiliados",'1.1. TD_Afil_1'!$A$167,"Año",B48,"Actividad",$H$5) -> 21576 | I48: =GETPIVOTDATA("Afiliados",'1.1. TD_Afil_1'!$A$167,"Año",B48,"Actividad",$I$5) -> 149431 | J48: =GETPIVOTDATA("Afiliados",'1.1. TD_Afil_1'!$A$167,"Año",B48,"Actividad",$J$5) -> 0 | K48: =GETPIVOTDATA("Afiliados",'1.1. TD_Afil_1'!$A$167,"Año",B48,"Actividad",$K$5) -> 31237 | L48: =GETPIVOTDATA("Afiliados",'1.1. TD_Afil_1'!$A$167,"Año",B48,"Actividad",$L$5) -> 367838 | M48: =GETPIVOTDATA("Afiliados",'1.1. TD_Afil_1'!$A$167,"Año",B48,"Actividad",$M$5) -> 0 | N48: =GETPIVOTDATA("Afiliados",'1.1. TD_Afil_1'!$A$167,"Año",B48,"Actividad",$N$5) -> 0 | O48: =GETPIVOTDATA("Afiliados",'1.1. TD_Afil_1'!$A$167,"Año",B48,"Actividad",$O$5) -> 0 | P48: =GETPIVOTDATA("Afiliados",'1.1. TD_Afil_1'!$A$167,"Año",B48,"Actividad",$P$5) -> 0 | Q48: =GETPIVOTDATA("Afiliados",'1.1. TD_Afil_1'!$A$167,"Año",B48,"Actividad",$Q$5) -> 0 | R48: =GETPIVOTDATA("Afiliados",'1.1. TD_Afil_1'!$A$167,"Año",B48,"Actividad",$R$5) -> 0 | S48: =GETPIVOTDATA("Afiliados",'1.1. TD_Afil_1'!$A$167,"Año",B48,"Actividad",$S$5) -> 0 | T48: =GETPIVOTDATA("Afiliados",'1.1. TD_Afil_1'!$A$167,"Año",B48,"Actividad",$T$5) -> 0 | U48: 927768 | W48: 2001 | X48: 151981 | Y48: 2610 | Z48: 193111 | AA48: 9984 | AB48: 21576 | AC48: 149431 | AD48: 31237 | AE48: 367838 | AF48: 927768
B49: 2002 | C49: =GETPIVOTDATA("Afiliados",'1.1. TD_Afil_1'!$A$167,"Año",B49,"Actividad",$C$5) -> 145807 | D49: =GETPIVOTDATA("Afiliados",'1.1. TD_Afil_1'!$A$167,"Año",B49,"Actividad",$D$5) -> 0 | E49: =GETPIVOTDATA("Afiliados",'1.1. TD_Afil_1'!$A$167,"Año",B49,"Actividad",$E$5) -> 2150 | F49: =GETPIVOTDATA("Afiliados",'1.1. TD_Afil_1'!$A$167,"Año",B49,"Actividad",$F$5) -> 195943 | G49: =GETPIVOTDATA("Afiliados",'1.1. TD_Afil_1'!$A$167,"Año",B49,"Actividad",$G$5) -> 10542 | H49: =GETPIVOTDATA("Afiliados",'1.1. TD_Afil_1'!$A$167,"Año",B49,"Actividad",$H$5) -> 23503 | I49: =GETPIVOTDATA("Afiliados",'1.1. TD_Afil_1'!$A$167,"Año",B49,"Actividad",$I$5) -> 157789 | J49: =GETPIVOTDATA("Afiliados",'1.1. TD_Afil_1'!$A$167,"Año",B49,"Actividad",$J$5) -> 0 | K49: =GETPIVOTDATA("Afiliados",'1.1. TD_Afil_1'!$A$167,"Año",B49,"Actividad",$K$5) -> 31877 | L49: =GETPIVOTDATA("Afiliados",'1.1. TD_Afil_1'!$A$167,"Año",B49,"Actividad",$L$5) -> 385441 | M49: =GETPIVOTDATA("Afiliados",'1.1. TD_Afil_1'!$A$167,"Año",B49,"Actividad",$M$5) -> 0 | N49: =GETPIVOTDATA("Afiliados",'1.1. TD_Afil_1'!$A$167,"Año",B49,"Actividad",$N$5) -> 0 | O49: =GETPIVOTDATA("Afiliados",'1.1. TD_Afil_1'!$A$167,"Año",B49,"Actividad",$O$5) -> 0 | P49: =GETPIVOTDATA("Afiliados",'1.1. TD_Afil_1'!$A$167,"Año",B49,"Actividad",$P$5) -> 0 | Q49: =GETPIVOTDATA("Afiliados",'1.1. TD_Afil_1'!$A$167,"Año",B49,"Actividad",$Q$5) -> 0 | R49: =GETPIVOTDATA("Afiliados",'1.1. TD_Afil_1'!$A$167,"Año",B49,"Actividad",$R$5) -> 0 | S49: =GETPIVOTDATA("Afiliados",'1.1. TD_Afil_1'!$A$167,"Año",B49,"Actividad",$S$5) -> 0 | T49: =GETPIVOTDATA("Afiliados",'1.1. TD_Afil_1'!$A$167,"Año",B49,"Actividad",$T$5) -> 0 | U49: 953052 | W49: 2002 | X49: 145807 | Y49: 2150 | Z49: 195943 | AA49: 10542 | AB49: 23503 | AC49: 157789 | AD49: 31877 | AE49: 385441 | AF49: 953052
B50: 2003 | C50: =GETPIVOTDATA("Afiliados",'1.1. TD_Afil_1'!$A$167,"Año",B50,"Actividad",$C$5) -> 145672 | D50: =GETPIVOTDATA("Afiliados",'1.1. TD_Afil_1'!$A$167,"Año",B50,"Actividad",$D$5) -> 0 | E50: =GETPIVOTDATA("Afiliados",'1.1. TD_Afil_1'!$A$167,"Año",B50,"Actividad",$E$5) -> 2278 | F50: =GETPIVOTDATA("Afiliados",'1.1. TD_Afil_1'!$A$167,"Año",B50,"Actividad",$F$5) -> 196337 | G50: =GETPIVOTDATA("Afiliados",'1.1. TD_Afil_1'!$A$167,"Año",B50,"Actividad",$G$5) -> 9870 | H50: =GETPIVOTDATA("Afiliados",'1.1. TD_Afil_1'!$A$167,"Año",B50,"Actividad",$H$5) -> 22705 | I50: =GETPIVOTDATA("Afiliados",'1.1. TD_Afil_1'!$A$167,"Año",B50,"Actividad",$I$5) -> 161404 | J50: =GETPIVOTDATA("Afiliados",'1.1. TD_Afil_1'!$A$167,"Año",B50,"Actividad",$J$5) -> 0 | K50: =GETPIVOTDATA("Afiliados",'1.1. TD_Afil_1'!$A$167,"Año",B50,"Actividad",$K$5) -> 31044 | L50: =GETPIVOTDATA("Afiliados",'1.1. TD_Afil_1'!$A$167,"Año",B50,"Actividad",$L$5) -> 388611 | M50: =GETPIVOTDATA("Afiliados",'1.1. TD_Afil_1'!$A$167,"Año",B50,"Actividad",$M$5) -> 0 | N50: =GETPIVOTDATA("Afiliados",'1.1. TD_Afil_1'!$A$167,"Año",B50,"Actividad",$N$5) -> 0 | O50: =GETPIVOTDATA("Afiliados",'1.1. TD_Afil_1'!$A$167,"Año",B50,"Actividad",$O$5) -> 0 | P50: =GETPIVOTDATA("Afiliados",'1.1. TD_Afil_1'!$A$167,"Año",B50,"Actividad",$P$5) -> 0 | Q50: =GETPIVOTDATA("Afiliados",'1.1. TD_Afil_1'!$A$167,"Año",B50,"Actividad",$Q$5) -> 0 | R50: =GETPIVOTDATA("Afiliados",'1.1. TD_Afil_1'!$A$167,"Año",B50,"Actividad",$R$5) -> 0 | S50: =GETPIVOTDATA("Afiliados",'1.1. TD_Afil_1'!$A$167,"Año",B50,"Actividad",$S$5) -> 0 | T50: =GETPIVOTDATA("Afiliados",'1.1. TD_Afil_1'!$A$167,"Año",B50,"Actividad",$T$5) -> 0 | U50: 957921 | W50: 2003 | X50: 145672 | Y50: 2278 | Z50: 196337 | AA50: 9870 | AB50: 22705 | AC50: 161404 | AD50: 31044 | AE50: 388611 | AF50: 957921
B51: 2004 | C51: =GETPIVOTDATA("Afiliados",'1.1. TD_Afil_1'!$A$167,"Año",B51,"Actividad",$C$5) -> 142692 | D51: =GETPIVOTDATA("Afiliados",'1.1. TD_Afil_1'!$A$167,"Año",B51,"Actividad",$D$5) -> 0 | E51: =GETPIVOTDATA("Afiliados",'1.1. TD_Afil_1'!$A$167,"Año",B51,"Actividad",$E$5) -> 2709 | F51: =GETPIVOTDATA("Afiliados",'1.1. TD_Afil_1'!$A$167,"Año",B51,"Actividad",$F$5) -> 199701 | G51: =GETPIVOTDATA("Afiliados",'1.1. TD_Afil_1'!$A$167,"Año",B51,"Actividad",$G$5) -> 9486 | H51: =GETPIVOTDATA("Afiliados",'1.1. TD_Afil_1'!$A$167,"Año",B51,"Actividad",$H$5) -> 23777 | I51: =GETPIVOTDATA("Afiliados",'1.1. TD_Afil_1'!$A$167,"Año",B51,"Actividad",$I$5) -> 167537 | J51: =GETPIVOTDATA("Afiliados",'1.1. TD_Afil_1'!$A$167,"Año",B51,"Actividad",$J$5) -> 0 | K51: =GETPIVOTDATA("Afiliados",'1.1. TD_Afil_1'!$A$167,"Año",B51,"Actividad",$K$5) -> 31263 | L51: =GETPIVOTDATA("Afiliados",'1.1. TD_Afil_1'!$A$167,"Año",B51,"Actividad",$L$5) -> 411727 | M51: =GETPIVOTDATA("Afiliados",'1.1. TD_Afil_1'!$A$167,"Año",B51,"Actividad",$M$5) -> 0 | N51: =GETPIVOTDATA("Afiliados",'1.1. TD_Afil_1'!$A$167,"Año",B51,"Actividad",$N$5) -> 0 | O51: =GETPIVOTDATA("Afiliados",'1.1. TD_Afil_1'!$A$167,"Año",B51,"Actividad",$O$5) -> 0 | P51: =GETPIVOTDATA("Afiliados",'1.1. TD_Afil_1'!$A$167,"Año",B51,"Actividad",$P$5) -> 0 | Q51: =GETPIVOTDATA("Afiliados",'1.1. TD_Afil_1'!$A$167,"Año",B51,"Actividad",$Q$5) -> 0 | R51: =GETPIVOTDATA("Afiliados",'1.1. TD_Afil_1'!$A$167,"Año",B51,"Actividad",$R$5) -> 0 | S51: =GETPIVOTDATA("Afiliados",'1.1. TD_Afil_1'!$A$167,"Año",B51,"Actividad",$S$5) -> 0 | T51: =GETPIVOTDATA("Afiliados",'1.1. TD_Afil_1'!$A$167,"Año",B51,"Actividad",$T$5) -> 0 | U51: 988892 | W51: 2004 | X51: 142692 | Y51: 2709 | Z51: 199701 | AA51: 9486 | AB51: 23777 | AC51: 167537 | AD51: 31263 | AE51: 411727 | AF51: 988892
B52: 2005 | C52: =GETPIVOTDATA("Afiliados",'1.1. TD_Afil_1'!$A$167,"Año",B52,"Actividad",$C$5) -> 141860 | D52: =GETPIVOTDATA("Afiliados",'1.1. TD_Afil_1'!$A$167,"Año",B52,"Actividad",$D$5) -> 0 | E52: =GETPIVOTDATA("Afiliados",'1.1. TD_Afil_1'!$A$167,"Año",B52,"Actividad",$E$5) -> 3129 | F52: =GETPIVOTDATA("Afiliados",'1.1. TD_Afil_1'!$A$167,"Año",B52,"Actividad",$F$5) -> 192111 | G52: =GETPIVOTDATA("Afiliados",'1.1. TD_Afil_1'!$A$167,"Año",B52,"Actividad",$G$5) -> 9209 | H52: =GETPIVOTDATA("Afiliados",'1.1. TD_Afil_1'!$A$167,"Año",B52,"Actividad",$H$5) -> 25840 | I52: =GETPIVOTDATA("Afiliados",'1.1. TD_Afil_1'!$A$167,"Año",B52,"Actividad",$I$5) -> 179422 | J52: =GETPIVOTDATA("Afiliados",'1.1. TD_Afil_1'!$A$167,"Año",B52,"Actividad",$J$5) -> 0 | K52: =GETPIVOTDATA("Afiliados",'1.1. TD_Afil_1'!$A$167,"Año",B52,"Actividad",$K$5) -> 30567 | L52: =GETPIVOTDATA("Afiliados",'1.1. TD_Afil_1'!$A$167,"Año",B52,"Actividad",$L$5) -> 420218 | M52: =GETPIVOTDATA("Afiliados",'1.1. TD_Afil_1'!$A$167,"Año",B52,"Actividad",$M$5) -> 0 | N52: =GETPIVOTDATA("Afiliados",'1.1. TD_Afil_1'!$A$167,"Año",B52,"Actividad",$N$5) -> 0 | O52: =GETPIVOTDATA("Afiliados",'1.1. TD_Afil_1'!$A$167,"Año",B52,"Actividad",$O$5) -> 0 | P52: =GETPIVOTDATA("Afiliados",'1.1. TD_Afil_1'!$A$167,"Año",B52,"Actividad",$P$5) -> 0 | Q52: =GETPIVOTDATA("Afiliados",'1.1. TD_Afil_1'!$A$167,"Año",B52,"Actividad",$Q$5) -> 0 | R52: =GETPIVOTDATA("Afiliados",'1.1. TD_Afil_1'!$A$167,"Año",B52,"Actividad",$R$5) -> 0 | S52: =GETPIVOTDATA("Afiliados",'1.1. TD_Afil_1'!$A$167,"Año",B52,"Actividad",$S$5) -> 0 | T52: =GETPIVOTDATA("Afiliados",'1.1. TD_Afil_1'!$A$167,"Año",B52,"Actividad",$T$5) -> 0 | U52: 1002356 | W52: 2005 | X52: 141860 | Y52: 3129 | Z52: 192111 | AA52: 9209 | AB52: 25840 | AC52: 179422 | AD52: 30567 | AE52: 420218 | AF52: 1002356
B53: 2006 | C53: =GETPIVOTDATA("Afiliados",'1.1. TD_Afil_1'!$A$167,"Año",B53,"Actividad",$C$5) -> 140554 | D53: =GETPIVOTDATA("Afiliados",'1.1. TD_Afil_1'!$A$167,"Año",B53,"Actividad",$D$5) -> 0 | E53: =GETPIVOTDATA("Afiliados",'1.1. TD_Afil_1'!$A$167,"Año",B53,"Actividad",$E$5) -> 3192 | F53: =GETPIVOTDATA("Afiliados",'1.1. TD_Afil_1'!$A$167,"Año",B53,"Actividad",$F$5) -> 176736 | G53: =GETPIVOTDATA("Afiliados",'1.1. TD_Afil_1'!$A$167,"Año",B53,"Actividad",$G$5) -> 8885 | H53: =GETPIVOTDATA("Afiliados",'1.1. TD_Afil_1'!$A$167,"Año",B53,"Actividad",$H$5) -> 31291 | I53: =GETPIVOTDATA("Afiliados",'1.1. TD_Afil_1'!$A$167,"Año",B53,"Actividad",$I$5) -> 195391 | J53: =GETPIVOTDATA("Afiliados",'1.1. TD_Afil_1'!$A$167,"Año",B53,"Actividad",$J$5) -> 0 | K53: =GETPIVOTDATA("Afiliados",'1.1. TD_Afil_1'!$A$167,"Año",B53,"Actividad",$K$5) -> 33386 | L53: =GETPIVOTDATA("Afiliados",'1.1. TD_Afil_1'!$A$167,"Año",B53,"Actividad",$L$5) -> 436970 | M53: =GETPIVOTDATA("Afiliados",'1.1. TD_Afil_1'!$A$167,"Año",B53,"Actividad",$M$5) -> 0 | N53: =GETPIVOTDATA("Afiliados",'1.1. TD_Afil_1'!$A$167,"Año",B53,"Actividad",$N$5) -> 0 | O53: =GETPIVOTDATA("Afiliados",'1.1. TD_Afil_1'!$A$167,"Año",B53,"Actividad",$O$5) -> 0 | P53: =GETPIVOTDATA("Afiliados",'1.1. TD_Afil_1'!$A$167,"Año",B53,"Actividad",$P$5) -> 0 | Q53: =GETPIVOTDATA("Afiliados",'1.1. TD_Afil_1'!$A$167,"Año",B53,"Actividad",$Q$5) -> 0 | R53: =GETPIVOTDATA("Afiliados",'1.1. TD_Afil_1'!$A$167,"Año",B53,"Actividad",$R$5) -> 0 | S53: =GETPIVOTDATA("Afiliados",'1.1. TD_Afil_1'!$A$167,"Año",B53,"Actividad",$S$5) -> 0 | T53: =GETPIVOTDATA("Afiliados",'1.1. TD_Afil_1'!$A$167,"Año",B53,"Actividad",$T$5) -> 0 | U53: 1026405 | W53: 2006 | X53: 140554 | Y53: 3192 | Z53: 176736 | AA53: 8885 | AB53: 31291 | AC53: 195391 | AD53: 33386 | AE53: 436970 | AF53: 1026405
B54: 2007 | C54: =GETPIVOTDATA("Afiliados",'1.1. TD_Afil_1'!$A$167,"Año",B54,"Actividad",$C$5) -> 151200 | D54: =GETPIVOTDATA("Afiliados",'1.1. TD_Afil_1'!$A$167,"Año",B54,"Actividad",$D$5) -> 0 | E54: =GETPIVOTDATA("Afiliados",'1.1. TD_Afil_1'!$A$167,"Año",B54,"Actividad",$E$5) -> 3442 | F54: =GETPIVOTDATA("Afiliados",'1.1. TD_Afil_1'!$A$167,"Año",B54,"Actividad",$F$5) -> 172567 | G54: =GETPIVOTDATA("Afiliados",'1.1. TD_Afil_1'!$A$167,"Año",B54,"Actividad",$G$5) -> 8283 | H54: =GETPIVOTDATA("Afiliados",'1.1. TD_Afil_1'!$A$167,"Año",B54,"Actividad",$H$5) -> 29970 | I54: =GETPIVOTDATA("Afiliados",'1.1. TD_Afil_1'!$A$167,"Año",B54,"Actividad",$I$5) -> 212358 | J54: =GETPIVOTDATA("Afiliados",'1.1. TD_Afil_1'!$A$167,"Año",B54,"Actividad",$J$5) -> 0 | K54: =GETPIVOTDATA("Afiliados",'1.1. TD_Afil_1'!$A$167,"Año",B54,"Actividad",$K$5) -> 35013 | L54: =GETPIVOTDATA("Afiliados",'1.1. TD_Afil_1'!$A$167,"Año",B54,"Actividad",$L$5) -> 460625 | M54: =GETPIVOTDATA("Afiliados",'1.1. TD_Afil_1'!$A$167,"Año",B54,"Actividad",$M$5) -> 0 | N54: =GETPIVOTDATA("Afiliados",'1.1. TD_Afil_1'!$A$167,"Año",B54,"Actividad",$N$5) -> 0 | O54: =GETPIVOTDATA("Afiliados",'1.1. TD_Afil_1'!$A$167,"Año",B54,"Actividad",$O$5) -> 0 | P54: =GETPIVOTDATA("Afiliados",'1.1. TD_Afil_1'!$A$167,"Año",B54,"Actividad",$P$5) -> 0 | Q54: =GETPIVOTDATA("Afiliados",'1.1. TD_Afil_1'!$A$167,"Año",B54,"Actividad",$Q$5) -> 0 | R54: =GETPIVOTDATA("Afiliados",'1.1. TD_Afil_1'!$A$167,"Año",B54,"Actividad",$R$5) -> 0 | S54: =GETPIVOTDATA("Afiliados",'1.1. TD_Afil_1'!$A$167,"Año",B54,"Actividad",$S$5) -> 0 | T54: =GETPIVOTDATA("Afiliados",'1.1. TD_Afil_1'!$A$167,"Año",B54,"Actividad",$T$5) -> 0 | U54: 1073458 | W54: 2007 | X54: 151200 | Y54: 3442 | Z54: 172567 | AA54: 8283 | AB54: 29970 | AC54: 212358 | AD54: 35013 | AE54: 460625 | AF54: 1073458
B55: 2008 | C55: =GETPIVOTDATA("Afiliados",'1.1. TD_Afil_1'!$A$167,"Año",B55,"Actividad",$C$5) -> 143740 | D55: =GETPIVOTDATA("Afiliados",'1.1. TD_Afil_1'!$A$167,"Año",B55,"Actividad",$D$5) -> 0 | E55: =GETPIVOTDATA("Afiliados",'1.1. TD_Afil_1'!$A$167,"Año",B55,"Actividad",$E$5) -> 3791 | F55: =GETPIVOTDATA("Afiliados",'1.1. TD_Afil_1'!$A$167,"Año",B55,"Actividad",$F$5) -> 160101 | G55: =GETPIVOTDATA("Afiliados",'1.1. TD_Afil_1'!$A$167,"Año",B55,"Actividad",$G$5) -> 8537 | H55: =GETPIVOTDATA("Afiliados",'1.1. TD_Afil_1'!$A$167,"Año",B55,"Actividad",$H$5) -> 24456 | I55: =GETPIVOTDATA("Afiliados",'1.1. TD_Afil_1'!$A$167,"Año",B55,"Actividad",$I$5) -> 220630 | J55: =GETPIVOTDATA("Afiliados",'1.1. TD_Afil_1'!$A$167,"Año",B55,"Actividad",$J$5) -> 0 | K55: =GETPIVOTDATA("Afiliados",'1.1. TD_Afil_1'!$A$167,"Año",B55,"Actividad",$K$5) -> 34267 | L55: =GETPIVOTDATA("Afiliados",'1.1. TD_Afil_1'!$A$167,"Año",B55,"Actividad",$L$5) -> 477170 | M55: =GETPIVOTDATA("Afiliados",'1.1. TD_Afil_1'!$A$167,"Año",B55,"Actividad",$M$5) -> 0 | N55: =GETPIVOTDATA("Afiliados",'1.1. TD_Afil_1'!$A$167,"Año",B55,"Actividad",$N$5) -> 0 | O55: =GETPIVOTDATA("Afiliados",'1.1. TD_Afil_1'!$A$167,"Año",B55,"Actividad",$O$5) -> 0 | P55: =GETPIVOTDATA("Afiliados",'1.1. TD_Afil_1'!$A$167,"Año",B55,"Actividad",$P$5) -> 0 | Q55: =GETPIVOTDATA("Afiliados",'1.1. TD_Afil_1'!$A$167,"Año",B55,"Actividad",$Q$5) -> 0 | R55: =GETPIVOTDATA("Afiliados",'1.1. TD_Afil_1'!$A$167,"Año",B55,"Actividad",$R$5) -> 0 | S55: =GETPIVOTDATA("Afiliados",'1.1. TD_Afil_1'!$A$167,"Año",B55,"Actividad",$S$5) -> 0 | T55: =GETPIVOTDATA("Afiliados",'1.1. TD_Afil_1'!$A$167,"Año",B55,"Actividad",$T$5) -> 0 | U55: 1072692 | W55: 2008 | X55: 143740 | Y55: 3791 | Z55: 160101 | AA55: 8537 | AB55: 24456 | AC55: 220630 | AD55: 34267 | AE55: 477170 | AF55: 1072692
B56: 2009 | C56: =GETPIVOTDATA("Afiliados",'1.1. TD_Afil_1'!$A$167,"Año",B56,"Actividad",$C$5) -> 152415 | D56: =GETPIVOTDATA("Afiliados",'1.1. TD_Afil_1'!$A$167,"Año",B56,"Actividad",$D$5) -> 0 | E56: =GETPIVOTDATA("Afiliados",'1.1. TD_Afil_1'!$A$167,"Año",B56,"Actividad",$E$5) -> 3321 | F56: =GETPIVOTDATA("Afiliados",'1.1. TD_Afil_1'!$A$167,"Año",B56,"Actividad",$F$5) -> 150387 | G56: =GETPIVOTDATA("Afiliados",'1.1. TD_Afil_1'!$A$167,"Año",B56,"Actividad",$G$5) -> 8575 | H56: =GETPIVOTDATA("Afiliados",'1.1. TD_Afil_1'!$A$167,"Año",B56,"Actividad",$H$5) -> 20174 | I56: =GETPIVOTDATA("Afiliados",'1.1. TD_Afil_1'!$A$167,"Año",B56,"Actividad",$I$5) -> 215692 | J56: =GETPIVOTDATA("Afiliados",'1.1. TD_Afil_1'!$A$167,"Año",B56,"Actividad",$J$5) -> 0 | K56: =GETPIVOTDATA("Afiliados",'1.1. TD_Afil_1'!$A$167,"Año",B56,"Actividad",$K$5) -> 35277 | L56: =GETPIVOTDATA("Afiliados",'1.1. TD_Afil_1'!$A$167,"Año",B56,"Actividad",$L$5) -> 502576 | M56: =GETPIVOTDATA("Afiliados",'1.1. TD_Afil_1'!$A$167,"Año",B56,"Actividad",$M$5) -> 0 | N56: =GETPIVOTDATA("Afiliados",'1.1. TD_Afil_1'!$A$167,"Año",B56,"Actividad",$N$5) -> 0 | O56: =GETPIVOTDATA("Afiliados",'1.1. TD_Afil_1'!$A$167,"Año",B56,"Actividad",$O$5) -> 0 | P56: =GETPIVOTDATA("Afiliados",'1.1. TD_Afil_1'!$A$167,"Año",B56,"Actividad",$P$5) -> 0 | Q56: =GETPIVOTDATA("Afiliados",'1.1. TD_Afil_1'!$A$167,"Año",B56,"Actividad",$Q$5) -> 0 | R56: =GETPIVOTDATA("Afiliados",'1.1. TD_Afil_1'!$A$167,"Año",B56,"Actividad",$R$5) -> 0 | S56: =GETPIVOTDATA("Afiliados",'1.1. TD_Afil_1'!$A$167,"Año",B56,"Actividad",$S$5) -> 0 | T56: =GETPIVOTDATA("Afiliados",'1.1. TD_Afil_1'!$A$167,"Año",B56,"Actividad",$T$5) -> 0 | U56: 1088417 | W56: 2009 | X56: 152415 | Y56: 3321 | Z56: 150387 | AA56: 8575 | AB56: 20174 | AC56: 215692 | AD56: 35277 | AE56: 502576 | AF56: 1088417
B57: 2010 | C57: 149615 | D57: 0 | E57: 3594 | F57: 152576 | G57: 9483 | H57: 18182 | I57: 214852 | J57: 0 | K57: 36658 | L57: 522231 | M57: 0 | N57: 0 | O57: 0 | P57: 0 | Q57: 0 | R57: 0 | S57: 0 | T57: 0 | U57: 1107191 | W57: 2010 | X57: 149615 | Y57: 3594 | Z57: 152576 | AA57: 9483 | AB57: 18182 | AC57: 214852 | AD57: 36658 | AE57: 522231 | AF57: 1107191
B58: 2011 | C58: 150193 | D58: 0 | E58: 4093 | F58: 153461 | G58: 9531 | H58: 17506 | I58: 222231 | J58: 0 | K58: 37566 | L58: 559797 | M58: 0 | N58: 0 | O58: 0 | P58: 0 | Q58: 0 | R58: 0 | S58: 0 | T58: 0 | U58: 1154378 | W58: 2011 | X58: 150193 | Y58: 4093 | Z58: 153461 | AA58: 9531 | AB58: 17506 | AC58: 222231 | AD58: 37566 | AE58: 559797 | AF58: 1154378
B59: 2012 | C59: 144211 | D59: 0 | E59: 4784 | F59: 150728 | G59: 10149 | H59: 17585 | I59: 238282 | J59: 0 | K59: 39615 | L59: 580512 | M59: 0 | N59: 0 | O59: 0 | P59: 0 | Q59: 0 | R59: 0 | S59: 0 | T59: 0 | U59: 1185866 | W59: 2012 | X59: 144211 | Y59: 4784 | Z59: 150728 | AA59: 10149 | AB59: 17585 | AC59: 238282 | AD59: 39615 | AE59: 580512 | AF59: 1185866
B60: 2013 | C60: 143019 | D60: 0 | E60: 5949 | F60: 152199 | G60: 10583 | H60: 15139 | I60: 250463 | J60: 0 | K60: 40583 | L60: 604365 | M60: 0 | N60: 0 | O60: 0 | P60: 0 | Q60: 0 | R60: 0 | S60: 0 | T60: 0 | U60: 1222300 | W60: 2013 | X60: 143019 | Y60: 5949 | Z60: 152199 | AA60: 10583 | AB60: 15139 | AC60: 250463 | AD60: 40583 | AE60: 604365 | AF60: 1222300
B61: 2014 | C61: 147502 | D61: 0 | E61: 5691 | F61: 152522 | G61: 10890 | H61: 15337 | I61: 241562 | J61: 0 | K61: 41754 | L61: 622004 | M61: 0 | N61: 0 | O61: 0 | P61: 0 | Q61: 0 | R61: 0 | S61: 0 | T61: 0 | U61: 1237262 | W61: 2014 | X61: 147502 | Y61: 5691 | Z61: 152522 | AA61: 10890 | AB61: 15337 | AC61: 241562 | AD61: 41754 | AE61: 622004 | AF61: 1237262
B62: 2015 | C62: 147902 | D62: 0 | E62: 5405 | F62: 156413 | G62: 10847 | H62: 14254 | I62: 251412 | J62: 0 | K62: 41985 | L62: 639211 | M62: 0 | N62: 0 | O62: 0 | P62: 0 | Q62: 0 | R62: 0 | S62: 0 | T62: 0 | U62: 1267429 | W62: 2015 | X62: 147902 | Y62: 5405 | Z62: 156413 | AA62: 10847 | AB62: 14254 | AC62: 251412 | AD62: 41985 | AE62: 639211 | AF62: 1267429
B63: 2016 | C63: 150750 | D63: 0 | E63: 4800 | F63: 162860 | G63: 10581 | H63: 12616 | I63: 261859 | J63: 0 | K63: 46250 | L63: 650285 | M63: 0 | N63: 0 | O63: 0 | P63: 0 | Q63: 0 | R63: 0 | S63: 0 | T63: 0 | U63: 1300001 | W63: 2016 | X63: 150750 | Y63: 4800 | Z63: 162860 | AA63: 10581 | AB63: 12616 | AC63: 261859 | AD63: 46250 | AE63: 650285 | AF63: 1300001
B64: 2017 | C64: 149253 | D64: 0 | E64: 3828 | F64: 160265 | G64: 10490 | H64: 12343 | I64: 269676 | J64: 0 | K64: 43431 | L64: 663731 | M64: 0 | N64: 0 | O64: 0 | P64: 0 | Q64: 0 | R64: 0 | S64: 0 | T64: 0 | U64: 1313017 | W64: 2017 | X64: 149253 | Y64: 3828 | Z64: 160265 | AA64: 10490 | AB64: 12343 | AC64: 269676 | AD64: 43431 | AE64: 663731 | AF64: 1313017
B65: 2018 | C65: 135610 | D65: 0 | E65: 2745 | F65: 160831 | G65: 10858 | H65: 11088 | I65: 285076 | J65: 0 | K65: 46569 | L65: 672760 | M65: 0 | N65: 0 | O65: 0 | P65: 0 | Q65: 0 | R65: 0 | S65: 0 | T65: 0 | U65: 1325537 | W65: 2018 | X65: 135610 | Y65: 2745 | Z65: 160831 | AA65: 10858 | AB65: 11088 | AC65: 285076 | AD65: 46569 | AE65: 672760 | AF65: 1325537
B66: 2019 | C66: 124772 | D66: 0 | E66: 1886 | F66: 165782 | G66: 10954 | H66: 9273 | I66: 300181 | J66: 0 | K66: 48483 | L66: 689490 | M66: 0 | N66: 0 | O66: 0 | P66: 0 | Q66: 0 | R66: 0 | S66: 0 | T66: 0 | U66: 1350821 | W66: 2019 | X66: 124772 | Y66: 1886 | Z66: 165782 | AA66: 10954 | AB66: 9273 | AC66: 300181 | AD66: 48483 | AE66: 689490 | AF66: 1350821
B67: 2020 | C67: 91526 | D67: 39 | E67: 2687 | F67: 178643 | G67: 11204 | H67: 17971 | I67: 176262 | J67: 30985 | K67: 50103 | L67: 0 | M67: 64062 | N67: 150762 | O67: 320775 | P67: 44566 | Q67: 17628 | R67: 131044 | S67: 587 | T67: 1038 | U67: 1289882 | W67: 2020 | X67: 91565 | Y67: 2687 | Z67: 178643 | AA67: 11204 | AB67: 17971 | AC67: 391086 | AD67: 50103 | AE67: 546623 | AF67: 1289882
B68: 2021 | C68: 91532 | D68: 42 | E68: 2430 | F68: 199637 | G68: 11942 | H68: 18819 | I68: 197343 | J68: 36565 | K68: 56067 | L68: 0 | M68: 65672 | N68: 167662 | O68: 333342 | P68: 44335 | Q68: 19870 | R68: 140904 | S68: 978 | T68: 1108 | U68: 1388248 | W68: 2021 | X68: 91574 | Y68: 2430 | Z68: 199637 | AA68: 11942 | AB68: 18819 | AC68: 430677 | AD68: 56067 | AE68: 577102 | AF68: 1388248
B69: 2022 | C69: 93705 | D69: 77 | E69: 2153 | F69: 214577 | G69: 11649 | H69: 17729 | I69: 215454 | J69: 44026 | K69: 58035 | L69: 0 | M69: 69326 | N69: 188615 | O69: 343776 | P69: 45625 | Q69: 22799 | R69: 149547 | S69: 1394 | T69: 1116 | U69: 1479603 | W69: 2022 | X69: 93782 | Y69: 2153 | Z69: 214577 | AA69: 11649 | AB69: 17729 | AC69: 473395 | AD69: 58035 | AE69: 608283 | AF69: 1479603
B70: 2023 | C70: 98120 | D70: 85 | E70: 1992 | F70: 219749 | G70: 11663 | H70: 20018 | I70: 235933 | J70: 51025 | K70: 60282 | L70: 0 | M70: 74896 | N70: 198130 | O70: 354246 | P70: 47147 | Q70: 25419 | R70: 153686 | S70: 1264 | T70: 1008 | U70: 1554663 | W70: 2023 | X70: 98205 | Y70: 1992 | Z70: 219749 | AA70: 11663 | AB70: 20018 | AC70: 508959 | AD70: 60282 | AE70: 633795 | AF70: 1554663
B71: 2024 | C71: 104047 | D71: 51 | E71: 2105 | F71: 233014 | G71: 12374 | H71: 20519 | I71: 262300 | J71: 58487 | K71: 65084 | L71: 0 | M71: 80218 | N71: 212083 | O71: 371969 | P71: 49435 | Q71: 28528 | R71: 156336 | S71: 1566 | T71: 1021 | U71: 1659137 | W71: 2024 | X71: =+C71+D71 -> 104098 | Y71: =+E71 -> 2105 | Z71: 233014 | AA71: 12374 | AB71: 20519 | AC71: =+I71+N71+M71 -> 554601 | AD71: =+K71 -> 65084 | AE71: =+L71+J71+O71+P71+Q71+R71+S71+T71 -> 667342 | AF71: =SUM(X71:AE71) -> 1659137
